Workbook

Sheet Notes

Sheet Age profile chart

Sheet Forecast Ch1

Sheet Age profile summary
A1: Asset calcs | R1: Remaining life | W1: RC ($ millions) | AB1: RC (%)
R2: Very old | S2: Old | T2: moderate | U2: young | V2: new | W2: =R2 -> Very old | X2: =S2 -> Old | Y2: moderate | Z2: young | AA2: new | AB2: Very old | AC2: Old | AD2: moderate | AE2: young | AF2: new
M3: WARL | O3: WAL | Q3: WAA | R3: > | S3: > | T3: > | U3: > | V3: <=0.2 | W3: =R3 -> > | X3: > | Y3: > | Z3: > | AA3: <=0.2 | AB3: > | AC3: > | AD3: > | AE3: > | AF3: <=0.2
F4: Quantity | G4: Unit | H4: RC | I4: prop total | J4: Rank | K4: prop cat | L4: RC / unit | M4: (Rep life) | O4: Rep life | Q4: % Rep life | R4: =W4 -> 0.9 | S4: =X4 -> 0.8 | T4: =Y4 -> 0.4 | U4: =Z4 -> 0.2 | W4: 0.9 | X4: 0.8 | Y4: 0.4 | Z4: 0.2 | AA4: 0 | AB4: 0.9 | AC4: 0.8 | AD4: 0.4 | AE4: 0.2 | AF4: 0 | AG4: Std life | AH4: Std life | AI4: rep life
G5: Cost | H5: $ millions | I5: % | J5: total | K5: % | L5: $ ('000) | AG5: max | AH5: min
A6: 1 | D6: =VLOOKUP(A6,IDtable,2) -> POLES | F6: =SUMIF($A$21:$A$205,$A6,F$21:F$205) -> 1325986 | H6: =SUMIF($A$21:$A$205,$A6,H$21:H$205)/1000 -> 5224.19107 | I6: =H6/($H$18) -> 0.2233312929 | J6: =RANK(I6,I$6:I$17) -> 2 | L6: =H6*1000/(F6+0.001) -> 3.939853864 | M6: =SUMIF($A$21:$A$205,$A6,N$21:N$205)/(H6*1000+0.000001) -> 23.49026486 | O6: =SUMIF($A$21:$A$205,$A6,P$21:P$205)/(H6*1000+0.000001) -> 54.25160009 | Q6: =(O6-M6)/(O6+0.000001) -> 0.5670124865 | R6: =$O6-R$4*$O6 -> 5.425160009 | S6: =$O6-S$4*$O6 -> 10.85032002 | T6: =$O6-T$4*$O6 -> 32.55096005 | U6: =$O6-U$4*$O6 -> 43.40128007 | V6: =$O6-V$4*$O6 -> 54.25160009 | W6: =SUMIF($A$21:$A$205,$A6,W$21:W$205)/1000 -> 894.399132 | X6: 677.9651189 | Y6: 1900.471962 | Z6: 863.9220616 | AA6: 887.4327954 | AB6: =IF($H6=0,0,W6/$H6) -> 0.1712033729 | AC6: =IF($H6=0,0,X6/$H6) -> 0.1297741813 | AD6: =IF($H6=0,0,Y6/$H6) -> 0.3637830119 | AE6: =IF($H6=0,0,Z6/$H6) -> 0.1653695376 | AF6: =IF($H6=0,0,AA6/$H6) -> 0.1698698963 | AG6: =MAX(IF($A$21:$A$205=$A6,$O$21:$O$205)) -> 54.9 | AH6: =MIN(IF($A$21:$A$205=$A6,$O$21:$O$205)) -> 53.8 | AI6: =IF(H6=0,0,SUMIF($A$21:$A$205,$A6,$AJ$21:$AJ$205)/(H6*1000)) -> 54.25160009
A7: 2 | D7: OVERHEAD CONDUCTORS | F7: =SUMIF($A$21:$A$205,$A7,F$21:F$205) -> 185285.32 | H7: =SUMIF($A$21:$A$205,$A7,H$21:H$205)/1000 -> 9521.903565 | I7: =H7/($H$18) -> 0.4070561367 | J7: 1 | L7: 51.3904907 | M7: 11.38008424 | O7: 53.90747759 | Q7: 0.7888959836 | R7: =$O7-R$4*$O7 -> 5.390747759 | S7: 10.78149552 | T7: 32.34448655 | U7: 43.12598207 | V7: 53.90747759 | W7: 4398.071127 | X7: 1686.949016 | Y7: 1685.587639 | Z7: 773.8298827 | AA7: 977.4658993 | AB7: =IF($H7=0,0,W7/$H7) -> 0.4618899044 | AC7: =IF($H7=0,0,X7/$H7) -> 0.177165102 | AD7: =IF($H7=0,0,Y7/$H7) -> 0.1770221288 | AE7: =IF($H7=0,0,Z7/$H7) -> 0.08126840158 | AF7: =IF($H7=0,0,AA7/$H7) -> 0.1026544632 | AG7: =MAX(IF($A$21:$A$205=$A7,$O$21:$O$205)) -> 54.9 | AH7: =MIN(IF($A$21:$A$205=$A7,$O$21:$O$205)) -> 53.8 | AI7: =IF(H7=0,0,SUMIF($A$21:$A$205,$A7,$AJ$21:$AJ$205)/(H7*1000)) -> 53.90747759
A8: 3 | D8: UNDERGROUND CABLES | F8: 8137.51 | H8: 3365.450853 | I8: 0.1438711717 | J8: 3 | L8: 413.5725104 | M8: 42.27099226 | O8: 53.81845308 | Q8: 0.2145632203 | R8: 5.381845308 | S8: 10.76369062 | T8: 32.29107185 | U8: 43.05476246 | V8: 53.81845308 | W8: 26.99111337 | X8: 56.82069042 | Y8: 478.0298299 | Z8: 517.2750824 | AA8: 2286.334137 | AB8: 0.008020058693 | AC8: 0.01688353 | AD8: 0.1420403538 | AE8: 0.1537015708 | AF8: 0.6793544868 | AG8: =MAX(IF($A$21:$A$205=$A8,$O$21:$O$205)) -> 54.9 | AH8: =MIN(IF($A$21:$A$205=$A8,$O$21:$O$205)) -> 53.8 | AI8: 53.81845308
A9: 4 | D9: SERVICE LINES | F9: 16418.77116 | H9: 12.93438389 | I9: 0.0005529377923 | J9: 6 | L9: 0.7877802162 | M9: 27.129774 | O9: 53.8 | Q9: 0.4957290985 | R9: 5.38 | S9: 10.76 | T9: 32.28 | U9: 43.04 | V9: 53.8 | W9: 1.587365859 | X9: 1.720653008 | Y9: 3.949885734 | Z9: 1.456108132 | AA9: 4.220371152 | AB9: 0.122724505 | AC9: 0.1330293753 | AD9: 0.3053787308 | AE9: 0.1125765359 | AF9: 0.3262908531 | AG9: =MAX(IF($A$21:$A$205=$A9,$O$21:$O$205)) -> 53.8 | AH9: =MIN(IF($A$21:$A$205=$A9,$O$21:$O$205)) -> 53.8 | AI9: 53.8
A10: 5 | D10: TRANSFORMERS | F10: 137210 | H10: 2297.084769 | I10: 0.09819910961 | J10: 5 | L10: 16.74138002 | M10: 23.06454501 | O10: 46.08342284 | Q10: 0.4995045054 | R10: 4.608342284 | S10: 9.216684568 | T10: 27.6500537 | U10: 36.86673827 | V10: 46.08342284 | W10: 407.6373128 | X10: 85.21410514 | Y10: 750.7250038 | Z10: 435.7192657 | AA10: 617.789082 | AB10: 0.1774585415 | AC10: 0.0370966306 | AD10: 0.3268164126 | AE10: 0.1896835813 | AF10: 0.268944834 | AG10: =MAX(IF($A$21:$A$205=$A10,$O$21:$O$205)) -> 54.9 | AH10: =MIN(IF($A$21:$A$205=$A10,$O$21:$O$205)) -> 45.8 | AI10: 46.08342284
A11: 6 | D11: SWITCHGEAR | F11: 469243 | H11: 2970.549385 | I11: 0.1269893513 | J11: 4 | L11: 6.330513994 | M11: 35.46771871 | O11: 53.93229601 | Q11: 0.3423658609 | R11: 5.393229601 | S11: 10.7864592 | T11: 32.35937761 | U11: 43.14583681 | V11: 53.93229601 | W11: 179.6992158 | X11: 207.164951 | Y11: 666.7555311 | Z11: 449.3945543 | AA11: 1467.535132 | AB11: 0.06049359646 | AC11: 0.06973960845 | AD11: 0.2244552925 | AE11: 0.1512833137 | AF11: 0.4940281889 | AG11: =MAX(IF($A$21:$A$205=$A11,$O$21:$O$205)) -> 54.9 | AH11: =MIN(IF($A$21:$A$205=$A11,$O$21:$O$205)) -> 53.8 | AI11: 53.93229601
A12: 7 | D12: PUBLIC LIGHTING | F12: 0 | H12: 0 | I12: 0 | J12: 7 | L12: 0 | M12: 0 | O12: 0 | Q12: 0 | R12: 0 | S12: 0 | T12: 0 | U12: 0 | V12: 0 | W12: 0 | X12: 0 | Y12: 0 | Z12: 0 | AA12: 0 | AB12: 0 | AC12: 0 | AD12: 0 | AE12: 0 | AF12: 0 | AG12: =MAX(IF($A$21:$A$205=$A12,$O$21:$O$205)) -> 0 | AH12: =MIN(IF($A$21:$A$205=$A12,$O$21:$O$205)) -> 0 | AI12: 0
A13: 8 | D13: SCADA, NETWORK CONTROL AND PROTECTION | F13: 0 | H13: 0 | I13: 0 | J13: 7 | L13: 0 | M13: 0 | O13: 0 | Q13: 0 | R13: 0 | S13: 0 | T13: 0 | U13: 0 | V13: 0 | W13: 0 | X13: 0 | Y13: 0 | Z13: 0 | AA13: 0 | AB13: 0 | AC13: 0 | AD13: 0 | AE13: 0 | AF13: 0 | AG13: =MAX(IF($A$21:$A$205=$A13,$O$21:$O$205)) -> 0 | AH13: =MIN(IF($A$21:$A$205=$A13,$O$21:$O$205)) -> 0 | AI13: 0
A14: 9 | D14: =VLOOKUP(A14,IDtable,2) -> OTHER | F14: =SUMIF($A$21:$A$205,$A14,F$21:F$205) -> 0 | H14: =SUMIF($A$21:$A$205,$A14,H$21:H$205)/1000 -> 0 | I14: =H14/($H$18) -> 0 | J14: 7 | L14: 0 | M14: 0 | O14: 0 | Q14: 0 | R14: =$O14-R$4*$O14 -> 0 | S14: 0 | T14: 0 | U14: 0 | V14: 0 | W14: 0 | X14: 0 | Y14: 0 | Z14: 0 | AA14: 0 | AB14: 0 | AC14: 0 | AD14: 0 | AE14: 0 | AF14: 0 | AG14: =MAX(IF($A$21:$A$205=$A14,$O$21:$O$205)) -> 0 | AH14: =MIN(IF($A$21:$A$205=$A14,$O$21:$O$205)) -> 0 | AI14: 0
A15: 10 | D15: =VLOOKUP(A15,IDtable,2) -> unused | F15: =SUMIF($A$21:$A$205,$A15,F$21:F$205) -> 0 | H15: =SUMIF($A$21:$A$205,$A15,H$21:H$205)/1000 -> 0 | I15: =H15/($H$18) -> 0 | J15: 7 | L15: 0 | M15: 0 | O15: 0 | Q15: 0 | R15: 0 | S15: 0 | T15: 0 | U15: 0 | V15: 0 | W15: 0 | X15: 0 | Y15: 0 | Z15: 0 | AA15: 0 | AB15: 0 | AC15: 0 | AD15: 0 | AE15: 0 | AF15: 0 | AG15: =MAX(IF($A$21:$A$205=$A15,$O$21:$O$205)) -> 0 | AH15: =MIN(IF($A$21:$A$205=$A15,$O$21:$O$205)) -> 0 | AI15: 0
A16: 11 | D16: =VLOOKUP(A16,IDtable,2) -> unused | F16: =SUMIF($A$21:$A$205,$A16,F$21:F$205) -> 0 | H16: =SUMIF($A$21:$A$205,$A16,H$21:H$205)/1000 -> 0 | I16: =H16/($H$18) -> 0 | J16: 7 | L16: 0 | M16: 0 | O16: 0 | Q16: 0 | R16: 0 | S16: 0 | T16: 0 | U16: 0 | V16: 0 | W16: 0 | X16: 0 | Y16: 0 | Z16: 0 | AA16: 0 | AB16: 0 | AC16: 0 | AD16: 0 | AE16: 0 | AF16: 0 | AG16: =MAX(IF($A$21:$A$205=$A16,$O$21:$O$205)) -> 0 | AH16: =MIN(IF($A$21:$A$205=$A16,$O$21:$O$205)) -> 0 | AI16: 0
A17: 12 | D17: =VLOOKUP(A17,IDtable,2) -> unused | F17: =SUMIF($A$21:$A$205,$A17,F$21:F$205) -> 0 | H17: =SUMIF($A$21:$A$205,$A17,H$21:H$205)/1000 -> 0 | I17: =H17/($H$18) -> 0 | J17: =RANK(I17,I$6:I$17) -> 7 | L17: =H17*1000/(F17+0.001) -> 0 | M17: =SUMIF($A$21:$A$205,$A17,N$21:N$205)/(H17*1000+0.000001) -> 0 | O17: =SUMIF($A$21:$A$205,$A17,P$21:P$205)/(H17*1000+0.000001) -> 0 | Q17: =(O17-M17)/(O17+0.000001) -> 0 | R17: 0 | S17: 0 | T17: 0 | U17: 0 | V17: 0 | W17: 0 | X17: 0 | Y17: 0 | Z17: 0 | AA17: 0 | AB17: 0 | AC17: 0 | AD17: 0 | AE17: 0 | AF17: 0 | AG17: =MAX(IF($A$21:$A$205=$A17,$O$21:$O$205)) -> 0 | AH17: =MIN(IF($A$21:$A$205=$A17,$O$21:$O$205)) -> 0 | AI17: 0
D18: Total | H18: =SUM(H6:H17) -> 23392.11403 | M18: =SUMPRODUCT(M6:M17,$H6:$H17)/$H18 -> 22.74396299 | O18: =SUMPRODUCT(O6:O17,$H6:$H17)/$H18 -> 53.20629989 | Q18: =SUMPRODUCT(Q6:Q17,$H6:$H17)/$H18 -> 0.5714278686 | W18: =SUM(W6:W17) -> 5908.385267 | X18: =SUM(X6:X17) -> 2715.834535 | Y18: =SUM(Y6:Y17) -> 5485.519852 | Z18: =SUM(Z6:Z17) -> 3041.596955 | AA18: =SUM(AA6:AA17) -> 6240.777417 | AB18: =W18/$H18 -> 0.2525802183 | AC18: =X18/$H18 -> 0.1161004316 | AD18: =Y18/$H18 -> 0.2345029545 | AE18: =Z18/$H18 -> 0.1300265958 | AF18: =AA18/$H18 -> 0.2667897998
D20: EDB categories
A21: ='Asset data'!A21 -> 0 | B21: ='Asset data'!B21 -> 0 | C21: ='Asset data'!C21 -> 0 | D21: ='Asset data'!E21 -> 0 | E21: =IF(A21>0,VLOOKUP(A21,IDtable,2),0) -> 0 | F21: =IF(A21>0,SUM('Asset data'!J21:CV21),0) -> 0 | G21: =IF(A21>0,'Asset data'!F21,0) -> 0 | H21: =IF(A21>0,SUM('Asset data'!CX21:GJ21),0) -> 0 | I21: =H21/$H$18/1000 -> 0 | J21: =IF(RANK(0,I$21:I$205)=RANK(I21,I$21:I$205),0,RANK(I21,I$21:I$205)) -> 0 | K21: =IF(A21>0,H21/(VLOOKUP(A21,$A$6:$H$17,8)*1000),0) -> 0 | L21: =IF($A21>0,H21/F21,0) -> 0 | M21: =IF($A21>0,SUMPRODUCT('Age profile (years)'!$CT21:$GF21,'Asset data'!$CX21:$GJ21)/H21-0.5,0) -> 0 | N21: =IF($A21>0,M21*H21,0) -> 0 | O21: =IF($A21>0,'Asset data'!G21,0) -> 0 | P21: =IF($A21>0,H21*O21,0) -> 0 | Q21: =IF($A21>0,(O21-M21)/O21,0) -> 0 | R21: =IF($A21>0,$O21-R$4*$O21,0) -> 0 | S21: 0 | T21: 0 | U21: 0 | W21: =IF($A21>0,SUMIF('Age profile (years)'!$CT21:$GF21,"<" & R21+0.5,'Asset data'!$CX21:$GJ21),0) -> 0 | X21: =IF($A21>0,SUMIF('Age profile (years)'!$CT21:$GF21,"<" & S21+0.5,'Asset data'!$CX21:$GJ21)-W21,0) -> 0 | Y21: =IF($A21>0,SUMIF('Age profile (years)'!$CT21:$GF21,"<" & T21+0.5,'Asset data'!$CX21:$GJ21)-X21-W21,0) -> 0 | Z21: =IF($A21>0,SUMIF('Age profile (years)'!$CT21:$GF21,"<" & U21+0.5,'Asset data'!$CX21:$GJ21)-Y21-X21-W21,0) -> 0 | AA21: =IF($A21>0,H21-Z21-Y21-X21-W21,0) -> 0 | AB21: =IF($A21>0,W21/$H21,0) -> 0 | AC21: 0 | AD21: 0 | AE21: 0 | AF21: 0 | AI21: =IF($A21>0,'RRR hist-forc'!K21,0) -> 0 | AJ21: =IF($A21>0,AI21*H21,0) -> 0
A22: ='Asset data'!A22 -> 1 | B22: ='Asset data'!B22 -> 0 | C22: ='Asset data'!C22 -> 0 | D22: ='Asset data'!E22 -> STAKING OF A WOODEN POLE | E22: POLES | F22: =IF(A22>0,SUM('Asset data'!J22:CV22),0) -> 18077 | G22: =IF(A22>0,'Asset data'!F22,0) -> 5.611592169 | H22: =IF(A22>0,SUM('Asset data'!CX22:GJ22),0) -> 101440.7516 | I22: 0.004336536301 | J22: 38 | K22: =IF(A22>0,H22/(VLOOKUP(A22,$A$6:$H$17,8)*1000),0) -> 0.01941750412 | L22: =IF($A22>0,H22/F22,0) -> 5.611592169 | M22: =IF($A22>0,SUMPRODUCT('Age profile (years)'!$CT22:$GF22,'Asset data'!$CX22:$GJ22)/H22-0.5,0) -> 41.60245063 | N22: =IF($A22>0,M22*H22,0) -> 4220183.862 | O22: =IF($A22>0,'Asset data'!G22,0) -> 53.8 | P22: =IF($A22>0,H22*O22,0) -> 5457512.438 | Q22: =IF($A22>0,(O22-M22)/O22,0) -> 0.2267202486 | R22: 5.38 | S22: 10.76 | T22: 32.28 | U22: 43.04 | W22: =IF($A22>0,SUMIF('Age profile (years)'!$CT22:$GF22,"<" & R22+0.5,'Asset data'!$CX22:$GJ22),0) -> 0 | X22: =IF($A22>0,SUMIF('Age profile (years)'!$CT22:$GF22,"<" & S22+0.5,'Asset data'!$CX22:$GJ22)-W22,0) -> 0 | Y22: =IF($A22>0,SUMIF('Age profile (years)'!$CT22:$GF22,"<" & T22+0.5,'Asset data'!$CX22:$GJ22)-X22-W22,0) -> 8676.269705 | Z22: =IF($A22>0,SUMIF('Age profile (years)'!$CT22:$GF22,"<" & U22+0.5,'Asset data'!$CX22:$GJ22)-Y22-X22-W22,0) -> 47719.48338 | AA22: =IF($A22>0,H22-Z22-Y22-X22-W22,0) -> 45044.99855 | AB22: 0 | AC22: 0 | AD22: 0.08553041618 | AE22: 0.470417289 | AF22: 0.4440522948 | AI22: =IF($A22>0,'RRR hist-forc'!K22,0) -> 53.8 | AJ22: =IF($A22>0,AI22*H22,0) -> 5457512.438
A23: ='Asset data'!A23 -> 1 | B23: ='Asset data'!B23 -> 0 | C23: ='Asset data'!C23 -> 0 | D23: ='Asset data'!E23 -> ˂ = 1 KV; WOOD | E23: =IF(A23>0,VLOOKUP(A23,IDtable,2),0) -> POLES | F23: =IF(A23>0,SUM('Asset data'!J23:CV23),0) -> 343974 | G23: =IF(A23>0,'Asset data'!F23,0) -> 3.206722943 | H23: =IF(A23>0,SUM('Asset data'!CX23:GJ23),0) -> 1103029.317 | I23: =H23/$H$18/1000 -> 0.04715389623 | J23: =IF(RANK(0,I$21:I$205)=RANK(I23,I$21:I$205),0,RANK(I23,I$21:I$205)) -> 8 | K23: =IF(A23>0,H23/(VLOOKUP(A23,$A$6:$H$17,8)*1000),0) -> 0.2111387778 | L23: =IF($A23>0,H23/F23,0) -> 3.206722943 | M23: =IF($A23>0,SUMPRODUCT('Age profile (years)'!$CT23:$GF23,'Asset data'!$CX23:$GJ23)/H23-0.5,0) -> 18.32839691 | N23: =IF($A23>0,M23*H23,0) -> 20216759.14 | O23: =IF($A23>0,'Asset data'!G23,0) -> 53.8 | P23: =IF($A23>0,H23*O23,0) -> 59342977.28 | Q23: =IF($A23>0,(O23-M23)/O23,0) -> 0.6593234774 | R23: 5.38 | S23: 10.76 | T23: 32.28 | U23: 43.04 | W23: =IF($A23>0,SUMIF('Age profile (years)'!$CT23:$GF23,"<" & R23+0.5,'Asset data'!$CX23:$GJ23),0) -> 235014.311 | X23: =IF($A23>0,SUMIF('Age profile (years)'!$CT23:$GF23,"<" & S23+0.5,'Asset data'!$CX23:$GJ23)-W23,0) -> 178646.5351 | Y23: =IF($A23>0,SUMIF('Age profile (years)'!$CT23:$GF23,"<" & T23+0.5,'Asset data'!$CX23:$GJ23)-X23-W23,0) -> 454787.0679 | Z23: =IF($A23>0,SUMIF('Age profile (years)'!$CT23:$GF23,"<" & U23+0.5,'Asset data'!$CX23:$GJ23)-Y23-X23-W23,0) -> 141188.8044 | AA23: =IF($A23>0,H23-Z23-Y23-X23-W23,0) -> 93392.59898 | AB23: =IF($A23>0,W23/$H23,0) -> 0.2130626152 | AC23: =IF($A23>0,X23/$H23,0) -> 0.1619599156 | AD23: =IF($A23>0,Y23/$H23,0) -> 0.4123073256 | AE23: =IF($A23>0,Z23/$H23,0) -> 0.1280009536 | AF23: =IF($A23>0,AA23/$H23,0) -> 0.08466919011 | AI23: =IF($A23>0,'RRR hist-forc'!K23,0) -> 53.8 | AJ23: =IF($A23>0,AI23*H23,0) -> 59342977.28
A24: ='Asset data'!A24 -> 1 | B24: ='Asset data'!B24 -> 0 | C24: ='Asset data'!C24 -> 0 | D24: ='Asset data'!E24 -> > 1 KV & < = 11 KV; WOOD | E24: POLES | F24: =IF(A24>0,SUM('Asset data'!J24:CV24),0) -> 457414 | G24: =IF(A24>0,'Asset data'!F24,0) -> 3.206722943 | H24: =IF(A24>0,SUM('Asset data'!CX24:GJ24),0) -> 1466799.968 | I24: 0.06270489134 | J24: 4 | K24: 0.2807707353 | L24: 3.206722943 | M24: =IF($A24>0,SUMPRODUCT('Age profile (years)'!$CT24:$GF24,'Asset data'!$CX24:$GJ24)/H24-0.5,0) -> 20.02150131 | N24: 29367537.48 | O24: =IF($A24>0,'Asset data'!G24,0) -> 53.8 | P24: 78913838.28 | Q24: 0.6278531355 | R24: 5.38 | S24: 10.76 | T24: 32.28 | U24: 43.04 | W24: =IF($A24>0,SUMIF('Age profile (years)'!$CT24:$GF24,"<" & R24+0.5,'Asset data'!$CX24:$GJ24),0) -> 353608.5456 | X24: =IF($A24>0,SUMIF('Age profile (years)'!$CT24:$GF24,"<" & S24+0.5,'Asset data'!$CX24:$GJ24)-W24,0) -> 195161.1583 | Y24: =IF($A24>0,SUMIF('Age profile (years)'!$CT24:$GF24,"<" & T24+0.5,'Asset data'!$CX24:$GJ24)-X24-W24,0) -> 513325.7952 | Z24: =IF($A24>0,SUMIF('Age profile (years)'!$CT24:$GF24,"<" & U24+0.5,'Asset data'!$CX24:$GJ24)-Y24-X24-W24,0) -> 196822.2408 | AA24: 207882.2282 | AB24: 0.241074825 | AC24: 0.1330523333 | AD24: 0.3499630532 | AE24: 0.1341847866 | AF24: 0.1417250019 | AI24: =IF($A24>0,'RRR hist-forc'!K24,0) -> 53.8 | AJ24: 78913838.28
A25: ='Asset data'!A25 -> 1 | B25: ='Asset data'!B25 -> 0 | C25: ='Asset data'!C25 -> 0 | D25: ='Asset data'!E25 -> ˃ 11 KV & < = 22 KV; WOOD | E25: POLES | F25: =IF(A25>0,SUM('Asset data'!J25:CV25),0) -> 287215 | G25: =IF(A25>0,'Asset data'!F25,0) -> 3.206722943 | H25: =IF(A25>0,SUM('Asset data'!CX25:GJ25),0) -> 921018.93 | I25: 0.03937305234 | J25: 10 | K25: 0.17629886 | L25: 3.206722943 | M25: =IF($A25>0,SUMPRODUCT('Age profile (years)'!$CT25:$GF25,'Asset data'!$CX25:$GJ25)/H25-0.5,0) -> 18.95461066 | N25: 17457555.23 | O25: =IF($A25>0,'Asset data'!G25,0) -> 54.9 | P25: 50563939.25 | Q25: 0.6547429753 | R25: 5.49 | S25: 10.98 | T25: 32.94 | U25: 43.92 | W25: =IF($A25>0,SUMIF('Age profile (years)'!$CT25:$GF25,"<" & R25+0.5,'Asset data'!$CX25:$GJ25),0) -> 190646.0924 | X25: =IF($A25>0,SUMIF('Age profile (years)'!$CT25:$GF25,"<" & S25+0.5,'Asset data'!$CX25:$GJ25)-W25,0) -> 170408.4639 | Y25: =IF($A25>0,SUMIF('Age profile (years)'!$CT25:$GF25,"<" & T25+0.5,'Asset data'!$CX25:$GJ25)-X25-W25,0) -> 367333.3198 | Z25: =IF($A25>0,SUMIF('Age profile (years)'!$CT25:$GF25,"<" & U25+0.5,'Asset data'!$CX25:$GJ25)-Y25-X25-W25,0) -> 109868.7415 | AA25: 82762.31243 | AB25: 0.20699476 | AC25: 0.1850216737 | AD25: 0.3988336264 | AE25: 0.119290427 | AF25: 0.08985951291 | AI25: =IF($A25>0,'RRR hist-forc'!K25,0) -> 54.9 | AJ25: 50563939.25
A26: ='Asset data'!A26 -> 1 | B26: ='Asset data'!B26 -> 0 | C26: ='Asset data'!C26 -> 0 | D26: ='Asset data'!E26 -> > 22 KV & < = 66 KV; WOOD | E26: POLES | F26: =IF(A26>0,SUM('Asset data'!J26:CV26),0) -> 25172 | G26: =IF(A26>0,'Asset data'!F26,0) -> 6.129175148 | H26: =IF(A26>0,SUM('Asset data'!CX26:GJ26),0) -> 154283.5968 | I26: 0.006595538849 | J26: 27 | K26: 0.02953253332 | L26: 6.129175148 | M26: =IF($A26>0,SUMPRODUCT('Age profile (years)'!$CT26:$GF26,'Asset data'!$CX26:$GJ26)/H26-0.5,0) -> 19.66073415 | N26: 3033328.781 | O26: =IF($A26>0,'Asset data'!G26,0) -> 54.9 | P26: 8470169.466 | Q26: 0.6418809809 | R26: 5.49 | S26: 10.98 | T26: 32.94 | U26: 43.92 | W26: =IF($A26>0,SUMIF('Age profile (years)'!$CT26:$GF26,"<" & R26+0.5,'Asset data'!$CX26:$GJ26),0) -> 24075.39998 | X26: =IF($A26>0,SUMIF('Age profile (years)'!$CT26:$GF26,"<" & S26+0.5,'Asset data'!$CX26:$GJ26)-W26,0) -> 28132.91393 | Y26: =IF($A26>0,SUMIF('Age profile (years)'!$CT26:$GF26,"<" & T26+0.5,'Asset data'!$CX26:$GJ26)-X26-W26,0) -> 71092.30254 | Z26: =IF($A26>0,SUMIF('Age profile (years)'!$CT26:$GF26,"<" & U26+0.5,'Asset data'!$CX26:$GJ26)-Y26-X26-W26,0) -> 17694.92865 | AA26: 13288.05172 | AB26: 0.1560464008 | AC26: 0.1823454632 | AD26: 0.4607897664 | AE26: 0.1146909264 | AF26: 0.08612744319 | AI26: =IF($A26>0,'RRR hist-forc'!K26,0) -> 54.9 | AJ26: 8470169.466
A27: ='Asset data'!A27 -> 1 | B27: ='Asset data'!B27 -> 0 | C27: ='Asset data'!C27 -> 0 | D27: ='Asset data'!E27 -> > 66 KV & < = 132 KV; WOOD | E27: POLES | F27: =IF(A27>0,SUM('Asset data'!J27:CV27),0) -> 48817 | G27: =IF(A27>0,'Asset data'!F27,0) -> 5.683431324 | H27: =IF(A27>0,SUM('Asset data'!CX27:GJ27),0) -> 277448.0669 | I27: 0.01186075216 | J27: 18 | K27: 0.05310833069 | L27: 5.683431324 | M27: =IF($A27>0,SUMPRODUCT('Age profile (years)'!$CT27:$GF27,'Asset data'!$CX27:$GJ27)/H27-0.5,0) -> 13.88826638 | N27: 3853272.661 | O27: =IF($A27>0,'Asset data'!G27,0) -> 54.9 | P27: 15231898.87 | Q27: 0.7470261132 | R27: 5.49 | S27: 10.98 | T27: 32.94 | U27: 43.92 | W27: =IF($A27>0,SUMIF('Age profile (years)'!$CT27:$GF27,"<" & R27+0.5,'Asset data'!$CX27:$GJ27),0) -> 61977.81858 | X27: =IF($A27>0,SUMIF('Age profile (years)'!$CT27:$GF27,"<" & S27+0.5,'Asset data'!$CX27:$GJ27)-W27,0) -> 82961.04703 | Y27: =IF($A27>0,SUMIF('Age profile (years)'!$CT27:$GF27,"<" & T27+0.5,'Asset data'!$CX27:$GJ27)-X27-W27,0) -> 100176.1605 | Z27: =IF($A27>0,SUMIF('Age profile (years)'!$CT27:$GF27,"<" & U27+0.5,'Asset data'!$CX27:$GJ27)-Y27-X27-W27,0) -> 17402.66671 | AA27: 14930.37409 | AB27: 0.2233852961 | AC27: 0.2990146875 | AD27: 0.3610627445 | AE27: 0.06272405105 | AF27: 0.0538132208 | AI27: =IF($A27>0,'RRR hist-forc'!K27,0) -> 54.9 | AJ27: 15231898.87
A28: ='Asset data'!A28 -> 1 | B28: ='Asset data'!B28 -> 0 | C28: ='Asset data'!C28 -> 0 | D28: ='Asset data'!E28 -> > 132 KV; WOOD | E28: POLES | F28: =IF(A28>0,SUM('Asset data'!J28:CV28),0) -> 23 | G28: =IF(A28>0,'Asset data'!F28,0) -> 10.01394687 | H28: =IF(A28>0,SUM('Asset data'!CX28:GJ28),0) -> 230.3207781 | I28: 9.8460865e-06 | J28: 75 | K28: 4.408735726e-05 | L28: 10.01394687 | M28: =IF($A28>0,SUMPRODUCT('Age profile (years)'!$CT28:$GF28,'Asset data'!$CX28:$GJ28)/H28-0.5,0) -> 21.41304348 | N28: 4931.868836 | O28: =IF($A28>0,'Asset data'!G28,0) -> 53.8 | P28: 12391.25786 | Q28: 0.6019880394 | R28: 5.38 | S28: 10.76 | T28: 32.28 | U28: 43.04 | W28: =IF($A28>0,SUMIF('Age profile (years)'!$CT28:$GF28,"<" & R28+0.5,'Asset data'!$CX28:$GJ28),0) -> 70.09762812 | X28: =IF($A28>0,SUMIF('Age profile (years)'!$CT28:$GF28,"<" & S28+0.5,'Asset data'!$CX28:$GJ28)-W28,0) -> 10.01394687 | Y28: =IF($A28>0,SUMIF('Age profile (years)'!$CT28:$GF28,"<" & T28+0.5,'Asset data'!$CX28:$GJ28)-X28-W28,0) -> 80.111575 | Z28: =IF($A28>0,SUMIF('Age profile (years)'!$CT28:$GF28,"<" & U28+0.5,'Asset data'!$CX28:$GJ28)-Y28-X28-W28,0) -> 40.0557875 | AA28: 30.04184062 | AB28: 0.3043478261 | AC28: 0.04347826087 | AD28: 0.347826087 | AE28: 0.1739130435 | AF28: 0.1304347826 | AI28: =IF($A28>0,'RRR hist-forc'!K28,0) -> 53.8 | AJ28: 12391.25786
A29: ='Asset data'!A29 -> 1 | B29: ='Asset data'!B29 -> 0 | C29: ='Asset data'!C29 -> 0 | D29: ='Asset data'!E29 -> ˂ = 1 KV; CONCRETE | E29: POLES | F29: =IF(A29>0,SUM('Asset data'!J29:CV29),0) -> 11385 | G29: =IF(A29>0,'Asset data'!F29,0) -> 6.409094632 | H29: =IF(A29>0,SUM('Asset data'!CX29:GJ29),0) -> 72967.54239 | I29: 0.003119322277 | J29: 40 | K29: 0.01396724228 | L29: 6.409094632 | M29: =IF($A29>0,SUMPRODUCT('Age profile (years)'!$CT29:$GF29,'Asset data'!$CX29:$GJ29)/H29-0.5,0) -> 36.40417216 | N29: 2656322.975 | O29: =IF($A29>0,'Asset data'!G29,0) -> 53.8 | P29: 3925653.78 | Q29: 0.323342525 | R29: 5.38 | S29: 10.76 | T29: 32.28 | U29: 43.04 | W29: =IF($A29>0,SUMIF('Age profile (years)'!$CT29:$GF29,"<" & R29+0.5,'Asset data'!$CX29:$GJ29),0) -> 1025.455141 | X29: =IF($A29>0,SUMIF('Age profile (years)'!$CT29:$GF29,"<" & S29+0.5,'Asset data'!$CX29:$GJ29)-W29,0) -> 615.2730847 | Y29: =IF($A29>0,SUMIF('Age profile (years)'!$CT29:$GF29,"<" & T29+0.5,'Asset data'!$CX29:$GJ29)-X29-W29,0) -> 21457.64883 | Z29: =IF($A29>0,SUMIF('Age profile (years)'!$CT29:$GF29,"<" & U29+0.5,'Asset data'!$CX29:$GJ29)-Y29-X29-W29,0) -> 31443.01827 | AA29: 18426.14707 | AB29: 0.01405357927 | AC29: 0.008432147563 | AD29: 0.2940711462 | AE29: 0.4309178744 | AF29: 0.2525252525 | AI29: =IF($A29>0,'RRR hist-forc'!K29,0) -> 53.8 | AJ29: 3925653.78
A30: ='Asset data'!A30 -> 1 | B30: ='Asset data'!B30 -> 0 | C30: ='Asset data'!C30 -> 0 | D30: ='Asset data'!E30 -> > 1 KV & < = 11 KV; CONCRETE | E30: POLES | F30: =IF(A30>0,SUM('Asset data'!J30:CV30),0) -> 22549 | G30: =IF(A30>0,'Asset data'!F30,0) -> 6.409094632 | H30: =IF(A30>0,SUM('Asset data'!CX30:GJ30),0) -> 144518.6749 | I30: 0.00617809381 | J30: 29 | K30: 0.02766335935 | L30: 6.409094632 | M30: =IF($A30>0,SUMPRODUCT('Age profile (years)'!$CT30:$GF30,'Asset data'!$CX30:$GJ30)/H30-0.5,0) -> 35.9651204 | N30: 5197631.542 | O30: =IF($A30>0,'Asset data'!G30,0) -> 53.8 | P30: 7775104.707 | Q30: 0.3315033382 | R30: 5.38 | S30: 10.76 | T30: 32.28 | U30: 43.04 | W30: =IF($A30>0,SUMIF('Age profile (years)'!$CT30:$GF30,"<" & R30+0.5,'Asset data'!$CX30:$GJ30),0) -> 1153.637034 | X30: =IF($A30>0,SUMIF('Age profile (years)'!$CT30:$GF30,"<" & S30+0.5,'Asset data'!$CX30:$GJ30)-W30,0) -> 307.6365423 | Y30: =IF($A30>0,SUMIF('Age profile (years)'!$CT30:$GF30,"<" & T30+0.5,'Asset data'!$CX30:$GJ30)-X30-W30,0) -> 53496.71289 | Z30: =IF($A30>0,SUMIF('Age profile (years)'!$CT30:$GF30,"<" & U30+0.5,'Asset data'!$CX30:$GJ30)-Y30-X30-W30,0) -> 55912.94157 | AA30: 33647.74682 | AB30: 0.007982615637 | AC30: 0.002128697503 | AD30: 0.3701716262 | AE30: 0.3868907712 | AF30: 0.2328262894 | AI30: =IF($A30>0,'RRR hist-forc'!K30,0) -> 53.8 | AJ30: 7775104.707
A31: ='Asset data'!A31 -> 1 | B31: ='Asset data'!B31 -> 0 | C31: ='Asset data'!C31 -> 0 | D31: ='Asset data'!E31 -> ˃ 11 KV & < = 22 KV; CONCRETE | E31: POLES | F31: =IF(A31>0,SUM('Asset data'!J31:CV31),0) -> 45757 | G31: =IF(A31>0,'Asset data'!F31,0) -> 6.409094632 | H31: =IF(A31>0,SUM('Asset data'!CX31:GJ31),0) -> 293260.9431 | I31: 0.01253674391 | J31: 17 | K31: 0.05613518709 | L31: 6.409094632 | M31: =IF($A31>0,SUMPRODUCT('Age profile (years)'!$CT31:$GF31,'Asset data'!$CX31:$GJ31)/H31-0.5,0) -> 35.18109797 | N31: 10317241.97 | O31: =IF($A31>0,'Asset data'!G31,0) -> 54.9 | P31: 16100025.78 | Q31: 0.3591785433 | R31: 5.49 | S31: 10.98 | T31: 32.94 | U31: 43.92 | W31: =IF($A31>0,SUMIF('Age profile (years)'!$CT31:$GF31,"<" & R31+0.5,'Asset data'!$CX31:$GJ31),0) -> 954.9551002 | X31: =IF($A31>0,SUMIF('Age profile (years)'!$CT31:$GF31,"<" & S31+0.5,'Asset data'!$CX31:$GJ31)-W31,0) -> 1608.682753 | Y31: =IF($A31>0,SUMIF('Age profile (years)'!$CT31:$GF31,"<" & T31+0.5,'Asset data'!$CX31:$GJ31)-X31-W31,0) -> 118074.7504 | Z31: =IF($A31>0,SUMIF('Age profile (years)'!$CT31:$GF31,"<" & U31+0.5,'Asset data'!$CX31:$GJ31)-Y31-X31-W31,0) -> 122208.6164 | AA31: 50413.93838 | AB31: 0.003256332364 | AC31: 0.005485499486 | AD31: 0.4026269205 | AE31: 0.4167231243 | AF31: 0.1719081233 | AI31: =IF($A31>0,'RRR hist-forc'!K31,0) -> 54.9 | AJ31: 16100025.78
A32: ='Asset data'!A32 -> 1 | B32: ='Asset data'!B32 -> 0 | C32: ='Asset data'!C32 -> 0 | D32: ='Asset data'!E32 -> > 22 KV & < = 66 KV; CONCRETE | E32: POLES | F32: =IF(A32>0,SUM('Asset data'!J32:CV32),0) -> 10068 | G32: =IF(A32>0,'Asset data'!F32,0) -> 11.75000683 | H32: =IF(A32>0,SUM('Asset data'!CX32:GJ32),0) -> 118299.0687 | I32: 0.005057220078 | J32: 35 | K32: 0.02264447589 | L32: 11.75000683 | M32: =IF($A32>0,SUMPRODUCT('Age profile (years)'!$CT32:$GF32,'Asset data'!$CX32:$GJ32)/H32-0.5,0) -> 37.18245928 | N32: 4398650.305 | O32: =IF($A32>0,'Asset data'!G32,0) -> 54.9 | P32: 6494618.873 | Q32: 0.3227238747 | R32: 5.49 | S32: 10.98 | T32: 32.94 | U32: 43.92 | W32: =IF($A32>0,SUMIF('Age profile (years)'!$CT32:$GF32,"<" & R32+0.5,'Asset data'!$CX32:$GJ32),0) -> 58.75003413 | X32: =IF($A32>0,SUMIF('Age profile (years)'!$CT32:$GF32,"<" & S32+0.5,'Asset data'!$CX32:$GJ32)-W32,0) -> 293.7501706 | Y32: =IF($A32>0,SUMIF('Age profile (years)'!$CT32:$GF32,"<" & T32+0.5,'Asset data'!$CX32:$GJ32)-X32-W32,0) -> 33605.01952 | Z32: =IF($A32>0,SUMIF('Age profile (years)'!$CT32:$GF32,"<" & U32+0.5,'Asset data'!$CX32:$GJ32)-Y32-X32-W32,0) -> 58186.0338 | AA32: 26155.51519 | AB32: 0.0004966229638 | AC32: 0.002483114819 | AD32: 0.2840683353 | AE32: 0.4918553834 | AF32: 0.2210965435 | AI32: =IF($A32>0,'RRR hist-forc'!K32,0) -> 54.9 | AJ32: 6494618.873
A33: ='Asset data'!A33 -> 1 | B33: ='Asset data'!B33 -> 0 | C33: ='Asset data'!C33 -> 0 | D33: ='Asset data'!E33 -> > 66 KV & < = 132 KV; CONCRETE | E33: POLES | F33: =IF(A33>0,SUM('Asset data'!J33:CV33),0) -> 11342 | G33: =IF(A33>0,'Asset data'!F33,0) -> 16.52424838 | H33: =IF(A33>0,SUM('Asset data'!CX33:GJ33),0) -> 187418.0251 | I33: 0.008012017423 | J33: 23 | K33: 0.03587503263 | L33: 16.52424838 | M33: =IF($A33>0,SUMPRODUCT('Age profile (years)'!$CT33:$GF33,'Asset data'!$CX33:$GJ33)/H33-0.5,0) -> 35.64239111 | N33: 6680026.553 | O33: =IF($A33>0,'Asset data'!G33,0) -> 54.9 | P33: 10289249.58 | Q33: 0.3507761182 | R33: 5.49 | S33: 10.98 | T33: 32.94 | U33: 43.92 | W33: =IF($A33>0,SUMIF('Age profile (years)'!$CT33:$GF33,"<" & R33+0.5,'Asset data'!$CX33:$GJ33),0) -> 132.193987 | X33: =IF($A33>0,SUMIF('Age profile (years)'!$CT33:$GF33,"<" & S33+0.5,'Asset data'!$CX33:$GJ33)-W33,0) -> 396.5819611 | Y33: =IF($A33>0,SUMIF('Age profile (years)'!$CT33:$GF33,"<" & T33+0.5,'Asset data'!$CX33:$GJ33)-X33-W33,0) -> 106531.8293 | Z33: =IF($A33>0,SUMIF('Age profile (years)'!$CT33:$GF33,"<" & U33+0.5,'Asset data'!$CX33:$GJ33)-Y33-X33-W33,0) -> 26488.37015 | AA33: 53869.04972 | AB33: 0.000705342973 | AC33: 0.002116028919 | AD33: 0.5684182684 | AE33: 0.1413330982 | AF33: 0.2874272615 | AI33: =IF($A33>0,'RRR hist-forc'!K33,0) -> 54.9 | AJ33: 10289249.58
A34: ='Asset data'!A34 -> 0 | B34: ='Asset data'!B34 -> 0 | C34: ='Asset data'!C34 -> 0 | D34: ='Asset data'!E34 -> > 132 KV; CONCRETE | E34: 0 | F34: =IF(A34>0,SUM('Asset data'!J34:CV34),0) -> 0 | G34: =IF(A34>0,'Asset data'!F34,0) -> 0 | H34: =IF(A34>0,SUM('Asset data'!CX34:GJ34),0) -> 0 | I34: 0 | J34: 0 | K34: 0 | L34: 0 | M34: =IF($A34>0,SUMPRODUCT('Age profile (years)'!$CT34:$GF34,'Asset data'!$CX34:$GJ34)/H34-0.5,0) -> 0 | N34: 0 | O34: =IF($A34>0,'Asset data'!G34,0) -> 0 | P34: 0 | Q34: 0 | R34: 0 | S34: 0 | T34: 0 | U34: 0 | W34: =IF($A34>0,SUMIF('Age profile (years)'!$CT34:$GF34,"<" & R34+0.5,'Asset data'!$CX34:$GJ34),0) -> 0 | X34: =IF($A34>0,SUMIF('Age profile (years)'!$CT34:$GF34,"<" & S34+0.5,'Asset data'!$CX34:$GJ34)-W34,0) -> 0 | Y34: =IF($A34>0,SUMIF('Age profile (years)'!$CT34:$GF34,"<" & T34+0.5,'Asset data'!$CX34:$GJ34)-X34-W34,0) -> 0 | Z34: =IF($A34>0,SUMIF('Age profile (years)'!$CT34:$GF34,"<" & U34+0.5,'Asset data'!$CX34:$GJ34)-Y34-X34-W34,0) -> 0 | AA34: 0 | AB34: 0 | AC34: 0 | AD34: 0 | AE34: 0 | AF34: 0 | AI34: =IF($A34>0,'RRR hist-forc'!K34,0) -> 0 | AJ34: 0
A35: ='Asset data'!A35 -> 1 | B35: ='Asset data'!B35 -> 0 | C35: ='Asset data'!C35 -> 0 | D35: ='Asset data'!E35 -> ˂ = 1 KV; STEEL | E35: POLES | F35: =IF(A35>0,SUM('Asset data'!J35:CV35),0) -> 13802 | G35: =IF(A35>0,'Asset data'!F35,0) -> 6.409094632 | H35: =IF(A35>0,SUM('Asset data'!CX35:GJ35),0) -> 88458.32411 | I35: 0.00378154467 | J35: 39 | K35: 0.01693244426 | L35: 6.409094632 | M35: =IF($A35>0,SUMPRODUCT('Age profile (years)'!$CT35:$GF35,'Asset data'!$CX35:$GJ35)/H35-0.5,0) -> 29.98471236 | N35: 2652397.404 | O35: =IF($A35>0,'Asset data'!G35,0) -> 53.8 | P35: 4759057.837 | Q35: 0.442663339 | R35: 5.38 | S35: 10.76 | T35: 32.28 | U35: 43.04 | W35: =IF($A35>0,SUMIF('Age profile (years)'!$CT35:$GF35,"<" & R35+0.5,'Asset data'!$CX35:$GJ35),0) -> 9761.051125 | X35: =IF($A35>0,SUMIF('Age profile (years)'!$CT35:$GF35,"<" & S35+0.5,'Asset data'!$CX35:$GJ35)-W35,0) -> 6953.867676 | Y35: =IF($A35>0,SUMIF('Age profile (years)'!$CT35:$GF35,"<" & T35+0.5,'Asset data'!$CX35:$GJ35)-X35-W35,0) -> 21989.60368 | Z35: =IF($A35>0,SUMIF('Age profile (years)'!$CT35:$GF35,"<" & U35+0.5,'Asset data'!$CX35:$GJ35)-Y35-X35-W35,0) -> 26783.60647 | AA35: 22970.19516 | AB35: 0.1103463266 | AC35: 0.07861179539 | AD35: 0.2485871613 | AE35: 0.3027822055 | AF35: 0.2596725112 | AI35: =IF($A35>0,'RRR hist-forc'!K35,0) -> 53.8 | AJ35: 4759057.837
A36: ='Asset data'!A36 -> 1 | B36: ='Asset data'!B36 -> 0 | C36: ='Asset data'!C36 -> 0 | D36: ='Asset data'!E36 -> > 1 KV & < = 11 KV; STEEL | E36: POLES | F36: =IF(A36>0,SUM('Asset data'!J36:CV36),0) -> 5913 | G36: =IF(A36>0,'Asset data'!F36,0) -> 6.409094632 | H36: =IF(A36>0,SUM('Asset data'!CX36:GJ36),0) -> 37896.97656 | I36: 0.00162007489 | J36: 46 | K36: 0.007254132947 | L36: 6.409094632 | M36: =IF($A36>0,SUMPRODUCT('Age profile (years)'!$CT36:$GF36,'Asset data'!$CX36:$GJ36)/H36-0.5,0) -> 49.33696939 | N36: 1869721.972 | O36: =IF($A36>0,'Asset data'!G36,0) -> 53.8 | P36: 2038857.339 | Q36: 0.0829559593 | R36: 5.38 | S36: 10.76 | T36: 32.28 | U36: 43.04 | W36: =IF($A36>0,SUMIF('Age profile (years)'!$CT36:$GF36,"<" & R36+0.5,'Asset data'!$CX36:$GJ36),0) -> 423.0002457 | X36: =IF($A36>0,SUMIF('Age profile (years)'!$CT36:$GF36,"<" & S36+0.5,'Asset data'!$CX36:$GJ36)-W36,0) -> 487.091192 | Y36: =IF($A36>0,SUMIF('Age profile (years)'!$CT36:$GF36,"<" & T36+0.5,'Asset data'!$CX36:$GJ36)-X36-W36,0) -> 467.8639081 | Z36: =IF($A36>0,SUMIF('Age profile (years)'!$CT36:$GF36,"<" & U36+0.5,'Asset data'!$CX36:$GJ36)-Y36-X36-W36,0) -> 435.818435 | AA36: 36083.20278 | AB36: 0.01116184678 | AC36: 0.01285303568 | AD36: 0.01234567901 | AE36: 0.01150008456 | AF36: 0.952139354 | AI36: =IF($A36>0,'RRR hist-forc'!K36,0) -> 53.8 | AJ36: 2038857.339
A37: ='Asset data'!A37 -> 1 | B37: ='Asset data'!B37 -> 0 | C37: ='Asset data'!C37 -> 0 | D37: ='Asset data'!E37 -> ˃ 11 KV & < = 22 KV; STEEL | E37: POLES | F37: =IF(A37>0,SUM('Asset data'!J37:CV37),0) -> 9171 | G37: =IF(A37>0,'Asset data'!F37,0) -> 6.409094632 | H37: =IF(A37>0,SUM('Asset data'!CX37:GJ37),0) -> 58777.80687 | I37: 0.002512718894 | J37: 43 | K37: 0.01125108291 | L37: 6.409094632 | M37: =IF($A37>0,SUMPRODUCT('Age profile (years)'!$CT37:$GF37,'Asset data'!$CX37:$GJ37)/H37-0.5,0) -> 51.00703304 | N37: 2998081.537 | O37: =IF($A37>0,'Asset data'!G37,0) -> 54.9 | P37: 3226901.597 | Q37: 0.07091014501 | R37: =IF($A37>0,$O37-R$4*$O37,0) -> 5.49 | S37: 10.98 | T37: 32.94 | U37: 43.92 | W37: =IF($A37>0,SUMIF('Age profile (years)'!$CT37:$GF37,"<" & R37+0.5,'Asset data'!$CX37:$GJ37),0) -> 339.6820155 | X37: =IF($A37>0,SUMIF('Age profile (years)'!$CT37:$GF37,"<" & S37+0.5,'Asset data'!$CX37:$GJ37)-W37,0) -> 499.9093813 | Y37: =IF($A37>0,SUMIF('Age profile (years)'!$CT37:$GF37,"<" & T37+0.5,'Asset data'!$CX37:$GJ37)-X37-W37,0) -> 807.5459237 | Z37: =IF($A37>0,SUMIF('Age profile (years)'!$CT37:$GF37,"<" & U37+0.5,'Asset data'!$CX37:$GJ37)-Y37-X37-W37,0) -> 269.1819746 | AA37: 56861.48758 | AB37: 0.00577908625 | AC37: 0.00850507033 | AD37: 0.01373895976 | AE37: 0.004579653255 | AF37: 0.9673972304 | AI37: =IF($A37>0,'RRR hist-forc'!K37,0) -> 54.9 | AJ37: 3226901.597
A38: ='Asset data'!A38 -> 1 | B38: ='Asset data'!B38 -> 0 | C38: ='Asset data'!C38 -> 0 | D38: ='Asset data'!E38 -> > 22 KV & < = 66 KV; STEEL | E38: POLES | F38: =IF(A38>0,SUM('Asset data'!J38:CV38),0) -> 1011 | G38: =IF(A38>0,'Asset data'!F38,0) -> 11.75000683 | H38: =IF(A38>0,SUM('Asset data'!CX38:GJ38),0) -> 11879.2569 | I38: 0.0005078316944 | J38: 55 | K38: 0.002273894033 | L38: 11.75000683 | M38: =IF($A38>0,SUMPRODUCT('Age profile (years)'!$CT38:$GF38,'Asset data'!$CX38:$GJ38)/H38-0.5,0) -> 49.71859545 | N38: 590619.9681 | O38: =IF($A38>0,'Asset data'!G38,0) -> 54.9 | P38: 652171.2038 | Q38: 0.09437895355 | R38: 5.49 | S38: 10.98 | T38: 32.94 | U38: 43.92 | W38: =IF($A38>0,SUMIF('Age profile (years)'!$CT38:$GF38,"<" & R38+0.5,'Asset data'!$CX38:$GJ38),0) -> 82.25004778 | X38: =IF($A38>0,SUMIF('Age profile (years)'!$CT38:$GF38,"<" & S38+0.5,'Asset data'!$CX38:$GJ38)-W38,0) -> 23.50001365 | Y38: =IF($A38>0,SUMIF('Age profile (years)'!$CT38:$GF38,"<" & T38+0.5,'Asset data'!$CX38:$GJ38)-X38-W38,0) -> 47.0000273 | Z38: =IF($A38>0,SUMIF('Age profile (years)'!$CT38:$GF38,"<" & U38+0.5,'Asset data'!$CX38:$GJ38)-Y38-X38-W38,0) -> 528.7503072 | AA38: 11197.7565 | AB38: 0.006923837784 | AC38: 0.001978239367 | AD38: 0.003956478734 | AE38: 0.04451038576 | AF38: 0.9426310584 | AI38: =IF($A38>0,'RRR hist-forc'!K38,0) -> 54.9 | AJ38: 652171.2038
A39: ='Asset data'!A39 -> 1 | B39: ='Asset data'!B39 -> 0 | C39: ='Asset data'!C39 -> 0 | D39: ='Asset data'!E39 -> > 66 KV & < = 132 KV; STEEL | E39: POLES | F39: =IF(A39>0,SUM('Asset data'!J39:CV39),0) -> 2384 | G39: =IF(A39>0,'Asset data'!F39,0) -> 51.33498863 | H39: =IF(A39>0,SUM('Asset data'!CX39:GJ39),0) -> 122382.6129 | I39: 0.005231789344 | J39: 33 | K39: 0.02342613646 | L39: 51.33498863 | M39: =IF($A39>0,SUMPRODUCT('Age profile (years)'!$CT39:$GF39,'Asset data'!$CX39:$GJ39)/H39-0.5,0) -> 47.9807047 | N39: 5872004.01 | O39: =IF($A39>0,'Asset data'!G39,0) -> 54.9 | P39: 6718805.448 | Q39: 0.1260345228 | R39: 5.49 | S39: 10.98 | T39: 32.94 | U39: 43.92 | W39: =IF($A39>0,SUMIF('Age profile (years)'!$CT39:$GF39,"<" & R39+0.5,'Asset data'!$CX39:$GJ39),0) -> 4928.158909 | X39: =IF($A39>0,SUMIF('Age profile (years)'!$CT39:$GF39,"<" & S39+0.5,'Asset data'!$CX39:$GJ39)-W39,0) -> 616.0198636 | Y39: =IF($A39>0,SUMIF('Age profile (years)'!$CT39:$GF39,"<" & T39+0.5,'Asset data'!$CX39:$GJ39)-X39-W39,0) -> 2053.399545 | Z39: =IF($A39>0,SUMIF('Age profile (years)'!$CT39:$GF39,"<" & U39+0.5,'Asset data'!$CX39:$GJ39)-Y39-X39-W39,0) -> 1950.729568 | AA39: 112834.305 | AB39: 0.04026845638 | AC39: 0.005033557047 | AD39: 0.01677852349 | AE39: 0.01593959732 | AF39: 0.9219798658 | AI39: =IF($A39>0,'RRR hist-forc'!K39,0) -> 54.9 | AJ39: 6718805.448
A40: ='Asset data'!A40 -> 1 | B40: ='Asset data'!B40 -> 0 | C40: ='Asset data'!C40 -> 0 | D40: ='Asset data'!E40 -> > 132 KV; STEEL | E40: POLES | F40: =IF(A40>0,SUM('Asset data'!J40:CV40),0) -> 10 | G40: =IF(A40>0,'Asset data'!F40,0) -> 51.33498863 | H40: =IF(A40>0,SUM('Asset data'!CX40:GJ40),0) -> 513.3498863 | I40: 2.19454251e-05 | J40: 72 | K40: 9.826399522e-05 | L40: 51.33498863 | M40: =IF($A40>0,SUMPRODUCT('Age profile (years)'!$CT40:$GF40,'Asset data'!$CX40:$GJ40)/H40-0.5,0) -> 5.5 | N40: 2823.424375 | O40: =IF($A40>0,'Asset data'!G40,0) -> 53.8 | P40: 27618.22388 | Q40: 0.8977695167 | R40: 5.38 | S40: 10.76 | T40: 32.28 | U40: 43.04 | W40: =IF($A40>0,SUMIF('Age profile (years)'!$CT40:$GF40,"<" & R40+0.5,'Asset data'!$CX40:$GJ40),0) -> 0 | X40: =IF($A40>0,SUMIF('Age profile (years)'!$CT40:$GF40,"<" & S40+0.5,'Asset data'!$CX40:$GJ40)-W40,0) -> 513.3498863 | Y40: =IF($A40>0,SUMIF('Age profile (years)'!$CT40:$GF40,"<" & T40+0.5,'Asset data'!$CX40:$GJ40)-X40-W40,0) -> 0 | Z40: =IF($A40>0,SUMIF('Age profile (years)'!$CT40:$GF40,"<" & U40+0.5,'Asset data'!$CX40:$GJ40)-Y40-X40-W40,0) -> 0 | AA40: 0 | AB40: 0 | AC40: 1 | AD40: 0 | AE40: 0 | AF40: 0 | AI40: =IF($A40>0,'RRR hist-forc'!K40,0) -> 53.8 | AJ40: 27618.22388
A41: ='Asset data'!A41 -> 1 | B41: ='Asset data'!B41 -> 0 | C41: ='Asset data'!C41 -> 0 | D41: ='Asset data'!E41 -> OTHER - BOLLARDS | E41: POLES | F41: =IF(A41>0,SUM('Asset data'!J41:CV41),0) -> 11902 | G41: =IF(A41>0,'Asset data'!F41,0) -> 5.340912193 | H41: =IF(A41>0,SUM('Asset data'!CX41:GJ41),0) -> 63567.53693 | I41: 0.002717477217 | J41: 42 | K41: 0.0121679196 | L41: 5.340912193 | M41: =IF($A41>0,SUMPRODUCT('Age profile (years)'!$CT41:$GF41,'Asset data'!$CX41:$GJ41)/H41-0.5,0) -> 20.89968073 | N41: 1328541.226 | O41: =IF($A41>0,'Asset data'!G41,0) -> 53.8 | P41: 3419933.487 | Q41: 0.611530098 | R41: 5.38 | S41: 10.76 | T41: 32.28 | U41: 43.04 | W41: =IF($A41>0,SUMIF('Age profile (years)'!$CT41:$GF41,"<" & R41+0.5,'Asset data'!$CX41:$GJ41),0) -> 10147.73317 | X41: =IF($A41>0,SUMIF('Age profile (years)'!$CT41:$GF41,"<" & S41+0.5,'Asset data'!$CX41:$GJ41)-W41,0) -> 10329.32418 | Y41: =IF($A41>0,SUMIF('Age profile (years)'!$CT41:$GF41,"<" & T41+0.5,'Asset data'!$CX41:$GJ41)-X41-W41,0) -> 26469.56083 | Z41: =IF($A41>0,SUMIF('Age profile (years)'!$CT41:$GF41,"<" & U41+0.5,'Asset data'!$CX41:$GJ41)-Y41-X41-W41,0) -> 8978.073397 | AA41: 7642.845349 | AB41: 0.1596370358 | AC41: 0.1624936985 | AD41: 0.4164006049 | AE41: 0.1412367669 | AF41: 0.1202318938 | AI41: =IF($A41>0,'RRR hist-forc'!K41,0) -> 53.8 | AJ41: 3419933.487
A42: ='Asset data'!A42 -> 2 | B42: ='Asset data'!B42 -> 0 | C42: ='Asset data'!C42 -> 0 | D42: ='Asset data'!E42 -> ˂ = 1 KV | E42: OVERHEAD CONDUCTORS | F42: =IF(A42>0,SUM('Asset data'!J42:CV42),0) -> 28247.724 | G42: =IF(A42>0,'Asset data'!F42,0) -> 47.18692258 | H42: =IF(A42>0,SUM('Asset data'!CX42:GJ42),0) -> 1332923.165 | I42: 0.05698173171 | J42: 7 | K42: 0.139984947 | L42: 47.18692258 | M42: =IF($A42>0,SUMPRODUCT('Age profile (years)'!$CT42:$GF42,'Asset data'!$CX42:$GJ42)/H42-0.5,0) -> 27.01285718 | N42: 36006063.1 | O42: =IF($A42>0,'Asset data'!G42,0) -> 53.8 | P42: 71711266.3 | Q42: 0.4979022829 | R42: 5.38 | S42: 10.76 | T42: 32.28 | U42: 43.04 | W42: =IF($A42>0,SUMIF('Age profile (years)'!$CT42:$GF42,"<" & R42+0.5,'Asset data'!$CX42:$GJ42),0) -> 154154.8013 | X42: =IF($A42>0,SUMIF('Age profile (years)'!$CT42:$GF42,"<" & S42+0.5,'Asset data'!$CX42:$GJ42)-W42,0) -> 132040.8133 | Y42: =IF($A42>0,SUMIF('Age profile (years)'!$CT42:$GF42,"<" & T42+0.5,'Asset data'!$CX42:$GJ42)-X42-W42,0) -> 478498.0647 | Z42: =IF($A42>0,SUMIF('Age profile (years)'!$CT42:$GF42,"<" & U42+0.5,'Asset data'!$CX42:$GJ42)-Y42-X42-W42,0) -> 266366.501 | AA42: 301862.9853 | AB42: 0.1156516784 | AC42: 0.09906108371 | AD42: 0.3589839813 | AE42: 0.1998363506 | AF42: 0.226466906 | AI42: =IF($A42>0,'RRR hist-forc'!K42,0) -> 53.8 | AJ42: 71711266.3
A43: ='Asset data'!A43 -> 2 | B43: ='Asset data'!B43 -> 0 | C43: ='Asset data'!C43 -> 0 | D43: ='Asset data'!E43 -> > 1 KV & < = 11 KV | E43: OVERHEAD CONDUCTORS | F43: =IF(A43>0,SUM('Asset data'!J43:CV43),0) -> 70308.85451 | G43: =IF(A43>0,'Asset data'!F43,0) -> 47.18692258 | H43: =IF(A43>0,SUM('Asset data'!CX43:GJ43),0) -> 3317658.474 | I43: 0.1418280738 | J43: 1 | K43: 0.3484238684 | L43: 47.18692258 | M43: =IF($A43>0,SUMPRODUCT('Age profile (years)'!$CT43:$GF43,'Asset data'!$CX43:$GJ43)/H43-0.5,0) -> 7.922419683 | N43: 26283882.8 | O43: =IF($A43>0,'Asset data'!G43,0) -> 53.8 | P43: 178490025.9 | Q43: 0.8527431286 | R43: 5.38 | S43: 10.76 | T43: 32.28 | U43: 43.04 | W43: =IF($A43>0,SUMIF('Age profile (years)'!$CT43:$GF43,"<" & R43+0.5,'Asset data'!$CX43:$GJ43),0) -> 1935010.288 | X43: =IF($A43>0,SUMIF('Age profile (years)'!$CT43:$GF43,"<" & S43+0.5,'Asset data'!$CX43:$GJ43)-W43,0) -> 525966.9956 | Y43: =IF($A43>0,SUMIF('Age profile (years)'!$CT43:$GF43,"<" & T43+0.5,'Asset data'!$CX43:$GJ43)-X43-W43,0) -> 364904.3802 | Z43: =IF($A43>0,SUMIF('Age profile (years)'!$CT43:$GF43,"<" & U43+0.5,'Asset data'!$CX43:$GJ43)-Y43-X43-W43,0) -> 132258.5811 | AA43: 359518.2298 | AB43: 0.5832457749 | AC43: 0.1585356056 | AD43: 0.1099885305 | AE43: 0.039865038 | AF43: 0.108365051 | AI43: =IF($A43>0,'RRR hist-forc'!K43,0) -> 53.8 | AJ43: 178490025.9
A44: ='Asset data'!A44 -> 2 | B44: ='Asset data'!B44 -> 0 | C44: ='Asset data'!C44 -> 0 | D44: ='Asset data'!E44 -> ˃ 11 KV & < = 22 KV ; SWER | E44: OVERHEAD CONDUCTORS | F44: =IF(A44>0,SUM('Asset data'!J44:CV44),0) -> 29698.62961 | G44: =IF(A44>0,'Asset data'!F44,0) -> 47.18692258 | H44: =IF(A44>0,SUM('Asset data'!CX44:GJ44),0) -> 1401386.936 | I44: 0.05990852022 | J44: 6 | K44: 0.1471750818 | L44: 47.18692258 | M44: =IF($A44>0,SUMPRODUCT('Age profile (years)'!$CT44:$GF44,'Asset data'!$CX44:$GJ44)/H44-0.5,0) -> 11.62073918 | N44: 16285152.08 | O44: =IF($A44>0,'Asset data'!G44,0) -> 53.8 | P44: 75394617.17 | Q44: 0.7840011304 | R44: 5.38 | S44: 10.76 | T44: 32.28 | U44: 43.04 | W44: =IF($A44>0,SUMIF('Age profile (years)'!$CT44:$GF44,"<" & R44+0.5,'Asset data'!$CX44:$GJ44),0) -> 557326.205 | X44: =IF($A44>0,SUMIF('Age profile (years)'!$CT44:$GF44,"<" & S44+0.5,'Asset data'!$CX44:$GJ44)-W44,0) -> 279104.793 | Y44: =IF($A44>0,SUMIF('Age profile (years)'!$CT44:$GF44,"<" & T44+0.5,'Asset data'!$CX44:$GJ44)-X44-W44,0) -> 332846.3144 | Z44: =IF($A44>0,SUMIF('Age profile (years)'!$CT44:$GF44,"<" & U44+0.5,'Asset data'!$CX44:$GJ44)-Y44-X44-W44,0) -> 192625.4616 | AA44: 39484.16211 | AB44: 0.3976961613 | AC44: 0.1991632616 | AD44: 0.2375120717 | AE44: 0.1374534446 | AF44: 0.02817506078 | AI44: =IF($A44>0,'RRR hist-forc'!K44,0) -> 53.8 | AJ44: 75394617.17
A45: ='Asset data'!A45 -> 2 | B45: ='Asset data'!B45 -> 0 | C45: ='Asset data'!C45 -> 0 | D45: ='Asset data'!E45 -> ˃ 11 KV & < = 22 KV ; SINGLE-PHASE | E45: OVERHEAD CONDUCTORS | F45: =IF(A45>0,SUM('Asset data'!J45:CV45),0) -> 21121.31165 | G45: =IF(A45>0,'Asset data'!F45,0) -> 73.23463169 | H45: =IF(A45>0,SUM('Asset data'!CX45:GJ45),0) -> 1546811.48 | I45: 0.06612533943 | J45: 3 | K45: 0.1624477153 | L45: 73.23463169 | M45: =IF($A45>0,SUMPRODUCT('Age profile (years)'!$CT45:$GF45,'Asset data'!$CX45:$GJ45)/H45-0.5,0) -> 4.608118085 | N45: 7127889.954 | O45: =IF($A45>0,'Asset data'!G45,0) -> 53.8 | P45: 83218457.62 | Q45: 0.9143472475 | R45: 5.38 | S45: 10.76 | T45: 32.28 | U45: 43.04 | W45: =IF($A45>0,SUMIF('Age profile (years)'!$CT45:$GF45,"<" & R45+0.5,'Asset data'!$CX45:$GJ45),0) -> 963866.5411 | X45: =IF($A45>0,SUMIF('Age profile (years)'!$CT45:$GF45,"<" & S45+0.5,'Asset data'!$CX45:$GJ45)-W45,0) -> 306649.7343 | Y45: =IF($A45>0,SUMIF('Age profile (years)'!$CT45:$GF45,"<" & T45+0.5,'Asset data'!$CX45:$GJ45)-X45-W45,0) -> 152674.1124 | Z45: =IF($A45>0,SUMIF('Age profile (years)'!$CT45:$GF45,"<" & U45+0.5,'Asset data'!$CX45:$GJ45)-Y45-X45-W45,0) -> 43426.88102 | AA45: 80194.21102 | AB45: 0.6231312307 | AC45: 0.1982463528 | AD45: 0.09870246918 | AE45: 0.02807509615 | AF45: 0.05184485121 | AI45: =IF($A45>0,'RRR hist-forc'!K45,0) -> 53.8 | AJ45: 83218457.62
A46: ='Asset data'!A46 -> 2 | B46: ='Asset data'!B46 -> 0 | C46: ='Asset data'!C46 -> 0 | D46: ='Asset data'!E46 -> ˃ 11 KV & < = 22 KV ; MULTIPLE-PHASE | E46: OVERHEAD CONDUCTORS | F46: =IF(A46>0,SUM('Asset data'!J46:CV46),0) -> 21039.04631 | G46: =IF(A46>0,'Asset data'!F46,0) -> 47.18692258 | H46: =IF(A46>0,SUM('Asset data'!CX46:GJ46),0) -> 992767.8493 | I46: 0.04244027916 | J46: 9 | K46: 0.1042614896 | L46: 47.18692258 | M46: =IF($A46>0,SUMPRODUCT('Age profile (years)'!$CT46:$GF46,'Asset data'!$CX46:$GJ46)/H46-0.5,0) -> 7.606167272 | N46: 7551158.324 | O46: =IF($A46>0,'Asset data'!G46,0) -> 53.8 | P46: 53410910.29 | Q46: 0.8586214262 | R46: 5.38 | S46: 10.76 | T46: 32.28 | U46: 43.04 | W46: =IF($A46>0,SUMIF('Age profile (years)'!$CT46:$GF46,"<" & R46+0.5,'Asset data'!$CX46:$GJ46),0) -> 538318.6073 | X46: =IF($A46>0,SUMIF('Age profile (years)'!$CT46:$GF46,"<" & S46+0.5,'Asset data'!$CX46:$GJ46)-W46,0) -> 211840.929 | Y46: =IF($A46>0,SUMIF('Age profile (years)'!$CT46:$GF46,"<" & T46+0.5,'Asset data'!$CX46:$GJ46)-X46-W46,0) -> 106942.9015 | Z46: =IF($A46>0,SUMIF('Age profile (years)'!$CT46:$GF46,"<" & U46+0.5,'Asset data'!$CX46:$GJ46)-Y46-X46-W46,0) -> 33227.12443 | AA46: 102438.287 | AB46: 0.5422401699 | AC46: 0.2133841554 | AD46: 0.107721963 | AE46: 0.03346917857 | AF46: 0.1031845331 | AI46: =IF($A46>0,'RRR hist-forc'!K46,0) -> 53.8 | AJ46: 53410910.29
A47: ='Asset data'!A47 -> 2 | B47: ='Asset data'!B47 -> 0 | C47: ='Asset data'!C47 -> 0 | D47: ='Asset data'!E47 -> > 22 KV & < = 66 KV | E47: OVERHEAD CONDUCTORS | F47: =IF(A47>0,SUM('Asset data'!J47:CV47),0) -> 12933.05965 | G47: =IF(A47>0,'Asset data'!F47,0) -> 61.10343395 | H47: =IF(A47>0,SUM('Asset data'!CX47:GJ47),0) -> 790254.3558 | I47: 0.03378293877 | J47: 13 | K47: 0.08299331646 | L47: 61.10343395 | M47: =IF($A47>0,SUMPRODUCT('Age profile (years)'!$CT47:$GF47,'Asset data'!$CX47:$GJ47)/H47-0.5,0) -> 14.67220843 | N47: 11594776.62 | O47: =IF($A47>0,'Asset data'!G47,0) -> 54.9 | P47: 43384964.13 | Q47: 0.7327466589 | R47: 5.49 | S47: 10.98 | T47: 32.94 | U47: 43.92 | W47: =IF($A47>0,SUMIF('Age profile (years)'!$CT47:$GF47,"<" & R47+0.5,'Asset data'!$CX47:$GJ47),0) -> 242355.4266 | X47: =IF($A47>0,SUMIF('Age profile (years)'!$CT47:$GF47,"<" & S47+0.5,'Asset data'!$CX47:$GJ47)-W47,0) -> 197227.3095 | Y47: =IF($A47>0,SUMIF('Age profile (years)'!$CT47:$GF47,"<" & T47+0.5,'Asset data'!$CX47:$GJ47)-X47-W47,0) -> 198498.9635 | Z47: =IF($A47>0,SUMIF('Age profile (years)'!$CT47:$GF47,"<" & U47+0.5,'Asset data'!$CX47:$GJ47)-Y47-X47-W47,0) -> 76197.66918 | AA47: 75974.98706 | AB47: 0.3066802794 | AC47: 0.2495744668 | AD47: 0.2511836373 | AE47: 0.09642170097 | AF47: 0.09613991558 | AI47: =IF($A47>0,'RRR hist-forc'!K47,0) -> 54.9 | AJ47: 43384964.13
A48: ='Asset data'!A48 -> 2 | B48: ='Asset data'!B48 -> 0 | C48: ='Asset data'!C48 -> 0 | D48: ='Asset data'!E48 -> > 66 KV & < = 132 KV | E48: OVERHEAD CONDUCTORS | F48: =IF(A48>0,SUM('Asset data'!J48:CV48),0) -> 1933.722273 | G48: =IF(A48>0,'Asset data'!F48,0) -> 72.34043375 | H48: =IF(A48>0,SUM('Asset data'!CX48:GJ48),0) -> 139886.308 | I48: 0.005980062675 | J48: 31 | K48: 0.01469100238 | L48: 72.34043375 | M48: =IF($A48>0,SUMPRODUCT('Age profile (years)'!$CT48:$GF48,'Asset data'!$CX48:$GJ48)/H48-0.5,0) -> 25.05770233 | N48: 3505229.465 | O48: =IF($A48>0,'Asset data'!G48,0) -> 54.9 | P48: 7679758.308 | Q48: 0.5435755496 | R48: 5.49 | S48: 10.98 | T48: 32.94 | U48: 43.92 | W48: =IF($A48>0,SUMIF('Age profile (years)'!$CT48:$GF48,"<" & R48+0.5,'Asset data'!$CX48:$GJ48),0) -> 7039.258365 | X48: =IF($A48>0,SUMIF('Age profile (years)'!$CT48:$GF48,"<" & S48+0.5,'Asset data'!$CX48:$GJ48)-W48,0) -> 34118.44148 | Y48: =IF($A48>0,SUMIF('Age profile (years)'!$CT48:$GF48,"<" & T48+0.5,'Asset data'!$CX48:$GJ48)-X48-W48,0) -> 51007.90678 | Z48: =IF($A48>0,SUMIF('Age profile (years)'!$CT48:$GF48,"<" & U48+0.5,'Asset data'!$CX48:$GJ48)-Y48-X48-W48,0) -> 29727.66434 | AA48: 17993.03701 | AB48: 0.0503212821 | AC48: 0.2439012221 | AD48: 0.3646383089 | AE48: 0.2125130384 | AF48: 0.1286261484 | AI48: =IF($A48>0,'RRR hist-forc'!K48,0) -> 54.9 | AJ48: 7679758.308
A49: ='Asset data'!A49 -> 2 | B49: ='Asset data'!B49 -> 0 | C49: ='Asset data'!C49 -> 0 | D49: ='Asset data'!E49 -> > 132 KV | E49: OVERHEAD CONDUCTORS | F49: =IF(A49>0,SUM('Asset data'!J49:CV49),0) -> 2.972 | G49: =IF(A49>0,'Asset data'!F49,0) -> 72.34043375 | H49: =IF(A49>0,SUM('Asset data'!CX49:GJ49),0) -> 214.9957691 | I49: 9.190950799e-06 | J49: 76 | K49: 2.257907441e-05 | L49: 72.34043375 | M49: =IF($A49>0,SUMPRODUCT('Age profile (years)'!$CT49:$GF49,'Asset data'!$CX49:$GJ49)/H49-0.5,0) -> 27.5 | N49: 5912.38365 | O49: =IF($A49>0,'Asset data'!G49,0) -> 54.9 | P49: 11803.26772 | Q49: 0.4990892532 | R49: 5.49 | S49: 10.98 | T49: 32.94 | U49: 43.92 | W49: =IF($A49>0,SUMIF('Age profile (years)'!$CT49:$GF49,"<" & R49+0.5,'Asset data'!$CX49:$GJ49),0) -> 0 | X49: =IF($A49>0,SUMIF('Age profile (years)'!$CT49:$GF49,"<" & S49+0.5,'Asset data'!$CX49:$GJ49)-W49,0) -> 0 | Y49: =IF($A49>0,SUMIF('Age profile (years)'!$CT49:$GF49,"<" & T49+0.5,'Asset data'!$CX49:$GJ49)-X49-W49,0) -> 214.9957691 | Z49: =IF($A49>0,SUMIF('Age profile (years)'!$CT49:$GF49,"<" & U49+0.5,'Asset data'!$CX49:$GJ49)-Y49-X49-W49,0) -> 0 | AA49: 0 | AB49: 0 | AC49: 0 | AD49: 1 | AE49: 0 | AF49: 0 | AI49: =IF($A49>0,'RRR hist-forc'!K49,0) -> 54.9 | AJ49: 11803.26772
A50: ='Asset data'!A50 -> 0 | B50: ='Asset data'!B50 -> 0 | C50: ='Asset data'!C50 -> 0 | D50: ='Asset data'!E50 -> OTHER - PLEASE ADD A ROW IF NECESSARY AND NOMINATE THE CATEGORY | E50: 0 | F50: =IF(A50>0,SUM('Asset data'!J50:CV50),0) -> 0 | G50: =IF(A50>0,'Asset data'!F50,0) -> 0 | H50: =IF(A50>0,SUM('Asset data'!CX50:GJ50),0) -> 0 | I50: 0 | J50: 0 | K50: 0 | L50: 0 | M50: =IF($A50>0,SUMPRODUCT('Age profile (years)'!$CT50:$GF50,'Asset data'!$CX50:$GJ50)/H50-0.5,0) -> 0 | N50: 0 | O50: =IF($A50>0,'Asset data'!G50,0) -> 0 | P50: 0 | Q50: 0 | R50: 0 | S50: 0 | T50: 0 | U50: 0 | W50: =IF($A50>0,SUMIF('Age profile (years)'!$CT50:$GF50,"<" & R50+0.5,'Asset data'!$CX50:$GJ50),0) -> 0 | X50: =IF($A50>0,SUMIF('Age profile (years)'!$CT50:$GF50,"<" & S50+0.5,'Asset data'!$CX50:$GJ50)-W50,0) -> 0 | Y50: =IF($A50>0,SUMIF('Age profile (years)'!$CT50:$GF50,"<" & T50+0.5,'Asset data'!$CX50:$GJ50)-X50-W50,0) -> 0 | Z50: =IF($A50>0,SUMIF('Age profile (years)'!$CT50:$GF50,"<" & U50+0.5,'Asset data'!$CX50:$GJ50)-Y50-X50-W50,0) -> 0 | AA50: 0 | AB50: 0 | AC50: 0 | AD50: 0 | AE50: 0 | AF50: 0 | AI50: =IF($A50>0,'RRR hist-forc'!K50,0) -> 0 | AJ50: 0
A51: ='Asset data'!A51 -> 3 | B51: ='Asset data'!B51 -> 0 | C51: ='Asset data'!C51 -> 0 | D51: ='Asset data'!E51 -> ˂ = 1 KV | E51: UNDERGROUND CABLES | F51: =IF(A51>0,SUM('Asset data'!J51:CV51),0) -> 5798.394 | G51: =IF(A51>0,'Asset data'!F51,0) -> 273.7967355 | H51: =IF(A51>0,SUM('Asset data'!CX51:GJ51),0) -> 1587581.349 | I51: 0.06786822888 | J51: 2 | K51: 0.4717291733 | L51: 273.7967355 | M51: =IF($A51>0,SUMPRODUCT('Age profile (years)'!$CT51:$GF51,'Asset data'!$CX51:$GJ51)/H51-0.5,0) -> 39.03415671 | N51: 61969899.14 | O51: =IF($A51>0,'Asset data'!G51,0) -> 53.8 | P51: 85411876.55 | Q51: 0.2744580538 | R51: 5.38 | S51: 10.76 | T51: 32.28 | U51: 43.04 | W51: =IF($A51>0,SUMIF('Age profile (years)'!$CT51:$GF51,"<" & R51+0.5,'Asset data'!$CX51:$GJ51),0) -> 24805.50022 | X51: =IF($A51>0,SUMIF('Age profile (years)'!$CT51:$GF51,"<" & S51+0.5,'Asset data'!$CX51:$GJ51)-W51,0) -> 47570.89849 | Y51: =IF($A51>0,SUMIF('Age profile (years)'!$CT51:$GF51,"<" & T51+0.5,'Asset data'!$CX51:$GJ51)-X51-W51,0) -> 336564.3827 | Z51: =IF($A51>0,SUMIF('Age profile (years)'!$CT51:$GF51,"<" & U51+0.5,'Asset data'!$CX51:$GJ51)-Y51-X51-W51,0) -> 275993.4125 | AA51: 902647.1546 | AB51: 0.01562471129 | AC51: 0.02996438484 | AD51: 0.2119981965 | AE51: 0.1738452097 | AF51: 0.5685674976 | AI51: =IF($A51>0,'RRR hist-forc'!K51,0) -> 53.8 | AJ51: 85411876.55
A52: ='Asset data'!A52 -> 3 | B52: ='Asset data'!B52 -> 0 | C52: ='Asset data'!C52 -> 0 | D52: ='Asset data'!E52 -> > 1 KV & < = 11 KV | E52: UNDERGROUND CABLES | F52: =IF(A52>0,SUM('Asset data'!J52:CV52),0) -> 1951.77005 | G52: =IF(A52>0,'Asset data'!F52,0) -> 412.779065 | H52: =IF(A52>0,SUM('Asset data'!CX52:GJ52),0) -> 805649.8162 | I52: 0.03444108623 | J52: 12 | K52: 0.2393883766 | L52: 412.779065 | M52: =IF($A52>0,SUMPRODUCT('Age profile (years)'!$CT52:$GF52,'Asset data'!$CX52:$GJ52)/H52-0.5,0) -> 45.37453647 | N52: 36555986.97 | O52: =IF($A52>0,'Asset data'!G52,0) -> 53.8 | P52: 43343960.11 | Q52: 0.1566071288 | R52: 5.38 | S52: 10.76 | T52: 32.28 | U52: 43.04 | W52: =IF($A52>0,SUMIF('Age profile (years)'!$CT52:$GF52,"<" & R52+0.5,'Asset data'!$CX52:$GJ52),0) -> 1844.139599 | X52: =IF($A52>0,SUMIF('Age profile (years)'!$CT52:$GF52,"<" & S52+0.5,'Asset data'!$CX52:$GJ52)-W52,0) -> 7678.637255 | Y52: =IF($A52>0,SUMIF('Age profile (years)'!$CT52:$GF52,"<" & T52+0.5,'Asset data'!$CX52:$GJ52)-X52-W52,0) -> 55168.12127 | Z52: =IF($A52>0,SUMIF('Age profile (years)'!$CT52:$GF52,"<" & U52+0.5,'Asset data'!$CX52:$GJ52)-Y52-X52-W52,0) -> 108154.2624 | AA52: 632804.6557 | AB52: 0.002289008899 | AC52: 0.009530986168 | AD52: 0.06847655168 | AE52: 0.1342447553 | AF52: 0.785458698 | AI52: =IF($A52>0,'RRR hist-forc'!K52,0) -> 53.8 | AJ52: 43343960.11
A53: ='Asset data'!A53 -> 3 | B53: ='Asset data'!B53 -> 0 | C53: ='Asset data'!C53 -> 0 | D53: ='Asset data'!E53 -> > 11 KV & < = 22 KV | E53: UNDERGROUND CABLES | F53: =IF(A53>0,SUM('Asset data'!J53:CV53),0) -> 306.7008936 | G53: =IF(A53>0,'Asset data'!F53,0) -> 2985.848776 | H53: =IF(A53>0,SUM('Asset data'!CX53:GJ53),0) -> 915762.4878 | I53: 0.03914834234 | J53: 11 | K53: 0.2721069265 | L53: 2985.848776 | M53: =IF($A53>0,SUMPRODUCT('Age profile (years)'!$CT53:$GF53,'Asset data'!$CX53:$GJ53)/H53-0.5,0) -> 45.04505965 | N53: 41250575.89 | O53: =IF($A53>0,'Asset data'!G53,0) -> 53.8 | P53: 49268021.85 | Q53: 0.1627312333 | R53: 5.38 | S53: 10.76 | T53: 32.28 | U53: 43.04 | W53: =IF($A53>0,SUMIF('Age profile (years)'!$CT53:$GF53,"<" & R53+0.5,'Asset data'!$CX53:$GJ53),0) -> 18.1190749 | X53: =IF($A53>0,SUMIF('Age profile (years)'!$CT53:$GF53,"<" & S53+0.5,'Asset data'!$CX53:$GJ53)-W53,0) -> 454.9970939 | Y53: =IF($A53>0,SUMIF('Age profile (years)'!$CT53:$GF53,"<" & T53+0.5,'Asset data'!$CX53:$GJ53)-X53-W53,0) -> 79970.30582 | Z53: =IF($A53>0,SUMIF('Age profile (years)'!$CT53:$GF53,"<" & U53+0.5,'Asset data'!$CX53:$GJ53)-Y53-X53-W53,0) -> 117619.1597 | AA53: 717699.9062 | AB53: 1.978577977e-05 | AC53: 0.0004968505479 | AD53: 0.08732647043 | AE53: 0.1284384993 | AF53: 0.7837183939 | AI53: =IF($A53>0,'RRR hist-forc'!K53,0) -> 53.8 | AJ53: 49268021.85
A54: ='Asset data'!A54 -> 3 | B54: ='Asset data'!B54 -> 0 | C54: ='Asset data'!C54 -> 0 | D54: ='Asset data'!E54 -> > 22 KV & < = 33 KV | E54: UNDERGROUND CABLES | F54: =IF(A54>0,SUM('Asset data'!J54:CV54),0) -> 47.86573207 | G54: =IF(A54>0,'Asset data'!F54,0) -> 526.9815955 | H54: =IF(A54>0,SUM('Asset data'!CX54:GJ54),0) -> 25224.35985 | I54: 0.001078327501 | J54: 50 | K54: 0.007495090838 | L54: 526.9815955 | M54: =IF($A54>0,SUMPRODUCT('Age profile (years)'!$CT54:$GF54,'Asset data'!$CX54:$GJ54)/H54-0.5,0) -> 40.18016508 | N54: 1013518.943 | O54: =IF($A54>0,'Asset data'!G54,0) -> 54.9 | P54: 1384817.356 | Q54: 0.2681208546 | R54: 5.49 | S54: 10.98 | T54: 32.94 | U54: 43.92 | W54: =IF($A54>0,SUMIF('Age profile (years)'!$CT54:$GF54,"<" & R54+0.5,'Asset data'!$CX54:$GJ54),0) -> 59.03312345 | X54: =IF($A54>0,SUMIF('Age profile (years)'!$CT54:$GF54,"<" & S54+0.5,'Asset data'!$CX54:$GJ54)-W54,0) -> 654.462305 | Y54: =IF($A54>0,SUMIF('Age profile (years)'!$CT54:$GF54,"<" & T54+0.5,'Asset data'!$CX54:$GJ54)-X54-W54,0) -> 5693.539016 | Z54: =IF($A54>0,SUMIF('Age profile (years)'!$CT54:$GF54,"<" & U54+0.5,'Asset data'!$CX54:$GJ54)-Y54-X54-W54,0) -> 9976.250215 | AA54: 8841.075194 | AB54: 0.002340321966 | AC54: 0.02594564575 | AD54: 0.2257158972 | AE54: 0.3955006301 | AF54: 0.350497505 | AI54: =IF($A54>0,'RRR hist-forc'!K54,0) -> 54.9 | AJ54: 1384817.356
A55: ='Asset data'!A55 -> 3 | B55: ='Asset data'!B55 -> 0 | C55: ='Asset data'!C55 -> 0 | D55: ='Asset data'!E55 -> > 33 KV & < = 66 KV | E55: UNDERGROUND CABLES | F55: =IF(A55>0,SUM('Asset data'!J55:CV55),0) -> 23.04733221 | G55: =IF(A55>0,'Asset data'!F55,0) -> 890.0393333 | H55: =IF(A55>0,SUM('Asset data'!CX55:GJ55),0) -> 20513.03219 | I55: 0.0008769208363 | J55: 53 | K55: 0.006095181029 | L55: 890.0393333 | M55: =IF($A55>0,SUMPRODUCT('Age profile (years)'!$CT55:$GF55,'Asset data'!$CX55:$GJ55)/H55-0.5,0) -> 46.87746484 | N55: 961598.9453 | O55: =IF($A55>0,'Asset data'!G55,0) -> 54.9 | P55: 1126165.467 | Q55: 0.1461299666 | R55: 5.49 | S55: 10.98 | T55: 32.94 | U55: 43.92 | W55: =IF($A55>0,SUMIF('Age profile (years)'!$CT55:$GF55,"<" & R55+0.5,'Asset data'!$CX55:$GJ55),0) -> 264.3213577 | X55: =IF($A55>0,SUMIF('Age profile (years)'!$CT55:$GF55,"<" & S55+0.5,'Asset data'!$CX55:$GJ55)-W55,0) -> 461.6952767 | Y55: =IF($A55>0,SUMIF('Age profile (years)'!$CT55:$GF55,"<" & T55+0.5,'Asset data'!$CX55:$GJ55)-X55-W55,0) -> 633.4810041 | Z55: =IF($A55>0,SUMIF('Age profile (years)'!$CT55:$GF55,"<" & U55+0.5,'Asset data'!$CX55:$GJ55)-Y55-X55-W55,0) -> 853.0923246 | AA55: 18300.44223 | AB55: 0.01288553322 | AC55: 0.02250741247 | AD55: 0.03088188027 | AE55: 0.04158782166 | AF55: 0.8921373524 | AI55: =IF($A55>0,'RRR hist-forc'!K55,0) -> 54.9 | AJ55: 1126165.467
A56: ='Asset data'!A56 -> 3 | B56: ='Asset data'!B56 -> 0 | C56: ='Asset data'!C56 -> 0 | D56: ='Asset data'!E56 -> > 66 KV & < = 132 KV | E56: UNDERGROUND CABLES | F56: =IF(A56>0,SUM('Asset data'!J56:CV56),0) -> 9.731992436 | G56: =IF(A56>0,'Asset data'!F56,0) -> 1101.501908 | H56: =IF(A56>0,SUM('Asset data'!CX56:GJ56),0) -> 10719.80824 | I56: 0.0004582659023 | J56: 56 | K56: 0.003185251757 | L56: 1101.501908 | M56: =IF($A56>0,SUMPRODUCT('Age profile (years)'!$CT56:$GF56,'Asset data'!$CX56:$GJ56)/H56-0.5,0) -> 47.51643444 | N56: 509367.0655 | O56: =IF($A56>0,'Asset data'!G56,0) -> 54.9 | P56: 588517.4724 | Q56: 0.1344911759 | R56: 5.49 | S56: 10.98 | T56: 32.94 | U56: 43.92 | W56: =IF($A56>0,SUMIF('Age profile (years)'!$CT56:$GF56,"<" & R56+0.5,'Asset data'!$CX56:$GJ56),0) -> 0 | X56: =IF($A56>0,SUMIF('Age profile (years)'!$CT56:$GF56,"<" & S56+0.5,'Asset data'!$CX56:$GJ56)-W56,0) -> 0 | Y56: =IF($A56>0,SUMIF('Age profile (years)'!$CT56:$GF56,"<" & T56+0.5,'Asset data'!$CX56:$GJ56)-X56-W56,0) -> 0 | Z56: =IF($A56>0,SUMIF('Age profile (years)'!$CT56:$GF56,"<" & U56+0.5,'Asset data'!$CX56:$GJ56)-Y56-X56-W56,0) -> 4678.905226 | AA56: 6040.903015 | AB56: 0 | AC56: 0 | AD56: 0 | AE56: 0.4364728473 | AF56: 0.5635271527 | AI56: =IF($A56>0,'RRR hist-forc'!K56,0) -> 54.9 | AJ56: 588517.4724
A57: ='Asset data'!A57 -> 0 | B57: ='Asset data'!B57 -> 0 | C57: ='Asset data'!C57 -> 0 | D57: ='Asset data'!E57 -> > 132 KV | E57: 0 | F57: =IF(A57>0,SUM('Asset data'!J57:CV57),0) -> 0 | G57: =IF(A57>0,'Asset data'!F57,0) -> 0 | H57: =IF(A57>0,SUM('Asset data'!CX57:GJ57),0) -> 0 | I57: 0 | J57: 0 | K57: 0 | L57: 0 | M57: =IF($A57>0,SUMPRODUCT('Age profile (years)'!$CT57:$GF57,'Asset data'!$CX57:$GJ57)/H57-0.5,0) -> 0 | N57: 0 | O57: =IF($A57>0,'Asset data'!G57,0) -> 0 | P57: 0 | Q57: 0 | R57: 0 | S57: 0 | T57: 0 | U57: 0 | W57: =IF($A57>0,SUMIF('Age profile (years)'!$CT57:$GF57,"<" & R57+0.5,'Asset data'!$CX57:$GJ57),0) -> 0 | X57: =IF($A57>0,SUMIF('Age profile (years)'!$CT57:$GF57,"<" & S57+0.5,'Asset data'!$CX57:$GJ57)-W57,0) -> 0 | Y57: =IF($A57>0,SUMIF('Age profile (years)'!$CT57:$GF57,"<" & T57+0.5,'Asset data'!$CX57:$GJ57)-X57-W57,0) -> 0 | Z57: =IF($A57>0,SUMIF('Age profile (years)'!$CT57:$GF57,"<" & U57+0.5,'Asset data'!$CX57:$GJ57)-Y57-X57-W57,0) -> 0 | AA57: 0 | AB57: 0 | AC57: 0 | AD57: 0 | AE57: 0 | AF57: 0 | AI57: =IF($A57>0,'RRR hist-forc'!K57,0) -> 0 | AJ57: 0
A58: ='Asset data'!A58 -> 0 | B58: ='Asset data'!B58 -> 0 | C58: ='Asset data'!C58 -> 0 | D58: ='Asset data'!E58 -> OTHER - PLEASE ADD A ROW IF NECESSARY AND NOMINATE THE CATEGORY | E58: 0 | F58: =IF(A58>0,SUM('Asset data'!J58:CV58),0) -> 0 | G58: =IF(A58>0,'Asset data'!F58,0) -> 0 | H58: =IF(A58>0,SUM('Asset data'!CX58:GJ58),0) -> 0 | I58: 0 | J58: 0 | K58: 0 | L58: 0 | M58: =IF($A58>0,SUMPRODUCT('Age profile (years)'!$CT58:$GF58,'Asset data'!$CX58:$GJ58)/H58-0.5,0) -> 0 | N58: 0 | O58: =IF($A58>0,'Asset data'!G58,0) -> 0 | P58: 0 | Q58: 0 | R58: 0 | S58: 0 | T58: 0 | U58: 0 | W58: =IF($A58>0,SUMIF('Age profile (years)'!$CT58:$GF58,"<" & R58+0.5,'Asset data'!$CX58:$GJ58),0) -> 0 | X58: =IF($A58>0,SUMIF('Age profile (years)'!$CT58:$GF58,"<" & S58+0.5,'Asset data'!$CX58:$GJ58)-W58,0) -> 0 | Y58: =IF($A58>0,SUMIF('Age profile (years)'!$CT58:$GF58,"<" & T58+0.5,'Asset data'!$CX58:$GJ58)-X58-W58,0) -> 0 | Z58: =IF($A58>0,SUMIF('Age profile (years)'!$CT58:$GF58,"<" & U58+0.5,'Asset data'!$CX58:$GJ58)-Y58-X58-W58,0) -> 0 | AA58: 0 | AB58: 0 | AC58: 0 | AD58: 0 | AE58: 0 | AF58: 0 | AI58: =IF($A58>0,'RRR hist-forc'!K58,0) -> 0 | AJ58: 0
A59: ='Asset data'!A59 -> 4 | B59: ='Asset data'!B59 -> 0 | C59: ='Asset data'!C59 -> 0 | D59: ='Asset data'!E59 -> ˂ = 11 KV ; RESIDENTIAL ; SIMPLE TYPE | E59: SERVICE LINES | F59: =IF(A59>0,SUM('Asset data'!J59:CV59),0) -> 13787.12509 | G59: =IF(A59>0,'Asset data'!F59,0) -> 0.7721659798 | H59: =IF(A59>0,SUM('Asset data'!CX59:GJ59),0) -> 10645.94895 | I59: 0.0004551084585 | J59: 57 | K59: 0.8230735263 | L59: 0.7721659798 | M59: =IF($A59>0,SUMPRODUCT('Age profile (years)'!$CT59:$GF59,'Asset data'!$CX59:$GJ59)/H59-0.5,0) -> 27.6187063 | N59: 294027.3374 | O59: =IF($A59>0,'Asset data'!G59,0) -> 53.8 | P59: 572752.0538 | Q59: 0.4866411469 | R59: 5.38 | S59: 10.76 | T59: 32.28 | U59: 43.04 | W59: =IF($A59>0,SUMIF('Age profile (years)'!$CT59:$GF59,"<" & R59+0.5,'Asset data'!$CX59:$GJ59),0) -> 1225.889942 | X59: =IF($A59>0,SUMIF('Age profile (years)'!$CT59:$GF59,"<" & S59+0.5,'Asset data'!$CX59:$GJ59)-W59,0) -> 1402.15253 | Y59: =IF($A59>0,SUMIF('Age profile (years)'!$CT59:$GF59,"<" & T59+0.5,'Asset data'!$CX59:$GJ59)-X59-W59,0) -> 3233.729592 | Z59: =IF($A59>0,SUMIF('Age profile (years)'!$CT59:$GF59,"<" & U59+0.5,'Asset data'!$CX59:$GJ59)-Y59-X59-W59,0) -> 1175.27407 | AA59: 3608.902821 | AB59: 0.1151508378 | AC59: 0.1317076135 | AD59: 0.3037521226 | AE59: 0.1103963653 | AF59: 0.3389930608 | AI59: =IF($A59>0,'RRR hist-forc'!K59,0) -> 53.8 | AJ59: 572752.0538
A60: ='Asset data'!A60 -> 4 | B60: ='Asset data'!B60 -> 0 | C60: ='Asset data'!C60 -> 0 | D60: ='Asset data'!E60 -> ˂ = 11 KV ; COMMERCIAL & INDUSTRIAL ; SIMPLE TYPE | E60: SERVICE LINES | F60: =IF(A60>0,SUM('Asset data'!J60:CV60),0) -> 1660.053468 | G60: =IF(A60>0,'Asset data'!F60,0) -> 0.9265991758 | H60: =IF(A60>0,SUM('Asset data'!CX60:GJ60),0) -> 1538.204175 | I60: 6.575738189e-05 | J60: 65 | K60: 0.1189236526 | L60: 0.9265991758 | M60: =IF($A60>0,SUMPRODUCT('Age profile (years)'!$CT60:$GF60,'Asset data'!$CX60:$GJ60)/H60-0.5,0) -> 27.21806049 | N60: 41866.93428 | O60: =IF($A60>0,'Asset data'!G60,0) -> 53.8 | P60: 82755.38463 | Q60: 0.494088095 | R60: 5.38 | S60: 10.76 | T60: 32.28 | U60: 43.04 | W60: =IF($A60>0,SUMIF('Age profile (years)'!$CT60:$GF60,"<" & R60+0.5,'Asset data'!$CX60:$GJ60),0) -> 190.0207787 | X60: =IF($A60>0,SUMIF('Age profile (years)'!$CT60:$GF60,"<" & S60+0.5,'Asset data'!$CX60:$GJ60)-W60,0) -> 193.2825668 | Y60: =IF($A60>0,SUMIF('Age profile (years)'!$CT60:$GF60,"<" & T60+0.5,'Asset data'!$CX60:$GJ60)-X60-W60,0) -> 470.1352997 | Z60: =IF($A60>0,SUMIF('Age profile (years)'!$CT60:$GF60,"<" & U60+0.5,'Asset data'!$CX60:$GJ60)-Y60-X60-W60,0) -> 211.7938993 | AA60: 472.9716307 | AB60: 0.1235341717 | AC60: 0.1256546887 | AD60: 0.305639074 | AE60: 0.137689068 | AF60: 0.3074829976 | AI60: =IF($A60>0,'RRR hist-forc'!K60,0) -> 53.8 | AJ60: 82755.38463
A61: ='Asset data'!A61 -> 4 | B61: ='Asset data'!B61 -> 0 | C61: ='Asset data'!C61 -> 0 | D61: ='Asset data'!E61 -> ˂ = 11 KV ; RESIDENTIAL ; COMPLEX TYPE | E61: SERVICE LINES | F61: =IF(A61>0,SUM('Asset data'!J61:CV61),0) -> 971.5926049 | G61: =IF(A61>0,'Asset data'!F61,0) -> 0.7721659798 | H61: =IF(A61>0,SUM('Asset data'!CX61:GJ61),0) -> 750.2307558 | I61: 3.20719519e-05 | J61: 68 | K61: 0.05800282119 | L61: 0.7721659798 | M61: =IF($A61>0,SUMPRODUCT('Age profile (years)'!$CT61:$GF61,'Asset data'!$CX61:$GJ61)/H61-0.5,0) -> 20.01069661 | N61: 15012.64004 | O61: =IF($A61>0,'Asset data'!G61,0) -> 53.8 | P61: 40362.41466 | Q61: 0.6280539664 | R61: 5.38 | S61: 10.76 | T61: 32.28 | U61: 43.04 | W61: =IF($A61>0,SUMIF('Age profile (years)'!$CT61:$GF61,"<" & R61+0.5,'Asset data'!$CX61:$GJ61),0) -> 171.4551388 | X61: =IF($A61>0,SUMIF('Age profile (years)'!$CT61:$GF61,"<" & S61+0.5,'Asset data'!$CX61:$GJ61)-W61,0) -> 125.2179116 | Y61: =IF($A61>0,SUMIF('Age profile (years)'!$CT61:$GF61,"<" & T61+0.5,'Asset data'!$CX61:$GJ61)-X61-W61,0) -> 246.0208426 | Z61: =IF($A61>0,SUMIF('Age profile (years)'!$CT61:$GF61,"<" & U61+0.5,'Asset data'!$CX61:$GJ61)-Y61-X61-W61,0) -> 69.04016289 | AA61: 138.4966998 | AB61: 0.228536537 | AC61: 0.1669058628 | AD61: 0.3279268954 | AE61: 0.09202523672 | AF61: 0.184605468 | AI61: =IF($A61>0,'RRR hist-forc'!K61,0) -> 53.8 | AJ61: 40362.41466
A62: ='Asset data'!A62 -> 0 | B62: ='Asset data'!B62 -> 0 | C62: ='Asset data'!C62 -> 0 | D62: ='Asset data'!E62 -> ˂ = 11 KV ; COMMERCIAL & INDUSTRIAL ; COMPLEX TYPE | E62: 0 | F62: =IF(A62>0,SUM('Asset data'!J62:CV62),0) -> 0 | G62: =IF(A62>0,'Asset data'!F62,0) -> 0 | H62: =IF(A62>0,SUM('Asset data'!CX62:GJ62),0) -> 0 | I62: 0 | J62: 0 | K62: 0 | L62: 0 | M62: =IF($A62>0,SUMPRODUCT('Age profile (years)'!$CT62:$GF62,'Asset data'!$CX62:$GJ62)/H62-0.5,0) -> 0 | N62: 0 | O62: =IF($A62>0,'Asset data'!G62,0) -> 0 | P62: 0 | Q62: 0 | R62: 0 | S62: 0 | T62: 0 | U62: 0 | W62: =IF($A62>0,SUMIF('Age profile (years)'!$CT62:$GF62,"<" & R62+0.5,'Asset data'!$CX62:$GJ62),0) -> 0 | X62: =IF($A62>0,SUMIF('Age profile (years)'!$CT62:$GF62,"<" & S62+0.5,'Asset data'!$CX62:$GJ62)-W62,0) -> 0 | Y62: =IF($A62>0,SUMIF('Age profile (years)'!$CT62:$GF62,"<" & T62+0.5,'Asset data'!$CX62:$GJ62)-X62-W62,0) -> 0 | Z62: =IF($A62>0,SUMIF('Age profile (years)'!$CT62:$GF62,"<" & U62+0.5,'Asset data'!$CX62:$GJ62)-Y62-X62-W62,0) -> 0 | AA62: 0 | AB62: 0 | AC62: 0 | AD62: 0 | AE62: 0 | AF62: 0 | AI62: =IF($A62>0,'RRR hist-forc'!K62,0) -> 0 | AJ62: 0
A63: ='Asset data'!A63 -> 0 | B63: ='Asset data'!B63 -> 0 | C63: ='Asset data'!C63 -> 0 | D63: ='Asset data'!E63 -> ˂ = 11 KV ; SUBDIVISION ; COMPLEX TYPE | E63: 0 | F63: =IF(A63>0,SUM('Asset data'!J63:CV63),0) -> 0 | G63: =IF(A63>0,'Asset data'!F63,0) -> 0 | H63: =IF(A63>0,SUM('Asset data'!CX63:GJ63),0) -> 0 | I63: 0 | J63: 0 | K63: 0 | L63: 0 | M63: =IF($A63>0,SUMPRODUCT('Age profile (years)'!$CT63:$GF63,'Asset data'!$CX63:$GJ63)/H63-0.5,0) -> 0 | N63: 0 | O63: =IF($A63>0,'Asset data'!G63,0) -> 0 | P63: 0 | Q63: 0 | R63: 0 | S63: 0 | T63: 0 | U63: 0 | W63: =IF($A63>0,SUMIF('Age profile (years)'!$CT63:$GF63,"<" & R63+0.5,'Asset data'!$CX63:$GJ63),0) -> 0 | X63: =IF($A63>0,SUMIF('Age profile (years)'!$CT63:$GF63,"<" & S63+0.5,'Asset data'!$CX63:$GJ63)-W63,0) -> 0 | Y63: =IF($A63>0,SUMIF('Age profile (years)'!$CT63:$GF63,"<" & T63+0.5,'Asset data'!$CX63:$GJ63)-X63-W63,0) -> 0 | Z63: =IF($A63>0,SUMIF('Age profile (years)'!$CT63:$GF63,"<" & U63+0.5,'Asset data'!$CX63:$GJ63)-Y63-X63-W63,0) -> 0 | AA63: 0 | AB63: 0 | AC63: 0 | AD63: 0 | AE63: 0 | AF63: 0 | AI63: =IF($A63>0,'RRR hist-forc'!K63,0) -> 0 | AJ63: 0
A64: ='Asset data'!A64 -> 0 | B64: ='Asset data'!B64 -> 0 | C64: ='Asset data'!C64 -> 0 | D64: ='Asset data'!E64 -> > 11 KV & < = 22 KV ; COMMERCIAL & INDUSTRIAL | E64: 0 | F64: =IF(A64>0,SUM('Asset data'!J64:CV64),0) -> 0 | G64: =IF(A64>0,'Asset data'!F64,0) -> 0 | H64: =IF(A64>0,SUM('Asset data'!CX64:GJ64),0) -> 0 | I64: 0 | J64: 0 | K64: 0 | L64: 0 | M64: =IF($A64>0,SUMPRODUCT('Age profile (years)'!$CT64:$GF64,'Asset data'!$CX64:$GJ64)/H64-0.5,0) -> 0 | N64: 0 | O64: =IF($A64>0,'Asset data'!G64,0) -> 0 | P64: 0 | Q64: 0 | R64: 0 | S64: 0 | T64: 0 | U64: 0 | W64: =IF($A64>0,SUMIF('Age profile (years)'!$CT64:$GF64,"<" & R64+0.5,'Asset data'!$CX64:$GJ64),0) -> 0 | X64: =IF($A64>0,SUMIF('Age profile (years)'!$CT64:$GF64,"<" & S64+0.5,'Asset data'!$CX64:$GJ64)-W64,0) -> 0 | Y64: =IF($A64>0,SUMIF('Age profile (years)'!$CT64:$GF64,"<" & T64+0.5,'Asset data'!$CX64:$GJ64)-X64-W64,0) -> 0 | Z64: =IF($A64>0,SUMIF('Age profile (years)'!$CT64:$GF64,"<" & U64+0.5,'Asset data'!$CX64:$GJ64)-Y64-X64-W64,0) -> 0 | AA64: 0 | AB64: 0 | AC64: 0 | AD64: 0 | AE64: 0 | AF64: 0 | AI64: =IF($A64>0,'RRR hist-forc'!K64,0) -> 0 | AJ64: 0
A65: ='Asset data'!A65 -> 0 | B65: ='Asset data'!B65 -> 0 | C65: ='Asset data'!C65 -> 0 | D65: ='Asset data'!E65 -> > 11 KV & < = 22 KV ; SUBDIVISION | E65: 0 | F65: =IF(A65>0,SUM('Asset data'!J65:CV65),0) -> 0 | G65: =IF(A65>0,'Asset data'!F65,0) -> 0 | H65: =IF(A65>0,SUM('Asset data'!CX65:GJ65),0) -> 0 | I65: 0 | J65: 0 | K65: 0 | L65: 0 | M65: =IF($A65>0,SUMPRODUCT('Age profile (years)'!$CT65:$GF65,'Asset data'!$CX65:$GJ65)/H65-0.5,0) -> 0 | N65: 0 | O65: =IF($A65>0,'Asset data'!G65,0) -> 0 | P65: 0 | Q65: 0 | R65: 0 | S65: 0 | T65: 0 | U65: 0 | W65: =IF($A65>0,SUMIF('Age profile (years)'!$CT65:$GF65,"<" & R65+0.5,'Asset data'!$CX65:$GJ65),0) -> 0 | X65: =IF($A65>0,SUMIF('Age profile (years)'!$CT65:$GF65,"<" & S65+0.5,'Asset data'!$CX65:$GJ65)-W65,0) -> 0 | Y65: =IF($A65>0,SUMIF('Age profile (years)'!$CT65:$GF65,"<" & T65+0.5,'Asset data'!$CX65:$GJ65)-X65-W65,0) -> 0 | Z65: =IF($A65>0,SUMIF('Age profile (years)'!$CT65:$GF65,"<" & U65+0.5,'Asset data'!$CX65:$GJ65)-Y65-X65-W65,0) -> 0 | AA65: 0 | AB65: 0 | AC65: 0 | AD65: 0 | AE65: 0 | AF65: 0 | AI65: =IF($A65>0,'RRR hist-forc'!K65,0) -> 0 | AJ65: 0
A66: ='Asset data'!A66 -> 0 | B66: ='Asset data'!B66 -> 0 | C66: ='Asset data'!C66 -> 0 | D66: ='Asset data'!E66 -> > 22 KV & < = 33 KV ; COMMERCIAL & INDUSTRIAL | E66: 0 | F66: =IF(A66>0,SUM('Asset data'!J66:CV66),0) -> 0 | G66: =IF(A66>0,'Asset data'!F66,0) -> 0 | H66: =IF(A66>0,SUM('Asset data'!CX66:GJ66),0) -> 0 | I66: 0 | J66: 0 | K66: 0 | L66: 0 | M66: =IF($A66>0,SUMPRODUCT('Age profile (years)'!$CT66:$GF66,'Asset data'!$CX66:$GJ66)/H66-0.5,0) -> 0 | N66: 0 | O66: =IF($A66>0,'Asset data'!G66,0) -> 0 | P66: 0 | Q66: 0 | R66: 0 | S66: 0 | T66: 0 | U66: 0 | W66: =IF($A66>0,SUMIF('Age profile (years)'!$CT66:$GF66,"<" & R66+0.5,'Asset data'!$CX66:$GJ66),0) -> 0 | X66: =IF($A66>0,SUMIF('Age profile (years)'!$CT66:$GF66,"<" & S66+0.5,'Asset data'!$CX66:$GJ66)-W66,0) -> 0 | Y66: =IF($A66>0,SUMIF('Age profile (years)'!$CT66:$GF66,"<" & T66+0.5,'Asset data'!$CX66:$GJ66)-X66-W66,0) -> 0 | Z66: =IF($A66>0,SUMIF('Age profile (years)'!$CT66:$GF66,"<" & U66+0.5,'Asset data'!$CX66:$GJ66)-Y66-X66-W66,0) -> 0 | AA66: 0 | AB66: 0 | AC66: 0 | AD66: 0 | AE66: 0 | AF66: 0 | AI66: =IF($A66>0,'RRR hist-forc'!K66,0) -> 0 | AJ66: 0
A67: ='Asset data'!A67 -> 0 | B67: ='Asset data'!B67 -> 0 | C67: ='Asset data'!C67 -> 0 | D67: ='Asset data'!E67 -> > 22 KV & < = 33 KV ; SUBDIVISION | E67: 0 | F67: =IF(A67>0,SUM('Asset data'!J67:CV67),0) -> 0 | G67: =IF(A67>0,'Asset data'!F67,0) -> 0 | H67: =IF(A67>0,SUM('Asset data'!CX67:GJ67),0) -> 0 | I67: 0 | J67: 0 | K67: 0 | L67: 0 | M67: =IF($A67>0,SUMPRODUCT('Age profile (years)'!$CT67:$GF67,'Asset data'!$CX67:$GJ67)/H67-0.5,0) -> 0 | N67: 0 | O67: =IF($A67>0,'Asset data'!G67,0) -> 0 | P67: 0 | Q67: 0 | R67: 0 | S67: 0 | T67: 0 | U67: 0 | W67: =IF($A67>0,SUMIF('Age profile (years)'!$CT67:$GF67,"<" & R67+0.5,'Asset data'!$CX67:$GJ67),0) -> 0 | X67: =IF($A67>0,SUMIF('Age profile (years)'!$CT67:$GF67,"<" & S67+0.5,'Asset data'!$CX67:$GJ67)-W67,0) -> 0 | Y67: =IF($A67>0,SUMIF('Age profile (years)'!$CT67:$GF67,"<" & T67+0.5,'Asset data'!$CX67:$GJ67)-X67-W67,0) -> 0 | Z67: =IF($A67>0,SUMIF('Age profile (years)'!$CT67:$GF67,"<" & U67+0.5,'Asset data'!$CX67:$GJ67)-Y67-X67-W67,0) -> 0 | AA67: 0 | AB67: 0 | AC67: 0 | AD67: 0 | AE67: 0 | AF67: 0 | AI67: =IF($A67>0,'RRR hist-forc'!K67,0) -> 0 | AJ67: 0
A68: ='Asset data'!A68 -> 0 | B68: ='Asset data'!B68 -> 0 | C68: ='Asset data'!C68 -> 0 | D68: ='Asset data'!E68 -> > 33 KV & < = 66 KV ; COMMERCIAL & INDUSTRIAL | E68: 0 | F68: =IF(A68>0,SUM('Asset data'!J68:CV68),0) -> 0 | G68: =IF(A68>0,'Asset data'!F68,0) -> 0 | H68: =IF(A68>0,SUM('Asset data'!CX68:GJ68),0) -> 0 | I68: 0 | J68: 0 | K68: 0 | L68: 0 | M68: =IF($A68>0,SUMPRODUCT('Age profile (years)'!$CT68:$GF68,'Asset data'!$CX68:$GJ68)/H68-0.5,0) -> 0 | N68: 0 | O68: =IF($A68>0,'Asset data'!G68,0) -> 0 | P68: 0 | Q68: 0 | R68: 0 | S68: 0 | T68: 0 | U68: 0 | W68: =IF($A68>0,SUMIF('Age profile (years)'!$CT68:$GF68,"<" & R68+0.5,'Asset data'!$CX68:$GJ68),0) -> 0 | X68: =IF($A68>0,SUMIF('Age profile (years)'!$CT68:$GF68,"<" & S68+0.5,'Asset data'!$CX68:$GJ68)-W68,0) -> 0 | Y68: =IF($A68>0,SUMIF('Age profile (years)'!$CT68:$GF68,"<" & T68+0.5,'Asset data'!$CX68:$GJ68)-X68-W68,0) -> 0 | Z68: =IF($A68>0,SUMIF('Age profile (years)'!$CT68:$GF68,"<" & U68+0.5,'Asset data'!$CX68:$GJ68)-Y68-X68-W68,0) -> 0 | AA68: 0 | AB68: 0 | AC68: 0 | AD68: 0 | AE68: 0 | AF68: 0 | AI68: =IF($A68>0,'RRR hist-forc'!K68,0) -> 0 | AJ68: 0
A69: ='Asset data'!A69 -> 0 | B69: ='Asset data'!B69 -> 0 | C69: ='Asset data'!C69 -> 0 | D69: ='Asset data'!E69 -> > 33 KV & < = 66 KV ; SUBDIVISION | E69: 0 | F69: =IF(A69>0,SUM('Asset data'!J69:CV69),0) -> 0 | G69: =IF(A69>0,'Asset data'!F69,0) -> 0 | H69: =IF(A69>0,SUM('Asset data'!CX69:GJ69),0) -> 0 | I69: 0 | J69: 0 | K69: 0 | L69: 0 | M69: =IF($A69>0,SUMPRODUCT('Age profile (years)'!$CT69:$GF69,'Asset data'!$CX69:$GJ69)/H69-0.5,0) -> 0 | N69: 0 | O69: =IF($A69>0,'Asset data'!G69,0) -> 0 | P69: 0 | Q69: 0 | R69: 0 | S69: 0 | T69: 0 | U69: 0 | W69: =IF($A69>0,SUMIF('Age profile (years)'!$CT69:$GF69,"<" & R69+0.5,'Asset data'!$CX69:$GJ69),0) -> 0 | X69: =IF($A69>0,SUMIF('Age profile (years)'!$CT69:$GF69,"<" & S69+0.5,'Asset data'!$CX69:$GJ69)-W69,0) -> 0 | Y69: =IF($A69>0,SUMIF('Age profile (years)'!$CT69:$GF69,"<" & T69+0.5,'Asset data'!$CX69:$GJ69)-X69-W69,0) -> 0 | Z69: =IF($A69>0,SUMIF('Age profile (years)'!$CT69:$GF69,"<" & U69+0.5,'Asset data'!$CX69:$GJ69)-Y69-X69-W69,0) -> 0 | AA69: 0 | AB69: 0 | AC69: 0 | AD69: 0 | AE69: 0 | AF69: 0 | AI69: =IF($A69>0,'RRR hist-forc'!K69,0) -> 0 | AJ69: 0
A70: ='Asset data'!A70 -> 0 | B70: ='Asset data'!B70 -> 0 | C70: ='Asset data'!C70 -> 0 | D70: ='Asset data'!E70 -> > 66 KV & < = 132 KV ; COMMERCIAL & INDUSTRIAL | E70: 0 | F70: =IF(A70>0,SUM('Asset data'!J70:CV70),0) -> 0 | G70: =IF(A70>0,'Asset data'!F70,0) -> 0 | H70: =IF(A70>0,SUM('Asset data'!CX70:GJ70),0) -> 0 | I70: 0 | J70: 0 | K70: 0 | L70: 0 | M70: =IF($A70>0,SUMPRODUCT('Age profile (years)'!$CT70:$GF70,'Asset data'!$CX70:$GJ70)/H70-0.5,0) -> 0 | N70: 0 | O70: =IF($A70>0,'Asset data'!G70,0) -> 0 | P70: 0 | Q70: 0 | R70: 0 | S70: 0 | T70: 0 | U70: 0 | W70: =IF($A70>0,SUMIF('Age profile (years)'!$CT70:$GF70,"<" & R70+0.5,'Asset data'!$CX70:$GJ70),0) -> 0 | X70: =IF($A70>0,SUMIF('Age profile (years)'!$CT70:$GF70,"<" & S70+0.5,'Asset data'!$CX70:$GJ70)-W70,0) -> 0 | Y70: =IF($A70>0,SUMIF('Age profile (years)'!$CT70:$GF70,"<" & T70+0.5,'Asset data'!$CX70:$GJ70)-X70-W70,0) -> 0 | Z70: =IF($A70>0,SUMIF('Age profile (years)'!$CT70:$GF70,"<" & U70+0.5,'Asset data'!$CX70:$GJ70)-Y70-X70-W70,0) -> 0 | AA70: 0 | AB70: 0 | AC70: 0 | AD70: 0 | AE70: 0 | AF70: 0 | AI70: =IF($A70>0,'RRR hist-forc'!K70,0) -> 0 | AJ70: 0
A71: ='Asset data'!A71 -> 0 | B71: ='Asset data'!B71 -> 0 | C71: ='Asset data'!C71 -> 0 | D71: ='Asset data'!E71 -> > 66 KV & < = 132 KV ; SUBDIVISION | E71: 0 | F71: =IF(A71>0,SUM('Asset data'!J71:CV71),0) -> 0 | G71: =IF(A71>0,'Asset data'!F71,0) -> 0 | H71: =IF(A71>0,SUM('Asset data'!CX71:GJ71),0) -> 0 | I71: 0 | J71: 0 | K71: 0 | L71: 0 | M71: =IF($A71>0,SUMPRODUCT('Age profile (years)'!$CT71:$GF71,'Asset data'!$CX71:$GJ71)/H71-0.5,0) -> 0 | N71: 0 | O71: =IF($A71>0,'Asset data'!G71,0) -> 0 | P71: 0 | Q71: 0 | R71: 0 | S71: 0 | T71: 0 | U71: 0 | W71: =IF($A71>0,SUMIF('Age profile (years)'!$CT71:$GF71,"<" & R71+0.5,'Asset data'!$CX71:$GJ71),0) -> 0 | X71: =IF($A71>0,SUMIF('Age profile (years)'!$CT71:$GF71,"<" & S71+0.5,'Asset data'!$CX71:$GJ71)-W71,0) -> 0 | Y71: =IF($A71>0,SUMIF('Age profile (years)'!$CT71:$GF71,"<" & T71+0.5,'Asset data'!$CX71:$GJ71)-X71-W71,0) -> 0 | Z71: =IF($A71>0,SUMIF('Age profile (years)'!$CT71:$GF71,"<" & U71+0.5,'Asset data'!$CX71:$GJ71)-Y71-X71-W71,0) -> 0 | AA71: 0 | AB71: 0 | AC71: 0 | AD71: 0 | AE71: 0 | AF71: 0 | AI71: =IF($A71>0,'RRR hist-forc'!K71,0) -> 0 | AJ71: 0
A72: ='Asset data'!A72 -> 0 | B72: ='Asset data'!B72 -> 0 | C72: ='Asset data'!C72 -> 0 | D72: ='Asset data'!E72 -> > 132 KV ; COMMERCIAL & INDUSTRIAL | E72: 0 | F72: =IF(A72>0,SUM('Asset data'!J72:CV72),0) -> 0 | G72: =IF(A72>0,'Asset data'!F72,0) -> 0 | H72: =IF(A72>0,SUM('Asset data'!CX72:GJ72),0) -> 0 | I72: 0 | J72: 0 | K72: 0 | L72: 0 | M72: =IF($A72>0,SUMPRODUCT('Age profile (years)'!$CT72:$GF72,'Asset data'!$CX72:$GJ72)/H72-0.5,0) -> 0 | N72: 0 | O72: =IF($A72>0,'Asset data'!G72,0) -> 0 | P72: 0 | Q72: 0 | R72: 0 | S72: 0 | T72: 0 | U72: 0 | W72: =IF($A72>0,SUMIF('Age profile (years)'!$CT72:$GF72,"<" & R72+0.5,'Asset data'!$CX72:$GJ72),0) -> 0 | X72: =IF($A72>0,SUMIF('Age profile (years)'!$CT72:$GF72,"<" & S72+0.5,'Asset data'!$CX72:$GJ72)-W72,0) -> 0 | Y72: =IF($A72>0,SUMIF('Age profile (years)'!$CT72:$GF72,"<" & T72+0.5,'Asset data'!$CX72:$GJ72)-X72-W72,0) -> 0 | Z72: =IF($A72>0,SUMIF('Age profile (years)'!$CT72:$GF72,"<" & U72+0.5,'Asset data'!$CX72:$GJ72)-Y72-X72-W72,0) -> 0 | AA72: 0 | AB72: 0 | AC72: 0 | AD72: 0 | AE72: 0 | AF72: 0 | AI72: =IF($A72>0,'RRR hist-forc'!K72,0) -> 0 | AJ72: 0
A73: ='Asset data'!A73 -> 0 | B73: ='Asset data'!B73 -> 0 | C73: ='Asset data'!C73 -> 0 | D73: ='Asset data'!E73 -> > 132 KV ; SUBDIVISION | E73: 0 | F73: =IF(A73>0,SUM('Asset data'!J73:CV73),0) -> 0 | G73: =IF(A73>0,'Asset data'!F73,0) -> 0 | H73: =IF(A73>0,SUM('Asset data'!CX73:GJ73),0) -> 0 | I73: 0 | J73: 0 | K73: 0 | L73: 0 | M73: =IF($A73>0,SUMPRODUCT('Age profile (years)'!$CT73:$GF73,'Asset data'!$CX73:$GJ73)/H73-0.5,0) -> 0 | N73: 0 | O73: =IF($A73>0,'Asset data'!G73,0) -> 0 | P73: 0 | Q73: 0 | R73: 0 | S73: 0 | T73: 0 | U73: 0 | W73: =IF($A73>0,SUMIF('Age profile (years)'!$CT73:$GF73,"<" & R73+0.5,'Asset data'!$CX73:$GJ73),0) -> 0 | X73: =IF($A73>0,SUMIF('Age profile (years)'!$CT73:$GF73,"<" & S73+0.5,'Asset data'!$CX73:$GJ73)-W73,0) -> 0 | Y73: =IF($A73>0,SUMIF('Age profile (years)'!$CT73:$GF73,"<" & T73+0.5,'Asset data'!$CX73:$GJ73)-X73-W73,0) -> 0 | Z73: =IF($A73>0,SUMIF('Age profile (years)'!$CT73:$GF73,"<" & U73+0.5,'Asset data'!$CX73:$GJ73)-Y73-X73-W73,0) -> 0 | AA73: 0 | AB73: 0 | AC73: 0 | AD73: 0 | AE73: 0 | AF73: 0 | AI73: =IF($A73>0,'RRR hist-forc'!K73,0) -> 0 | AJ73: 0
A74: ='Asset data'!A74 -> 0 | B74: ='Asset data'!B74 -> 0 | C74: ='Asset data'!C74 -> 0 | D74: ='Asset data'!E74 -> OTHER - PLEASE ADD A ROW IF NECESSARY AND NOMINATE THE CATEGORY | E74: 0 | F74: =IF(A74>0,SUM('Asset data'!J74:CV74),0) -> 0 | G74: =IF(A74>0,'Asset data'!F74,0) -> 0 | H74: =IF(A74>0,SUM('Asset data'!CX74:GJ74),0) -> 0 | I74: 0 | J74: 0 | K74: 0 | L74: 0 | M74: =IF($A74>0,SUMPRODUCT('Age profile (years)'!$CT74:$GF74,'Asset data'!$CX74:$GJ74)/H74-0.5,0) -> 0 | N74: 0 | O74: =IF($A74>0,'Asset data'!G74,0) -> 0 | P74: 0 | Q74: 0 | R74: 0 | S74: 0 | T74: 0 | U74: 0 | W74: =IF($A74>0,SUMIF('Age profile (years)'!$CT74:$GF74,"<" & R74+0.5,'Asset data'!$CX74:$GJ74),0) -> 0 | X74: =IF($A74>0,SUMIF('Age profile (years)'!$CT74:$GF74,"<" & S74+0.5,'Asset data'!$CX74:$GJ74)-W74,0) -> 0 | Y74: =IF($A74>0,SUMIF('Age profile (years)'!$CT74:$GF74,"<" & T74+0.5,'Asset data'!$CX74:$GJ74)-X74-W74,0) -> 0 | Z74: =IF($A74>0,SUMIF('Age profile (years)'!$CT74:$GF74,"<" & U74+0.5,'Asset data'!$CX74:$GJ74)-Y74-X74-W74,0) -> 0 | AA74: 0 | AB74: 0 | AC74: 0 | AD74: 0 | AE74: 0 | AF74: 0 | AI74: =IF($A74>0,'RRR hist-forc'!K74,0) -> 0 | AJ74: 0
A75: ='Asset data'!A75 -> 5 | B75: ='Asset data'!B75 -> 0 | C75: ='Asset data'!C75 -> 0 | D75: ='Asset data'!E75 -> POLE MOUNTED ; < = 22KV ; < = 60 KVA ; SINGLE PHASE | E75: TRANSFORMERS | F75: =IF(A75>0,SUM('Asset data'!J75:CV75),0) -> 81627 | G75: =IF(A75>0,'Asset data'!F75,0) -> 3.249972862 | H75: =IF(A75>0,SUM('Asset data'!CX75:GJ75),0) -> 265285.5348 | I75: 0.01134081061 | J75: 21 | K75: 0.1154879168 | L75: 3.249972862 | M75: =IF($A75>0,SUMPRODUCT('Age profile (years)'!$CT75:$GF75,'Asset data'!$CX75:$GJ75)/H75-0.5,0) -> 17.5765188 | N75: 4662796.19 | O75: =IF($A75>0,'Asset data'!G75,0) -> 45.8 | P75: 12150077.49 | Q75: 0.616233214 | R75: 4.58 | S75: 9.16 | T75: 27.48 | U75: 36.64 | W75: =IF($A75>0,SUMIF('Age profile (years)'!$CT75:$GF75,"<" & R75+0.5,'Asset data'!$CX75:$GJ75),0) -> 64833.70863 | X75: =IF($A75>0,SUMIF('Age profile (years)'!$CT75:$GF75,"<" & S75+0.5,'Asset data'!$CX75:$GJ75)-W75,0) -> 13237.13947 | Y75: =IF($A75>0,SUMIF('Age profile (years)'!$CT75:$GF75,"<" & T75+0.5,'Asset data'!$CX75:$GJ75)-X75-W75,0) -> 105936.1154 | Z75: =IF($A75>0,SUMIF('Age profile (years)'!$CT75:$GF75,"<" & U75+0.5,'Asset data'!$CX75:$GJ75)-Y75-X75-W75,0) -> 47511.35327 | AA75: 33767.21804 | AB75: 0.2443921742 | AC75: 0.04989770542 | AD75: 0.3993286535 | AE75: 0.1790951523 | AF75: 0.1272863146 | AI75: =IF($A75>0,'RRR hist-forc'!K75,0) -> 45.8 | AJ75: 12150077.49
A76: ='Asset data'!A76 -> 5 | B76: ='Asset data'!B76 -> 0 | C76: ='Asset data'!C76 -> 0 | D76: ='Asset data'!E76 -> POLE MOUNTED ; < = 22KV ; > 60 KVA AND < = 600 KVA ; SINGLE PHASE | E76: TRANSFORMERS | F76: =IF(A76>0,SUM('Asset data'!J76:CV76),0) -> 976 | G76: =IF(A76>0,'Asset data'!F76,0) -> 9.749918587 | H76: =IF(A76>0,SUM('Asset data'!CX76:GJ76),0) -> 9515.92054 | I76: 0.0004068003657 | J76: 59 | K76: 0.004142607477 | L76: 9.749918587 | M76: =IF($A76>0,SUMPRODUCT('Age profile (years)'!$CT76:$GF76,'Asset data'!$CX76:$GJ76)/H76-0.5,0) -> 25.47336066 | N76: 242402.4759 | O76: =IF($A76>0,'Asset data'!G76,0) -> 45.8 | P76: 435829.1608 | Q76: 0.4438130861 | R76: 4.58 | S76: 9.16 | T76: 27.48 | U76: 36.64 | W76: =IF($A76>0,SUMIF('Age profile (years)'!$CT76:$GF76,"<" & R76+0.5,'Asset data'!$CX76:$GJ76),0) -> 1179.740149 | X76: =IF($A76>0,SUMIF('Age profile (years)'!$CT76:$GF76,"<" & S76+0.5,'Asset data'!$CX76:$GJ76)-W76,0) -> 263.2478018 | Y76: =IF($A76>0,SUMIF('Age profile (years)'!$CT76:$GF76,"<" & T76+0.5,'Asset data'!$CX76:$GJ76)-X76-W76,0) -> 2515.478995 | Z76: =IF($A76>0,SUMIF('Age profile (years)'!$CT76:$GF76,"<" & U76+0.5,'Asset data'!$CX76:$GJ76)-Y76-X76-W76,0) -> 3734.218819 | AA76: 1823.234776 | AB76: 0.1239754098 | AC76: 0.02766393443 | AD76: 0.2643442623 | AE76: 0.3924180328 | AF76: 0.1915983607 | AI76: =IF($A76>0,'RRR hist-forc'!K76,0) -> 45.8 | AJ76: 435829.1608
A77: ='Asset data'!A77 -> 5 | B77: ='Asset data'!B77 -> 0 | C77: ='Asset data'!C77 -> 0 | D77: ='Asset data'!E77 -> POLE MOUNTED ; < = 22KV ; > 600 KVA ; SINGLE PHASE | E77: TRANSFORMERS | F77: =IF(A77>0,SUM('Asset data'!J77:CV77),0) -> 2 | G77: =IF(A77>0,'Asset data'!F77,0) -> 16.24986431 | H77: =IF(A77>0,SUM('Asset data'!CX77:GJ77),0) -> 32.49972862 | I77: 1.389345511e-06 | J77: 79 | K77: 1.414824958e-05 | L77: 16.24986431 | M77: =IF($A77>0,SUMPRODUCT('Age profile (years)'!$CT77:$GF77,'Asset data'!$CX77:$GJ77)/H77-0.5,0) -> 35.5 | N77: 1153.740366 | O77: =IF($A77>0,'Asset data'!G77,0) -> 45.8 | P77: 1488.487571 | Q77: 0.2248908297 | R77: 4.58 | S77: 9.16 | T77: 27.48 | U77: 36.64 | W77: =IF($A77>0,SUMIF('Age profile (years)'!$CT77:$GF77,"<" & R77+0.5,'Asset data'!$CX77:$GJ77),0) -> 0 | X77: =IF($A77>0,SUMIF('Age profile (years)'!$CT77:$GF77,"<" & S77+0.5,'Asset data'!$CX77:$GJ77)-W77,0) -> 0 | Y77: =IF($A77>0,SUMIF('Age profile (years)'!$CT77:$GF77,"<" & T77+0.5,'Asset data'!$CX77:$GJ77)-X77-W77,0) -> 16.24986431 | Z77: =IF($A77>0,SUMIF('Age profile (years)'!$CT77:$GF77,"<" & U77+0.5,'Asset data'!$CX77:$GJ77)-Y77-X77-W77,0) -> 0 | AA77: 16.24986431 | AB77: 0 | AC77: 0 | AD77: 0.5 | AE77: 0 | AF77: 0.5 | AI77: =IF($A77>0,'RRR hist-forc'!K77,0) -> 45.8 | AJ77: 1488.487571
A78: ='Asset data'!A78 -> 5 | B78: ='Asset data'!B78 -> 0 | C78: ='Asset data'!C78 -> 0 | D78: ='Asset data'!E78 -> POLE MOUNTED ; < = 22KV ; < = 60 KVA ; MULTIPLE PHASE | E78: TRANSFORMERS | F78: =IF(A78>0,SUM('Asset data'!J78:CV78),0) -> 23644 | G78: =IF(A78>0,'Asset data'!F78,0) -> 6.499945724 | H78: =IF(A78>0,SUM('Asset data'!CX78:GJ78),0) -> 153684.7167 | I78: 0.006569937054 | J78: 28 | K78: 0.06690424261 | L78: 6.499945724 | M78: =IF($A78>0,SUMPRODUCT('Age profile (years)'!$CT78:$GF78,'Asset data'!$CX78:$GJ78)/H78-0.5,0) -> 18.0644561 | N78: 2776230.818 | O78: =IF($A78>0,'Asset data'!G78,0) -> 45.8 | P78: 7038760.025 | Q78: 0.6055795612 | R78: 4.58 | S78: 9.16 | T78: 27.48 | U78: 36.64 | W78: =IF($A78>0,SUMIF('Age profile (years)'!$CT78:$GF78,"<" & R78+0.5,'Asset data'!$CX78:$GJ78),0) -> 35827.70083 | X78: =IF($A78>0,SUMIF('Age profile (years)'!$CT78:$GF78,"<" & S78+0.5,'Asset data'!$CX78:$GJ78)-W78,0) -> 6181.448384 | Y78: =IF($A78>0,SUMIF('Age profile (years)'!$CT78:$GF78,"<" & T78+0.5,'Asset data'!$CX78:$GJ78)-X78-W78,0) -> 67898.43304 | Z78: =IF($A78>0,SUMIF('Age profile (years)'!$CT78:$GF78,"<" & U78+0.5,'Asset data'!$CX78:$GJ78)-Y78-X78-W78,0) -> 28742.75999 | AA78: 15034.37446 | AB78: 0.2331246828 | AC78: 0.04022162071 | AD78: 0.4418034174 | AE78: 0.1870241922 | AF78: 0.09782608696 | AI78: =IF($A78>0,'RRR hist-forc'!K78,0) -> 45.8 | AJ78: 7038760.025
A79: ='Asset data'!A79 -> 5 | B79: ='Asset data'!B79 -> 0 | C79: ='Asset data'!C79 -> 0 | D79: ='Asset data'!E79 -> POLE MOUNTED ; < = 22KV ; > 60 KVA AND < = 600 KVA ; MULTIPLE PHASE | E79: TRANSFORMERS | F79: =IF(A79>0,SUM('Asset data'!J79:CV79),0) -> 21208 | G79: =IF(A79>0,'Asset data'!F79,0) -> 16.24986431 | H79: =IF(A79>0,SUM('Asset data'!CX79:GJ79),0) -> 344627.1223 | I79: 0.0147326198 | J79: 16 | K79: 0.1500280385 | L79: 16.24986431 | M79: =IF($A79>0,SUMPRODUCT('Age profile (years)'!$CT79:$GF79,'Asset data'!$CX79:$GJ79)/H79-0.5,0) -> 23.63990004 | N79: 8146950.722 | O79: =IF($A79>0,'Asset data'!G79,0) -> 45.8 | P79: 15783922.2 | Q79: 0.4838449773 | R79: 4.58 | S79: 9.16 | T79: 27.48 | U79: 36.64 | W79: =IF($A79>0,SUMIF('Age profile (years)'!$CT79:$GF79,"<" & R79+0.5,'Asset data'!$CX79:$GJ79),0) -> 53397.05413 | X79: =IF($A79>0,SUMIF('Age profile (years)'!$CT79:$GF79,"<" & S79+0.5,'Asset data'!$CX79:$GJ79)-W79,0) -> 15469.87082 | Y79: =IF($A79>0,SUMIF('Age profile (years)'!$CT79:$GF79,"<" & T79+0.5,'Asset data'!$CX79:$GJ79)-X79-W79,0) -> 110206.5798 | Z79: =IF($A79>0,SUMIF('Age profile (years)'!$CT79:$GF79,"<" & U79+0.5,'Asset data'!$CX79:$GJ79)-Y79-X79-W79,0) -> 80891.82454 | AA79: 84661.79306 | AB79: 0.1549415315 | AC79: 0.04488872124 | AD79: 0.3197849868 | AE79: 0.2347227461 | AF79: 0.2456620143 | AI79: =IF($A79>0,'RRR hist-forc'!K79,0) -> 45.8 | AJ79: 15783922.2
A80: ='Asset data'!A80 -> 5 | B80: ='Asset data'!B80 -> 0 | C80: ='Asset data'!C80 -> 0 | D80: ='Asset data'!E80 -> POLE MOUNTED ; < = 22KV ; > 600 KVA ; MULTIPLE PHASE | E80: TRANSFORMERS | F80: =IF(A80>0,SUM('Asset data'!J80:CV80),0) -> 38 | G80: =IF(A80>0,'Asset data'!F80,0) -> 25.9997829 | H80: =IF(A80>0,SUM('Asset data'!CX80:GJ80),0) -> 987.9917501 | I80: 4.223610354e-05 | J80: 67 | K80: 0.0004301067872 | L80: 25.9997829 | M80: =IF($A80>0,SUMPRODUCT('Age profile (years)'!$CT80:$GF80,'Asset data'!$CX80:$GJ80)/H80-0.5,0) -> 20.18421053 | N80: 19941.83348 | O80: =IF($A80>0,'Asset data'!G80,0) -> 45.8 | P80: 45250.02215 | Q80: 0.5592967134 | R80: 4.58 | S80: 9.16 | T80: 27.48 | U80: 36.64 | W80: =IF($A80>0,SUMIF('Age profile (years)'!$CT80:$GF80,"<" & R80+0.5,'Asset data'!$CX80:$GJ80),0) -> 207.9982632 | X80: =IF($A80>0,SUMIF('Age profile (years)'!$CT80:$GF80,"<" & S80+0.5,'Asset data'!$CX80:$GJ80)-W80,0) -> 51.9995658 | Y80: =IF($A80>0,SUMIF('Age profile (years)'!$CT80:$GF80,"<" & T80+0.5,'Asset data'!$CX80:$GJ80)-X80-W80,0) -> 389.9967435 | Z80: =IF($A80>0,SUMIF('Age profile (years)'!$CT80:$GF80,"<" & U80+0.5,'Asset data'!$CX80:$GJ80)-Y80-X80-W80,0) -> 233.9980461 | AA80: 103.9991316 | AB80: 0.2105263158 | AC80: 0.05263157895 | AD80: 0.3947368421 | AE80: 0.2368421053 | AF80: 0.1052631579 | AI80: =IF($A80>0,'RRR hist-forc'!K80,0) -> 45.8 | AJ80: 45250.02215
A81: ='Asset data'!A81 -> 5 | B81: ='Asset data'!B81 -> 0 | C81: ='Asset data'!C81 -> 0 | D81: ='Asset data'!E81 -> POLE MOUNTED ; > 22 KV ; < = 60 KVA | E81: TRANSFORMERS | F81: =IF(A81>0,SUM('Asset data'!J81:CV81),0) -> 614 | G81: =IF(A81>0,'Asset data'!F81,0) -> 9.749918587 | H81: =IF(A81>0,SUM('Asset data'!CX81:GJ81),0) -> 5986.450012 | I81: 0.0002559174432 | J81: 60 | K81: 0.002606107573 | L81: 9.749918587 | M81: =IF($A81>0,SUMPRODUCT('Age profile (years)'!$CT81:$GF81,'Asset data'!$CX81:$GJ81)/H81-0.5,0) -> 21.36482085 | N81: 127899.432 | O81: =IF($A81>0,'Asset data'!G81,0) -> 45.8 | P81: 274179.4106 | Q81: 0.5335191955 | R81: 4.58 | S81: 9.16 | T81: 27.48 | U81: 36.64 | W81: =IF($A81>0,SUMIF('Age profile (years)'!$CT81:$GF81,"<" & R81+0.5,'Asset data'!$CX81:$GJ81),0) -> 1121.240637 | X81: =IF($A81>0,SUMIF('Age profile (years)'!$CT81:$GF81,"<" & S81+0.5,'Asset data'!$CX81:$GJ81)-W81,0) -> 194.9983717 | Y81: =IF($A81>0,SUMIF('Age profile (years)'!$CT81:$GF81,"<" & T81+0.5,'Asset data'!$CX81:$GJ81)-X81-W81,0) -> 2291.230868 | Z81: =IF($A81>0,SUMIF('Age profile (years)'!$CT81:$GF81,"<" & U81+0.5,'Asset data'!$CX81:$GJ81)-Y81-X81-W81,0) -> 1530.737218 | AA81: 848.242917 | AB81: 0.1872964169 | AC81: 0.0325732899 | AD81: 0.3827361564 | AE81: 0.2557003257 | AF81: 0.1416938111 | AI81: =IF($A81>0,'RRR hist-forc'!K81,0) -> 45.8 | AJ81: 274179.4106
A82: ='Asset data'!A82 -> 5 | B82: ='Asset data'!B82 -> 0 | C82: ='Asset data'!C82 -> 0 | D82: ='Asset data'!E82 -> POLE MOUNTED ; > 22 KV ; > 60 KVA AND < = 600 KVA | E82: TRANSFORMERS | F82: =IF(A82>0,SUM('Asset data'!J82:CV82),0) -> 682 | G82: =IF(A82>0,'Asset data'!F82,0) -> 19.49983717 | H82: =IF(A82>0,SUM('Asset data'!CX82:GJ82),0) -> 13298.88895 | I82: 0.0005685201832 | J82: 54 | K82: 0.005789463728 | L82: 19.49983717 | M82: =IF($A82>0,SUMPRODUCT('Age profile (years)'!$CT82:$GF82,'Asset data'!$CX82:$GJ82)/H82-0.5,0) -> 26.30498534 | N82: 349827.0789 | O82: =IF($A82>0,'Asset data'!G82,0) -> 45.8 | P82: 609089.114 | Q82: 0.425655342 | R82: 4.58 | S82: 9.16 | T82: 27.48 | U82: 36.64 | W82: =IF($A82>0,SUMIF('Age profile (years)'!$CT82:$GF82,"<" & R82+0.5,'Asset data'!$CX82:$GJ82),0) -> 1267.489416 | X82: =IF($A82>0,SUMIF('Age profile (years)'!$CT82:$GF82,"<" & S82+0.5,'Asset data'!$CX82:$GJ82)-W82,0) -> 448.496255 | Y82: =IF($A82>0,SUMIF('Age profile (years)'!$CT82:$GF82,"<" & T82+0.5,'Asset data'!$CX82:$GJ82)-X82-W82,0) -> 4445.962875 | Z82: =IF($A82>0,SUMIF('Age profile (years)'!$CT82:$GF82,"<" & U82+0.5,'Asset data'!$CX82:$GJ82)-Y82-X82-W82,0) -> 3763.468574 | AA82: 3373.471831 | AB82: 0.09530791789 | AC82: 0.03372434018 | AD82: 0.3343108504 | AE82: 0.2829912023 | AF82: 0.2536656891 | AI82: =IF($A82>0,'RRR hist-forc'!K82,0) -> 45.8 | AJ82: 609089.114
A83: ='Asset data'!A83 -> 5 | B83: ='Asset data'!B83 -> 0 | C83: ='Asset data'!C83 -> 0 | D83: ='Asset data'!E83 -> POLE MOUNTED ; > 22 KV ; > 600 KVA | E83: TRANSFORMERS | F83: =IF(A83>0,SUM('Asset data'!J83:CV83),0) -> 10 | G83: =IF(A83>0,'Asset data'!F83,0) -> 25.9997829 | H83: =IF(A83>0,SUM('Asset data'!CX83:GJ83),0) -> 259.997829 | I83: 1.111476409e-05 | J83: 74 | K83: 0.0001131859966 | L83: 25.9997829 | M83: =IF($A83>0,SUMPRODUCT('Age profile (years)'!$CT83:$GF83,'Asset data'!$CX83:$GJ83)/H83-0.5,0) -> 25.3 | N83: 6577.945073 | O83: =IF($A83>0,'Asset data'!G83,0) -> 45.8 | P83: 11907.90057 | Q83: 0.4475982533 | R83: 4.58 | S83: 9.16 | T83: 27.48 | U83: 36.64 | W83: =IF($A83>0,SUMIF('Age profile (years)'!$CT83:$GF83,"<" & R83+0.5,'Asset data'!$CX83:$GJ83),0) -> 25.9997829 | X83: =IF($A83>0,SUMIF('Age profile (years)'!$CT83:$GF83,"<" & S83+0.5,'Asset data'!$CX83:$GJ83)-W83,0) -> 0 | Y83: =IF($A83>0,SUMIF('Age profile (years)'!$CT83:$GF83,"<" & T83+0.5,'Asset data'!$CX83:$GJ83)-X83-W83,0) -> 103.9991316 | Z83: =IF($A83>0,SUMIF('Age profile (years)'!$CT83:$GF83,"<" & U83+0.5,'Asset data'!$CX83:$GJ83)-Y83-X83-W83,0) -> 129.9989145 | AA83: 3.552713679e-15 | AB83: 0.1 | AC83: 0 | AD83: 0.4 | AE83: 0.5 | AF83: 1.366439748e-17 | AI83: =IF($A83>0,'RRR hist-forc'!K83,0) -> 45.8 | AJ83: 11907.90057
A84: ='Asset data'!A84 -> 0 | B84: ='Asset data'!B84 -> 0 | C84: ='Asset data'!C84 -> 0 | D84: ='Asset data'!E84 -> POLE MOUNTED ; > 22 KV ; < = 60 KVA | E84: 0 | F84: =IF(A84>0,SUM('Asset data'!J84:CV84),0) -> 0 | G84: =IF(A84>0,'Asset data'!F84,0) -> 0 | H84: =IF(A84>0,SUM('Asset data'!CX84:GJ84),0) -> 0 | I84: 0 | J84: 0 | K84: 0 | L84: 0 | M84: =IF($A84>0,SUMPRODUCT('Age profile (years)'!$CT84:$GF84,'Asset data'!$CX84:$GJ84)/H84-0.5,0) -> 0 | N84: 0 | O84: =IF($A84>0,'Asset data'!G84,0) -> 0 | P84: 0 | Q84: 0 | R84: 0 | S84: 0 | T84: 0 | U84: 0 | W84: =IF($A84>0,SUMIF('Age profile (years)'!$CT84:$GF84,"<" & R84+0.5,'Asset data'!$CX84:$GJ84),0) -> 0 | X84: =IF($A84>0,SUMIF('Age profile (years)'!$CT84:$GF84,"<" & S84+0.5,'Asset data'!$CX84:$GJ84)-W84,0) -> 0 | Y84: =IF($A84>0,SUMIF('Age profile (years)'!$CT84:$GF84,"<" & T84+0.5,'Asset data'!$CX84:$GJ84)-X84-W84,0) -> 0 | Z84: =IF($A84>0,SUMIF('Age profile (years)'!$CT84:$GF84,"<" & U84+0.5,'Asset data'!$CX84:$GJ84)-Y84-X84-W84,0) -> 0 | AA84: 0 | AB84: 0 | AC84: 0 | AD84: 0 | AE84: 0 | AF84: 0 | AI84: =IF($A84>0,'RRR hist-forc'!K84,0) -> 0 | AJ84: 0
A85: ='Asset data'!A85 -> 0 | B85: ='Asset data'!B85 -> 0 | C85: ='Asset data'!C85 -> 0 | D85: ='Asset data'!E85 -> POLE MOUNTED ; > 22 KV ; > 60 KVA AND < = 600 KVA | E85: 0 | F85: =IF(A85>0,SUM('Asset data'!J85:CV85),0) -> 0 | G85: =IF(A85>0,'Asset data'!F85,0) -> 0 | H85: =IF(A85>0,SUM('Asset data'!CX85:GJ85),0) -> 0 | I85: 0 | J85: 0 | K85: 0 | L85: 0 | M85: =IF($A85>0,SUMPRODUCT('Age profile (years)'!$CT85:$GF85,'Asset data'!$CX85:$GJ85)/H85-0.5,0) -> 0 | N85: 0 | O85: =IF($A85>0,'Asset data'!G85,0) -> 0 | P85: 0 | Q85: 0 | R85: 0 | S85: 0 | T85: 0 | U85: 0 | W85: =IF($A85>0,SUMIF('Age profile (years)'!$CT85:$GF85,"<" & R85+0.5,'Asset data'!$CX85:$GJ85),0) -> 0 | X85: =IF($A85>0,SUMIF('Age profile (years)'!$CT85:$GF85,"<" & S85+0.5,'Asset data'!$CX85:$GJ85)-W85,0) -> 0 | Y85: =IF($A85>0,SUMIF('Age profile (years)'!$CT85:$GF85,"<" & T85+0.5,'Asset data'!$CX85:$GJ85)-X85-W85,0) -> 0 | Z85: =IF($A85>0,SUMIF('Age profile (years)'!$CT85:$GF85,"<" & U85+0.5,'Asset data'!$CX85:$GJ85)-Y85-X85-W85,0) -> 0 | AA85: 0 | AB85: 0 | AC85: 0 | AD85: 0 | AE85: 0 | AF85: 0 | AI85: =IF($A85>0,'RRR hist-forc'!K85,0) -> 0 | AJ85: 0
A86: ='Asset data'!A86 -> 0 | B86: ='Asset data'!B86 -> 0 | C86: ='Asset data'!C86 -> 0 | D86: ='Asset data'!E86 -> POLE MOUNTED ; > 22 KV ; > 600 KVA | E86: 0 | F86: =IF(A86>0,SUM('Asset data'!J86:CV86),0) -> 0 | G86: =IF(A86>0,'Asset data'!F86,0) -> 0 | H86: =IF(A86>0,SUM('Asset data'!CX86:GJ86),0) -> 0 | I86: 0 | J86: 0 | K86: 0 | L86: 0 | M86: =IF($A86>0,SUMPRODUCT('Age profile (years)'!$CT86:$GF86,'Asset data'!$CX86:$GJ86)/H86-0.5,0) -> 0 | N86: 0 | O86: =IF($A86>0,'Asset data'!G86,0) -> 0 | P86: 0 | Q86: 0 | R86: 0 | S86: 0 | T86: 0 | U86: 0 | W86: =IF($A86>0,SUMIF('Age profile (years)'!$CT86:$GF86,"<" & R86+0.5,'Asset data'!$CX86:$GJ86),0) -> 0 | X86: =IF($A86>0,SUMIF('Age profile (years)'!$CT86:$GF86,"<" & S86+0.5,'Asset data'!$CX86:$GJ86)-W86,0) -> 0 | Y86: =IF($A86>0,SUMIF('Age profile (years)'!$CT86:$GF86,"<" & T86+0.5,'Asset data'!$CX86:$GJ86)-X86-W86,0) -> 0 | Z86: =IF($A86>0,SUMIF('Age profile (years)'!$CT86:$GF86,"<" & U86+0.5,'Asset data'!$CX86:$GJ86)-Y86-X86-W86,0) -> 0 | AA86: 0 | AB86: 0 | AC86: 0 | AD86: 0 | AE86: 0 | AF86: 0 | AI86: =IF($A86>0,'RRR hist-forc'!K86,0) -> 0 | AJ86: 0
A87: ='Asset data'!A87 -> 5 | B87: ='Asset data'!B87 -> 0 | C87: ='Asset data'!C87 -> 0 | D87: ='Asset data'!E87 -> KIOSK MOUNTED ; < = 22KV ; < = 60 KVA ; SINGLE PHASE | E87: =IF(A87>0,VLOOKUP(A87,IDtable,2),0) -> TRANSFORMERS | F87: =IF(A87>0,SUM('Asset data'!J87:CV87),0) -> 65 | G87: =IF(A87>0,'Asset data'!F87,0) -> 1.729225911 | H87: =IF(A87>0,SUM('Asset data'!CX87:GJ87),0) -> 112.3996842 | I87: =H87/$H$18/1000 -> 4.805024637e-06 | J87: =IF(RANK(0,I$21:I$205)=RANK(I87,I$21:I$205),0,RANK(I87,I$21:I$205)) -> 78 | K87: =IF(A87>0,H87/(VLOOKUP(A87,$A$6:$H$17,8)*1000),0) -> 4.893144812e-05 | L87: =IF($A87>0,H87/F87,0) -> 1.729225911 | M87: =IF($A87>0,SUMPRODUCT('Age profile (years)'!$CT87:$GF87,'Asset data'!$CX87:$GJ87)/H87-0.5,0) -> 38.54615385 | N87: =IF($A87>0,M87*H87,0) -> 4332.57552 | O87: =IF($A87>0,'Asset data'!G87,0) -> 45.8 | P87: =IF($A87>0,H87*O87,0) -> 5147.905537 | Q87: =IF($A87>0,(O87-M87)/O87,0) -> 0.1583809204 | R87: 4.58 | S87: 9.16 | T87: 27.48 | U87: 36.64 | W87: =IF($A87>0,SUMIF('Age profile (years)'!$CT87:$GF87,"<" & R87+0.5,'Asset data'!$CX87:$GJ87),0) -> 0 | X87: =IF($A87>0,SUMIF('Age profile (years)'!$CT87:$GF87,"<" & S87+0.5,'Asset data'!$CX87:$GJ87)-W87,0) -> 0 | Y87: =IF($A87>0,SUMIF('Age profile (years)'!$CT87:$GF87,"<" & T87+0.5,'Asset data'!$CX87:$GJ87)-X87-W87,0) -> 1.729225911 | Z87: =IF($A87>0,SUMIF('Age profile (years)'!$CT87:$GF87,"<" & U87+0.5,'Asset data'!$CX87:$GJ87)-Y87-X87-W87,0) -> 12.10458138 | AA87: =IF($A87>0,H87-Z87-Y87-X87-W87,0) -> 98.56587692 | AB87: =IF($A87>0,W87/$H87,0) -> 0 | AC87: =IF($A87>0,X87/$H87,0) -> 0 | AD87: =IF($A87>0,Y87/$H87,0) -> 0.01538461538 | AE87: =IF($A87>0,Z87/$H87,0) -> 0.1076923077 | AF87: =IF($A87>0,AA87/$H87,0) -> 0.8769230769 | AI87: =IF($A87>0,'RRR hist-forc'!K87,0) -> 45.8 | AJ87: =IF($A87>0,AI87*H87,0) -> 5147.905537
A88: ='Asset data'!A88 -> 5 | B88: ='Asset data'!B88 -> 0 | C88: ='Asset data'!C88 -> 0 | D88: ='Asset data'!E88 -> KIOSK MOUNTED ; < = 22KV ; > 60 KVA AND < = 600 KVA ; SINGLE PHASE | E88: TRANSFORMERS | F88: =IF(A88>0,SUM('Asset data'!J88:CV88),0) -> 11 | G88: =IF(A88>0,'Asset data'!F88,0) -> 64.99945724 | H88: =IF(A88>0,SUM('Asset data'!CX88:GJ88),0) -> 714.9940297 | I88: 3.056560125e-05 | J88: 69 | K88: 0.0003112614908 | L88: 64.99945724 | M88: =IF($A88>0,SUMPRODUCT('Age profile (years)'!$CT88:$GF88,'Asset data'!$CX88:$GJ88)/H88-0.5,0) -> 28.77272727 | N88: 20572.32822 | O88: =IF($A88>0,'Asset data'!G88,0) -> 45.8 | P88: 32746.72656 | Q88: 0.3717745137 | R88: 4.58 | S88: 9.16 | T88: 27.48 | U88: 36.64 | W88: =IF($A88>0,SUMIF('Age profile (years)'!$CT88:$GF88,"<" & R88+0.5,'Asset data'!$CX88:$GJ88),0) -> 64.99945724 | X88: =IF($A88>0,SUMIF('Age profile (years)'!$CT88:$GF88,"<" & S88+0.5,'Asset data'!$CX88:$GJ88)-W88,0) -> 64.99945724 | Y88: =IF($A88>0,SUMIF('Age profile (years)'!$CT88:$GF88,"<" & T88+0.5,'Asset data'!$CX88:$GJ88)-X88-W88,0) -> 64.99945724 | Z88: =IF($A88>0,SUMIF('Age profile (years)'!$CT88:$GF88,"<" & U88+0.5,'Asset data'!$CX88:$GJ88)-Y88-X88-W88,0) -> 129.9989145 | AA88: 389.9967435 | AB88: 0.09090909091 | AC88: 0.09090909091 | AD88: 0.09090909091 | AE88: 0.1818181818 | AF88: 0.5454545455 | AI88: =IF($A88>0,'RRR hist-forc'!K88,0) -> 45.8 | AJ88: 32746.72656
A89: ='Asset data'!A89 -> 5 | B89: ='Asset data'!B89 -> 0 | C89: ='Asset data'!C89 -> 0 | D89: ='Asset data'!E89 -> KIOSK MOUNTED ; < = 22KV ; > 600 KVA ; SINGLE PHASE | E89: TRANSFORMERS | F89: =IF(A89>0,SUM('Asset data'!J89:CV89),0) -> 2 | G89: =IF(A89>0,'Asset data'!F89,0) -> 129.9989145 | H89: =IF(A89>0,SUM('Asset data'!CX89:GJ89),0) -> 259.997829 | I89: 1.111476409e-05 | J89: 73 | K89: 0.0001131859966 | L89: 129.9989145 | M89: =IF($A89>0,SUMPRODUCT('Age profile (years)'!$CT89:$GF89,'Asset data'!$CX89:$GJ89)/H89-0.5,0) -> 22.5 | N89: 5849.951152 | O89: =IF($A89>0,'Asset data'!G89,0) -> 45.8 | P89: 11907.90057 | Q89: 0.5087336245 | R89: 4.58 | S89: 9.16 | T89: 27.48 | U89: 36.64 | W89: =IF($A89>0,SUMIF('Age profile (years)'!$CT89:$GF89,"<" & R89+0.5,'Asset data'!$CX89:$GJ89),0) -> 0 | X89: =IF($A89>0,SUMIF('Age profile (years)'!$CT89:$GF89,"<" & S89+0.5,'Asset data'!$CX89:$GJ89)-W89,0) -> 0 | Y89: =IF($A89>0,SUMIF('Age profile (years)'!$CT89:$GF89,"<" & T89+0.5,'Asset data'!$CX89:$GJ89)-X89-W89,0) -> 259.997829 | Z89: =IF($A89>0,SUMIF('Age profile (years)'!$CT89:$GF89,"<" & U89+0.5,'Asset data'!$CX89:$GJ89)-Y89-X89-W89,0) -> 0 | AA89: 0 | AB89: 0 | AC89: 0 | AD89: 1 | AE89: 0 | AF89: 0 | AI89: =IF($A89>0,'RRR hist-forc'!K89,0) -> 45.8 | AJ89: 11907.90057
A90: ='Asset data'!A90 -> 5 | B90: ='Asset data'!B90 -> 0 | C90: ='Asset data'!C90 -> 0 | D90: ='Asset data'!E90 -> KIOSK MOUNTED ; < = 22KV ; < = 60 KVA ; MULTIPLE PHASE | E90: TRANSFORMERS | F90: =IF(A90>0,SUM('Asset data'!J90:CV90),0) -> 151 | G90: =IF(A90>0,'Asset data'!F90,0) -> 20.44971324 | H90: =IF(A90>0,SUM('Asset data'!CX90:GJ90),0) -> 3087.906699 | I90: 0.0001320063119 | J90: 64 | K90: 0.001344271984 | L90: 20.44971324 | M90: =IF($A90>0,SUMPRODUCT('Age profile (years)'!$CT90:$GF90,'Asset data'!$CX90:$GJ90)/H90-0.5,0) -> 22.77152318 | N90: 70316.33897 | O90: =IF($A90>0,'Asset data'!G90,0) -> 45.8 | P90: 141426.1268 | Q90: 0.5028051708 | R90: 4.58 | S90: 9.16 | T90: 27.48 | U90: 36.64 | W90: =IF($A90>0,SUMIF('Age profile (years)'!$CT90:$GF90,"<" & R90+0.5,'Asset data'!$CX90:$GJ90),0) -> 81.79885296 | X90: =IF($A90>0,SUMIF('Age profile (years)'!$CT90:$GF90,"<" & S90+0.5,'Asset data'!$CX90:$GJ90)-W90,0) -> 0 | Y90: =IF($A90>0,SUMIF('Age profile (years)'!$CT90:$GF90,"<" & T90+0.5,'Asset data'!$CX90:$GJ90)-X90-W90,0) -> 1983.622184 | Z90: =IF($A90>0,SUMIF('Age profile (years)'!$CT90:$GF90,"<" & U90+0.5,'Asset data'!$CX90:$GJ90)-Y90-X90-W90,0) -> 920.2370958 | AA90: 102.2485662 | AB90: 0.02649006623 | AC90: 0 | AD90: 0.642384106 | AE90: 0.298013245 | AF90: 0.03311258278 | AI90: =IF($A90>0,'RRR hist-forc'!K90,0) -> 45.8 | AJ90: 141426.1268
A91: ='Asset data'!A91 -> 5 | B91: ='Asset data'!B91 -> 0 | C91: ='Asset data'!C91 -> 0 | D91: ='Asset data'!E91 -> KIOSK MOUNTED ; < = 22KV ; > 60 KVA AND < = 600 KVA ; MULTIPLE PHASE | E91: TRANSFORMERS | F91: =IF(A91>0,SUM('Asset data'!J91:CV91),0) -> 4183 | G91: =IF(A91>0,'Asset data'!F91,0) -> 64.99945724 | H91: =IF(A91>0,SUM('Asset data'!CX91:GJ91),0) -> 271892.7297 | I91: 0.01162326455 | J91: 20 | K91: 0.118364256 | L91: 64.99945724 | M91: =IF($A91>0,SUMPRODUCT('Age profile (years)'!$CT91:$GF91,'Asset data'!$CX91:$GJ91)/H91-0.5,0) -> 28.96043509 | N91: 7874131.75 | O91: =IF($A91>0,'Asset data'!G91,0) -> 45.8 | P91: 12452687.02 | Q91: 0.3676760896 | R91: 4.58 | S91: 9.16 | T91: 27.48 | U91: 36.64 | W91: =IF($A91>0,SUMIF('Age profile (years)'!$CT91:$GF91,"<" & R91+0.5,'Asset data'!$CX91:$GJ91),0) -> 8254.93107 | X91: =IF($A91>0,SUMIF('Age profile (years)'!$CT91:$GF91,"<" & S91+0.5,'Asset data'!$CX91:$GJ91)-W91,0) -> 10009.91642 | Y91: =IF($A91>0,SUMIF('Age profile (years)'!$CT91:$GF91,"<" & T91+0.5,'Asset data'!$CX91:$GJ91)-X91-W91,0) -> 92494.22766 | Z91: =IF($A91>0,SUMIF('Age profile (years)'!$CT91:$GF91,"<" & U91+0.5,'Asset data'!$CX91:$GJ91)-Y91-X91-W91,0) -> 69029.42359 | AA91: 92104.23091 | AB91: 0.03036098494 | AC91: 0.03681568252 | AD91: 0.340186469 | AE91: 0.2538847717 | AF91: 0.3387520918 | AI91: =IF($A91>0,'RRR hist-forc'!K91,0) -> 45.8 | AJ91: 12452687.02
A92: ='Asset data'!A92 -> 5 | B92: ='Asset data'!B92 -> 0 | C92: ='Asset data'!C92 -> 0 | D92: ='Asset data'!E92 -> KIOSK MOUNTED ; < = 22KV ; > 600 KVA ; MULTIPLE PHASE | E92: TRANSFORMERS | F92: =IF(A92>0,SUM('Asset data'!J92:CV92),0) -> 1301 | G92: =IF(A92>0,'Asset data'!F92,0) -> 129.9989145 | H92: =IF(A92>0,SUM('Asset data'!CX92:GJ92),0) -> 169128.5877 | I92: 0.007230154041 | J92: 26 | K92: 0.07362749081 | L92: 129.9989145 | M92: =IF($A92>0,SUMPRODUCT('Age profile (years)'!$CT92:$GF92,'Asset data'!$CX92:$GJ92)/H92-0.5,0) -> 33.51460415 | N92: 5668277.669 | O92: =IF($A92>0,'Asset data'!G92,0) -> 45.8 | P92: 7746089.319 | Q92: 0.268240084 | R92: 4.58 | S92: 9.16 | T92: 27.48 | U92: 36.64 | W92: =IF($A92>0,SUMIF('Age profile (years)'!$CT92:$GF92,"<" & R92+0.5,'Asset data'!$CX92:$GJ92),0) -> 3119.973948 | X92: =IF($A92>0,SUMIF('Age profile (years)'!$CT92:$GF92,"<" & S92+0.5,'Asset data'!$CX92:$GJ92)-W92,0) -> 2339.980461 | Y92: =IF($A92>0,SUMIF('Age profile (years)'!$CT92:$GF92,"<" & T92+0.5,'Asset data'!$CX92:$GJ92)-X92-W92,0) -> 32369.72971 | Z92: =IF($A92>0,SUMIF('Age profile (years)'!$CT92:$GF92,"<" & U92+0.5,'Asset data'!$CX92:$GJ92)-Y92-X92-W92,0) -> 45629.61899 | AA92: 85669.28465 | AB92: 0.01844734819 | AC92: 0.01383551115 | AD92: 0.1913912375 | AE92: 0.2697924673 | AF92: 0.5065334358 | AI92: =IF($A92>0,'RRR hist-forc'!K92,0) -> 45.8 | AJ92: 7746089.319
A93: ='Asset data'!A93 -> 0 | B93: ='Asset data'!B93 -> 0 | C93: ='Asset data'!C93 -> 0 | D93: ='Asset data'!E93 -> KIOSK MOUNTED ; > 22 KV ; < = 60 KVA | E93: 0 | F93: =IF(A93>0,SUM('Asset data'!J93:CV93),0) -> 0 | G93: =IF(A93>0,'Asset data'!F93,0) -> 0 | H93: =IF(A93>0,SUM('Asset data'!CX93:GJ93),0) -> 0 | I93: 0 | J93: 0 | K93: 0 | L93: 0 | M93: =IF($A93>0,SUMPRODUCT('Age profile (years)'!$CT93:$GF93,'Asset data'!$CX93:$GJ93)/H93-0.5,0) -> 0 | N93: 0 | O93: =IF($A93>0,'Asset data'!G93,0) -> 0 | P93: 0 | Q93: 0 | R93: 0 | S93: 0 | T93: 0 | U93: 0 | W93: =IF($A93>0,SUMIF('Age profile (years)'!$CT93:$GF93,"<" & R93+0.5,'Asset data'!$CX93:$GJ93),0) -> 0 | X93: =IF($A93>0,SUMIF('Age profile (years)'!$CT93:$GF93,"<" & S93+0.5,'Asset data'!$CX93:$GJ93)-W93,0) -> 0 | Y93: =IF($A93>0,SUMIF('Age profile (years)'!$CT93:$GF93,"<" & T93+0.5,'Asset data'!$CX93:$GJ93)-X93-W93,0) -> 0 | Z93: =IF($A93>0,SUMIF('Age profile (years)'!$CT93:$GF93,"<" & U93+0.5,'Asset data'!$CX93:$GJ93)-Y93-X93-W93,0) -> 0 | AA93: 0 | AB93: 0 | AC93: 0 | AD93: 0 | AE93: 0 | AF93: 0 | AI93: =IF($A93>0,'RRR hist-forc'!K93,0) -> 0 | AJ93: 0
A94: ='Asset data'!A94 -> 5 | B94: ='Asset data'!B94 -> 0 | C94: ='Asset data'!C94 -> 0 | D94: ='Asset data'!E94 -> KIOSK MOUNTED ; > 22 KV ; > 60 KVA AND < = 600 KVA | E94: TRANSFORMERS | F94: =IF(A94>0,SUM('Asset data'!J94:CV94),0) -> 9 | G94: =IF(A94>0,'Asset data'!F94,0) -> 64.99945724 | H94: =IF(A94>0,SUM('Asset data'!CX94:GJ94),0) -> 584.9951152 | I94: 2.50082192e-05 | J94: 71 | K94: 0.0002546684924 | L94: 64.99945724 | M94: =IF($A94>0,SUMPRODUCT('Age profile (years)'!$CT94:$GF94,'Asset data'!$CX94:$GJ94)/H94-0.5,0) -> 35.61111111 | N94: 20832.32605 | O94: =IF($A94>0,'Asset data'!G94,0) -> 45.8 | P94: 26792.77628 | Q94: 0.2224648229 | R94: 4.58 | S94: 9.16 | T94: 27.48 | U94: 36.64 | W94: =IF($A94>0,SUMIF('Age profile (years)'!$CT94:$GF94,"<" & R94+0.5,'Asset data'!$CX94:$GJ94),0) -> 0 | X94: =IF($A94>0,SUMIF('Age profile (years)'!$CT94:$GF94,"<" & S94+0.5,'Asset data'!$CX94:$GJ94)-W94,0) -> 0 | Y94: =IF($A94>0,SUMIF('Age profile (years)'!$CT94:$GF94,"<" & T94+0.5,'Asset data'!$CX94:$GJ94)-X94-W94,0) -> 0 | Z94: =IF($A94>0,SUMIF('Age profile (years)'!$CT94:$GF94,"<" & U94+0.5,'Asset data'!$CX94:$GJ94)-Y94-X94-W94,0) -> 324.9972862 | AA94: 259.997829 | AB94: 0 | AC94: 0 | AD94: 0 | AE94: 0.5555555556 | AF94: 0.4444444444 | AI94: =IF($A94>0,'RRR hist-forc'!K94,0) -> 45.8 | AJ94: 26792.77628
A95: ='Asset data'!A95 -> 5 | B95: ='Asset data'!B95 -> 0 | C95: ='Asset data'!C95 -> 0 | D95: ='Asset data'!E95 -> KIOSK MOUNTED ; > 22 KV ; > 600 KVA | E95: TRANSFORMERS | F95: =IF(A95>0,SUM('Asset data'!J95:CV95),0) -> 40 | G95: =IF(A95>0,'Asset data'!F95,0) -> 129.9989145 | H95: =IF(A95>0,SUM('Asset data'!CX95:GJ95),0) -> 5199.95658 | I95: 0.0002222952818 | J95: 61 | K95: 0.002263719933 | L95: 129.9989145 | M95: =IF($A95>0,SUMPRODUCT('Age profile (years)'!$CT95:$GF95,'Asset data'!$CX95:$GJ95)/H95-0.5,0) -> 32.675 | N95: 169908.5812 | O95: =IF($A95>0,'Asset data'!G95,0) -> 45.8 | P95: 238158.0113 | Q95: 0.2865720524 | R95: 4.58 | S95: 9.16 | T95: 27.48 | U95: 36.64 | W95: =IF($A95>0,SUMIF('Age profile (years)'!$CT95:$GF95,"<" & R95+0.5,'Asset data'!$CX95:$GJ95),0) -> 129.9989145 | X95: =IF($A95>0,SUMIF('Age profile (years)'!$CT95:$GF95,"<" & S95+0.5,'Asset data'!$CX95:$GJ95)-W95,0) -> 0 | Y95: =IF($A95>0,SUMIF('Age profile (years)'!$CT95:$GF95,"<" & T95+0.5,'Asset data'!$CX95:$GJ95)-X95-W95,0) -> 259.997829 | Z95: =IF($A95>0,SUMIF('Age profile (years)'!$CT95:$GF95,"<" & U95+0.5,'Asset data'!$CX95:$GJ95)-Y95-X95-W95,0) -> 2989.975033 | AA95: 1819.984803 | AB95: 0.025 | AC95: 0 | AD95: 0.05 | AE95: 0.575 | AF95: 0.35 | AI95: =IF($A95>0,'RRR hist-forc'!K95,0) -> 45.8 | AJ95: 238158.0113
A96: ='Asset data'!A96 -> 0 | B96: ='Asset data'!B96 -> 0 | C96: ='Asset data'!C96 -> 0 | D96: ='Asset data'!E96 -> KIOSK MOUNTED ; > 22 KV ; < = 60 KVA | E96: 0 | F96: =IF(A96>0,SUM('Asset data'!J96:CV96),0) -> 0 | G96: =IF(A96>0,'Asset data'!F96,0) -> 0 | H96: =IF(A96>0,SUM('Asset data'!CX96:GJ96),0) -> 0 | I96: 0 | J96: 0 | K96: 0 | L96: 0 | M96: =IF($A96>0,SUMPRODUCT('Age profile (years)'!$CT96:$GF96,'Asset data'!$CX96:$GJ96)/H96-0.5,0) -> 0 | N96: 0 | O96: =IF($A96>0,'Asset data'!G96,0) -> 0 | P96: 0 | Q96: 0 | R96: 0 | S96: 0 | T96: 0 | U96: 0 | W96: =IF($A96>0,SUMIF('Age profile (years)'!$CT96:$GF96,"<" & R96+0.5,'Asset data'!$CX96:$GJ96),0) -> 0 | X96: =IF($A96>0,SUMIF('Age profile (years)'!$CT96:$GF96,"<" & S96+0.5,'Asset data'!$CX96:$GJ96)-W96,0) -> 0 | Y96: =IF($A96>0,SUMIF('Age profile (years)'!$CT96:$GF96,"<" & T96+0.5,'Asset data'!$CX96:$GJ96)-X96-W96,0) -> 0 | Z96: =IF($A96>0,SUMIF('Age profile (years)'!$CT96:$GF96,"<" & U96+0.5,'Asset data'!$CX96:$GJ96)-Y96-X96-W96,0) -> 0 | AA96: 0 | AB96: 0 | AC96: 0 | AD96: 0 | AE96: 0 | AF96: 0 | AI96: =IF($A96>0,'RRR hist-forc'!K96,0) -> 0 | AJ96: 0
A97: ='Asset data'!A97 -> 0 | B97: ='Asset data'!B97 -> 0 | C97: ='Asset data'!C97 -> 0 | D97: ='Asset data'!E97 -> KIOSK MOUNTED ; > 22 KV ; > 60 KVA AND < = 600 KVA | E97: 0 | F97: =IF(A97>0,SUM('Asset data'!J97:CV97),0) -> 0 | G97: =IF(A97>0,'Asset data'!F97,0) -> 0 | H97: =IF(A97>0,SUM('Asset data'!CX97:GJ97),0) -> 0 | I97: 0 | J97: 0 | K97: 0 | L97: 0 | M97: =IF($A97>0,SUMPRODUCT('Age profile (years)'!$CT97:$GF97,'Asset data'!$CX97:$GJ97)/H97-0.5,0) -> 0 | N97: 0 | O97: =IF($A97>0,'Asset data'!G97,0) -> 0 | P97: 0 | Q97: 0 | R97: 0 | S97: 0 | T97: 0 | U97: 0 | W97: =IF($A97>0,SUMIF('Age profile (years)'!$CT97:$GF97,"<" & R97+0.5,'Asset data'!$CX97:$GJ97),0) -> 0 | X97: =IF($A97>0,SUMIF('Age profile (years)'!$CT97:$GF97,"<" & S97+0.5,'Asset data'!$CX97:$GJ97)-W97,0) -> 0 | Y97: =IF($A97>0,SUMIF('Age profile (years)'!$CT97:$GF97,"<" & T97+0.5,'Asset data'!$CX97:$GJ97)-X97-W97,0) -> 0 | Z97: =IF($A97>0,SUMIF('Age profile (years)'!$CT97:$GF97,"<" & U97+0.5,'Asset data'!$CX97:$GJ97)-Y97-X97-W97,0) -> 0 | AA97: 0 | AB97: 0 | AC97: 0 | AD97: 0 | AE97: 0 | AF97: 0 | AI97: =IF($A97>0,'RRR hist-forc'!K97,0) -> 0 | AJ97: 0
A98: ='Asset data'!A98 -> 0 | B98: ='Asset data'!B98 -> 0 | C98: ='Asset data'!C98 -> 0 | D98: ='Asset data'!E98 -> KIOSK MOUNTED ; > 22 KV ; > 600 KVA | E98: 0 | F98: =IF(A98>0,SUM('Asset data'!J98:CV98),0) -> 0 | G98: =IF(A98>0,'Asset data'!F98,0) -> 0 | H98: =IF(A98>0,SUM('Asset data'!CX98:GJ98),0) -> 0 | I98: 0 | J98: 0 | K98: 0 | L98: 0 | M98: =IF($A98>0,SUMPRODUCT('Age profile (years)'!$CT98:$GF98,'Asset data'!$CX98:$GJ98)/H98-0.5,0) -> 0 | N98: 0 | O98: =IF($A98>0,'Asset data'!G98,0) -> 0 | P98: 0 | Q98: 0 | R98: 0 | S98: 0 | T98: 0 | U98: 0 | W98: =IF($A98>0,SUMIF('Age profile (years)'!$CT98:$GF98,"<" & R98+0.5,'Asset data'!$CX98:$GJ98),0) -> 0 | X98: =IF($A98>0,SUMIF('Age profile (years)'!$CT98:$GF98,"<" & S98+0.5,'Asset data'!$CX98:$GJ98)-W98,0) -> 0 | Y98: =IF($A98>0,SUMIF('Age profile (years)'!$CT98:$GF98,"<" & T98+0.5,'Asset data'!$CX98:$GJ98)-X98-W98,0) -> 0 | Z98: =IF($A98>0,SUMIF('Age profile (years)'!$CT98:$GF98,"<" & U98+0.5,'Asset data'!$CX98:$GJ98)-Y98-X98-W98,0) -> 0 | AA98: 0 | AB98: 0 | AC98: 0 | AD98: 0 | AE98: 0 | AF98: 0 | AI98: =IF($A98>0,'RRR hist-forc'!K98,0) -> 0 | AJ98: 0
A99: ='Asset data'!A99 -> 0 | B99: ='Asset data'!B99 -> 0 | C99: ='Asset data'!C99 -> 0 | D99: ='Asset data'!E99 -> GROUND OUTDOOR / INDOOR CHAMBER MOUNTED ; ˂ 22 KV ; < = 60 KVA ; SINGLE PHASE | E99: 0 | F99: =IF(A99>0,SUM('Asset data'!J99:CV99),0) -> 0 | G99: =IF(A99>0,'Asset data'!F99,0) -> 0 | H99: =IF(A99>0,SUM('Asset data'!CX99:GJ99),0) -> 0 | I99: 0 | J99: 0 | K99: 0 | L99: 0 | M99: =IF($A99>0,SUMPRODUCT('Age profile (years)'!$CT99:$GF99,'Asset data'!$CX99:$GJ99)/H99-0.5,0) -> 0 | N99: 0 | O99: =IF($A99>0,'Asset data'!G99,0) -> 0 | P99: 0 | Q99: 0 | R99: 0 | S99: 0 | T99: 0 | U99: 0 | W99: =IF($A99>0,SUMIF('Age profile (years)'!$CT99:$GF99,"<" & R99+0.5,'Asset data'!$CX99:$GJ99),0) -> 0 | X99: =IF($A99>0,SUMIF('Age profile (years)'!$CT99:$GF99,"<" & S99+0.5,'Asset data'!$CX99:$GJ99)-W99,0) -> 0 | Y99: =IF($A99>0,SUMIF('Age profile (years)'!$CT99:$GF99,"<" & T99+0.5,'Asset data'!$CX99:$GJ99)-X99-W99,0) -> 0 | Z99: =IF($A99>0,SUMIF('Age profile (years)'!$CT99:$GF99,"<" & U99+0.5,'Asset data'!$CX99:$GJ99)-Y99-X99-W99,0) -> 0 | AA99: 0 | AB99: 0 | AC99: 0 | AD99: 0 | AE99: 0 | AF99: 0 | AI99: =IF($A99>0,'RRR hist-forc'!K99,0) -> 0 | AJ99: 0
A100: ='Asset data'!A100 -> 5 | B100: ='Asset data'!B100 -> 0 | C100: ='Asset data'!C100 -> 0 | D100: ='Asset data'!E100 -> GROUND OUTDOOR / INDOOR CHAMBER MOUNTED ; ˂ 22 KV ; > 60 KVA AND < = 600 KVA ; SINGLE PHASE | E100: TRANSFORMERS | F100: =IF(A100>0,SUM('Asset data'!J100:CV100),0) -> 2 | G100: =IF(A100>0,'Asset data'!F100,0) -> 66.00711704 | H100: =IF(A100>0,SUM('Asset data'!CX100:GJ100),0) -> 132.0142341 | I100: 5.643535849e-06 | J100: 77 | K100: 5.747033625e-05 | L100: 66.00711704 | M100: =IF($A100>0,SUMPRODUCT('Age profile (years)'!$CT100:$GF100,'Asset data'!$CX100:$GJ100)/H100-0.5,0) -> 22.5 | N100: 2970.320267 | O100: =IF($A100>0,'Asset data'!G100,0) -> 45.8 | P100: 6046.251921 | Q100: 0.5087336245 | R100: 4.58 | S100: 9.16 | T100: 27.48 | U100: =IF($A100>0,$O100-U$4*$O100,0) -> 36.64 | W100: =IF($A100>0,SUMIF('Age profile (years)'!$CT100:$GF100,"<" & R100+0.5,'Asset data'!$CX100:$GJ100),0) -> 0 | X100: =IF($A100>0,SUMIF('Age profile (years)'!$CT100:$GF100,"<" & S100+0.5,'Asset data'!$CX100:$GJ100)-W100,0) -> 0 | Y100: =IF($A100>0,SUMIF('Age profile (years)'!$CT100:$GF100,"<" & T100+0.5,'Asset data'!$CX100:$GJ100)-X100-W100,0) -> 132.0142341 | Z100: =IF($A100>0,SUMIF('Age profile (years)'!$CT100:$GF100,"<" & U100+0.5,'Asset data'!$CX100:$GJ100)-Y100-X100-W100,0) -> 0 | AA100: 0 | AB100: 0 | AC100: 0 | AD100: 1 | AE100: 0 | AF100: 0 | AI100: =IF($A100>0,'RRR hist-forc'!K100,0) -> 45.8 | AJ100: 6046.251921
A101: ='Asset data'!A101 -> 0 | B101: ='Asset data'!B101 -> 0 | C101: ='Asset data'!C101 -> 0 | D101: ='Asset data'!E101 -> GROUND OUTDOOR / INDOOR CHAMBER MOUNTED ; ˂ 22 KV ; > 600 KVA ; SINGLE PHASE | E101: 0 | F101: =IF(A101>0,SUM('Asset data'!J101:CV101),0) -> 0 | G101: =IF(A101>0,'Asset data'!F101,0) -> 0 | H101: =IF(A101>0,SUM('Asset data'!CX101:GJ101),0) -> 0 | I101: 0 | J101: 0 | K101: 0 | L101: 0 | M101: =IF($A101>0,SUMPRODUCT('Age profile (years)'!$CT101:$GF101,'Asset data'!$CX101:$GJ101)/H101-0.5,0) -> 0 | N101: 0 | O101: =IF($A101>0,'Asset data'!G101,0) -> 0 | P101: 0 | Q101: 0 | R101: 0 | S101: 0 | T101: 0 | U101: 0 | W101: =IF($A101>0,SUMIF('Age profile (years)'!$CT101:$GF101,"<" & R101+0.5,'Asset data'!$CX101:$GJ101),0) -> 0 | X101: =IF($A101>0,SUMIF('Age profile (years)'!$CT101:$GF101,"<" & S101+0.5,'Asset data'!$CX101:$GJ101)-W101,0) -> 0 | Y101: =IF($A101>0,SUMIF('Age profile (years)'!$CT101:$GF101,"<" & T101+0.5,'Asset data'!$CX101:$GJ101)-X101-W101,0) -> 0 | Z101: =IF($A101>0,SUMIF('Age profile (years)'!$CT101:$GF101,"<" & U101+0.5,'Asset data'!$CX101:$GJ101)-Y101-X101-W101,0) -> 0 | AA101: 0 | AB101: 0 | AC101: 0 | AD101: 0 | AE101: 0 | AF101: 0 | AI101: =IF($A101>0,'RRR hist-forc'!K101,0) -> 0 | AJ101: 0
A102: ='Asset data'!A102 -> 5 | B102: ='Asset data'!B102 -> 0 | C102: ='Asset data'!C102 -> 0 | D102: ='Asset data'!E102 -> GROUND OUTDOOR / INDOOR CHAMBER MOUNTED ; ˂ 22 KV ; < = 60 KVA ; MULTIPLE PHASE | E102: TRANSFORMERS | F102: =IF(A102>0,SUM('Asset data'!J102:CV102),0) -> 152 | G102: =IF(A102>0,'Asset data'!F102,0) -> 66.00711704 | H102: =IF(A102>0,SUM('Asset data'!CX102:GJ102),0) -> 10033.08179 | I102: 0.0004289087245 | J102: 58 | K102: 0.004367745555 | L102: 66.00711704 | M102: =IF($A102>0,SUMPRODUCT('Age profile (years)'!$CT102:$GF102,'Asset data'!$CX102:$GJ102)/H102-0.5,0) -> 10.625 | N102: 106601.494 | O102: =IF($A102>0,'Asset data'!G102,0) -> 45.8 | P102: 459515.146 | Q102: 0.7680131004 | R102: 4.58 | S102: 9.16 | T102: 27.48 | U102: 36.64 | W102: =IF($A102>0,SUMIF('Age profile (years)'!$CT102:$GF102,"<" & R102+0.5,'Asset data'!$CX102:$GJ102),0) -> 4158.448374 | X102: =IF($A102>0,SUMIF('Age profile (years)'!$CT102:$GF102,"<" & S102+0.5,'Asset data'!$CX102:$GJ102)-W102,0) -> 1188.128107 | Y102: =IF($A102>0,SUMIF('Age profile (years)'!$CT102:$GF102,"<" & T102+0.5,'Asset data'!$CX102:$GJ102)-X102-W102,0) -> 3102.334501 | Z102: =IF($A102>0,SUMIF('Age profile (years)'!$CT102:$GF102,"<" & U102+0.5,'Asset data'!$CX102:$GJ102)-Y102-X102-W102,0) -> 1188.128107 | AA102: 396.0427023 | AB102: 0.4144736842 | AC102: 0.1184210526 | AD102: 0.3092105263 | AE102: 0.1184210526 | AF102: 0.03947368421 | AI102: =IF($A102>0,'RRR hist-forc'!K102,0) -> 45.8 | AJ102: 459515.146
A103: ='Asset data'!A103 -> 5 | B103: ='Asset data'!B103 -> 0 | C103: ='Asset data'!C103 -> 0 | D103: ='Asset data'!E103 -> GROUND OUTDOOR / INDOOR CHAMBER MOUNTED ; ˂ 22 KV ; > 60 KVA AND < = 600 KVA ; MULTIPLE PHASE | E103: TRANSFORMERS | F103: =IF(A103>0,SUM('Asset data'!J103:CV103),0) -> 418 | G103: =IF(A103>0,'Asset data'!F103,0) -> 66.00711704 | H103: =IF(A103>0,SUM('Asset data'!CX103:GJ103),0) -> 27590.97492 | I103: 0.001179498992 | J103: 48 | K103: 0.01201130028 | L103: 66.00711704 | M103: =IF($A103>0,SUMPRODUCT('Age profile (years)'!$CT103:$GF103,'Asset data'!$CX103:$GJ103)/H103-0.5,0) -> 23.86842105 | N103: 658553.0067 | O103: =IF($A103>0,'Asset data'!G103,0) -> 45.8 | P103: 1263666.652 | Q103: 0.4788554355 | R103: 4.58 | S103: 9.16 | T103: 27.48 | U103: 36.64 | W103: =IF($A103>0,SUMIF('Age profile (years)'!$CT103:$GF103,"<" & R103+0.5,'Asset data'!$CX103:$GJ103),0) -> 4818.519544 | X103: =IF($A103>0,SUMIF('Age profile (years)'!$CT103:$GF103,"<" & S103+0.5,'Asset data'!$CX103:$GJ103)-W103,0) -> 924.0996386 | Y103: =IF($A103>0,SUMIF('Age profile (years)'!$CT103:$GF103,"<" & T103+0.5,'Asset data'!$CX103:$GJ103)-X103-W103,0) -> 7722.832694 | Z103: =IF($A103>0,SUMIF('Age profile (years)'!$CT103:$GF103,"<" & U103+0.5,'Asset data'!$CX103:$GJ103)-Y103-X103-W103,0) -> 4620.498193 | AA103: 9505.024854 | AB103: 0.1746411483 | AC103: 0.03349282297 | AD103: 0.2799043062 | AE103: 0.1674641148 | AF103: 0.3444976077 | AI103: =IF($A103>0,'RRR hist-forc'!K103,0) -> 45.8 | AJ103: 1263666.652
A104: ='Asset data'!A104 -> 5 | B104: ='Asset data'!B104 -> 0 | C104: ='Asset data'!C104 -> 0 | D104: ='Asset data'!E104 -> GROUND OUTDOOR / INDOOR CHAMBER MOUNTED ; ˂ 22 KV ; > 600 KVA ; MULTIPLE PHASE | E104: TRANSFORMERS | F104: =IF(A104>0,SUM('Asset data'!J104:CV104),0) -> 256 | G104: =IF(A104>0,'Asset data'!F104,0) -> 129.6405751 | H104: =IF(A104>0,SUM('Asset data'!CX104:GJ104),0) -> 33187.98722 | I104: 0.001418768188 | J104: 47 | K104: 0.01444787222 | L104: 129.6405751 | M104: =IF($A104>0,SUMPRODUCT('Age profile (years)'!$CT104:$GF104,'Asset data'!$CX104:$GJ104)/H104-0.5,0) -> 18.1796875 | N104: 603347.2365 | O104: =IF($A104>0,'Asset data'!G104,0) -> 45.8 | P104: 1520009.815 | Q104: 0.6030635917 | R104: 4.58 | S104: 9.16 | T104: 27.48 | U104: 36.64 | W104: =IF($A104>0,SUMIF('Age profile (years)'!$CT104:$GF104,"<" & R104+0.5,'Asset data'!$CX104:$GJ104),0) -> 5574.544729 | X104: =IF($A104>0,SUMIF('Age profile (years)'!$CT104:$GF104,"<" & S104+0.5,'Asset data'!$CX104:$GJ104)-W104,0) -> 2722.452077 | Y104: =IF($A104>0,SUMIF('Age profile (years)'!$CT104:$GF104,"<" & T104+0.5,'Asset data'!$CX104:$GJ104)-X104-W104,0) -> 14649.38499 | Z104: =IF($A104>0,SUMIF('Age profile (years)'!$CT104:$GF104,"<" & U104+0.5,'Asset data'!$CX104:$GJ104)-Y104-X104-W104,0) -> 7259.872205 | AA104: 2981.733227 | AB104: 0.16796875 | AC104: 0.08203125 | AD104: 0.44140625 | AE104: 0.21875 | AF104: 0.08984375 | AI104: =IF($A104>0,'RRR hist-forc'!K104,0) -> 45.8 | AJ104: 1520009.815
A105: ='Asset data'!A105 -> 5 | B105: ='Asset data'!B105 -> 0 | C105: ='Asset data'!C105 -> 0 | D105: ='Asset data'!E105 -> GROUND OUTDOOR / INDOOR CHAMBER MOUNTED ; > = 22 KV & < = 33 KV ; < = 15 MVA | E105: TRANSFORMERS | F105: =IF(A105>0,SUM('Asset data'!J105:CV105),0) -> 442 | G105: =IF(A105>0,'Asset data'!F105,0) -> 620.6116792 | H105: =IF(A105>0,SUM('Asset data'!CX105:GJ105),0) -> 274310.3622 | I105: 0.01172661701 | J105: 19 | K105: 0.1194167346 | L105: 620.6116792 | M105: =IF($A105>0,SUMPRODUCT('Age profile (years)'!$CT105:$GF105,'Asset data'!$CX105:$GJ105)/H105-0.5,0) -> 17.77375566 | N105: 4875525.352 | O105: =IF($A105>0,'Asset data'!G105,0) -> 45.8 | P105: 12563414.59 | Q105: 0.6119267324 | R105: 4.58 | S105: 9.16 | T105: 27.48 | U105: 36.64 | W105: =IF($A105>0,SUMIF('Age profile (years)'!$CT105:$GF105,"<" & R105+0.5,'Asset data'!$CX105:$GJ105),0) -> 71990.95479 | X105: =IF($A105>0,SUMIF('Age profile (years)'!$CT105:$GF105,"<" & S105+0.5,'Asset data'!$CX105:$GJ105)-W105,0) -> 16756.51534 | Y105: =IF($A105>0,SUMIF('Age profile (years)'!$CT105:$GF105,"<" & T105+0.5,'Asset data'!$CX105:$GJ105)-X105-W105,0) -> 101159.7037 | Z105: =IF($A105>0,SUMIF('Age profile (years)'!$CT105:$GF105,"<" & U105+0.5,'Asset data'!$CX105:$GJ105)-Y105-X105-W105,0) -> 36616.08907 | AA105: 47787.0993 | AB105: 0.2624434389 | AC105: 0.06108597285 | AD105: 0.3687782805 | AE105: 0.1334841629 | AF105: 0.1742081448 | AI105: =IF($A105>0,'RRR hist-forc'!K105,0) -> 45.8 | AJ105: 12563414.59
A106: ='Asset data'!A106 -> 5 | B106: ='Asset data'!B106 -> 0 | C106: ='Asset data'!C106 -> 0 | D106: ='Asset data'!E106 -> GROUND OUTDOOR / INDOOR CHAMBER MOUNTED ; > = 22 KV & < = 33 KV ; > 15 MVA AND < = 40 MVA | E106: TRANSFORMERS | F106: =IF(A106>0,SUM('Asset data'!J106:CV106),0) -> 55 | G106: =IF(A106>0,'Asset data'!F106,0) -> 1054.164999 | H106: =IF(A106>0,SUM('Asset data'!CX106:GJ106),0) -> 57979.07493 | I106: 0.002478573543 | J106: 44 | K106: 0.0252402853 | L106: 1054.164999 | M106: =IF($A106>0,SUMPRODUCT('Age profile (years)'!$CT106:$GF106,'Asset data'!$CX106:$GJ106)/H106-0.5,0) -> 26.71818182 | N106: 1549095.466 | O106: =IF($A106>0,'Asset data'!G106,0) -> 45.8 | P106: 2655441.632 | Q106: 0.4166335848 | R106: 4.58 | S106: 9.16 | T106: 27.48 | U106: 36.64 | W106: =IF($A106>0,SUMIF('Age profile (years)'!$CT106:$GF106,"<" & R106+0.5,'Asset data'!$CX106:$GJ106),0) -> 6324.989992 | X106: =IF($A106>0,SUMIF('Age profile (years)'!$CT106:$GF106,"<" & S106+0.5,'Asset data'!$CX106:$GJ106)-W106,0) -> 2108.329997 | Y106: =IF($A106>0,SUMIF('Age profile (years)'!$CT106:$GF106,"<" & T106+0.5,'Asset data'!$CX106:$GJ106)-X106-W106,0) -> 18974.96998 | Z106: =IF($A106>0,SUMIF('Age profile (years)'!$CT106:$GF106,"<" & U106+0.5,'Asset data'!$CX106:$GJ106)-Y106-X106-W106,0) -> 8433.319989 | AA106: 22137.46497 | AB106: 0.1090909091 | AC106: 0.03636363636 | AD106: 0.3272727273 | AE106: 0.1454545455 | AF106: 0.3818181818 | AI106: =IF($A106>0,'RRR hist-forc'!K106,0) -> 45.8 | AJ106: 2655441.632
A107: ='Asset data'!A107 -> 5 | B107: ='Asset data'!B107 -> 0 | C107: ='Asset data'!C107 -> 0 | D107: ='Asset data'!E107 -> GROUND OUTDOOR / INDOOR CHAMBER MOUNTED ; > = 22 KV & < = 33 KV ; > 40 MVA | E107: TRANSFORMERS | F107: =IF(A107>0,SUM('Asset data'!J107:CV107),0) -> 2 | G107: =IF(A107>0,'Asset data'!F107,0) -> 761.6262422 | H107: =IF(A107>0,SUM('Asset data'!CX107:GJ107),0) -> 1523.252484 | I107: 6.511820534e-05 | J107: 66 | K107: 0.0006631241933 | L107: 761.6262422 | M107: =IF($A107>0,SUMPRODUCT('Age profile (years)'!$CT107:$GF107,'Asset data'!$CX107:$GJ107)/H107-0.5,0) -> 38.5 | N107: 58645.22065 | O107: =IF($A107>0,'Asset data'!G107,0) -> 45.8 | P107: 69764.96379 | Q107: 0.1593886463 | R107: 4.58 | S107: 9.16 | T107: 27.48 | U107: 36.64 | W107: =IF($A107>0,SUMIF('Age profile (years)'!$CT107:$GF107,"<" & R107+0.5,'Asset data'!$CX107:$GJ107),0) -> 0 | X107: =IF($A107>0,SUMIF('Age profile (years)'!$CT107:$GF107,"<" & S107+0.5,'Asset data'!$CX107:$GJ107)-W107,0) -> 0 | Y107: =IF($A107>0,SUMIF('Age profile (years)'!$CT107:$GF107,"<" & T107+0.5,'Asset data'!$CX107:$GJ107)-X107-W107,0) -> 0 | Z107: =IF($A107>0,SUMIF('Age profile (years)'!$CT107:$GF107,"<" & U107+0.5,'Asset data'!$CX107:$GJ107)-Y107-X107-W107,0) -> 0 | AA107: 1523.252484 | AB107: 0 | AC107: 0 | AD107: 0 | AE107: 0 | AF107: 1 | AI107: =IF($A107>0,'RRR hist-forc'!K107,0) -> 45.8 | AJ107: 69764.96379
A108: ='Asset data'!A108 -> 5 | B108: ='Asset data'!B108 -> 0 | C108: ='Asset data'!C108 -> 0 | D108: ='Asset data'!E108 -> GROUND OUTDOOR / INDOOR CHAMBER MOUNTED ; > 33 KV & < = 66 KV ; < = 15 MVA | E108: TRANSFORMERS | F108: =IF(A108>0,SUM('Asset data'!J108:CV108),0) -> 336 | G108: =IF(A108>0,'Asset data'!F108,0) -> 761.6262422 | H108: =IF(A108>0,SUM('Asset data'!CX108:GJ108),0) -> 255906.4174 | I108: 0.0109398585 | J108: 22 | K108: 0.1114048645 | L108: 761.6262422 | M108: =IF($A108>0,SUMPRODUCT('Age profile (years)'!$CT108:$GF108,'Asset data'!$CX108:$GJ108)/H108-0.5,0) -> 13.43452381 | N108: 3437980.858 | O108: =IF($A108>0,'Asset data'!G108,0) -> 45.8 | P108: 11720513.92 | Q108: 0.7066697858 | R108: 4.58 | S108: 9.16 | T108: 27.48 | U108: 36.64 | W108: =IF($A108>0,SUMIF('Age profile (years)'!$CT108:$GF108,"<" & R108+0.5,'Asset data'!$CX108:$GJ108),0) -> 112720.6839 | X108: =IF($A108>0,SUMIF('Age profile (years)'!$CT108:$GF108,"<" & S108+0.5,'Asset data'!$CX108:$GJ108)-W108,0) -> 6093.009938 | Y108: =IF($A108>0,SUMIF('Age profile (years)'!$CT108:$GF108,"<" & T108+0.5,'Asset data'!$CX108:$GJ108)-X108-W108,0) -> 68546.3618 | Z108: =IF($A108>0,SUMIF('Age profile (years)'!$CT108:$GF108,"<" & U108+0.5,'Asset data'!$CX108:$GJ108)-Y108-X108-W108,0) -> 14470.8986 | AA108: 54075.4632 | AB108: 0.4404761905 | AC108: 0.02380952381 | AD108: 0.2678571429 | AE108: 0.05654761905 | AF108: 0.2113095238 | AI108: =IF($A108>0,'RRR hist-forc'!K108,0) -> 45.8 | AJ108: 11720513.92
A109: ='Asset data'!A109 -> 5 | B109: ='Asset data'!B109 -> 0 | C109: ='Asset data'!C109 -> 0 | D109: ='Asset data'!E109 -> GROUND OUTDOOR / INDOOR CHAMBER MOUNTED ; > 33 KV & < = 66 KV ; > 15 MVA AND < = 40 MVA | E109: TRANSFORMERS | F109: =IF(A109>0,SUM('Asset data'!J109:CV109),0) -> 160 | G109: =IF(A109>0,'Asset data'!F109,0) -> 1077.537107 | H109: =IF(A109>0,SUM('Asset data'!CX109:GJ109),0) -> 172405.9371 | I109: 0.007370258922 | J109: 25 | K109: 0.0750542337 | L109: 1077.537107 | M109: =IF($A109>0,SUMPRODUCT('Age profile (years)'!$CT109:$GF109,'Asset data'!$CX109:$GJ109)/H109-0.5,0) -> 25.90625 | N109: 4466391.308 | O109: =IF($A109>0,'Asset data'!G109,0) -> 45.8 | P109: 7896191.919 | Q109: 0.4343613537 | R109: 4.58 | S109: 9.16 | T109: 27.48 | U109: 36.64 | W109: =IF($A109>0,SUMIF('Age profile (years)'!$CT109:$GF109,"<" & R109+0.5,'Asset data'!$CX109:$GJ109),0) -> 14007.98239 | X109: =IF($A109>0,SUMIF('Age profile (years)'!$CT109:$GF109,"<" & S109+0.5,'Asset data'!$CX109:$GJ109)-W109,0) -> 4310.148427 | Y109: =IF($A109>0,SUMIF('Age profile (years)'!$CT109:$GF109,"<" & T109+0.5,'Asset data'!$CX109:$GJ109)-X109-W109,0) -> 67884.83773 | Z109: =IF($A109>0,SUMIF('Age profile (years)'!$CT109:$GF109,"<" & U109+0.5,'Asset data'!$CX109:$GJ109)-Y109-X109-W109,0) -> 21550.74214 | AA109: 64652.22641 | AB109: 0.08125 | AC109: 0.025 | AD109: 0.39375 | AE109: 0.125 | AF109: 0.375 | AI109: =IF($A109>0,'RRR hist-forc'!K109,0) -> 45.8 | AJ109: 7896191.919
A110: ='Asset data'!A110 -> 5 | B110: ='Asset data'!B110 -> 0 | C110: ='Asset data'!C110 -> 0 | D110: ='Asset data'!E110 -> GROUND OUTDOOR / INDOOR CHAMBER MOUNTED ; > 33 KV & < = 66 KV ; > 40 MVA | E110: TRANSFORMERS | F110: =IF(A110>0,SUM('Asset data'!J110:CV110),0) -> 2 | G110: =IF(A110>0,'Asset data'!F110,0) -> 1e-14 | H110: =IF(A110>0,SUM('Asset data'!CX110:GJ110),0) -> 2e-14 | I110: 8.549889924e-22 | J110: 80 | K110: 8.706687828e-21 | L110: 1e-14 | M110: =IF($A110>0,SUMPRODUCT('Age profile (years)'!$CT110:$GF110,'Asset data'!$CX110:$GJ110)/H110-0.5,0) -> 37.5 | N110: 7.5e-13 | O110: =IF($A110>0,'Asset data'!G110,0) -> 45.8 | P110: 9.16e-13 | Q110: 0.1812227074 | R110: 4.58 | S110: 9.16 | T110: 27.48 | U110: 36.64 | W110: =IF($A110>0,SUMIF('Age profile (years)'!$CT110:$GF110,"<" & R110+0.5,'Asset data'!$CX110:$GJ110),0) -> 0 | X110: =IF($A110>0,SUMIF('Age profile (years)'!$CT110:$GF110,"<" & S110+0.5,'Asset data'!$CX110:$GJ110)-W110,0) -> 0 | Y110: =IF($A110>0,SUMIF('Age profile (years)'!$CT110:$GF110,"<" & T110+0.5,'Asset data'!$CX110:$GJ110)-X110-W110,0) -> 0 | Z110: =IF($A110>0,SUMIF('Age profile (years)'!$CT110:$GF110,"<" & U110+0.5,'Asset data'!$CX110:$GJ110)-Y110-X110-W110,0) -> 0 | AA110: 2e-14 | AB110: 0 | AC110: 0 | AD110: 0 | AE110: 0 | AF110: 1 | AI110: =IF($A110>0,'RRR hist-forc'!K110,0) -> 45.8 | AJ110: 9.16e-13
A111: ='Asset data'!A111 -> 5 | B111: ='Asset data'!B111 -> 0 | C111: ='Asset data'!C111 -> 0 | D111: ='Asset data'!E111 -> GROUND OUTDOOR / INDOOR CHAMBER MOUNTED ; > 66 KV & < = 132 KV ; < = 100 MVA | E111: TRANSFORMERS | F111: =IF(A111>0,SUM('Asset data'!J111:CV111),0) -> 85 | G111: =IF(A111>0,'Asset data'!F111,0) -> 1679.675328 | H111: =IF(A111>0,SUM('Asset data'!CX111:GJ111),0) -> 142772.4028 | I111: 0.006103441642 | J111: 30 | K111: 0.0621537371 | L111: 1679.675328 | M111: =IF($A111>0,SUMPRODUCT('Age profile (years)'!$CT111:$GF111,'Asset data'!$CX111:$GJ111)/H111-0.5,0) -> 28.75882353 | N111: 4105966.338 | O111: =IF($A111>0,'Asset data'!G111,0) -> 45.8 | P111: 6538976.05 | Q111: 0.3720780889 | R111: 4.58 | S111: 9.16 | T111: 27.48 | U111: 36.64 | W111: =IF($A111>0,SUMIF('Age profile (years)'!$CT111:$GF111,"<" & R111+0.5,'Asset data'!$CX111:$GJ111),0) -> 15117.07795 | X111: =IF($A111>0,SUMIF('Age profile (years)'!$CT111:$GF111,"<" & S111+0.5,'Asset data'!$CX111:$GJ111)-W111,0) -> 1679.675328 | Y111: =IF($A111>0,SUMIF('Age profile (years)'!$CT111:$GF111,"<" & T111+0.5,'Asset data'!$CX111:$GJ111)-X111-W111,0) -> 31913.83122 | Z111: =IF($A111>0,SUMIF('Age profile (years)'!$CT111:$GF111,"<" & U111+0.5,'Asset data'!$CX111:$GJ111)-Y111-X111-W111,0) -> 40312.20786 | AA111: 53749.61048 | AB111: 0.1058823529 | AC111: 0.01176470588 | AD111: 0.2235294118 | AE111: 0.2823529412 | AF111: 0.3764705882 | AI111: =IF($A111>0,'RRR hist-forc'!K111,0) -> 45.8 | AJ111: 6538976.05
A112: ='Asset data'!A112 -> 5 | B112: ='Asset data'!B112 -> 0 | C112: ='Asset data'!C112 -> 0 | D112: ='Asset data'!E112 -> GROUND OUTDOOR / INDOOR CHAMBER MOUNTED ; > 66 KV & < = 132 KV ; > 100 MVA | E112: TRANSFORMERS | F112: =IF(A112>0,SUM('Asset data'!J112:CV112),0) -> 3 | G112: =IF(A112>0,'Asset data'!F112,0) -> 1679.675328 | H112: =IF(A112>0,SUM('Asset data'!CX112:GJ112),0) -> 5039.025983 | I112: 0.0002154155874 | J112: 62 | K112: 0.002193661309 | L112: 1679.675328 | M112: =IF($A112>0,SUMPRODUCT('Age profile (years)'!$CT112:$GF112,'Asset data'!$CX112:$GJ112)/H112-0.5,0) -> 38.5 | N112: 194002.5003 | O112: =IF($A112>0,'Asset data'!G112,0) -> 45.8 | P112: 230787.39 | Q112: 0.1593886463 | R112: 4.58 | S112: 9.16 | T112: 27.48 | U112: 36.64 | W112: =IF($A112>0,SUMIF('Age profile (years)'!$CT112:$GF112,"<" & R112+0.5,'Asset data'!$CX112:$GJ112),0) -> 0 | X112: =IF($A112>0,SUMIF('Age profile (years)'!$CT112:$GF112,"<" & S112+0.5,'Asset data'!$CX112:$GJ112)-W112,0) -> 0 | Y112: =IF($A112>0,SUMIF('Age profile (years)'!$CT112:$GF112,"<" & T112+0.5,'Asset data'!$CX112:$GJ112)-X112-W112,0) -> 0 | Z112: =IF($A112>0,SUMIF('Age profile (years)'!$CT112:$GF112,"<" & U112+0.5,'Asset data'!$CX112:$GJ112)-Y112-X112-W112,0) -> 0 | AA112: 5039.025983 | AB112: 0 | AC112: 0 | AD112: 0 | AE112: 0 | AF112: 1 | AI112: =IF($A112>0,'RRR hist-forc'!K112,0) -> 45.8 | AJ112: 230787.39
A113: ='Asset data'!A113 -> 0 | B113: ='Asset data'!B113 -> 0 | C113: ='Asset data'!C113 -> 0 | D113: ='Asset data'!E113 -> GROUND OUTDOOR / INDOOR CHAMBER MOUNTED ; > 132 KV ; < = 100 MVA | E113: 0 | F113: =IF(A113>0,SUM('Asset data'!J113:CV113),0) -> 0 | G113: =IF(A113>0,'Asset data'!F113,0) -> 0 | H113: =IF(A113>0,SUM('Asset data'!CX113:GJ113),0) -> 0 | I113: 0 | J113: 0 | K113: 0 | L113: 0 | M113: =IF($A113>0,SUMPRODUCT('Age profile (years)'!$CT113:$GF113,'Asset data'!$CX113:$GJ113)/H113-0.5,0) -> 0 | N113: 0 | O113: =IF($A113>0,'Asset data'!G113,0) -> 0 | P113: 0 | Q113: 0 | R113: 0 | S113: 0 | T113: 0 | U113: 0 | W113: =IF($A113>0,SUMIF('Age profile (years)'!$CT113:$GF113,"<" & R113+0.5,'Asset data'!$CX113:$GJ113),0) -> 0 | X113: =IF($A113>0,SUMIF('Age profile (years)'!$CT113:$GF113,"<" & S113+0.5,'Asset data'!$CX113:$GJ113)-W113,0) -> 0 | Y113: =IF($A113>0,SUMIF('Age profile (years)'!$CT113:$GF113,"<" & T113+0.5,'Asset data'!$CX113:$GJ113)-X113-W113,0) -> 0 | Z113: =IF($A113>0,SUMIF('Age profile (years)'!$CT113:$GF113,"<" & U113+0.5,'Asset data'!$CX113:$GJ113)-Y113-X113-W113,0) -> 0 | AA113: 0 | AB113: 0 | AC113: 0 | AD113: 0 | AE113: 0 | AF113: 0 | AI113: =IF($A113>0,'RRR hist-forc'!K113,0) -> 0 | AJ113: 0
A114: ='Asset data'!A114 -> 0 | B114: ='Asset data'!B114 -> 0 | C114: ='Asset data'!C114 -> 0 | D114: ='Asset data'!E114 -> GROUND OUTDOOR / INDOOR CHAMBER MOUNTED ; > 132 KV ; > 100 MVA | E114: 0 | F114: =IF(A114>0,SUM('Asset data'!J114:CV114),0) -> 0 | G114: =IF(A114>0,'Asset data'!F114,0) -> 0 | H114: =IF(A114>0,SUM('Asset data'!CX114:GJ114),0) -> 0 | I114: 0 | J114: 0 | K114: 0 | L114: 0 | M114: =IF($A114>0,SUMPRODUCT('Age profile (years)'!$CT114:$GF114,'Asset data'!$CX114:$GJ114)/H114-0.5,0) -> 0 | N114: 0 | O114: =IF($A114>0,'Asset data'!G114,0) -> 0 | P114: 0 | Q114: 0 | R114: 0 | S114: 0 | T114: 0 | U114: 0 | W114: =IF($A114>0,SUMIF('Age profile (years)'!$CT114:$GF114,"<" & R114+0.5,'Asset data'!$CX114:$GJ114),0) -> 0 | X114: =IF($A114>0,SUMIF('Age profile (years)'!$CT114:$GF114,"<" & S114+0.5,'Asset data'!$CX114:$GJ114)-W114,0) -> 0 | Y114: =IF($A114>0,SUMIF('Age profile (years)'!$CT114:$GF114,"<" & T114+0.5,'Asset data'!$CX114:$GJ114)-X114-W114,0) -> 0 | Z114: =IF($A114>0,SUMIF('Age profile (years)'!$CT114:$GF114,"<" & U114+0.5,'Asset data'!$CX114:$GJ114)-Y114-X114-W114,0) -> 0 | AA114: 0 | AB114: 0 | AC114: 0 | AD114: 0 | AE114: 0 | AF114: 0 | AI114: =IF($A114>0,'RRR hist-forc'!K114,0) -> 0 | AJ114: 0
A115: ='Asset data'!A115 -> 5 | B115: ='Asset data'!B115 -> 0 | C115: ='Asset data'!C115 -> 0 | D115: ='Asset data'!E115 -> OTHER - REGULATORS | E115: TRANSFORMERS | F115: =IF(A115>0,SUM('Asset data'!J115:CV115),0) -> 734 | G115: =IF(A115>0,'Asset data'!F115,0) -> 97.47077413 | H115: =IF(A115>0,SUM('Asset data'!CX115:GJ115),0) -> 71543.54821 | I115: 0.00305844731 | J115: 41 | K115: 0.03114536702 | L115: 97.47077413 | M115: =IF($A115>0,SUMPRODUCT('Age profile (years)'!$CT115:$GF115,'Asset data'!$CX115:$GJ115)/H115-0.5,0) -> 38.49591281 | N115: 2754134.194 | O115: =IF($A115>0,'Asset data'!G115,0) -> 54.9 | P115: 3927740.797 | Q115: 0.2987994024 | R115: 5.49 | S115: 10.98 | T115: 32.94 | U115: 43.92 | W115: =IF($A115>0,SUMIF('Age profile (years)'!$CT115:$GF115,"<" & R115+0.5,'Asset data'!$CX115:$GJ115),0) -> 3411.477095 | X115: =IF($A115>0,SUMIF('Age profile (years)'!$CT115:$GF115,"<" & S115+0.5,'Asset data'!$CX115:$GJ115)-W115,0) -> 1169.64929 | Y115: =IF($A115>0,SUMIF('Age profile (years)'!$CT115:$GF115,"<" & T115+0.5,'Asset data'!$CX115:$GJ115)-X115-W115,0) -> 15400.38231 | Z115: =IF($A115>0,SUMIF('Age profile (years)'!$CT115:$GF115,"<" & U115+0.5,'Asset data'!$CX115:$GJ115)-Y115-X115-W115,0) -> 15692.79464 | AA115: 35869.24488 | AB115: 0.04768392371 | AC115: 0.01634877384 | AD115: 0.2152588556 | AE115: 0.219346049 | AF115: 0.5013623978 | AI115: =IF($A115>0,'RRR hist-forc'!K115,0) -> 54.9 | AJ115: 3927740.797
A116: ='Asset data'!A116 -> 6 | B116: ='Asset data'!B116 -> 0 | C116: ='Asset data'!C116 -> 0 | D116: ='Asset data'!E116 -> ˂ = 11 KV ; FUSE | E116: SWITCHGEAR | F116: =IF(A116>0,SUM('Asset data'!J116:CV116),0) -> 336781 | G116: =IF(A116>0,'Asset data'!F116,0) -> 1.089558127 | H116: =IF(A116>0,SUM('Asset data'!CX116:GJ116),0) -> 366942.4755 | I116: 0.01568658887 | J116: 15 | K116: 0.1235268053 | L116: 1.089558127 | M116: =IF($A116>0,SUMPRODUCT('Age profile (years)'!$CT116:$GF116,'Asset data'!$CX116:$GJ116)/H116-0.5,0) -> 25.83045213 | N116: 9478290.048 | O116: =IF($A116>0,'Asset data'!G116,0) -> 53.8 | P116: 19741505.18 | Q116: 0.5198800719 | R116: 5.38 | S116: 10.76 | T116: 32.28 | U116: 43.04 | W116: =IF($A116>0,SUMIF('Age profile (years)'!$CT116:$GF116,"<" & R116+0.5,'Asset data'!$CX116:$GJ116),0) -> 52221.43145 | X116: =IF($A116>0,SUMIF('Age profile (years)'!$CT116:$GF116,"<" & S116+0.5,'Asset data'!$CX116:$GJ116)-W116,0) -> 41126.46105 | Y116: =IF($A116>0,SUMIF('Age profile (years)'!$CT116:$GF116,"<" & T116+0.5,'Asset data'!$CX116:$GJ116)-X116-W116,0) -> 133106.9581 | Z116: =IF($A116>0,SUMIF('Age profile (years)'!$CT116:$GF116,"<" & U116+0.5,'Asset data'!$CX116:$GJ116)-Y116-X116-W116,0) -> 52079.7889 | AA116: 88407.83596 | AB116: 0.1423150356 | AC116: 0.1120787693 | AD116: 0.3627461169 | AE116: 0.1419290281 | AF116: 0.2409310501 | AI116: =IF($A116>0,'RRR hist-forc'!K116,0) -> 53.8 | AJ116: 19741505.18
A117: ='Asset data'!A117 -> 6 | B117: ='Asset data'!B117 -> 0 | C117: ='Asset data'!C117 -> 0 | D117: ='Asset data'!E117 -> ˂ = 11 KV ; SWITCH | E117: SWITCHGEAR | F117: =IF(A117>0,SUM('Asset data'!J117:CV117),0) -> 47803 | G117: =IF(A117>0,'Asset data'!F117,0) -> 8.503977259 | H117: =IF(A117>0,SUM('Asset data'!CX117:GJ117),0) -> 406515.6249 | I117: 0.01737831923 | J117: 14 | K117: 0.1368486338 | L117: 8.503977259 | M117: =IF($A117>0,SUMPRODUCT('Age profile (years)'!$CT117:$GF117,'Asset data'!$CX117:$GJ117)/H117-0.5,0) -> 28.35352384 | N117: 11526150.46 | O117: =IF($A117>0,'Asset data'!G117,0) -> 53.8 | P117: 21870540.62 | Q117: 0.4729828283 | R117: 5.38 | S117: 10.76 | T117: 32.28 | U117: 43.04 | W117: =IF($A117>0,SUMIF('Age profile (years)'!$CT117:$GF117,"<" & R117+0.5,'Asset data'!$CX117:$GJ117),0) -> 49169.99651 | X117: =IF($A117>0,SUMIF('Age profile (years)'!$CT117:$GF117,"<" & S117+0.5,'Asset data'!$CX117:$GJ117)-W117,0) -> 45487.77436 | Y117: =IF($A117>0,SUMIF('Age profile (years)'!$CT117:$GF117,"<" & T117+0.5,'Asset data'!$CX117:$GJ117)-X117-W117,0) -> 126343.5901 | Z117: =IF($A117>0,SUMIF('Age profile (years)'!$CT117:$GF117,"<" & U117+0.5,'Asset data'!$CX117:$GJ117)-Y117-X117-W117,0) -> 51015.35958 | AA117: 134498.9043 | AB117: 0.1209547518 | AC117: 0.1118967429 | AD117: 0.3107963935 | AE117: 0.1254942158 | AF117: 0.3308578959 | AI117: =IF($A117>0,'RRR hist-forc'!K117,0) -> 53.8 | AJ117: 21870540.62
A118: ='Asset data'!A118 -> 6 | B118: ='Asset data'!B118 -> 0 | C118: ='Asset data'!C118 -> 0 | D118: ='Asset data'!E118 -> ˂ = 11 KV ; CIRCUIT BREAKER | E118: SWITCHGEAR | F118: =IF(A118>0,SUM('Asset data'!J118:CV118),0) -> 11486 | G118: =IF(A118>0,'Asset data'!F118,0) -> 125.1785085 | H118: =IF(A118>0,SUM('Asset data'!CX118:GJ118),0) -> 1437800.349 | I118: 0.06146517359 | J118: 5 | K118: 0.4840183289 | L118: 125.1785085 | M118: =IF($A118>0,SUMPRODUCT('Age profile (years)'!$CT118:$GF118,'Asset data'!$CX118:$GJ118)/H118-0.5,0) -> 39.53630507 | N118: 56845313.23 | O118: =IF($A118>0,'Asset data'!G118,0) -> 53.8 | P118: 77353658.79 | Q118: 0.2651244411 | R118: 5.38 | S118: 10.76 | T118: 32.28 | U118: 43.04 | W118: =IF($A118>0,SUMIF('Age profile (years)'!$CT118:$GF118,"<" & R118+0.5,'Asset data'!$CX118:$GJ118),0) -> 29291.771 | X118: =IF($A118>0,SUMIF('Age profile (years)'!$CT118:$GF118,"<" & S118+0.5,'Asset data'!$CX118:$GJ118)-W118,0) -> 74606.39109 | Y118: =IF($A118>0,SUMIF('Age profile (years)'!$CT118:$GF118,"<" & T118+0.5,'Asset data'!$CX118:$GJ118)-X118-W118,0) -> 237713.9877 | Z118: =IF($A118>0,SUMIF('Age profile (years)'!$CT118:$GF118,"<" & U118+0.5,'Asset data'!$CX118:$GJ118)-Y118-X118-W118,0) -> 229577.3847 | AA118: 866610.8147 | AB118: 0.02037262755 | AC118: 0.05188925649 | AD118: 0.1653317082 | AE118: 0.159672645 | AF118: 0.6027337628 | AI118: =IF($A118>0,'RRR hist-forc'!K118,0) -> 53.8 | AJ118: 77353658.79
A119: ='Asset data'!A119 -> 6 | B119: ='Asset data'!B119 -> 0 | C119: ='Asset data'!C119 -> 0 | D119: ='Asset data'!E119 -> > 11 KV & < = 22 KV ; SWITCH | E119: SWITCHGEAR | F119: =IF(A119>0,SUM('Asset data'!J119:CV119),0) -> 12413 | G119: =IF(A119>0,'Asset data'!F119,0) -> 9.909202756 | H119: =IF(A119>0,SUM('Asset data'!CX119:GJ119),0) -> 123002.9338 | I119: 0.005258307722 | J119: 32 | K119: 0.04140746976 | L119: 9.909202756 | M119: =IF($A119>0,SUMPRODUCT('Age profile (years)'!$CT119:$GF119,'Asset data'!$CX119:$GJ119)/H119-0.5,0) -> 27.69350681 | N119: 3406382.585 | O119: =IF($A119>0,'Asset data'!G119,0) -> 53.8 | P119: 6617557.839 | Q119: 0.4852508028 | R119: 5.38 | S119: 10.76 | T119: 32.28 | U119: 43.04 | W119: =IF($A119>0,SUMIF('Age profile (years)'!$CT119:$GF119,"<" & R119+0.5,'Asset data'!$CX119:$GJ119),0) -> 16310.54774 | X119: =IF($A119>0,SUMIF('Age profile (years)'!$CT119:$GF119,"<" & S119+0.5,'Asset data'!$CX119:$GJ119)-W119,0) -> 15478.1747 | Y119: =IF($A119>0,SUMIF('Age profile (years)'!$CT119:$GF119,"<" & T119+0.5,'Asset data'!$CX119:$GJ119)-X119-W119,0) -> 38071.15699 | Z119: =IF($A119>0,SUMIF('Age profile (years)'!$CT119:$GF119,"<" & U119+0.5,'Asset data'!$CX119:$GJ119)-Y119-X119-W119,0) -> 16023.18086 | AA119: 37119.87352 | AB119: 0.1326029163 | AC119: 0.1258358173 | AD119: 0.309514219 | AE119: 0.1302666559 | AF119: 0.3017803915 | AI119: =IF($A119>0,'RRR hist-forc'!K119,0) -> 53.8 | AJ119: 6617557.839
A120: ='Asset data'!A120 -> 6 | B120: ='Asset data'!B120 -> 0 | C120: ='Asset data'!C120 -> 0 | D120: ='Asset data'!E120 -> > 11 KV & < = 22 KV ; CIRCUIT BREAKER | E120: SWITCHGEAR | F120: =IF(A120>0,SUM('Asset data'!J120:CV120),0) -> 2878 | G120: =IF(A120>0,'Asset data'!F120,0) -> 61.61764984 | H120: =IF(A120>0,SUM('Asset data'!CX120:GJ120),0) -> 177335.5962 | I120: 0.007580999136 | J120: 24 | K120: 0.05969791216 | L120: 61.61764984 | M120: =IF($A120>0,SUMPRODUCT('Age profile (years)'!$CT120:$GF120,'Asset data'!$CX120:$GJ120)/H120-0.5,0) -> 39.65913829 | N120: 7032976.935 | O120: =IF($A120>0,'Asset data'!G120,0) -> 53.8 | P120: 9540655.077 | Q120: 0.2628412957 | R120: 5.38 | S120: 10.76 | T120: 32.28 | U120: 43.04 | W120: =IF($A120>0,SUMIF('Age profile (years)'!$CT120:$GF120,"<" & R120+0.5,'Asset data'!$CX120:$GJ120),0) -> 7948.676829 | X120: =IF($A120>0,SUMIF('Age profile (years)'!$CT120:$GF120,"<" & S120+0.5,'Asset data'!$CX120:$GJ120)-W120,0) -> 7702.206229 | Y120: =IF($A120>0,SUMIF('Age profile (years)'!$CT120:$GF120,"<" & T120+0.5,'Asset data'!$CX120:$GJ120)-X120-W120,0) -> 26433.97178 | Z120: =IF($A120>0,SUMIF('Age profile (years)'!$CT120:$GF120,"<" & U120+0.5,'Asset data'!$CX120:$GJ120)-Y120-X120-W120,0) -> 30192.64842 | AA120: 105058.093 | AB120: 0.04482279361 | AC120: 0.04343293954 | AD120: 0.1490618485 | AE120: 0.170257123 | AF120: 0.5924252953 | AI120: =IF($A120>0,'RRR hist-forc'!K120,0) -> 53.8 | AJ120: 9540655.077
A121: ='Asset data'!A121 -> 6 | B121: ='Asset data'!B121 -> 0 | C121: ='Asset data'!C121 -> 0 | D121: ='Asset data'!E121 -> > 22 KV & < = 33 KV ; SWITCH | E121: SWITCHGEAR | F121: =IF(A121>0,SUM('Asset data'!J121:CV121),0) -> 1220 | G121: =IF(A121>0,'Asset data'!F121,0) -> 21.21683389 | H121: =IF(A121>0,SUM('Asset data'!CX121:GJ121),0) -> 25884.53734 | I121: 0.001106549725 | J121: 49 | K121: 0.008713720592 | L121: 21.21683389 | M121: =IF($A121>0,SUMPRODUCT('Age profile (years)'!$CT121:$GF121,'Asset data'!$CX121:$GJ121)/H121-0.5,0) -> 38.23688525 | N121: 989744.084 | O121: =IF($A121>0,'Asset data'!G121,0) -> 54.9 | P121: 1421061.1 | Q121: 0.3035175729 | R121: 5.49 | S121: 10.98 | T121: 32.94 | U121: 43.92 | W121: =IF($A121>0,SUMIF('Age profile (years)'!$CT121:$GF121,"<" & R121+0.5,'Asset data'!$CX121:$GJ121),0) -> 912.3238572 | X121: =IF($A121>0,SUMIF('Age profile (years)'!$CT121:$GF121,"<" & S121+0.5,'Asset data'!$CX121:$GJ121)-W121,0) -> 1251.793199 | Y121: =IF($A121>0,SUMIF('Age profile (years)'!$CT121:$GF121,"<" & T121+0.5,'Asset data'!$CX121:$GJ121)-X121-W121,0) -> 6280.182831 | Z121: =IF($A121>0,SUMIF('Age profile (years)'!$CT121:$GF121,"<" & U121+0.5,'Asset data'!$CX121:$GJ121)-Y121-X121-W121,0) -> 3882.680601 | AA121: 13557.55685 | AB121: 0.03524590164 | AC121: 0.04836065574 | AD121: 0.2426229508 | AE121: 0.15 | AF121: 0.5237704918 | AI121: =IF($A121>0,'RRR hist-forc'!K121,0) -> 54.9 | AJ121: 1421061.1
A122: ='Asset data'!A122 -> 6 | B122: ='Asset data'!B122 -> 0 | C122: ='Asset data'!C122 -> 0 | D122: ='Asset data'!E122 -> > 22 KV & < = 33 KV ; CIRCUIT BREAKER | E122: SWITCHGEAR | F122: =IF(A122>0,SUM('Asset data'!J122:CV122),0) -> 411 | G122: =IF(A122>0,'Asset data'!F122,0) -> 104.1016635 | H122: =IF(A122>0,SUM('Asset data'!CX122:GJ122),0) -> 42785.7837 | I122: 0.001829068705 | J122: 45 | K122: 0.01440332348 | L122: 104.1016635 | M122: =IF($A122>0,SUMPRODUCT('Age profile (years)'!$CT122:$GF122,'Asset data'!$CX122:$GJ122)/H122-0.5,0) -> 43.26642336 | N122: 1851187.831 | O122: =IF($A122>0,'Asset data'!G122,0) -> 54.9 | P122: 2348939.525 | Q122: 0.2119048569 | R122: 5.49 | S122: 10.98 | T122: 32.94 | U122: 43.92 | W122: =IF($A122>0,SUMIF('Age profile (years)'!$CT122:$GF122,"<" & R122+0.5,'Asset data'!$CX122:$GJ122),0) -> 832.813308 | X122: =IF($A122>0,SUMIF('Age profile (years)'!$CT122:$GF122,"<" & S122+0.5,'Asset data'!$CX122:$GJ122)-W122,0) -> 416.406654 | Y122: =IF($A122>0,SUMIF('Age profile (years)'!$CT122:$GF122,"<" & T122+0.5,'Asset data'!$CX122:$GJ122)-X122-W122,0) -> 4164.06654 | Z122: =IF($A122>0,SUMIF('Age profile (years)'!$CT122:$GF122,"<" & U122+0.5,'Asset data'!$CX122:$GJ122)-Y122-X122-W122,0) -> 8848.641397 | AA122: 28523.8558 | AB122: 0.01946472019 | AC122: 0.009732360097 | AD122: 0.09732360097 | AE122: 0.2068126521 | AF122: 0.6666666667 | AI122: =IF($A122>0,'RRR hist-forc'!K122,0) -> 54.9 | AJ122: 2348939.525
A123: ='Asset data'!A123 -> 6 | B123: ='Asset data'!B123 -> 0 | C123: ='Asset data'!C123 -> 0 | D123: ='Asset data'!E123 -> > 33 KV & < = 66 KV ; SWITCH | E123: SWITCHGEAR | F123: =IF(A123>0,SUM('Asset data'!J123:CV123),0) -> 1991 | G123: =IF(A123>0,'Asset data'!F123,0) -> 61.09641685 | H123: =IF(A123>0,SUM('Asset data'!CX123:GJ123),0) -> 121642.966 | I123: 0.005200169845 | J123: 34 | K123: 0.04094965281 | L123: 61.09641685 | M123: =IF($A123>0,SUMPRODUCT('Age profile (years)'!$CT123:$GF123,'Asset data'!$CX123:$GJ123)/H123-0.5,0) -> 41.55524862 | N123: 5054903.693 | O123: =IF($A123>0,'Asset data'!G123,0) -> 54.9 | P123: 6678198.831 | Q123: 0.2430737957 | R123: 5.49 | S123: 10.98 | T123: 32.94 | U123: 43.92 | W123: =IF($A123>0,SUMIF('Age profile (years)'!$CT123:$GF123,"<" & R123+0.5,'Asset data'!$CX123:$GJ123),0) -> 1038.639087 | X123: =IF($A123>0,SUMIF('Age profile (years)'!$CT123:$GF123,"<" & S123+0.5,'Asset data'!$CX123:$GJ123)-W123,0) -> 3665.785011 | Y123: =IF($A123>0,SUMIF('Age profile (years)'!$CT123:$GF123,"<" & T123+0.5,'Asset data'!$CX123:$GJ123)-X123-W123,0) -> 23644.31332 | Z123: =IF($A123>0,SUMIF('Age profile (years)'!$CT123:$GF123,"<" & U123+0.5,'Asset data'!$CX123:$GJ123)-Y123-X123-W123,0) -> 15701.77913 | AA123: 77592.44941 | AB123: 0.008538422903 | AC123: 0.03013561025 | AD123: 0.1943746861 | AE123: 0.1290808639 | AF123: 0.6378704169 | AI123: =IF($A123>0,'RRR hist-forc'!K123,0) -> 54.9 | AJ123: 6678198.831
A124: ='Asset data'!A124 -> 6 | B124: ='Asset data'!B124 -> 0 | C124: ='Asset data'!C124 -> 0 | D124: ='Asset data'!E124 -> > 33 KV & < = 66 KV ; CIRCUIT BREAKER | E124: SWITCHGEAR | F124: =IF(A124>0,SUM('Asset data'!J124:CV124),0) -> 669 | G124: =IF(A124>0,'Asset data'!F124,0) -> 170.2798005 | H124: =IF(A124>0,SUM('Asset data'!CX124:GJ124),0) -> 113917.1865 | I124: 0.004869897026 | J124: 36 | K124: 0.03834886136 | L124: 170.2798005 | M124: =IF($A124>0,SUMPRODUCT('Age profile (years)'!$CT124:$GF124,'Asset data'!$CX124:$GJ124)/H124-0.5,0) -> 39.87668161 | N124: 4542639.377 | O124: =IF($A124>0,'Asset data'!G124,0) -> 54.9 | P124: 6254053.54 | Q124: 0.2736487866 | R124: 5.49 | S124: 10.98 | T124: 32.94 | U124: 43.92 | W124: =IF($A124>0,SUMIF('Age profile (years)'!$CT124:$GF124,"<" & R124+0.5,'Asset data'!$CX124:$GJ124),0) -> 2894.756608 | X124: =IF($A124>0,SUMIF('Age profile (years)'!$CT124:$GF124,"<" & S124+0.5,'Asset data'!$CX124:$GJ124)-W124,0) -> 5278.673815 | Y124: =IF($A124>0,SUMIF('Age profile (years)'!$CT124:$GF124,"<" & T124+0.5,'Asset data'!$CX124:$GJ124)-X124-W124,0) -> 24009.45187 | Z124: =IF($A124>0,SUMIF('Age profile (years)'!$CT124:$GF124,"<" & U124+0.5,'Asset data'!$CX124:$GJ124)-Y124-X124-W124,0) -> 11919.58603 | AA124: 69814.7182 | AB124: 0.02541106129 | AC124: 0.04633781764 | AD124: 0.2107623318 | AE124: 0.1046337818 | AF124: 0.6128550075 | AI124: =IF($A124>0,'RRR hist-forc'!K124,0) -> 54.9 | AJ124: 6254053.54
A125: ='Asset data'!A125 -> 6 | B125: ='Asset data'!B125 -> 0 | C125: ='Asset data'!C125 -> 0 | D125: ='Asset data'!E125 -> > 66 KV & < = 132 KV ; SWITCH | E125: SWITCHGEAR | F125: =IF(A125>0,SUM('Asset data'!J125:CV125),0) -> 296 | G125: =IF(A125>0,'Asset data'!F125,0) -> 81.67767545 | H125: =IF(A125>0,SUM('Asset data'!CX125:GJ125),0) -> 24176.59193 | I125: 0.001033535999 | J125: 51 | K125: 0.008138761152 | L125: 81.67767545 | M125: =IF($A125>0,SUMPRODUCT('Age profile (years)'!$CT125:$GF125,'Asset data'!$CX125:$GJ125)/H125-0.5,0) -> 43.81418919 | N125: 1059277.773 | O125: =IF($A125>0,'Asset data'!G125,0) -> 54.9 | P125: 1327294.897 | Q125: 0.2019273372 | R125: 5.49 | S125: 10.98 | T125: 32.94 | U125: 43.92 | W125: =IF($A125>0,SUMIF('Age profile (years)'!$CT125:$GF125,"<" & R125+0.5,'Asset data'!$CX125:$GJ125),0) -> 0 | X125: =IF($A125>0,SUMIF('Age profile (years)'!$CT125:$GF125,"<" & S125+0.5,'Asset data'!$CX125:$GJ125)-W125,0) -> 245.0330263 | Y125: =IF($A125>0,SUMIF('Age profile (years)'!$CT125:$GF125,"<" & T125+0.5,'Asset data'!$CX125:$GJ125)-X125-W125,0) -> 3593.81772 | Z125: =IF($A125>0,SUMIF('Age profile (years)'!$CT125:$GF125,"<" & U125+0.5,'Asset data'!$CX125:$GJ125)-Y125-X125-W125,0) -> 4982.338202 | AA125: 15355.40298 | AB125: 0 | AC125: 0.01013513514 | AD125: 0.1486486486 | AE125: 0.2060810811 | AF125: 0.6351351351 | AI125: =IF($A125>0,'RRR hist-forc'!K125,0) -> 54.9 | AJ125: 1327294.897
A126: ='Asset data'!A126 -> 6 | B126: ='Asset data'!B126 -> 0 | C126: ='Asset data'!C126 -> 0 | D126: ='Asset data'!E126 -> > 66 KV & < = 132 KV ; CIRCUIT BREAKER | E126: SWITCHGEAR | F126: =IF(A126>0,SUM('Asset data'!J126:CV126),0) -> 144 | G126: =IF(A126>0,'Asset data'!F126,0) -> 165.2143906 | H126: =IF(A126>0,SUM('Asset data'!CX126:GJ126),0) -> 23790.87225 | I126: 0.001017046695 | J126: 52 | K126: 0.008008913225 | L126: 165.2143906 | M126: =IF($A126>0,SUMPRODUCT('Age profile (years)'!$CT126:$GF126,'Asset data'!$CX126:$GJ126)/H126-0.5,0) -> 41.34722222 | N126: 983686.4818 | O126: =IF($A126>0,'Asset data'!G126,0) -> 54.9 | P126: 1306118.887 | Q126: 0.2468629832 | R126: 5.49 | S126: 10.98 | T126: 32.94 | U126: 43.92 | W126: =IF($A126>0,SUMIF('Age profile (years)'!$CT126:$GF126,"<" & R126+0.5,'Asset data'!$CX126:$GJ126),0) -> 0 | X126: =IF($A126>0,SUMIF('Age profile (years)'!$CT126:$GF126,"<" & S126+0.5,'Asset data'!$CX126:$GJ126)-W126,0) -> 660.8575625 | Y126: =IF($A126>0,SUMIF('Age profile (years)'!$CT126:$GF126,"<" & T126+0.5,'Asset data'!$CX126:$GJ126)-X126-W126,0) -> 4460.788547 | Z126: =IF($A126>0,SUMIF('Age profile (years)'!$CT126:$GF126,"<" & U126+0.5,'Asset data'!$CX126:$GJ126)-Y126-X126-W126,0) -> 5286.8605 | AA126: 13382.36564 | AB126: 0 | AC126: 0.02777777778 | AD126: 0.1875 | AE126: 0.2222222222 | AF126: 0.5625 | AI126: =IF($A126>0,'RRR hist-forc'!K126,0) -> 54.9 | AJ126: 1306118.887
A127: ='Asset data'!A127 -> 0 | B127: ='Asset data'!B127 -> 0 | C127: ='Asset data'!C127 -> 0 | D127: ='Asset data'!E127 -> > 132 KV ; SWITCH | E127: 0 | F127: =IF(A127>0,SUM('Asset data'!J127:CV127),0) -> 0 | G127: =IF(A127>0,'Asset data'!F127,0) -> 0 | H127: =IF(A127>0,SUM('Asset data'!CX127:GJ127),0) -> 0 | I127: 0 | J127: 0 | K127: 0 | L127: 0 | M127: =IF($A127>0,SUMPRODUCT('Age profile (years)'!$CT127:$GF127,'Asset data'!$CX127:$GJ127)/H127-0.5,0) -> 0 | N127: 0 | O127: =IF($A127>0,'Asset data'!G127,0) -> 0 | P127: 0 | Q127: 0 | R127: 0 | S127: 0 | T127: 0 | U127: 0 | W127: =IF($A127>0,SUMIF('Age profile (years)'!$CT127:$GF127,"<" & R127+0.5,'Asset data'!$CX127:$GJ127),0) -> 0 | X127: =IF($A127>0,SUMIF('Age profile (years)'!$CT127:$GF127,"<" & S127+0.5,'Asset data'!$CX127:$GJ127)-W127,0) -> 0 | Y127: =IF($A127>0,SUMIF('Age profile (years)'!$CT127:$GF127,"<" & T127+0.5,'Asset data'!$CX127:$GJ127)-X127-W127,0) -> 0 | Z127: =IF($A127>0,SUMIF('Age profile (years)'!$CT127:$GF127,"<" & U127+0.5,'Asset data'!$CX127:$GJ127)-Y127-X127-W127,0) -> 0 | AA127: 0 | AB127: 0 | AC127: 0 | AD127: 0 | AE127: 0 | AF127: 0 | AI127: =IF($A127>0,'RRR hist-forc'!K127,0) -> 0 | AJ127: 0
A128: ='Asset data'!A128 -> 0 | B128: ='Asset data'!B128 -> 0 | C128: ='Asset data'!C128 -> 0 | D128: ='Asset data'!E128 -> > 132 KV ; CIRCUIT BREAKER | E128: 0 | F128: =IF(A128>0,SUM('Asset data'!J128:CV128),0) -> 0 | G128: =IF(A128>0,'Asset data'!F128,0) -> 0 | H128: =IF(A128>0,SUM('Asset data'!CX128:GJ128),0) -> 0 | I128: 0 | J128: 0 | K128: 0 | L128: 0 | M128: =IF($A128>0,SUMPRODUCT('Age profile (years)'!$CT128:$GF128,'Asset data'!$CX128:$GJ128)/H128-0.5,0) -> 0 | N128: 0 | O128: =IF($A128>0,'Asset data'!G128,0) -> 0 | P128: 0 | Q128: 0 | R128: 0 | S128: 0 | T128: 0 | U128: 0 | W128: =IF($A128>0,SUMIF('Age profile (years)'!$CT128:$GF128,"<" & R128+0.5,'Asset data'!$CX128:$GJ128),0) -> 0 | X128: =IF($A128>0,SUMIF('Age profile (years)'!$CT128:$GF128,"<" & S128+0.5,'Asset data'!$CX128:$GJ128)-W128,0) -> 0 | Y128: =IF($A128>0,SUMIF('Age profile (years)'!$CT128:$GF128,"<" & T128+0.5,'Asset data'!$CX128:$GJ128)-X128-W128,0) -> 0 | Z128: =IF($A128>0,SUMIF('Age profile (years)'!$CT128:$GF128,"<" & U128+0.5,'Asset data'!$CX128:$GJ128)-Y128-X128-W128,0) -> 0 | AA128: 0 | AB128: 0 | AC128: 0 | AD128: 0 | AE128: 0 | AF128: 0 | AI128: =IF($A128>0,'RRR hist-forc'!K128,0) -> 0 | AJ128: 0
A129: ='Asset data'!A129 -> 6 | B129: ='Asset data'!B129 -> 0 | C129: ='Asset data'!C129 -> 0 | D129: ='Asset data'!E129 -> OTHER - > 11 KV & < = 22 KV ; FUSE | E129: SWITCHGEAR | F129: =IF(A129>0,SUM('Asset data'!J129:CV129),0) -> 51156 | G129: =IF(A129>0,'Asset data'!F129,0) -> 1.98778457 | H129: =IF(A129>0,SUM('Asset data'!CX129:GJ129),0) -> 101687.1075 | I129: 0.004347067878 | J129: 37 | K129: 0.03423175121 | L129: 1.98778457 | M129: =IF($A129>0,SUMPRODUCT('Age profile (years)'!$CT129:$GF129,'Asset data'!$CX129:$GJ129)/H129-0.5,0) -> 23.85168895 | N129: 2425409.258 | O129: =IF($A129>0,'Asset data'!G129,0) -> 53.8 | P129: 5470766.382 | Q129: 0.5566600567 | R129: 5.38 | S129: 10.76 | T129: 32.28 | U129: 43.04 | W129: =IF($A129>0,SUMIF('Age profile (years)'!$CT129:$GF129,"<" & R129+0.5,'Asset data'!$CX129:$GJ129),0) -> 18738.84514 | X129: =IF($A129>0,SUMIF('Age profile (years)'!$CT129:$GF129,"<" & S129+0.5,'Asset data'!$CX129:$GJ129)-W129,0) -> 10785.71908 | Y129: =IF($A129>0,SUMIF('Age profile (years)'!$CT129:$GF129,"<" & T129+0.5,'Asset data'!$CX129:$GJ129)-X129-W129,0) -> 37422.03232 | Z129: =IF($A129>0,SUMIF('Age profile (years)'!$CT129:$GF129,"<" & U129+0.5,'Asset data'!$CX129:$GJ129)-Y129-X129-W129,0) -> 18550.00561 | AA129: 16190.50532 | AB129: 0.1842794589 | AC129: 0.1060677144 | AD129: 0.3680115724 | AE129: 0.1824223942 | AF129: 0.15921886 | AI129: =IF($A129>0,'RRR hist-forc'!K129,0) -> 53.8 | AJ129: 5470766.382
A130: ='Asset data'!A130 -> 6 | B130: ='Asset data'!B130 -> 0 | C130: ='Asset data'!C130 -> 0 | D130: ='Asset data'!E130 -> OTHER - > 22 KV & < = 33 KV ; FUSE | E130: SWITCHGEAR | F130: =IF(A130>0,SUM('Asset data'!J130:CV130),0) -> 1773 | G130: =IF(A130>0,'Asset data'!F130,0) -> 2.484730713 | H130: =IF(A130>0,SUM('Asset data'!CX130:GJ130),0) -> 4405.427554 | I130: 0.0001883296033 | J130: 63 | K130: 0.001483034612 | L130: 2.484730713 | M130: =IF($A130>0,SUMPRODUCT('Age profile (years)'!$CT130:$GF130,'Asset data'!$CX130:$GJ130)/H130-0.5,0) -> 32.04145516 | N130: 141156.3094 | O130: =IF($A130>0,'Asset data'!G130,0) -> 54.9 | P130: 241857.9727 | Q130: 0.416366937 | R130: 5.49 | S130: 10.98 | T130: 32.94 | U130: 43.92 | W130: =IF($A130>0,SUMIF('Age profile (years)'!$CT130:$GF130,"<" & R130+0.5,'Asset data'!$CX130:$GJ130),0) -> 300.6524163 | X130: =IF($A130>0,SUMIF('Age profile (years)'!$CT130:$GF130,"<" & S130+0.5,'Asset data'!$CX130:$GJ130)-W130,0) -> 400.0416448 | Y130: =IF($A130>0,SUMIF('Age profile (years)'!$CT130:$GF130,"<" & T130+0.5,'Asset data'!$CX130:$GJ130)-X130-W130,0) -> 1314.422547 | Z130: =IF($A130>0,SUMIF('Age profile (years)'!$CT130:$GF130,"<" & U130+0.5,'Asset data'!$CX130:$GJ130)-Y130-X130-W130,0) -> 1170.308166 | AA130: 1220.00278 | AB130: 0.06824591089 | AC130: 0.09080654258 | AD130: 0.2983643542 | AE130: 0.2656514382 | AF130: 0.2769317541 | AI130: =IF($A130>0,'RRR hist-forc'!K130,0) -> 54.9 | AJ130: 241857.9727
A131: ='Asset data'!A131 -> 6 | B131: ='Asset data'!B131 -> 0 | C131: ='Asset data'!C131 -> 0 | D131: ='Asset data'!E131 -> OTHER - > 33 KV & < = 66 KV ; FUSE | E131: SWITCHGEAR | F131: =IF(A131>0,SUM('Asset data'!J131:CV131),0) -> 222 | G131: =IF(A131>0,'Asset data'!F131,0) -> 2.981676855 | H131: =IF(A131>0,SUM('Asset data'!CX131:GJ131),0) -> 661.9322619 | I131: 2.829723988e-05 | J131: 70 | K131: 0.0002228315965 | L131: 2.981676855 | M131: =IF($A131>0,SUMPRODUCT('Age profile (years)'!$CT131:$GF131,'Asset data'!$CX131:$GJ131)/H131-0.5,0) -> 32.46846847 | N131: 21491.92677 | O131: =IF($A131>0,'Asset data'!G131,0) -> 54.9 | P131: 36340.08118 | Q131: 0.4085889168 | R131: 5.49 | S131: 10.98 | T131: 32.94 | U131: 43.92 | W131: =IF($A131>0,SUMIF('Age profile (years)'!$CT131:$GF131,"<" & R131+0.5,'Asset data'!$CX131:$GJ131),0) -> 38.76179912 | X131: =IF($A131>0,SUMIF('Age profile (years)'!$CT131:$GF131,"<" & S131+0.5,'Asset data'!$CX131:$GJ131)-W131,0) -> 59.63353711 | Y131: =IF($A131>0,SUMIF('Age profile (years)'!$CT131:$GF131,"<" & T131+0.5,'Asset data'!$CX131:$GJ131)-X131-W131,0) -> 196.7906725 | Z131: =IF($A131>0,SUMIF('Age profile (years)'!$CT131:$GF131,"<" & U131+0.5,'Asset data'!$CX131:$GJ131)-Y131-X131-W131,0) -> 163.992227 | AA131: 202.7540262 | AB131: 0.05855855856 | AC131: 0.09009009009 | AD131: 0.2972972973 | AE131: 0.2477477477 | AF131: 0.3063063063 | AI131: =IF($A131>0,'RRR hist-forc'!K131,0) -> 54.9 | AJ131: 36340.08118
A132: ='Asset data'!A132 -> 0 | B132: ='Asset data'!B132 -> 0 | C132: ='Asset data'!C132 -> 0 | D132: ='Asset data'!E132 -> 0 | E132: 0 | F132: =IF(A132>0,SUM('Asset data'!J132:CV132),0) -> 0 | G132: =IF(A132>0,'Asset data'!F132,0) -> 0 | H132: =IF(A132>0,SUM('Asset data'!CX132:GJ132),0) -> 0 | I132: 0 | J132: 0 | K132: 0 | L132: 0 | M132: =IF($A132>0,SUMPRODUCT('Age profile (years)'!$CT132:$GF132,'Asset data'!$CX132:$GJ132)/H132-0.5,0) -> 0 | N132: 0 | O132: =IF($A132>0,'Asset data'!G132,0) -> 0 | P132: 0 | Q132: 0 | R132: 0 | S132: 0 | T132: 0 | U132: 0 | W132: =IF($A132>0,SUMIF('Age profile (years)'!$CT132:$GF132,"<" & R132+0.5,'Asset data'!$CX132:$GJ132),0) -> 0 | X132: =IF($A132>0,SUMIF('Age profile (years)'!$CT132:$GF132,"<" & S132+0.5,'Asset data'!$CX132:$GJ132)-W132,0) -> 0 | Y132: =IF($A132>0,SUMIF('Age profile (years)'!$CT132:$GF132,"<" & T132+0.5,'Asset data'!$CX132:$GJ132)-X132-W132,0) -> 0 | Z132: =IF($A132>0,SUMIF('Age profile (years)'!$CT132:$GF132,"<" & U132+0.5,'Asset data'!$CX132:$GJ132)-Y132-X132-W132,0) -> 0 | AA132: 0 | AB132: 0 | AC132: 0 | AD132: 0 | AE132: 0 | AF132: 0 | AI132: =IF($A132>0,'RRR hist-forc'!K132,0) -> 0 | AJ132: 0
A133: ='Asset data'!A133 -> 0 | B133: ='Asset data'!B133 -> 0 | C133: ='Asset data'!C133 -> 0 | D133: ='Asset data'!E133 -> 0 | E133: 0 | F133: =IF(A133>0,SUM('Asset data'!J133:CV133),0) -> 0 | G133: =IF(A133>0,'Asset data'!F133,0) -> 0 | H133: =IF(A133>0,SUM('Asset data'!CX133:GJ133),0) -> 0 | I133: 0 | J133: 0 | K133: 0 | L133: 0 | M133: =IF($A133>0,SUMPRODUCT('Age profile (years)'!$CT133:$GF133,'Asset data'!$CX133:$GJ133)/H133-0.5,0) -> 0 | N133: 0 | O133: =IF($A133>0,'Asset data'!G133,0) -> 0 | P133: 0 | Q133: 0 | R133: 0 | S133: 0 | T133: 0 | U133: 0 | W133: =IF($A133>0,SUMIF('Age profile (years)'!$CT133:$GF133,"<" & R133+0.5,'Asset data'!$CX133:$GJ133),0) -> 0 | X133: =IF($A133>0,SUMIF('Age profile (years)'!$CT133:$GF133,"<" & S133+0.5,'Asset data'!$CX133:$GJ133)-W133,0) -> 0 | Y133: =IF($A133>0,SUMIF('Age profile (years)'!$CT133:$GF133,"<" & T133+0.5,'Asset data'!$CX133:$GJ133)-X133-W133,0) -> 0 | Z133: =IF($A133>0,SUMIF('Age profile (years)'!$CT133:$GF133,"<" & U133+0.5,'Asset data'!$CX133:$GJ133)-Y133-X133-W133,0) -> 0 | AA133: 0 | AB133: 0 | AC133: 0 | AD133: 0 | AE133: 0 | AF133: 0 | AI133: =IF($A133>0,'RRR hist-forc'!K133,0) -> 0 | AJ133: 0
A134: ='Asset data'!A134 -> 0 | B134: ='Asset data'!B134 -> 0 | C134: ='Asset data'!C134 -> 0 | D134: ='Asset data'!E134 -> 0 | E134: 0 | F134: =IF(A134>0,SUM('Asset data'!J134:CV134),0) -> 0 | G134: =IF(A134>0,'Asset data'!F134,0) -> 0 | H134: =IF(A134>0,SUM('Asset data'!CX134:GJ134),0) -> 0 | I134: 0 | J134: 0 | K134: 0 | L134: 0 | M134: =IF($A134>0,SUMPRODUCT('Age profile (years)'!$CT134:$GF134,'Asset data'!$CX134:$GJ134)/H134-0.5,0) -> 0 | N134: 0 | O134: =IF($A134>0,'Asset data'!G134,0) -> 0 | P134: 0 | Q134: 0 | R134: 0 | S134: 0 | T134: 0 | U134: 0 | W134: =IF($A134>0,SUMIF('Age profile (years)'!$CT134:$GF134,"<" & R134+0.5,'Asset data'!$CX134:$GJ134),0) -> 0 | X134: =IF($A134>0,SUMIF('Age profile (years)'!$CT134:$GF134,"<" & S134+0.5,'Asset data'!$CX134:$GJ134)-W134,0) -> 0 | Y134: =IF($A134>0,SUMIF('Age profile (years)'!$CT134:$GF134,"<" & T134+0.5,'Asset data'!$CX134:$GJ134)-X134-W134,0) -> 0 | Z134: =IF($A134>0,SUMIF('Age profile (years)'!$CT134:$GF134,"<" & U134+0.5,'Asset data'!$CX134:$GJ134)-Y134-X134-W134,0) -> 0 | AA134: 0 | AB134: 0 | AC134: 0 | AD134: 0 | AE134: 0 | AF134: 0 | AI134: =IF($A134>0,'RRR hist-forc'!K134,0) -> 0 | AJ134: 0
A135: ='Asset data'!A135 -> 0 | B135: ='Asset data'!B135 -> 0 | C135: ='Asset data'!C135 -> 0 | D135: ='Asset data'!E135 -> 0 | E135: 0 | F135: =IF(A135>0,SUM('Asset data'!J135:CV135),0) -> 0 | G135: =IF(A135>0,'Asset data'!F135,0) -> 0 | H135: =IF(A135>0,SUM('Asset data'!CX135:GJ135),0) -> 0 | I135: 0 | J135: 0 | K135: 0 | L135: 0 | M135: =IF($A135>0,SUMPRODUCT('Age profile (years)'!$CT135:$GF135,'Asset data'!$CX135:$GJ135)/H135-0.5,0) -> 0 | N135: 0 | O135: =IF($A135>0,'Asset data'!G135,0) -> 0 | P135: 0 | Q135: 0 | R135: 0 | S135: 0 | T135: 0 | U135: 0 | W135: =IF($A135>0,SUMIF('Age profile (years)'!$CT135:$GF135,"<" & R135+0.5,'Asset data'!$CX135:$GJ135),0) -> 0 | X135: =IF($A135>0,SUMIF('Age profile (years)'!$CT135:$GF135,"<" & S135+0.5,'Asset data'!$CX135:$GJ135)-W135,0) -> 0 | Y135: =IF($A135>0,SUMIF('Age profile (years)'!$CT135:$GF135,"<" & T135+0.5,'Asset data'!$CX135:$GJ135)-X135-W135,0) -> 0 | Z135: =IF($A135>0,SUMIF('Age profile (years)'!$CT135:$GF135,"<" & U135+0.5,'Asset data'!$CX135:$GJ135)-Y135-X135-W135,0) -> 0 | AA135: 0 | AB135: 0 | AC135: 0 | AD135: 0 | AE135: 0 | AF135: 0 | AI135: =IF($A135>0,'RRR hist-forc'!K135,0) -> 0 | AJ135: 0
A136: ='Asset data'!A136 -> 0 | B136: ='Asset data'!B136 -> 0 | C136: ='Asset data'!C136 -> 0 | D136: ='Asset data'!E136 -> 0 | E136: 0 | F136: =IF(A136>0,SUM('Asset data'!J136:CV136),0) -> 0 | G136: =IF(A136>0,'Asset data'!F136,0) -> 0 | H136: =IF(A136>0,SUM('Asset data'!CX136:GJ136),0) -> 0 | I136: 0 | J136: 0 | K136: 0 | L136: 0 | M136: =IF($A136>0,SUMPRODUCT('Age profile (years)'!$CT136:$GF136,'Asset data'!$CX136:$GJ136)/H136-0.5,0) -> 0 | N136: 0 | O136: =IF($A136>0,'Asset data'!G136,0) -> 0 | P136: 0 | Q136: 0 | R136: 0 | S136: 0 | T136: 0 | U136: 0 | W136: =IF($A136>0,SUMIF('Age profile (years)'!$CT136:$GF136,"<" & R136+0.5,'Asset data'!$CX136:$GJ136),0) -> 0 | X136: =IF($A136>0,SUMIF('Age profile (years)'!$CT136:$GF136,"<" & S136+0.5,'Asset data'!$CX136:$GJ136)-W136,0) -> 0 | Y136: =IF($A136>0,SUMIF('Age profile (years)'!$CT136:$GF136,"<" & T136+0.5,'Asset data'!$CX136:$GJ136)-X136-W136,0) -> 0 | Z136: =IF($A136>0,SUMIF('Age profile (years)'!$CT136:$GF136,"<" & U136+0.5,'Asset data'!$CX136:$GJ136)-Y136-X136-W136,0) -> 0 | AA136: 0 | AB136: 0 | AC136: 0 | AD136: 0 | AE136: 0 | AF136: 0 | AI136: =IF($A136>0,'RRR hist-forc'!K136,0) -> 0 | AJ136: 0
A137: ='Asset data'!A137 -> 0 | B137: ='Asset data'!B137 -> 0 | C137: ='Asset data'!C137 -> 0 | D137: ='Asset data'!E137 -> 0 | E137: 0 | F137: =IF(A137>0,SUM('Asset data'!J137:CV137),0) -> 0 | G137: =IF(A137>0,'Asset data'!F137,0) -> 0 | H137: =IF(A137>0,SUM('Asset data'!CX137:GJ137),0) -> 0 | I137: 0 | J137: 0 | K137: 0 | L137: 0 | M137: =IF($A137>0,SUMPRODUCT('Age profile (years)'!$CT137:$GF137,'Asset data'!$CX137:$GJ137)/H137-0.5,0) -> 0 | N137: 0 | O137: =IF($A137>0,'Asset data'!G137,0) -> 0 | P137: 0 | Q137: 0 | R137: 0 | S137: 0 | T137: 0 | U137: 0 | W137: =IF($A137>0,SUMIF('Age profile (years)'!$CT137:$GF137,"<" & R137+0.5,'Asset data'!$CX137:$GJ137),0) -> 0 | X137: =IF($A137>0,SUMIF('Age profile (years)'!$CT137:$GF137,"<" & S137+0.5,'Asset data'!$CX137:$GJ137)-W137,0) -> 0 | Y137: =IF($A137>0,SUMIF('Age profile (years)'!$CT137:$GF137,"<" & T137+0.5,'Asset data'!$CX137:$GJ137)-X137-W137,0) -> 0 | Z137: =IF($A137>0,SUMIF('Age profile (years)'!$CT137:$GF137,"<" & U137+0.5,'Asset data'!$CX137:$GJ137)-Y137-X137-W137,0) -> 0 | AA137: 0 | AB137: 0 | AC137: 0 | AD137: 0 | AE137: 0 | AF137: 0 | AI137: =IF($A137>0,'RRR hist-forc'!K137,0) -> 0 | AJ137: 0
A138: ='Asset data'!A138 -> 0 | B138: ='Asset data'!B138 -> 0 | C138: ='Asset data'!C138 -> 0 | D138: ='Asset data'!E138 -> 0 | E138: 0 | F138: =IF(A138>0,SUM('Asset data'!J138:CV138),0) -> 0 | G138: =IF(A138>0,'Asset data'!F138,0) -> 0 | H138: =IF(A138>0,SUM('Asset data'!CX138:GJ138),0) -> 0 | I138: 0 | J138: 0 | K138: 0 | L138: 0 | M138: =IF($A138>0,SUMPRODUCT('Age profile (years)'!$CT138:$GF138,'Asset data'!$CX138:$GJ138)/H138-0.5,0) -> 0 | N138: 0 | O138: =IF($A138>0,'Asset data'!G138,0) -> 0 | P138: 0 | Q138: 0 | R138: 0 | S138: 0 | T138: 0 | U138: 0 | W138: =IF($A138>0,SUMIF('Age profile (years)'!$CT138:$GF138,"<" & R138+0.5,'Asset data'!$CX138:$GJ138),0) -> 0 | X138: =IF($A138>0,SUMIF('Age profile (years)'!$CT138:$GF138,"<" & S138+0.5,'Asset data'!$CX138:$GJ138)-W138,0) -> 0 | Y138: =IF($A138>0,SUMIF('Age profile (years)'!$CT138:$GF138,"<" & T138+0.5,'Asset data'!$CX138:$GJ138)-X138-W138,0) -> 0 | Z138: =IF($A138>0,SUMIF('Age profile (years)'!$CT138:$GF138,"<" & U138+0.5,'Asset data'!$CX138:$GJ138)-Y138-X138-W138,0) -> 0 | AA138: 0 | AB138: 0 | AC138: 0 | AD138: 0 | AE138: 0 | AF138: 0 | AI138: =IF($A138>0,'RRR hist-forc'!K138,0) -> 0 | AJ138: 0
A139: ='Asset data'!A139 -> 0 | B139: ='Asset data'!B139 -> 0 | C139: ='Asset data'!C139 -> 0 | D139: ='Asset data'!E139 -> 0 | E139: 0 | F139: =IF(A139>0,SUM('Asset data'!J139:CV139),0) -> 0 | G139: =IF(A139>0,'Asset data'!F139,0) -> 0 | H139: =IF(A139>0,SUM('Asset data'!CX139:GJ139),0) -> 0 | I139: 0 | J139: 0 | K139: 0 | L139: 0 | M139: =IF($A139>0,SUMPRODUCT('Age profile (years)'!$CT139:$GF139,'Asset data'!$CX139:$GJ139)/H139-0.5,0) -> 0 | N139: 0 | O139: =IF($A139>0,'Asset data'!G139,0) -> 0 | P139: 0 | Q139: 0 | R139: 0 | S139: 0 | T139: 0 | U139: 0 | W139: =IF($A139>0,SUMIF('Age profile (years)'!$CT139:$GF139,"<" & R139+0.5,'Asset data'!$CX139:$GJ139),0) -> 0 | X139: =IF($A139>0,SUMIF('Age profile (years)'!$CT139:$GF139,"<" & S139+0.5,'Asset data'!$CX139:$GJ139)-W139,0) -> 0 | Y139: =IF($A139>0,SUMIF('Age profile (years)'!$CT139:$GF139,"<" & T139+0.5,'Asset data'!$CX139:$GJ139)-X139-W139,0) -> 0 | Z139: =IF($A139>0,SUMIF('Age profile (years)'!$CT139:$GF139,"<" & U139+0.5,'Asset data'!$CX139:$GJ139)-Y139-X139-W139,0) -> 0 | AA139: 0 | AB139: 0 | AC139: 0 | AD139: 0 | AE139: 0 | AF139: 0 | AI139: =IF($A139>0,'RRR hist-forc'!K139,0) -> 0 | AJ139: 0
A140: ='Asset data'!A140 -> 0 | B140: ='Asset data'!B140 -> 0 | C140: ='Asset data'!C140 -> 0 | D140: ='Asset data'!E140 -> 0 | E140: 0 | F140: =IF(A140>0,SUM('Asset data'!J140:CV140),0) -> 0 | G140: =IF(A140>0,'Asset data'!F140,0) -> 0 | H140: =IF(A140>0,SUM('Asset data'!CX140:GJ140),0) -> 0 | I140: 0 | J140: 0 | K140: 0 | L140: 0 | M140: =IF($A140>0,SUMPRODUCT('Age profile (years)'!$CT140:$GF140,'Asset data'!$CX140:$GJ140)/H140-0.5,0) -> 0 | N140: 0 | O140: =IF($A140>0,'Asset data'!G140,0) -> 0 | P140: 0 | Q140: 0 | R140: 0 | S140: 0 | T140: 0 | U140: 0 | W140: =IF($A140>0,SUMIF('Age profile (years)'!$CT140:$GF140,"<" & R140+0.5,'Asset data'!$CX140:$GJ140),0) -> 0 | X140: =IF($A140>0,SUMIF('Age profile (years)'!$CT140:$GF140,"<" & S140+0.5,'Asset data'!$CX140:$GJ140)-W140,0) -> 0 | Y140: =IF($A140>0,SUMIF('Age profile (years)'!$CT140:$GF140,"<" & T140+0.5,'Asset data'!$CX140:$GJ140)-X140-W140,0) -> 0 | Z140: =IF($A140>0,SUMIF('Age profile (years)'!$CT140:$GF140,"<" & U140+0.5,'Asset data'!$CX140:$GJ140)-Y140-X140-W140,0) -> 0 | AA140: 0 | AB140: 0 | AC140: 0 | AD140: 0 | AE140: 0 | AF140: 0 | AI140: =IF($A140>0,'RRR hist-forc'!K140,0) -> 0 | AJ140: 0
A141: ='Asset data'!A141 -> 0 | B141: ='Asset data'!B141 -> 0 | C141: ='Asset data'!C141 -> 0 | D141: ='Asset data'!E141 -> 0 | E141: 0 | F141: =IF(A141>0,SUM('Asset data'!J141:CV141),0) -> 0 | G141: =IF(A141>0,'Asset data'!F141,0) -> 0 | H141: =IF(A141>0,SUM('Asset data'!CX141:GJ141),0) -> 0 | I141: 0 | J141: 0 | K141: 0 | L141: 0 | M141: =IF($A141>0,SUMPRODUCT('Age profile (years)'!$CT141:$GF141,'Asset data'!$CX141:$GJ141)/H141-0.5,0) -> 0 | N141: 0 | O141: =IF($A141>0,'Asset data'!G141,0) -> 0 | P141: 0 | Q141: 0 | R141: 0 | S141: 0 | T141: 0 | U141: 0 | W141: =IF($A141>0,SUMIF('Age profile (years)'!$CT141:$GF141,"<" & R141+0.5,'Asset data'!$CX141:$GJ141),0) -> 0 | X141: =IF($A141>0,SUMIF('Age profile (years)'!$CT141:$GF141,"<" & S141+0.5,'Asset data'!$CX141:$GJ141)-W141,0) -> 0 | Y141: =IF($A141>0,SUMIF('Age profile (years)'!$CT141:$GF141,"<" & T141+0.5,'Asset data'!$CX141:$GJ141)-X141-W141,0) -> 0 | Z141: =IF($A141>0,SUMIF('Age profile (years)'!$CT141:$GF141,"<" & U141+0.5,'Asset data'!$CX141:$GJ141)-Y141-X141-W141,0) -> 0 | AA141: 0 | AB141: 0 | AC141: 0 | AD141: 0 | AE141: 0 | AF141: 0 | AI141: =IF($A141>0,'RRR hist-forc'!K141,0) -> 0 | AJ141: 0
A142: ='Asset data'!A142 -> 0 | B142: ='Asset data'!B142 -> 0 | C142: ='Asset data'!C142 -> 0 | D142: ='Asset data'!E142 -> 0 | E142: 0 | F142: =IF(A142>0,SUM('Asset data'!J142:CV142),0) -> 0 | G142: =IF(A142>0,'Asset data'!F142,0) -> 0 | H142: =IF(A142>0,SUM('Asset data'!CX142:GJ142),0) -> 0 | I142: 0 | J142: 0 | K142: 0 | L142: 0 | M142: =IF($A142>0,SUMPRODUCT('Age profile (years)'!$CT142:$GF142,'Asset data'!$CX142:$GJ142)/H142-0.5,0) -> 0 | N142: 0 | O142: =IF($A142>0,'Asset data'!G142,0) -> 0 | P142: 0 | Q142: 0 | R142: 0 | S142: 0 | T142: 0 | U142: 0 | W142: =IF($A142>0,SUMIF('Age profile (years)'!$CT142:$GF142,"<" & R142+0.5,'Asset data'!$CX142:$GJ142),0) -> 0 | X142: =IF($A142>0,SUMIF('Age profile (years)'!$CT142:$GF142,"<" & S142+0.5,'Asset data'!$CX142:$GJ142)-W142,0) -> 0 | Y142: =IF($A142>0,SUMIF('Age profile (years)'!$CT142:$GF142,"<" & T142+0.5,'Asset data'!$CX142:$GJ142)-X142-W142,0) -> 0 | Z142: =IF($A142>0,SUMIF('Age profile (years)'!$CT142:$GF142,"<" & U142+0.5,'Asset data'!$CX142:$GJ142)-Y142-X142-W142,0) -> 0 | AA142: 0 | AB142: 0 | AC142: 0 | AD142: 0 | AE142: 0 | AF142: 0 | AI142: =IF($A142>0,'RRR hist-forc'!K142,0) -> 0 | AJ142: 0
A143: ='Asset data'!A143 -> 0 | B143: ='Asset data'!B143 -> 0 | C143: ='Asset data'!C143 -> 0 | D143: ='Asset data'!E143 -> 0 | E143: 0 | F143: =IF(A143>0,SUM('Asset data'!J143:CV143),0) -> 0 | G143: =IF(A143>0,'Asset data'!F143,0) -> 0 | H143: =IF(A143>0,SUM('Asset data'!CX143:GJ143),0) -> 0 | I143: 0 | J143: 0 | K143: 0 | L143: 0 | M143: =IF($A143>0,SUMPRODUCT('Age profile (years)'!$CT143:$GF143,'Asset data'!$CX143:$GJ143)/H143-0.5,0) -> 0 | N143: 0 | O143: =IF($A143>0,'Asset data'!G143,0) -> 0 | P143: 0 | Q143: 0 | R143: 0 | S143: 0 | T143: 0 | U143: 0 | W143: =IF($A143>0,SUMIF('Age profile (years)'!$CT143:$GF143,"<" & R143+0.5,'Asset data'!$CX143:$GJ143),0) -> 0 | X143: =IF($A143>0,SUMIF('Age profile (years)'!$CT143:$GF143,"<" & S143+0.5,'Asset data'!$CX143:$GJ143)-W143,0) -> 0 | Y143: =IF($A143>0,SUMIF('Age profile (years)'!$CT143:$GF143,"<" & T143+0.5,'Asset data'!$CX143:$GJ143)-X143-W143,0) -> 0 | Z143: =IF($A143>0,SUMIF('Age profile (years)'!$CT143:$GF143,"<" & U143+0.5,'Asset data'!$CX143:$GJ143)-Y143-X143-W143,0) -> 0 | AA143: 0 | AB143: 0 | AC143: 0 | AD143: 0 | AE143: 0 | AF143: 0 | AI143: =IF($A143>0,'RRR hist-forc'!K143,0) -> 0 | AJ143: 0
A144: ='Asset data'!A144 -> 0 | B144: ='Asset data'!B144 -> 0 | C144: ='Asset data'!C144 -> 0 | D144: ='Asset data'!E144 -> 0 | E144: 0 | F144: =IF(A144>0,SUM('Asset data'!J144:CV144),0) -> 0 | G144: =IF(A144>0,'Asset data'!F144,0) -> 0 | H144: =IF(A144>0,SUM('Asset data'!CX144:GJ144),0) -> 0 | I144: 0 | J144: 0 | K144: 0 | L144: 0 | M144: =IF($A144>0,SUMPRODUCT('Age profile (years)'!$CT144:$GF144,'Asset data'!$CX144:$GJ144)/H144-0.5,0) -> 0 | N144: 0 | O144: =IF($A144>0,'Asset data'!G144,0) -> 0 | P144: 0 | Q144: 0 | R144: 0 | S144: 0 | T144: 0 | U144: 0 | W144: =IF($A144>0,SUMIF('Age profile (years)'!$CT144:$GF144,"<" & R144+0.5,'Asset data'!$CX144:$GJ144),0) -> 0 | X144: =IF($A144>0,SUMIF('Age profile (years)'!$CT144:$GF144,"<" & S144+0.5,'Asset data'!$CX144:$GJ144)-W144,0) -> 0 | Y144: =IF($A144>0,SUMIF('Age profile (years)'!$CT144:$GF144,"<" & T144+0.5,'Asset data'!$CX144:$GJ144)-X144-W144,0) -> 0 | Z144: =IF($A144>0,SUMIF('Age profile (years)'!$CT144:$GF144,"<" & U144+0.5,'Asset data'!$CX144:$GJ144)-Y144-X144-W144,0) -> 0 | AA144: 0 | AB144: 0 | AC144: 0 | AD144: 0 | AE144: 0 | AF144: 0 | AI144: =IF($A144>0,'RRR hist-forc'!K144,0) -> 0 | AJ144: 0
A145: ='Asset data'!A145 -> 0 | B145: ='Asset data'!B145 -> 0 | C145: ='Asset data'!C145 -> 0 | D145: ='Asset data'!E145 -> 0 | E145: 0 | F145: =IF(A145>0,SUM('Asset data'!J145:CV145),0) -> 0 | G145: =IF(A145>0,'Asset data'!F145,0) -> 0 | H145: =IF(A145>0,SUM('Asset data'!CX145:GJ145),0) -> 0 | I145: 0 | J145: 0 | K145: 0 | L145: 0 | M145: =IF($A145>0,SUMPRODUCT('Age profile (years)'!$CT145:$GF145,'Asset data'!$CX145:$GJ145)/H145-0.5,0) -> 0 | N145: 0 | O145: =IF($A145>0,'Asset data'!G145,0) -> 0 | P145: 0 | Q145: 0 | R145: 0 | S145: 0 | T145: 0 | U145: 0 | W145: =IF($A145>0,SUMIF('Age profile (years)'!$CT145:$GF145,"<" & R145+0.5,'Asset data'!$CX145:$GJ145),0) -> 0 | X145: =IF($A145>0,SUMIF('Age profile (years)'!$CT145:$GF145,"<" & S145+0.5,'Asset data'!$CX145:$GJ145)-W145,0) -> 0 | Y145: =IF($A145>0,SUMIF('Age profile (years)'!$CT145:$GF145,"<" & T145+0.5,'Asset data'!$CX145:$GJ145)-X145-W145,0) -> 0 | Z145: =IF($A145>0,SUMIF('Age profile (years)'!$CT145:$GF145,"<" & U145+0.5,'Asset data'!$CX145:$GJ145)-Y145-X145-W145,0) -> 0 | AA145: 0 | AB145: 0 | AC145: 0 | AD145: 0 | AE145: 0 | AF145: 0 | AI145: =IF($A145>0,'RRR hist-forc'!K145,0) -> 0 | AJ145: 0
A146: ='Asset data'!A146 -> 0 | B146: ='Asset data'!B146 -> 0 | C146: ='Asset data'!C146 -> 0 | D146: ='Asset data'!E146 -> 0 | E146: 0 | F146: =IF(A146>0,SUM('Asset data'!J146:CV146),0) -> 0 | G146: =IF(A146>0,'Asset data'!F146,0) -> 0 | H146: =IF(A146>0,SUM('Asset data'!CX146:GJ146),0) -> 0 | I146: 0 | J146: 0 | K146: 0 | L146: 0 | M146: =IF($A146>0,SUMPRODUCT('Age profile (years)'!$CT146:$GF146,'Asset data'!$CX146:$GJ146)/H146-0.5,0) -> 0 | N146: 0 | O146: =IF($A146>0,'Asset data'!G146,0) -> 0 | P146: 0 | Q146: 0 | R146: 0 | S146: 0 | T146: 0 | U146: 0 | W146: =IF($A146>0,SUMIF('Age profile (years)'!$CT146:$GF146,"<" & R146+0.5,'Asset data'!$CX146:$GJ146),0) -> 0 | X146: =IF($A146>0,SUMIF('Age profile (years)'!$CT146:$GF146,"<" & S146+0.5,'Asset data'!$CX146:$GJ146)-W146,0) -> 0 | Y146: =IF($A146>0,SUMIF('Age profile (years)'!$CT146:$GF146,"<" & T146+0.5,'Asset data'!$CX146:$GJ146)-X146-W146,0) -> 0 | Z146: =IF($A146>0,SUMIF('Age profile (years)'!$CT146:$GF146,"<" & U146+0.5,'Asset data'!$CX146:$GJ146)-Y146-X146-W146,0) -> 0 | AA146: 0 | AB146: 0 | AC146: 0 | AD146: 0 | AE146: 0 | AF146: 0 | AI146: =IF($A146>0,'RRR hist-forc'!K146,0) -> 0 | AJ146: 0
A147: ='Asset data'!A147 -> 0 | B147: ='Asset data'!B147 -> 0 | C147: ='Asset data'!C147 -> 0 | D147: ='Asset data'!E147 -> 0 | E147: 0 | F147: =IF(A147>0,SUM('Asset data'!J147:CV147),0) -> 0 | G147: =IF(A147>0,'Asset data'!F147,0) -> 0 | H147: =IF(A147>0,SUM('Asset data'!CX147:GJ147),0) -> 0 | I147: 0 | J147: 0 | K147: 0 | L147: 0 | M147: =IF($A147>0,SUMPRODUCT('Age profile (years)'!$CT147:$GF147,'Asset data'!$CX147:$GJ147)/H147-0.5,0) -> 0 | N147: 0 | O147: =IF($A147>0,'Asset data'!G147,0) -> 0 | P147: 0 | Q147: 0 | R147: 0 | S147: 0 | T147: 0 | U147: 0 | W147: =IF($A147>0,SUMIF('Age profile (years)'!$CT147:$GF147,"<" & R147+0.5,'Asset data'!$CX147:$GJ147),0) -> 0 | X147: =IF($A147>0,SUMIF('Age profile (years)'!$CT147:$GF147,"<" & S147+0.5,'Asset data'!$CX147:$GJ147)-W147,0) -> 0 | Y147: =IF($A147>0,SUMIF('Age profile (years)'!$CT147:$GF147,"<" & T147+0.5,'Asset data'!$CX147:$GJ147)-X147-W147,0) -> 0 | Z147: =IF($A147>0,SUMIF('Age profile (years)'!$CT147:$GF147,"<" & U147+0.5,'Asset data'!$CX147:$GJ147)-Y147-X147-W147,0) -> 0 | AA147: 0 | AB147: 0 | AC147: 0 | AD147: 0 | AE147: 0 | AF147: 0 | AI147: =IF($A147>0,'RRR hist-forc'!K147,0) -> 0 | AJ147: 0
A148: ='Asset data'!A148 -> 0 | B148: ='Asset data'!B148 -> 0 | C148: ='Asset data'!C148 -> 0 | D148: ='Asset data'!E148 -> 0 | E148: 0 | F148: =IF(A148>0,SUM('Asset data'!J148:CV148),0) -> 0 | G148: =IF(A148>0,'Asset data'!F148,0) -> 0 | H148: =IF(A148>0,SUM('Asset data'!CX148:GJ148),0) -> 0 | I148: 0 | J148: 0 | K148: 0 | L148: 0 | M148: =IF($A148>0,SUMPRODUCT('Age profile (years)'!$CT148:$GF148,'Asset data'!$CX148:$GJ148)/H148-0.5,0) -> 0 | N148: 0 | O148: =IF($A148>0,'Asset data'!G148,0) -> 0 | P148: 0 | Q148: 0 | R148: 0 | S148: 0 | T148: 0 | U148: 0 | W148: =IF($A148>0,SUMIF('Age profile (years)'!$CT148:$GF148,"<" & R148+0.5,'Asset data'!$CX148:$GJ148),0) -> 0 | X148: =IF($A148>0,SUMIF('Age profile (years)'!$CT148:$GF148,"<" & S148+0.5,'Asset data'!$CX148:$GJ148)-W148,0) -> 0 | Y148: =IF($A148>0,SUMIF('Age profile (years)'!$CT148:$GF148,"<" & T148+0.5,'Asset data'!$CX148:$GJ148)-X148-W148,0) -> 0 | Z148: =IF($A148>0,SUMIF('Age profile (years)'!$CT148:$GF148,"<" & U148+0.5,'Asset data'!$CX148:$GJ148)-Y148-X148-W148,0) -> 0 | AA148: 0 | AB148: 0 | AC148: 0 | AD148: 0 | AE148: 0 | AF148: 0 | AI148: =IF($A148>0,'RRR hist-forc'!K148,0) -> 0 | AJ148: 0
AI206: =IF($A206>0,'RRR hist-forc'!K206,0) -> 0 | AJ206: =IF($A206>0,AI206*H206,0) -> 0

Sheet Asset data
A1: Meth all | D1: 3 | E1: =IF(D1=2,"all normal",IF(D1=1,"all deterministic","individual")) -> individual | L1: Profile type: | M1: 3 | N1: =VLOOKUP(APtype,IDtable,4) -> Installation date
F3: Unit | J3: Quantities | CX3: Replacement Cost (NOT depreciated)
F4: Cost | G4: Replacement life | I4: Rep | J4: =VLOOKUP(APtype,IDtable,4) -> Installation date | CX4: =VLOOKUP(APtype,IDtable,4) -> Installation date
A5: ID | B5: ID | C5: ID | D5: Asset category | E5: Asset ID | F5: $ ('000) | G5: mean | H5: SD | I5: Meth | J5: =IF(OR(APtype=1,APtype=2),0,IF(APtype=3,Now,9999)) -> 2013 | K5: =IF(OR(APtype=1,APtype=2),J5+1,IF(APtype=3,J5-1,9999)) -> 2012 | L5: 2011 | M5: 2010 | N5: 2009 | O5: 2008 | P5: 2007 | Q5: 2006 | R5: 2005 | S5: 2004 | T5: 2003 | U5: 2002 | V5: 2001 | W5: 2000 | X5: 1999 | Y5: 1998 | Z5: 1997 | AA5: 1996 | AB5: 1995 | AC5: 1994 | AD5: 1993 | AE5: 1992 | AF5: 1991 | AG5: 1990 | AH5: 1989 | AI5: 1988 | AJ5: 1987 | AK5: 1986 | AL5: 1985 | AM5: 1984 | AN5: 1983 | AO5: 1982 | AP5: 1981 | AQ5: =IF(OR(APtype=1,APtype=2),AP5+1,IF(APtype=3,AP5-1,9999)) -> 1980 | AR5: 1979 | AS5: 1978 | AT5: 1977 | AU5: 1976 | AV5: 1975 | AW5: 1974 | AX5: 1973 | AY5: 1972 | AZ5: 1971 | BA5: 1970 | BB5: 1969 | BC5: 1968 | BD5: 1967 | BE5: 1966 | BF5: 1965 | BG5: 1964 | BH5: 1963 | BI5: 1962 | BJ5: 1961 | BK5: 1960 | BL5: 1959 | BM5: 1958 | BN5: 1957 | BO5: 1956 | BP5: 1955 | BQ5: 1954 | BR5: 1953 | BS5: 1952 | BT5: 1951 | BU5: 1950 | BV5: 1949 | BW5: =IF(OR(APtype=1,APtype=2),BV5+1,IF(APtype=3,BV5-1,9999)) -> 1948 | BX5: 1947 | BY5: 1946 | BZ5: 1945 | CA5: 1944 | CB5: 1943 | CC5: 1942 | CD5: 1941 | CE5: 1940 | CF5: 1939 | CG5: 1938 | CH5: 1937 | CI5: 1936 | CJ5: 1935 | CK5: 1934 | CL5: 1933 | CM5: 1932 | CN5: 1931 | CO5: 1930 | CP5: 1929 | CQ5: 1928 | CR5: 1927 | CS5: 1926 | CT5: 1925 | CU5: 1924 | CV5: 1923 | CX5: =J5 -> 2013 | CY5: =K5 -> 2012 | CZ5: 2011 | DA5: 2010 | DB5: 2009 | DC5: 2008 | DD5: 2007 | DE5: 2006 | DF5: 2005 | DG5: 2004 | DH5: 2003 | DI5: 2002 | DJ5: 2001 | DK5: 2000 | DL5: 1999 | DM5: 1998 | DN5: 1997 | DO5: 1996 | DP5: 1995 | DQ5: 1994 | DR5: 1993 | DS5: 1992 | DT5: 1991 | DU5: 1990 | DV5: 1989 | DW5: 1988 | DX5: 1987 | DY5: 1986 | DZ5: 1985 | EA5: 1984 | EB5: 1983 | EC5: 1982 | ED5: 1981 | EE5: 1980 | EF5: 1979 | EG5: 1978 | EH5: 1977 | EI5: 1976 | EJ5: 1975 | EK5: 1974 | EL5: 1973 | EM5: 1972 | EN5: 1971 | EO5: 1970 | EP5: 1969 | EQ5: 1968 | ER5: 1967 | ES5: 1966 | ET5: 1965 | EU5: 1964 | EV5: 1963 | EW5: 1962 | EX5: 1961 | EY5: 1960 | EZ5: 1959 | FA5: 1958 | FB5: 1957 | FC5: 1956 | FD5: 1955 | FE5: 1954 | FF5: 1953 | FG5: 1952 | FH5: 1951 | FI5: 1950 | FJ5: 1949 | FK5: =BW5 -> 1948 | FL5: 1947 | FM5: 1946 | FN5: 1945 | FO5: 1944 | FP5: 1943 | FQ5: 1942 | FR5: 1941 | FS5: 1940 | FT5: 1939 | FU5: 1938 | FV5: 1937 | FW5: 1936 | FX5: 1935 | FY5: 1934 | FZ5: 1933 | GA5: 1932 | GB5: 1931 | GC5: 1930 | GD5: 1929 | GE5: 1928 | GF5: 1927 | GG5: 1926 | GH5: 1925 | GI5: 1924 | GJ5: 1923
D21: =IF(A21>0,VLOOKUP(A21,IDtable,2),"") ->  | CX21: =$F21*J21 -> 0 | CY21: =$F21*K21 -> 0 | CZ21: 0 | DA21: 0 | DB21: 0 | DC21: 0 | DD21: 0 | DE21: 0 | DF21: 0 | DG21: 0 | DH21: 0 | DI21: 0 | DJ21: 0 | DK21: 0 | DL21: 0 | DM21: 0 | DN21: 0 | DO21: 0 | DP21: 0 | DQ21: 0 | DR21: 0 | DS21: 0 | DT21: 0 | DU21: 0 | DV21: 0 | DW21: 0 | DX21: 0 | DY21: 0 | DZ21: 0 | EA21: 0 | EB21: 0 | EC21: 0 | ED21: 0 | EE21: 0 | EF21: 0 | EG21: 0 | EH21: 0 | EI21: 0 | EJ21: 0 | EK21: 0 | EL21: 0 | EM21: 0 | EN21: 0 | EO21: 0 | EP21: 0 | EQ21: 0 | ER21: 0 | ES21: 0 | ET21: 0 | EU21: 0 | EV21: 0 | EW21: 0 | EX21: 0 | EY21: 0 | EZ21: 0 | FA21: 0 | FB21: 0 | FC21: 0 | FD21: 0 | FE21: 0 | FF21: 0 | FG21: 0 | FH21: 0 | FI21: 0 | FJ21: 0 | FK21: =$F21*BW21 -> 0 | FL21: 0 | FM21: 0 | FN21: 0 | FO21: 0 | FP21: 0 | FQ21: 0 | FR21: 0 | FS21: 0 | FT21: 0 | FU21: 0 | FV21: 0 | FW21: 0 | FX21: 0 | FY21: 0 | FZ21: 0 | GA21: 0 | GB21: 0 | GC21: 0 | GD21: 0 | GE21: 0 | GF21: 0 | GG21: 0 | GH21: 0 | GI21: 0 | GJ21: 0
A22: =IF(SUM(J22:CV22)=0, 0,1) -> 1 | D22: POLES | E22: STAKING OF A WOODEN POLE | F22: 5.611592169 | G22: 53.8 | H22: 7.334848328 | I22: 2 | J22: 394 | K22: 635 | L22: 334 | M22: 838 | N22: 741 | O22: 837 | P22: 986 | Q22: 1074 | R22: 642 | S22: 773.0666667 | T22: 773.0666667 | U22: 773.0666667 | V22: 773.0666667 | W22: 773.0666667 | X22: 773.0666667 | Y22: 773.0666667 | Z22: 773.0666667 | AA22: 773.0666667 | AB22: 773.0666667 | AC22: 773.0666667 | AD22: 773.0666667 | AE22: 773.0666667 | AF22: 773.0666667 | AG22: 773.0666667 | AH22: 0 | AI22: 0 | AJ22: 0 | AK22: 0 | AL22: 0 | AM22: 0 | AN22: 0 | AO22: 0 | AP22: 0 | AQ22: 0 | AR22: 0 | AS22: 0 | AT22: 0 | AU22: 0 | AV22: 0 | AW22: 0 | AX22: 0 | AY22: 0 | AZ22: 0 | BA22: 0 | BB22: 0 | BC22: 0 | BD22: 0 | BE22: 0 | BF22: 0 | BG22: 0 | BH22: 0 | BI22: 0 | BJ22: 0 | BK22: 0 | BL22: 0 | BM22: 0 | BN22: 0 | BO22: 0 | BP22: 0 | BQ22: 0 | BR22: 0 | BS22: 0 | BT22: 0 | BU22: 0 | BV22: 0 | BW22: 0 | BX22: 0 | BY22: 0 | BZ22: 0 | CA22: 0 | CB22: 0 | CC22: 0 | CD22: 0 | CE22: 0 | CF22: 0 | CG22: 0 | CH22: 0 | CI22: 0 | CJ22: 0 | CK22: 0 | CL22: 0 | CM22: 0 | CN22: 0 | CO22: 0 | CP22: 0 | CQ22: 0 | CR22: 0 | CS22: 0 | CT22: 0 | CU22: 0 | CV22: 0 | CX22: =$F22*J22 -> 2210.967315 | CY22: =$F22*K22 -> 3563.361027 | CZ22: =$F22*L22 -> 1874.271784 | DA22: =$F22*M22 -> 4702.514237 | DB22: =$F22*N22 -> 4158.189797 | DC22: =$F22*O22 -> 4696.902645 | DD22: =$F22*P22 -> 5533.029878 | DE22: =$F22*Q22 -> 6026.849989 | DF22: =$F22*R22 -> 3602.642172 | DG22: =$F22*S22 -> 4338.134853 | DH22: =$F22*T22 -> 4338.134853 | DI22: =$F22*U22 -> 4338.134853 | DJ22: =$F22*V22 -> 4338.134853 | DK22: =$F22*W22 -> 4338.134853 | DL22: =$F22*X22 -> 4338.134853 | DM22: =$F22*Y22 -> 4338.134853 | DN22: =$F22*Z22 -> 4338.134853 | DO22: =$F22*AA22 -> 4338.134853 | DP22: =$F22*AB22 -> 4338.134853 | DQ22: =$F22*AC22 -> 4338.134853 | DR22: =$F22*AD22 -> 4338.134853 | DS22: =$F22*AE22 -> 4338.134853 | DT22: =$F22*AF22 -> 4338.134853 | DU22: =$F22*AG22 -> 4338.134853 | DV22: =$F22*AH22 -> 0 | DW22: =$F22*AI22 -> 0 | DX22: =$F22*AJ22 -> 0 | DY22: =$F22*AK22 -> 0 | DZ22: =$F22*AL22 -> 0 | EA22: =$F22*AM22 -> 0 | EB22: =$F22*AN22 -> 0 | EC22: =$F22*AO22 -> 0 | ED22: =$F22*AP22 -> 0 | EE22: =$F22*AQ22 -> 0 | EF22: =$F22*AR22 -> 0 | EG22: =$F22*AS22 -> 0 | EH22: =$F22*AT22 -> 0 | EI22: =$F22*AU22 -> 0 | EJ22: =$F22*AV22 -> 0 | EK22: =$F22*AW22 -> 0 | EL22: =$F22*AX22 -> 0 | EM22: =$F22*AY22 -> 0 | EN22: =$F22*AZ22 -> 0 | EO22: =$F22*BA22 -> 0 | EP22: =$F22*BB22 -> 0 | EQ22: =$F22*BC22 -> 0 | ER22: =$F22*BD22 -> 0 | ES22: =$F22*BE22 -> 0 | ET22: =$F22*BF22 -> 0 | EU22: =$F22*BG22 -> 0 | EV22: =$F22*BH22 -> 0 | EW22: =$F22*BI22 -> 0 | EX22: =$F22*BJ22 -> 0 | EY22: =$F22*BK22 -> 0 | EZ22: =$F22*BL22 -> 0 | FA22: =$F22*BM22 -> 0 | FB22: =$F22*BN22 -> 0 | FC22: =$F22*BO22 -> 0 | FD22: =$F22*BP22 -> 0 | FE22: =$F22*BQ22 -> 0 | FF22: =$F22*BR22 -> 0 | FG22: =$F22*BS22 -> 0 | FH22: =$F22*BT22 -> 0 | FI22: =$F22*BU22 -> 0 | FJ22: =$F22*BV22 -> 0 | FK22: =$F22*BW22 -> 0 | FL22: =$F22*BX22 -> 0 | FM22: =$F22*BY22 -> 0 | FN22: =$F22*BZ22 -> 0 | FO22: =$F22*CA22 -> 0 | FP22: =$F22*CB22 -> 0 | FQ22: =$F22*CC22 -> 0 | FR22: =$F22*CD22 -> 0 | FS22: =$F22*CE22 -> 0 | FT22: =$F22*CF22 -> 0 | FU22: =$F22*CG22 -> 0 | FV22: =$F22*CH22 -> 0 | FW22: =$F22*CI22 -> 0 | FX22: =$F22*CJ22 -> 0 | FY22: =$F22*CK22 -> 0 | FZ22: =$F22*CL22 -> 0 | GA22: =$F22*CM22 -> 0 | GB22: =$F22*CN22 -> 0 | GC22: =$F22*CO22 -> 0 | GD22: =$F22*CP22 -> 0 | GE22: =$F22*CQ22 -> 0 | GF22: =$F22*CR22 -> 0 | GG22: =$F22*CS22 -> 0 | GH22: =$F22*CT22 -> 0 | GI22: =$F22*CU22 -> 0 | GJ22: =$F22*CV22 -> 0
A23: =IF(SUM(J23:CV23)=0, 0,1) -> 1 | D23: POLES | E23: ˂ = 1 KV; WOOD | F23: 3.206722943 | G23: 53.8 | H23: 7.334848328 | I23: 2 | J23: 2298 | K23: 2185 | L23: 2207 | M23: 2016 | N23: 2302 | O23: 2718 | P23: 2852 | Q23: 2702 | R23: 3180 | S23: 3690 | T23: 2974 | U23: 2786 | V23: 3155 | W23: 3558 | X23: 2675 | Y23: 2612 | Z23: 2594 | AA23: 3895 | AB23: 5050 | AC23: 5791 | AD23: 6010 | AE23: 5903 | AF23: 7608 | AG23: 8601 | AH23: 7049 | AI23: 7436 | AJ23: 9213 | AK23: 6829 | AL23: 6581 | AM23: 6030 | AN23: 4505 | AO23: 6122 | AP23: 6264 | AQ23: 8368 | AR23: 5226 | AS23: 6038 | AT23: 7266 | AU23: 4717 | AV23: 7150 | AW23: 5962 | AX23: 6691 | AY23: 5511 | AZ23: 8656 | BA23: 14647 | BB23: 6072 | BC23: 5092 | BD23: 6269 | BE23: 14324 | BF23: 9306 | BG23: 3290 | BH23: 3248 | BI23: 1392 | BJ23: 6961 | BK23: 19709 | BL23: 1439 | BM23: 3404 | BN23: 1548 | BO23: 2063 | BP23: 7363 | BQ23: 1092 | BR23: 1482 | BS23: 3457 | BT23: 240 | BU23: 12527 | BV23: 598 | BW23: 391 | BX23: 358 | BY23: 215 | BZ23: 105 | CA23: 30 | CB23: 0 | CC23: 35 | CD23: 1 | CE23: 321 | CF23: 61 | CG23: 66 | CH23: 37 | CI23: 92 | CJ23: 43 | CK23: 13 | CL23: 1 | CM23: 1 | CN23: 15 | CO23: 1632 | CP23: 0 | CQ23: 10 | CR23: 1 | CS23: 0 | CT23: 46 | CU23: 0 | CV23: 1 | CX23: =$F23*J23 -> 7369.049322 | CY23: 7006.68963 | CZ23: 7077.237534 | DA23: 6464.753452 | DB23: 7381.876214 | DC23: 8715.872958 | DD23: 9145.573832 | DE23: 8664.565391 | DF23: 10197.37896 | DG23: 11832.80766 | DH23: 9536.794031 | DI23: 8933.930118 | DJ23: 10117.21088 | DK23: 11409.52023 | DL23: 8577.983871 | DM23: 8375.960326 | DN23: 8318.239313 | DO23: 12490.18586 | DP23: 16193.95086 | DQ23: 18570.13256 | DR23: 19272.40489 | DS23: 18929.28553 | DT23: 24396.74815 | DU23: 27581.02403 | DV23: 22604.19002 | DW23: 23845.1918 | DX23: 29543.53847 | DY23: 21898.71098 | DZ23: 21103.44369 | EA23: 19336.53934 | EB23: 14446.28686 | EC23: 19631.55785 | ED23: 20086.91251 | EE23: 26833.85758 | EF23: 16758.3341 | EG23: 19362.19313 | EH23: 23300.0489 | EI23: 15126.11212 | EJ23: 22928.06904 | EK23: 19118.48218 | EL23: 21456.18321 | EM23: 17672.25014 | EN23: 27757.39379 | EO23: 46968.87094 | EP23: 19471.22171 | EQ23: 16328.63322 | ER23: 20102.94613 | ES23: 45933.09943 | ET23: 29841.7637 | EU23: 10550.11848 | EV23: 10415.43612 | EW23: 4463.758336 | EX23: 22321.9984 | EY23: 63201.30248 | EZ23: 4614.474314 | FA23: 10915.6849 | FB23: 4964.007115 | FC23: 6615.469431 | FD23: 23611.10103 | FE23: 3501.741453 | FF23: 4752.363401 | FG23: 11085.64121 | FH23: 769.6135062 | FI23: 40170.6183 | FJ23: 1917.62032 | FK23: 1253.828671 | FL23: 1148.006813 | FM23: 689.4454327 | FN23: 336.705909 | FO23: 96.20168828 | FP23: 0 | FQ23: 112.235303 | FR23: 3.206722943 | FS23: 1029.358065 | FT23: 195.6100995 | FU23: 211.6437142 | FV23: 118.6487489 | FW23: 295.0185107 | FX23: 137.8890865 | FY23: 41.68739825 | FZ23: 3.206722943 | GA23: 3.206722943 | GB23: 48.10084414 | GC23: 5233.371842 | GD23: 0 | GE23: 32.06722943 | GF23: 3.206722943 | GG23: 0 | GH23: 147.5092554 | GI23: 0 | GJ23: 3.206722943
A24: 1 | D24: POLES | E24: > 1 KV & < = 11 KV; WOOD | F24: 3.206722943 | G24: 53.8 | H24: 7.334848328 | I24: 2 | J24: 5444 | K24: 6433 | L24: 6775 | M24: 5139 | N24: 5205 | O24: 6009 | P24: 5518 | Q24: 6093 | R24: 5869 | S24: 6534 | T24: 5808 | U24: 5565 | V24: 5345 | W24: 5261 | X24: 3965 | Y24: 3708 | Z24: 3883 | AA24: 5067 | AB24: 6429 | AC24: 7681 | AD24: 7046 | AE24: 7428 | AF24: 9200 | AG24: 8610 | AH24: 8058 | AI24: 8652 | AJ24: 11042 | AK24: 9188 | AL24: 8084 | AM24: 6630 | AN24: 5737 | AO24: 7911 | AP24: 7656 | AQ24: 8958 | AR24: 5510 | AS24: 6708 | AT24: 8451 | AU24: 5981 | AV24: 7292 | AW24: 5519 | AX24: 5261 | AY24: 6184 | AZ24: 9446 | BA24: 18148 | BB24: 9671 | BC24: 4953 | BD24: 8064 | BE24: 11685 | BF24: 8339 | BG24: 3150 | BH24: 5230 | BI24: 4050 | BJ24: 9766 | BK24: 31249 | BL24: 3278 | BM24: 3252 | BN24: 3291 | BO24: 3195 | BP24: 10387 | BQ24: 1017 | BR24: 3754 | BS24: 5312 | BT24: 264 | BU24: 20789 | BV24: 469 | BW24: 335 | BX24: 399 | BY24: 210 | BZ24: 56 | CA24: 21 | CB24: 0 | CC24: 0 | CD24: 1 | CE24: 227 | CF24: 157 | CG24: 103 | CH24: 9 | CI24: 209 | CJ24: 8 | CK24: 8 | CL24: 1 | CM24: 0 | CN24: 2 | CO24: 72 | CP24: 0 | CQ24: 0 | CR24: 0 | CS24: 0 | CT24: 0 | CU24: 0 | CV24: 0 | CX24: 17457.3997 | CY24: 20628.84869 | CZ24: 21725.54794 | DA24: 16479.3492 | DB24: 16690.99292 | DC24: 19269.19816 | DD24: 17694.6972 | DE24: 19538.56289 | DF24: 18820.25695 | DG24: 20952.72771 | DH24: 18624.64685 | DI24: 17845.41318 | DJ24: 17139.93413 | DK24: 16870.5694 | DL24: 12714.65647 | DM24: 11890.52867 | DN24: 12451.70519 | DO24: 16248.46515 | DP24: 20616.0218 | DQ24: 24630.83892 | DR24: 22594.56985 | DS24: 23819.53802 | DT24: 29501.85107 | DU24: 27609.88454 | DV24: 25839.77347 | DW24: 27744.5669 | DX24: 35408.63473 | DY24: 29463.3704 | DZ24: 25923.14827 | EA24: 21260.57311 | EB24: 18396.96952 | EC24: 25368.3852 | ED24: 24550.67085 | EE24: 28725.82412 | EF24: 17669.04341 | EG24: 21510.6975 | EH24: 27100.01559 | EI24: 19179.40992 | EJ24: 23383.4237 | EK24: 17697.90392 | EL24: 16870.5694 | EM24: 19830.37468 | EN24: 30290.70492 | EO24: 58195.60796 | EP24: 31012.21758 | EQ24: 15882.89873 | ER24: 25859.01381 | ES24: 37470.55758 | ET24: 26740.86262 | EU24: 10101.17727 | EV24: 16771.16099 | EW24: 12987.22792 | EX24: 31316.85626 | EY24: 100206.8852 | EZ24: 10511.63781 | FA24: 10428.26301 | FB24: 10553.3252 | FC24: 10245.4798 | FD24: 33308.2312 | FE24: 3261.237233 | FF24: 12038.03793 | FG24: 17034.11227 | FH24: 846.5748568 | FI24: 66664.56325 | FJ24: 1503.95306 | FK24: 1074.252186 | FL24: 1279.482454 | FM24: 673.4118179 | FN24: 179.5764848 | FO24: 67.34118179 | FP24: 0 | FQ24: 0 | FR24: 3.206722943 | FS24: 727.926108 | FT24: 503.455502 | FU24: 330.2924631 | FV24: 28.86050648 | FW24: 670.205095 | FX24: 25.65378354 | FY24: 25.65378354 | FZ24: 3.206722943 | GA24: 0 | GB24: 6.413445885 | GC24: 230.8840519 | GD24: 0 | GE24: 0 | GF24: 0 | GG24: 0 | GH24: 0 | GI24: 0 | GJ24: 0
A25: 1 | D25: POLES | E25: ˃ 11 KV & < = 22 KV; WOOD | F25: 3.206722943 | G25: 54.9 | H25: 7.409453421 | I25: 2 | J25: 2654 | K25: 2560 | L25: 2247 | M25: 1926 | N25: 1939 | O25: 2239 | P25: 2080 | Q25: 2473 | R25: 2524 | S25: 2789 | T25: 2378 | U25: 2686 | V25: 3867 | W25: 3029 | X25: 2388 | Y25: 1676 | Z25: 2265 | AA25: 2555 | AB25: 4211 | AC25: 4216 | AD25: 2813 | AE25: 4556 | AF25: 5202 | AG25: 5280 | AH25: 4243 | AI25: 5115 | AJ25: 7940 | AK25: 5406 | AL25: 4836 | AM25: 4410 | AN25: 3995 | AO25: 9739 | AP25: 7121 | AQ25: 7672 | AR25: 4277 | AS25: 5639 | AT25: 4618 | AU25: 3994 | AV25: 3763 | AW25: 3958 | AX25: 3538 | AY25: 3064 | AZ25: 3351 | BA25: 7390 | BB25: 4581 | BC25: 6404 | BD25: 4982 | BE25: 13618 | BF25: 16860 | BG25: 6696 | BH25: 3883 | BI25: 1582 | BJ25: 12474 | BK25: 10198 | BL25: 3641 | BM25: 4450 | BN25: 369 | BO25: 2411 | BP25: 9137 | BQ25: 2691 | BR25: 971 | BS25: 818 | BT25: 519 | BU25: 2379 | BV25: 144 | BW25: 179 | BX25: 35 | BY25: 18 | BZ25: 63 | CA25: 46 | CB25: 3 | CC25: 10 | CD25: 1 | CE25: 269 | CF25: 1 | CG25: 16 | CH25: 25 | CI25: 0 | CJ25: 0 | CK25: 1 | CL25: 1 | CM25: 5 | CN25: 0 | CO25: 3112 | CP25: 0 | CQ25: 0 | CR25: 0 | CS25: 0 | CT25: 0 | CU25: 0 | CV25: 0 | CX25: 8510.64269 | CY25: 8209.210733 | CZ25: 7205.506452 | DA25: 6176.148387 | DB25: 6217.835786 | DC25: 7179.852668 | DD25: 6669.983721 | DE25: 7930.225837 | DF25: 8093.768707 | DG25: 8943.550287 | DH25: 7625.587158 | DI25: 8613.257824 | DJ25: 12400.39762 | DK25: 9713.163793 | DL25: 7657.654387 | DM25: 5374.467652 | DN25: 7263.227465 | DO25: 8193.177118 | DP25: 13503.51031 | DQ25: 13519.54393 | DR25: 9020.511638 | DS25: 14609.82973 | DT25: 16681.37275 | DU25: 16931.49714 | DV25: 13606.12545 | DW25: 16402.38785 | DX25: 25461.38016 | DY25: 17335.54423 | DZ25: 15507.71215 | EA25: 14141.64818 | EB25: 12810.85816 | EC25: 31230.27474 | ED25: 22835.07407 | EE25: 24601.97842 | EF25: 13715.15403 | EG25: 18082.71067 | EH25: 14808.64655 | EI25: 12807.65143 | EJ25: 12066.89843 | EK25: 12692.20941 | EL25: 11345.38577 | EM25: 9825.399096 | EN25: 10745.72858 | EO25: 23697.68255 | EP25: 14689.9978 | EQ25: 20535.85372 | ER25: 15975.8937 | ES25: 43669.15303 | ET25: 54065.34881 | EU25: 21472.21682 | EV25: 12451.70519 | EW25: 5073.035695 | EX25: 40000.66199 | EY25: 32702.16057 | EZ25: 11675.67823 | FA25: 14269.91709 | FB25: 1183.280766 | FC25: 7731.409015 | FD25: 29299.82753 | FE25: 8629.291439 | FF25: 3113.727977 | FG25: 2623.099367 | FH25: 1664.289207 | FI25: 7628.79388 | FJ25: 461.7681037 | FK25: 574.0034067 | FL25: 112.235303 | FM25: 57.72101297 | FN25: 202.0235454 | FO25: 147.5092554 | FP25: 9.620168828 | FQ25: 32.06722943 | FR25: 3.206722943 | FS25: 862.6084716 | FT25: 3.206722943 | FU25: 51.30756708 | FV25: 80.16807357 | FW25: 0 | FX25: 0 | FY25: 3.206722943 | FZ25: 3.206722943 | GA25: 16.03361471 | GB25: 0 | GC25: 9979.321797 | GD25: 0 | GE25: 0 | GF25: 0 | GG25: 0 | GH25: 0 | GI25: 0 | GJ25: 0
A26: 1 | D26: POLES | E26: > 22 KV & < = 66 KV; WOOD | F26: 6.129175148 | G26: 54.9 | H26: 7.409453421 | I26: 2 | J26: 172 | K26: 164 | L26: 126 | M26: 236 | N26: 120 | O26: 147 | P26: 229 | Q26: 151 | R26: 197 | S26: 229 | T26: 397 | U26: 273 | V26: 370 | W26: 372 | X26: 106 | Y26: 98 | Z26: 140 | AA26: 139 | AB26: 134 | AC26: 428 | AD26: 270 | AE26: 557 | AF26: 292 | AG26: 225 | AH26: 570 | AI26: 498 | AJ26: 334 | AK26: 488 | AL26: 409 | AM26: 646 | AN26: 368 | AO26: 722 | AP26: 1090 | AQ26: 689 | AR26: 248 | AS26: 798 | AT26: 389 | AU26: 326 | AV26: 312 | AW26: 312 | AX26: 240 | AY26: 267 | AZ26: 1376 | BA26: 1000 | BB26: 885 | BC26: 795 | BD26: 666 | BE26: 1124 | BF26: 855 | BG26: 265 | BH26: 61 | BI26: 527 | BJ26: 648 | BK26: 1370 | BL26: 79 | BM26: 136 | BN26: 122 | BO26: 163 | BP26: 152 | BQ26: 6 | BR26: 9 | BS26: -20 | BT26: 18 | BU26: 383 | BV26: 1 | BW26: 1 | BX26: 51 | BY26: 171 | BZ26: 41 | CA26: 0 | CB26: 0 | CC26: 0 | CD26: 0 | CE26: 0 | CF26: 0 | CG26: 0 | CH26: 3 | CI26: 1 | CJ26: 1 | CK26: 0 | CL26: 0 | CM26: 0 | CN26: 0 | CO26: 1 | CP26: 0 | CQ26: 0 | CR26: 0 | CS26: 0 | CT26: 1 | CU26: 0 | CV26: 2 | CX26: 1054.218125 | CY26: 1005.184724 | CZ26: 772.2760686 | DA26: 1446.485335 | DB26: 735.5010178 | DC26: 900.9887467 | DD26: 1403.581109 | DE26: 925.5054473 | DF26: 1207.447504 | DG26: 1403.581109 | DH26: 2433.282534 | DI26: 1673.264815 | DJ26: 2267.794805 | DK26: 2280.053155 | DL26: 649.6925657 | DM26: 600.6591645 | DN26: 858.0845207 | DO26: 851.9553456 | DP26: 821.3094698 | DQ26: 2623.286963 | DR26: 1654.87729 | DS26: 3413.950557 | DT26: 1789.719143 | DU26: 1379.064408 | DV26: 3493.629834 | DW26: 3052.329224 | DX26: 2047.144499 | DY26: 2991.037472 | DZ26: 2506.832636 | EA26: 3959.447146 | EB26: 2255.536454 | EC26: 4425.264457 | ED26: 6680.800911 | EE26: 4223.001677 | EF26: 1520.035437 | EG26: 4891.081768 | EH26: 2384.249133 | EI26: 1998.111098 | EJ26: 1912.302646 | EK26: 1912.302646 | EL26: 1471.002036 | EM26: 1636.489765 | EN26: 8433.745004 | EO26: 6129.175148 | EP26: 5424.320006 | EQ26: 4872.694243 | ER26: 4082.030649 | ES26: 6889.192866 | ET26: 5240.444751 | EU26: 1624.231414 | EV26: 373.879684 | EW26: 3230.075303 | EX26: 3971.705496 | EY26: 8396.969953 | EZ26: 484.2048367 | FA26: 833.5678201 | FB26: 747.759368 | FC26: 999.0555491 | FD26: 931.6346225 | FE26: 36.77505089 | FF26: 55.16257633 | FG26: -122.583503 | FH26: 110.3251527 | FI26: 2347.474082 | FJ26: 6.129175148 | FK26: 6.129175148 | FL26: 312.5879325 | FM26: 1048.08895 | FN26: 251.2961811 | FO26: 0 | FP26: 0 | FQ26: 0 | FR26: 0 | FS26: 0 | FT26: 0 | FU26: 0 | FV26: 18.38752544 | FW26: 6.129175148 | FX26: 6.129175148 | FY26: 0 | FZ26: 0 | GA26: 0 | GB26: 0 | GC26: 6.129175148 | GD26: 0 | GE26: 0 | GF26: 0 | GG26: 0 | GH26: 6.129175148 | GI26: 0 | GJ26: 12.2583503
A27: 1 | D27: POLES | E27: > 66 KV & < = 132 KV; WOOD | F27: 5.683431324 | G27: 54.9 | H27: 7.409453421 | I27: 2 | J27: 306 | K27: 184 | L27: 176 | M27: 117 | N27: 144 | O27: 182 | P27: 409 | Q27: 282 | R27: 329 | S27: 302 | T27: 196 | U27: 295 | V27: 248 | W27: 276 | X27: 198 | Y27: 173 | Z27: 231 | AA27: 218 | AB27: 370 | AC27: 243 | AD27: 206 | AE27: 604 | AF27: 634 | AG27: 652 | AH27: 362 | AI27: 267 | AJ27: 541 | AK27: 333 | AL27: 162 | AM27: 686 | AN27: 818 | AO27: 3088 | AP27: 1078 | AQ27: 624 | AR27: 599 | AS27: 635 | AT27: 1252 | AU27: 359 | AV27: 258 | AW27: 500 | AX27: 286 | AY27: 687 | AZ27: 1463 | BA27: 2342 | BB27: 849 | BC27: 1826 | BD27: 2658 | BE27: 3058 | BF27: 4470 | BG27: 1736 | BH27: 1064 | BI27: 404 | BJ27: 1312 | BK27: 3183 | BL27: 92 | BM27: 114 | BN27: 15 | BO27: 134 | BP27: 1168 | BQ27: 142 | BR27: 3 | BS27: 614 | BT27: 2 | BU27: 1105 | BV27: 0 | BW27: 61 | BX27: 161 | BY27: 36 | BZ27: 164 | CA27: 0 | CB27: 29 | CC27: 0 | CD27: 0 | CE27: 81 | CF27: 0 | CG27: 0 | CH27: 107 | CI27: 15 | CJ27: 94 | CK27: 0 | CL27: 0 | CM27: 0 | CN27: 0 | CO27: 805 | CP27: 0 | CQ27: 0 | CR27: 0 | CS27: 0 | CT27: 0 | CU27: 0 | CV27: 0 | CX27: 1739.129985 | CY27: 1045.751364 | CZ27: 1000.283913 | DA27: 664.9614649 | DB27: 818.4141106 | DC27: 1034.384501 | DD27: 2324.523411 | DE27: 1602.727633 | DF27: 1869.848905 | DG27: 1716.39626 | DH27: 1113.952539 | DI27: 1676.61224 | DJ27: 1409.490968 | DK27: 1568.627045 | DL27: 1125.319402 | DM27: 983.233619 | DN27: 1312.872636 | DO27: 1238.988029 | DP27: 2102.86959 | DQ27: 1381.073812 | DR27: 1170.786853 | DS27: 3432.792519 | DT27: 3603.295459 | DU27: 3705.597223 | DV27: 2057.402139 | DW27: 1517.476163 | DX27: 3074.736346 | DY27: 1892.582631 | DZ27: 920.7158744 | EA27: 3898.833888 | EB27: 4649.046823 | EC27: 17550.43593 | ED27: 6126.738967 | EE27: 3546.461146 | EF27: 3404.375363 | EG27: 3608.97889 | EH27: 7115.656017 | EI27: 2040.351845 | EJ27: 1466.325281 | EK27: 2841.715662 | EL27: 1625.461359 | EM27: 3904.517319 | EN27: 8314.860026 | EO27: 13310.59616 | EP27: 4825.233194 | EQ27: 10377.9456 | ER27: 15106.56046 | ES27: 17379.93299 | ET27: 25404.93802 | EU27: 9866.436778 | EV27: 6047.170928 | EW27: 2296.106255 | EX27: 7456.661897 | EY27: 18090.3619 | EZ27: 522.8756818 | FA27: 647.9111709 | FB27: 85.25146985 | FC27: 761.5797974 | FD27: 6638.247786 | FE27: 807.0472479 | FF27: 17.05029397 | FG27: 3489.626833 | FH27: 11.36686265 | FI27: 6280.191613 | FJ27: 0 | FK27: 346.6893107 | FL27: 915.0324431 | FM27: 204.6035276 | FN27: 932.0827371 | FO27: 0 | FP27: 164.8195084 | FQ27: 0 | FR27: 0 | FS27: 460.3579372 | FT27: 0 | FU27: 0 | FV27: 608.1271516 | FW27: 85.25146985 | FX27: 534.2425444 | FY27: 0 | FZ27: 0 | GA27: 0 | GB27: 0 | GC27: 4575.162215 | GD27: 0 | GE27: 0 | GF27: 0 | GG27: 0 | GH27: 0 | GI27: 0 | GJ27: 0
A28: 1 | D28: =IF(A28>0,VLOOKUP(A28,IDtable,2),"") -> POLES | E28: > 132 KV; WOOD | F28: 10.01394687 | G28: 53.8 | H28: 7.334848328 | I28: 2 | J28: 0 | K28: 0 | L28: 0 | M28: 0 | N28: 0 | O28: 1 | P28: 0 | Q28: 0 | R28: 0 | S28: 0 | T28: 2 | U28: 0 | V28: 0 | W28: 0 | X28: 0 | Y28: 0 | Z28: 0 | AA28: 2 | AB28: 1 | AC28: 0 | AD28: 0 | AE28: 1 | AF28: 0 | AG28: 2 | AH28: 0 | AI28: 1 | AJ28: 1 | AK28: 1 | AL28: 0 | AM28: 1 | AN28: 0 | AO28: 0 | AP28: 0 | AQ28: 0 | AR28: 0 | AS28: 0 | AT28: 0 | AU28: 0 | AV28: 0 | AW28: 1 | AX28: 0 | AY28: 0 | AZ28: 1 | BA28: 0 | BB28: 1 | BC28: 0 | BD28: 0 | BE28: 0 | BF28: 0 | BG28: 1 | BH28: 1 | BI28: 0 | BJ28: 4 | BK28: 0 | BL28: 0 | BM28: 1 | BN28: 0 | BO28: 0 | BP28: 0 | BQ28: 0 | BR28: 0 | BS28: 0 | BT28: 0 | BU28: 0 | BV28: 0 | BW28: 0 | BX28: 0 | BY28: 0 | BZ28: 0 | CA28: 0 | CB28: 0 | CC28: 0 | CD28: 0 | CE28: 0 | CF28: 0 | CG28: 0 | CH28: 0 | CI28: 0 | CJ28: 0 | CK28: 0 | CL28: 0 | CM28: 0 | CN28: 0 | CO28: 0 | CP28: 0 | CQ28: 0 | CR28: 0 | CS28: 0 | CT28: 0 | CU28: 0 | CV28: 0 | CX28: 0 | CY28: 0 | CZ28: 0 | DA28: 0 | DB28: 0 | DC28: 10.01394687 | DD28: 0 | DE28: 0 | DF28: 0 | DG28: 0 | DH28: 20.02789375 | DI28: 0 | DJ28: 0 | DK28: 0 | DL28: 0 | DM28: 0 | DN28: 0 | DO28: 20.02789375 | DP28: 10.01394687 | DQ28: 0 | DR28: 0 | DS28: 10.01394687 | DT28: 0 | DU28: 20.02789375 | DV28: 0 | DW28: 10.01394687 | DX28: 10.01394687 | DY28: 10.01394687 | DZ28: 0 | EA28: 10.01394687 | EB28: 0 | EC28: 0 | ED28: 0 | EE28: 0 | EF28: 0 | EG28: 0 | EH28: 0 | EI28: 0 | EJ28: 0 | EK28: 10.01394687 | EL28: 0 | EM28: 0 | EN28: 10.01394687 | EO28: 0 | EP28: 10.01394687 | EQ28: 0 | ER28: 0 | ES28: 0 | ET28: 0 | EU28: 10.01394687 | EV28: 10.01394687 | EW28: 0 | EX28: 40.0557875 | EY28: 0 | EZ28: 0 | FA28: 10.01394687 | FB28: 0 | FC28: 0 | FD28: 0 | FE28: 0 | FF28: 0 | FG28: 0 | FH28: 0 | FI28: 0 | FJ28: 0 | FK28: 0 | FL28: 0 | FM28: 0 | FN28: 0 | FO28: 0 | FP28: 0 | FQ28: 0 | FR28: 0 | FS28: 0 | FT28: 0 | FU28: 0 | FV28: 0 | FW28: 0 | FX28: 0 | FY28: 0 | FZ28: 0 | GA28: 0 | GB28: 0 | GC28: 0 | GD28: 0 | GE28: 0 | GF28: 0 | GG28: 0 | GH28: 0 | GI28: 0 | GJ28: 0
A29: 1 | D29: POLES | E29: ˂ = 1 KV; CONCRETE | F29: 6.409094632 | G29: 53.8 | H29: 7.334848328 | I29: 2 | J29: 176 | K29: 238 | L29: 326 | M29: 267 | N29: 272 | O29: 309 | P29: 290 | Q29: 192 | R29: 285 | S29: 248 | T29: 272 | U29: 360 | V29: 353 | W29: 547 | X29: 175 | Y29: 288 | Z29: 285 | AA29: 423 | AB29: 798 | AC29: 592 | AD29: 601 | AE29: 484 | AF29: 635 | AG29: 488 | AH29: 571 | AI29: 386 | AJ29: 319 | AK29: 368 | AL29: 173 | AM29: 94 | AN29: 72 | AO29: 20 | AP29: 42 | AQ29: 83 | AR29: 20 | AS29: 15 | AT29: 13 | AU29: 5 | AV29: 9 | AW29: 1 | AX29: 15 | AY29: 0 | AZ29: 19 | BA29: 12 | BB29: 5 | BC29: 9 | BD29: 3 | BE29: 32 | BF29: 35 | BG29: 2 | BH29: 2 | BI29: 1 | BJ29: 10 | BK29: 83 | BL29: 0 | BM29: 5 | BN29: 1 | BO29: 4 | BP29: 4 | BQ29: 0 | BR29: 0 | BS29: 5 | BT29: 0 | BU29: 33 | BV29: 0 | BW29: 4 | BX29: 0 | BY29: 0 | BZ29: 0 | CA29: 0 | CB29: 0 | CC29: 0 | CD29: 0 | CE29: 4 | CF29: 0 | CG29: 0 | CH29: 0 | CI29: 0 | CJ29: 0 | CK29: 0 | CL29: 0 | CM29: 0 | CN29: 0 | CO29: 2 | CP29: 0 | CQ29: 0 | CR29: 0 | CS29: 0 | CT29: 0 | CU29: 0 | CV29: 0 | CX29: 1128.000655 | CY29: 1525.364522 | CZ29: 2089.36485 | DA29: 1711.228267 | DB29: 1743.27374 | DC29: 1980.410241 | DD29: 1858.637443 | DE29: 1230.546169 | DF29: 1826.59197 | DG29: 1589.455469 | DH29: 1743.27374 | DI29: 2307.274068 | DJ29: 2262.410405 | DK29: 3505.774764 | DL29: 1121.591561 | DM29: 1845.819254 | DN29: 1826.59197 | DO29: 2711.047029 | DP29: 5114.457516 | DQ29: 3794.184022 | DR29: 3851.865874 | DS29: 3102.001802 | DT29: 4069.775091 | DU29: 3127.63818 | DV29: 3659.593035 | DW29: 2473.910528 | DX29: 2044.501188 | DY29: 2358.546825 | DZ29: 1108.773371 | EA29: 602.4548954 | EB29: 461.4548135 | EC29: 128.1818926 | ED29: 269.1819746 | EE29: 531.9548545 | EF29: 128.1818926 | EG29: 96.13641948 | EH29: 83.31823022 | EI29: 32.04547316 | EJ29: 57.68185169 | EK29: 6.409094632 | EL29: 96.13641948 | EM29: 0 | EN29: 121.772798 | EO29: 76.90913559 | EP29: 32.04547316 | EQ29: 57.68185169 | ER29: 19.2272839 | ES29: 205.0910282 | ET29: 224.3183121 | EU29: 12.81818926 | EV29: 12.81818926 | EW29: 6.409094632 | EX29: 64.09094632 | EY29: 531.9548545 | EZ29: 0 | FA29: 32.04547316 | FB29: 6.409094632 | FC29: 25.63637853 | FD29: 25.63637853 | FE29: 0 | FF29: 0 | FG29: 32.04547316 | FH29: 0 | FI29: 211.5001229 | FJ29: 0 | FK29: 25.63637853 | FL29: 0 | FM29: 0 | FN29: 0 | FO29: 0 | FP29: 0 | FQ29: 0 | FR29: 0 | FS29: 25.63637853 | FT29: 0 | FU29: 0 | FV29: 0 | FW29: 0 | FX29: 0 | FY29: 0 | FZ29: 0 | GA29: 0 | GB29: 0 | GC29: 12.81818926 | GD29: 0 | GE29: 0 | GF29: 0 | GG29: 0 | GH29: 0 | GI29: 0 | GJ29: 0
A30: 1 | D30: POLES | E30: > 1 KV & < = 11 KV; CONCRETE | F30: 6.409094632 | G30: 53.8 | H30: 7.334848328 | I30: 2 | J30: 218 | K30: 463 | L30: 397 | M30: 320 | N30: 378 | O30: 518 | P30: 558 | Q30: 552 | R30: 691 | S30: 552 | T30: 603 | U30: 739 | V30: 732 | W30: 823 | X30: 424 | Y30: 456 | Z30: 521 | AA30: 701 | AB30: 1088 | AC30: 1243 | AD30: 1152 | AE30: 845 | AF30: 1673 | AG30: 1072 | AH30: 986 | AI30: 1377 | AJ30: 1465 | AK30: 754 | AL30: 412 | AM30: 186 | AN30: 211 | AO30: 81 | AP30: 22 | AQ30: 76 | AR30: 8 | AS30: 5 | AT30: 5 | AU30: 3 | AV30: 3 | AW30: 3 | AX30: 2 | AY30: 1 | AZ30: 2 | BA30: 3 | BB30: 3 | BC30: 3 | BD30: 8 | BE30: 26 | BF30: 5 | BG30: 1 | BH30: 0 | BI30: 5 | BJ30: 79 | BK30: 14 | BL30: 2 | BM30: 0 | BN30: 3 | BO30: 0 | BP30: 0 | BQ30: 0 | BR30: 1 | BS30: 23 | BT30: 1 | BU30: 39 | BV30: 0 | BW30: 0 | BX30: 0 | BY30: 0 | BZ30: 0 | CA30: 0 | CB30: 0 | CC30: 0 | CD30: 0 | CE30: 8 | CF30: 0 | CG30: 0 | CH30: 0 | CI30: 0 | CJ30: 0 | CK30: 0 | CL30: 0 | CM30: 0 | CN30: 0 | CO30: 4 | CP30: 0 | CQ30: 0 | CR30: 0 | CS30: 0 | CT30: 0 | CU30: 0 | CV30: 0 | CX30: 1397.18263 | CY30: 2967.410815 | CZ30: 2544.410569 | DA30: 2050.910282 | DB30: 2422.637771 | DC30: 3319.911019 | DD30: 3576.274805 | DE30: 3537.820237 | DF30: 4428.684391 | DG30: 3537.820237 | DH30: 3864.684063 | DI30: 4736.320933 | DJ30: 4691.457271 | DK30: 5274.684882 | DL30: 2717.456124 | DM30: 2922.547152 | DN30: 3339.138303 | DO30: 4492.775337 | DP30: 6973.09496 | DQ30: 7966.504628 | DR30: 7383.277016 | DS30: 5415.684964 | DT30: 10722.41532 | DU30: 6870.549446 | DV30: 6319.367307 | DW30: 8825.323308 | DX30: 9389.323636 | DY30: 4832.457353 | DZ30: 2640.546988 | EA30: 1192.091602 | EB30: 1352.318967 | EC30: 519.1366652 | ED30: 141.0000819 | EE30: 487.091192 | EF30: 51.27275706 | EG30: 32.04547316 | EH30: 32.04547316 | EI30: 19.2272839 | EJ30: 19.2272839 | EK30: 19.2272839 | EL30: 12.81818926 | EM30: 6.409094632 | EN30: 12.81818926 | EO30: 19.2272839 | EP30: 19.2272839 | EQ30: 19.2272839 | ER30: 51.27275706 | ES30: 166.6364604 | ET30: 32.04547316 | EU30: 6.409094632 | EV30: 0 | EW30: 32.04547316 | EX30: 506.3184759 | EY30: 89.72732485 | EZ30: 12.81818926 | FA30: 0 | FB30: 19.2272839 | FC30: 0 | FD30: 0 | FE30: 0 | FF30: 6.409094632 | FG30: 147.4091765 | FH30: 6.409094632 | FI30: 249.9546907 | FJ30: 0 | FK30: 0 | FL30: 0 | FM30: 0 | FN30: 0 | FO30: 0 | FP30: 0 | FQ30: 0 | FR30: 0 | FS30: 51.27275706 | FT30: 0 | FU30: 0 | FV30: 0 | FW30: 0 | FX30: 0 | FY30: 0 | FZ30: 0 | GA30: 0 | GB30: 0 | GC30: 25.63637853 | GD30: 0 | GE30: 0 | GF30: 0 | GG30: 0 | GH30: 0 | GI30: 0 | GJ30: 0
A31: 1 | D31: POLES | E31: ˃ 11 KV & < = 22 KV; CONCRETE | F31: 6.409094632 | G31: 54.9 | H31: 7.409453421 | I31: 2 | J31: 217 | K31: 483 | L31: 694 | M31: 512 | N31: 603 | O31: 648 | P31: 890 | Q31: 1247 | R31: 955 | S31: 875 | T31: 742 | U31: 1080 | V31: 1212 | W31: 1005 | X31: 475 | Y31: 658 | Z31: 786 | AA31: 905 | AB31: 3580 | AC31: 5019 | AD31: 1996 | AE31: 2352 | AF31: 403 | AG31: 743 | AH31: 3277 | AI31: 3904 | AJ31: 2714 | AK31: 2379 | AL31: 1920 | AM31: 1639 | AN31: 440 | AO31: 543 | AP31: 86 | AQ31: 249 | AR31: 15 | AS31: 12 | AT31: 22 | AU31: 6 | AV31: 9 | AW31: 10 | AX31: 9 | AY31: 9 | AZ31: 15 | BA31: 19 | BB31: 14 | BC31: 40 | BD31: 7 | BE31: 25 | BF31: 158 | BG31: 7 | BH31: 2 | BI31: 1 | BJ31: 3 | BK31: 45 | BL31: 19 | BM31: 25 | BN31: 0 | BO31: 0 | BP31: 4 | BQ31: 0 | BR31: 0 | BS31: 1 | BT31: 0 | BU31: 12 | BV31: 1 | BW31: 0 | BX31: 0 | BY31: 0 | BZ31: 0 | CA31: 0 | CB31: 0 | CC31: 0 | CD31: 0 | CE31: 35 | CF31: 0 | CG31: 0 | CH31: 0 | CI31: 0 | CJ31: 0 | CK31: 0 | CL31: 0 | CM31: 0 | CN31: 0 | CO31: 1 | CP31: 0 | CQ31: 0 | CR31: 0 | CS31: 0 | CT31: 0 | CU31: 0 | CV31: 0 | CX31: 1390.773535 | CY31: 3095.592707 | CZ31: 4447.911675 | DA31: 3281.456452 | DB31: 3864.684063 | DC31: 4153.093322 | DD31: 5704.094223 | DE31: 7992.141006 | DF31: 6120.685374 | DG31: 5607.957803 | DH31: 4755.548217 | DI31: 6921.822203 | DJ31: 7767.822694 | DK31: 6441.140105 | DL31: 3044.31995 | DM31: 4217.184268 | DN31: 5037.548381 | DO31: 5800.230642 | DP31: 22944.55878 | DQ31: 32167.24596 | DR31: 12792.55289 | DS31: 15074.19057 | DT31: 2582.865137 | DU31: 4761.957312 | DV31: 21002.60311 | DW31: 25021.10544 | DX31: 17394.28283 | DY31: 15247.23613 | DZ31: 12305.46169 | EA31: 10504.5061 | EB31: 2820.001638 | EC31: 3480.138385 | ED31: 551.1821384 | EE31: 1595.864563 | EF31: 96.13641948 | EG31: 76.90913559 | EH31: 141.0000819 | EI31: 38.45456779 | EJ31: 57.68185169 | EK31: 64.09094632 | EL31: 57.68185169 | EM31: 57.68185169 | EN31: 96.13641948 | EO31: 121.772798 | EP31: 89.72732485 | EQ31: 256.3637853 | ER31: 44.86366243 | ES31: 160.2273658 | ET31: 1012.636952 | EU31: 44.86366243 | EV31: 12.81818926 | EW31: 6.409094632 | EX31: 19.2272839 | EY31: 288.4092584 | EZ31: 121.772798 | FA31: 160.2273658 | FB31: 0 | FC31: 0 | FD31: 25.63637853 | FE31: 0 | FF31: 0 | FG31: 6.409094632 | FH31: 0 | FI31: 76.90913559 | FJ31: 6.409094632 | FK31: 0 | FL31: 0 | FM31: 0 | FN31: 0 | FO31: 0 | FP31: 0 | FQ31: 0 | FR31: 0 | FS31: 224.3183121 | FT31: 0 | FU31: 0 | FV31: 0 | FW31: 0 | FX31: 0 | FY31: 0 | FZ31: 0 | GA31: 0 | GB31: 0 | GC31: 6.409094632 | GD31: 0 | GE31: 0 | GF31: 0 | GG31: 0 | GH31: 0 | GI31: 0 | GJ31: 0
A32: 1 | D32: POLES | E32: > 22 KV & < = 66 KV; CONCRETE | F32: 11.75000683 | G32: 54.9 | H32: 7.409453421 | I32: 2 | J32: 123 | K32: 124 | L32: 190 | M32: 325 | N32: 283 | O32: 271 | P32: 187 | Q32: 238 | R32: 222 | S32: 131 | T32: 132 | U32: 213 | V32: 381 | W32: 548 | X32: 138 | Y32: 182 | Z32: 117 | AA32: 73 | AB32: 637 | AC32: 1291 | AD32: 793 | AE32: 579 | AF32: 367 | AG32: 293 | AH32: 239 | AI32: 140 | AJ32: 614 | AK32: 148 | AL32: 204 | AM32: 151 | AN32: 3 | AO32: 672 | AP32: 9 | AQ32: 2 | AR32: 0 | AS32: 2 | AT32: 0 | AU32: 9 | AV32: 1 | AW32: 1 | AX32: 0 | AY32: 0 | AZ32: 2 | BA32: 3 | BB32: 0 | BC32: 5 | BD32: 10 | BE32: 8 | BF32: 2 | BG32: 0 | BH32: 1 | BI32: 0 | BJ32: 1 | BK32: 0 | BL32: 1 | BM32: 0 | BN32: 0 | BO32: 2 | BP32: 0 | BQ32: 0 | BR32: 0 | BS32: 0 | BT32: 0 | BU32: 0 | BV32: 0 | BW32: 0 | BX32: 0 | BY32: 0 | BZ32: 0 | CA32: 0 | CB32: 0 | CC32: 0 | CD32: 0 | CE32: 0 | CF32: 0 | CG32: 0 | CH32: 0 | CI32: 0 | CJ32: 0 | CK32: 0 | CL32: 0 | CM32: 0 | CN32: 0 | CO32: 0 | CP32: 0 | CQ32: 0 | CR32: 0 | CS32: 0 | CT32: 0 | CU32: 0 | CV32: 0 | CX32: 1445.25084 | CY32: 1457.000846 | CZ32: 2232.501297 | DA32: 3818.752218 | DB32: 3325.251932 | DC32: 3184.25185 | DD32: 2197.251276 | DE32: 2796.501624 | DF32: 2608.501515 | DG32: 1539.250894 | DH32: 1551.000901 | DI32: 2502.751454 | DJ32: 4476.752601 | DK32: 6439.00374 | DL32: 1621.500942 | DM32: 2138.501242 | DN32: 1374.750799 | DO32: 857.7504983 | DP32: 7484.754348 | DQ32: 15169.25881 | DR32: 9317.755413 | DS32: 6803.253952 | DT32: 4312.252505 | DU32: 3442.752 | DV32: 2808.251631 | DW32: 1645.000956 | DX32: 7214.504191 | DY32: 1739.00101 | DZ32: 2397.001392 | EA32: 1774.251031 | EB32: 35.25002048 | EC32: 7896.004587 | ED32: 105.7500614 | EE32: 23.50001365 | EF32: 0 | EG32: 23.50001365 | EH32: 0 | EI32: 105.7500614 | EJ32: 11.75000683 | EK32: 11.75000683 | EL32: 0 | EM32: 0 | EN32: 23.50001365 | EO32: 35.25002048 | EP32: 0 | EQ32: 58.75003413 | ER32: 117.5000683 | ES32: 94.0000546 | ET32: 23.50001365 | EU32: 0 | EV32: 11.75000683 | EW32: 0 | EX32: 11.75000683 | EY32: 0 | EZ32: 11.75000683 | FA32: 0 | FB32: 0 | FC32: 23.50001365 | FD32: 0 | FE32: 0 | FF32: 0 | FG32: 0 | FH32: 0 | FI32: 0 | FJ32: 0 | FK32: 0 | FL32: 0 | FM32: 0 | FN32: 0 | FO32: 0 | FP32: 0 | FQ32: 0 | FR32: 0 | FS32: 0 | FT32: 0 | FU32: 0 | FV32: 0 | FW32: 0 | FX32: 0 | FY32: 0 | FZ32: 0 | GA32: 0 | GB32: 0 | GC32: 0 | GD32: 0 | GE32: 0 | GF32: 0 | GG32: 0 | GH32: 0 | GI32: 0 | GJ32: 0
A33: 1 | D33: POLES | E33: > 66 KV & < = 132 KV; CONCRETE | F33: 16.52424838 | G33: 54.9 | H33: 7.409453421 | I33: 2 | J33: 411 | K33: 176 | L33: 608 | M33: 55 | N33: 148 | O33: 103 | P33: 99 | Q33: 212 | R33: 615 | S33: 786 | T33: 47 | U33: 91 | V33: 71 | W33: 80 | X33: 5 | Y33: 44 | Z33: 379 | AA33: 102 | AB33: 77 | AC33: 95 | AD33: 442 | AE33: 217 | AF33: 1418 | AG33: 177 | AH33: 265 | AI33: 1459 | AJ33: 633 | AK33: 166 | AL33: 1222 | AM33: 360 | AN33: 86 | AO33: 518 | AP33: 123 | AQ33: 7 | AR33: 1 | AS33: 3 | AT33: 1 | AU33: 0 | AV33: 0 | AW33: 1 | AX33: 5 | AY33: 0 | AZ33: 0 | BA33: 2 | BB33: 1 | BC33: 1 | BD33: 2 | BE33: 9 | BF33: 8 | BG33: 3 | BH33: 1 | BI33: 0 | BJ33: 1 | BK33: 0 | BL33: 0 | BM33: 0 | BN33: 0 | BO33: 0 | BP33: 0 | BQ33: 0 | BR33: 0 | BS33: 0 | BT33: 0 | BU33: 1 | BV33: 0 | BW33: 0 | BX33: 0 | BY33: 0 | BZ33: 0 | CA33: 0 | CB33: 0 | CC33: 0 | CD33: 0 | CE33: 5 | CF33: 0 | CG33: 0 | CH33: 0 | CI33: 0 | CJ33: 0 | CK33: 0 | CL33: 0 | CM33: 0 | CN33: 0 | CO33: 0 | CP33: 0 | CQ33: 0 | CR33: 0 | CS33: 0 | CT33: 0 | CU33: 0 | CV33: 0 | CX33: 6791.466084 | CY33: 2908.267715 | CZ33: 10046.74301 | DA33: 908.8336609 | DB33: 2445.58876 | DC33: 1701.997583 | DD33: 1635.90059 | DE33: 3503.140657 | DF33: 10162.41275 | DG33: 12988.05923 | DH33: 776.6396739 | DI33: 1503.706603 | DJ33: 1173.221635 | DK33: 1321.93987 | DL33: 82.6212419 | DM33: 727.0669287 | DN33: 6262.690136 | DO33: 1685.473335 | DP33: 1272.367125 | DQ33: 1569.803596 | DR33: 7303.717784 | DS33: 3585.761898 | DT33: 23431.3842 | DU33: 2924.791963 | DV33: 4378.925821 | DW33: 24108.87839 | DX33: 10459.84922 | DY33: 2743.025231 | DZ33: 20192.63152 | EA33: 5948.729417 | EB33: 1421.085361 | EC33: 8559.560661 | ED33: 2032.482551 | EE33: 115.6697387 | EF33: 16.52424838 | EG33: 49.57274514 | EH33: 16.52424838 | EI33: 0 | EJ33: 0 | EK33: 16.52424838 | EL33: 82.6212419 | EM33: 0 | EN33: 0 | EO33: 33.04849676 | EP33: 16.52424838 | EQ33: 16.52424838 | ER33: 33.04849676 | ES33: 148.7182354 | ET33: 132.193987 | EU33: 49.57274514 | EV33: 16.52424838 | EW33: 0 | EX33: 16.52424838 | EY33: 0 | EZ33: 0 | FA33: 0 | FB33: 0 | FC33: 0 | FD33: 0 | FE33: 0 | FF33: 0 | FG33: 0 | FH33: 0 | FI33: 16.52424838 | FJ33: 0 | FK33: 0 | FL33: 0 | FM33: 0 | FN33: 0 | FO33: 0 | FP33: 0 | FQ33: 0 | FR33: 0 | FS33: 82.6212419 | FT33: 0 | FU33: 0 | FV33: 0 | FW33: 0 | FX33: 0 | FY33: 0 | FZ33: 0 | GA33: 0 | GB33: 0 | GC33: 0 | GD33: 0 | GE33: 0 | GF33: 0 | GG33: 0 | GH33: 0 | GI33: 0 | GJ33: 0
E34: > 132 KV; CONCRETE | F34: 0 | G34: 0 | H34: 0 | I34: 2 | J34: 0 | K34: 0 | L34: 0 | M34: 0 | N34: 0 | O34: 0 | P34: 0 | Q34: 0 | R34: 0 | S34: 0 | T34: 0 | U34: 0 | V34: 0 | W34: 0 | X34: 0 | Y34: 0 | Z34: 0 | AA34: 0 | AB34: 0 | AC34: 0 | AD34: 0 | AE34: 0 | AF34: 0 | AG34: 0 | AH34: 0 | AI34: 0 | AJ34: 0 | AK34: 0 | AL34: 0 | AM34: 0 | AN34: 0 | AO34: 0 | AP34: 0 | AQ34: 0 | AR34: 0 | AS34: 0 | AT34: 0 | AU34: 0 | AV34: 0 | AW34: 0 | AX34: 0 | AY34: 0 | AZ34: 0 | BA34: 0 | BB34: 0 | BC34: 0 | BD34: 0 | BE34: 0 | BF34: 0 | BG34: 0 | BH34: 0 | BI34: 0 | BJ34: 0 | BK34: 0 | BL34: 0 | BM34: 0 | BN34: 0 | BO34: 0 | BP34: 0 | BQ34: 0 | BR34: 0 | BS34: 0 | BT34: 0 | BU34: 0 | BV34: 0 | BW34: 0 | BX34: 0 | BY34: 0 | BZ34: 0 | CA34: 0 | CB34: 0 | CC34: 0 | CD34: 0 | CE34: 0 | CF34: 0 | CG34: 0 | CH34: 0 | CI34: 0 | CJ34: 0 | CK34: 0 | CL34: 0 | CM34: 0 | CN34: 0 | CO34: 0 | CP34: 0 | CQ34: 0 | CR34: 0 | CS34: 0 | CT34: 0 | CU34: 0 | CV34: 0 | CX34: 0 | CY34: 0 | CZ34: 0 | DA34: 0 | DB34: 0 | DC34: 0 | DD34: 0 | DE34: 0 | DF34: 0 | DG34: 0 | DH34: 0 | DI34: 0 | DJ34: 0 | DK34: 0 | DL34: 0 | DM34: 0 | DN34: 0 | DO34: 0 | DP34: 0 | DQ34: 0 | DR34: 0 | DS34: 0 | DT34: 0 | DU34: 0 | DV34: 0 | DW34: 0 | DX34: 0 | DY34: 0 | DZ34: 0 | EA34: 0 | EB34: 0 | EC34: 0 | ED34: 0 | EE34: 0 | EF34: 0 | EG34: 0 | EH34: 0 | EI34: 0 | EJ34: 0 | EK34: 0 | EL34: 0 | EM34: 0 | EN34: 0 | EO34: 0 | EP34: 0 | EQ34: 0 | ER34: 0 | ES34: 0 | ET34: 0 | EU34: 0 | EV34: 0 | EW34: 0 | EX34: 0 | EY34: 0 | EZ34: 0 | FA34: 0 | FB34: 0 | FC34: 0 | FD34: 0 | FE34: 0 | FF34: 0 | FG34: 0 | FH34: 0 | FI34: 0 | FJ34: 0 | FK34: 0 | FL34: 0 | FM34: 0 | FN34: 0 | FO34: 0 | FP34: 0 | FQ34: 0 | FR34: 0 | FS34: 0 | FT34: 0 | FU34: 0 | FV34: 0 | FW34: 0 | FX34: 0 | FY34: 0 | FZ34: 0 | GA34: 0 | GB34: 0 | GC34: 0 | GD34: 0 | GE34: 0 | GF34: 0 | GG34: 0 | GH34: 0 | GI34: 0 | GJ34: 0
A35: 1 | D35: POLES | E35: ˂ = 1 KV; STEEL | F35: 6.409094632 | G35: 53.8 | H35: 7.334848328 | I35: 2 | J35: 479 | K35: 91 | L35: 298 | M35: 404 | N35: 408 | O35: 694 | P35: 166 | Q35: 233 | R35: 210 | S35: 350 | T35: 251 | U35: 399 | V35: 308 | W35: 1533 | X35: 503 | Y35: 150 | Z35: 97 | AA35: 181 | AB35: 468 | AC35: 115 | AD35: 207 | AE35: 218 | AF35: 153 | AG35: 730 | AH35: 145 | AI35: 128 | AJ35: 64 | AK35: 44 | AL35: 217 | AM35: 84 | AN35: 34 | AO35: 49 | AP35: 57 | AQ35: 1266 | AR35: 30 | AS35: 26 | AT35: 145 | AU35: 28 | AV35: 116 | AW35: 48 | AX35: 28 | AY35: 18 | AZ35: 21 | BA35: 390 | BB35: 50 | BC35: 28 | BD35: 31 | BE35: 334 | BF35: 252 | BG35: 49 | BH35: 51 | BI35: 8 | BJ35: 33 | BK35: 269 | BL35: 17 | BM35: 22 | BN35: 40 | BO35: 19 | BP35: 60 | BQ35: 0 | BR35: 61 | BS35: 33 | BT35: 0 | BU35: 340 | BV35: 1 | BW35: 6 | BX35: 13 | BY35: 7 | BZ35: 0 | CA35: 0 | CB35: 0 | CC35: 0 | CD35: 0 | CE35: 482 | CF35: 0 | CG35: 0 | CH35: 0 | CI35: 0 | CJ35: 0 | CK35: 0 | CL35: 0 | CM35: 0 | CN35: 0 | CO35: 10 | CP35: 0 | CQ35: 0 | CR35: 0 | CS35: 0 | CT35: 1 | CU35: 0 | CV35: 1 | CX35: 3069.956329 | CY35: 583.2276115 | CZ35: 1909.9102 | DA35: 2589.274231 | DB35: 2614.91061 | DC35: 4447.911675 | DD35: 1063.909709 | DE35: 1493.319049 | DF35: 1345.909873 | DG35: 2243.183121 | DH35: 1608.682753 | DI35: 2557.228758 | DJ35: 1974.001147 | DK35: 9825.142071 | DL35: 3223.7746 | DM35: 961.3641948 | DN35: 621.6821793 | DO35: 1160.046128 | DP35: 2999.456288 | DQ35: 737.0458827 | DR35: 1326.682589 | DS35: 1397.18263 | DT35: 980.5914787 | DU35: 4678.639081 | DV35: 929.3187217 | DW35: 820.3641129 | DX35: 410.1820565 | DY35: 282.0001638 | DZ35: 1390.773535 | EA35: 538.3639491 | EB35: 217.9092175 | EC35: 314.045637 | ED35: 365.318394 | EE35: 8113.913804 | EF35: 192.272839 | EG35: 166.6364604 | EH35: 929.3187217 | EI35: 179.4546497 | EJ35: 743.4549773 | EK35: 307.6365423 | EL35: 179.4546497 | EM35: 115.3637034 | EN35: 134.5909873 | EO35: 2499.546907 | EP35: 320.4547316 | EQ35: 179.4546497 | ER35: 198.6819336 | ES35: 2140.637607 | ET35: 1615.091847 | EU35: 314.045637 | EV35: 326.8638262 | EW35: 51.27275706 | EX35: 211.5001229 | EY35: 1724.046456 | EZ35: 108.9546087 | FA35: 141.0000819 | FB35: 256.3637853 | FC35: 121.772798 | FD35: 384.5456779 | FE35: 0 | FF35: 390.9547726 | FG35: 211.5001229 | FH35: 0 | FI35: 2179.092175 | FJ35: 6.409094632 | FK35: 38.45456779 | FL35: 83.31823022 | FM35: 44.86366243 | FN35: 0 | FO35: 0 | FP35: 0 | FQ35: 0 | FR35: 0 | FS35: 3089.183613 | FT35: 0 | FU35: 0 | FV35: 0 | FW35: 0 | FX35: 0 | FY35: 0 | FZ35: 0 | GA35: 0 | GB35: 0 | GC35: 64.09094632 | GD35: 0 | GE35: 0 | GF35: 0 | GG35: 0 | GH35: 6.409094632 | GI35: 0 | GJ35: 6.409094632
A36: 1 | D36: POLES | E36: > 1 KV & < = 11 KV; STEEL | F36: 6.409094632 | G36: 53.8 | H36: 7.334848328 | I36: 2 | J36: 761 | K36: 1382 | L36: 936 | M36: 633 | N36: 1022 | O36: 544 | P36: 273 | Q36: 51 | R36: 8 | S36: 14 | T36: 6 | U36: 0 | V36: 5 | W36: 22 | X36: 9 | Y36: 9 | Z36: 13 | AA36: 3 | AB36: 1 | AC36: 2 | AD36: 3 | AE36: 1 | AF36: 0 | AG36: 15 | AH36: 3 | AI36: 4 | AJ36: 4 | AK36: 2 | AL36: 3 | AM36: 1 | AN36: 2 | AO36: 1 | AP36: 0 | AQ36: 12 | AR36: 0 | AS36: 0 | AT36: 15 | AU36: 2 | AV36: 4 | AW36: 0 | AX36: 1 | AY36: 1 | AZ36: 3 | BA36: 9 | BB36: 1 | BC36: 1 | BD36: 1 | BE36: 59 | BF36: 5 | BG36: 0 | BH36: 0 | BI36: 19 | BJ36: 4 | BK36: 13 | BL36: 0 | BM36: 10 | BN36: 0 | BO36: 1 | BP36: 8 | BQ36: 0 | BR36: 0 | BS36: 3 | BT36: 0 | BU36: 8 | BV36: 0 | BW36: 0 | BX36: 0 | BY36: 0 | BZ36: 0 | CA36: 0 | CB36: 0 | CC36: 0 | CD36: 0 | CE36: 0 | CF36: 0 | CG36: 0 | CH36: 0 | CI36: 0 | CJ36: 0 | CK36: 0 | CL36: 0 | CM36: 0 | CN36: 0 | CO36: 0 | CP36: 0 | CQ36: 0 | CR36: 0 | CS36: 0 | CT36: 0 | CU36: 0 | CV36: 0 | CX36: 4877.321015 | CY36: 8857.368782 | CZ36: 5998.912576 | DA36: 4056.956902 | DB36: 6550.094714 | DC36: 3486.54748 | DD36: 1749.682835 | DE36: 326.8638262 | DF36: 51.27275706 | DG36: 89.72732485 | DH36: 38.45456779 | DI36: 0 | DJ36: 32.04547316 | DK36: 141.0000819 | DL36: 57.68185169 | DM36: 57.68185169 | DN36: 83.31823022 | DO36: 19.2272839 | DP36: 6.409094632 | DQ36: 12.81818926 | DR36: 19.2272839 | DS36: 6.409094632 | DT36: 0 | DU36: 96.13641948 | DV36: 19.2272839 | DW36: 25.63637853 | DX36: 25.63637853 | DY36: 12.81818926 | DZ36: 19.2272839 | EA36: 6.409094632 | EB36: 12.81818926 | EC36: 6.409094632 | ED36: 0 | EE36: 76.90913559 | EF36: 0 | EG36: 0 | EH36: 96.13641948 | EI36: 12.81818926 | EJ36: 25.63637853 | EK36: 0 | EL36: 6.409094632 | EM36: 6.409094632 | EN36: 19.2272839 | EO36: 57.68185169 | EP36: 6.409094632 | EQ36: 6.409094632 | ER36: 6.409094632 | ES36: 378.1365833 | ET36: 32.04547316 | EU36: 0 | EV36: 0 | EW36: 121.772798 | EX36: 25.63637853 | EY36: 83.31823022 | EZ36: 0 | FA36: 64.09094632 | FB36: 0 | FC36: 6.409094632 | FD36: 51.27275706 | FE36: 0 | FF36: 0 | FG36: 19.2272839 | FH36: 0 | FI36: 51.27275706 | FJ36: 0 | FK36: 0 | FL36: 0 | FM36: 0 | FN36: 0 | FO36: 0 | FP36: 0 | FQ36: 0 | FR36: 0 | FS36: 0 | FT36: 0 | FU36: 0 | FV36: 0 | FW36: 0 | FX36: 0 | FY36: 0 | FZ36: 0 | GA36: 0 | GB36: 0 | GC36: 0 | GD36: 0 | GE36: 0 | GF36: 0 | GG36: 0 | GH36: 0 | GI36: 0 | GJ36: 0
A37: 1 | D37: POLES | E37: ˃ 11 KV & < = 22 KV; STEEL | F37: 6.409094632 | G37: 54.9 | H37: 7.409453421 | I37: 2 | J37: 1584 | K37: 2206 | L37: 1711 | M37: 785 | N37: 1134 | O37: 775 | P37: 449 | Q37: 220 | R37: 5 | S37: 1 | T37: 2 | U37: 3 | V37: 3 | W37: 24 | X37: 0 | Y37: 1 | Z37: 0 | AA37: 1 | AB37: 3 | AC37: 3 | AD37: 3 | AE37: 1 | AF37: 1 | AG37: 10 | AH37: 0 | AI37: 3 | AJ37: 8 | AK37: 2 | AL37: 2 | AM37: 2 | AN37: 1 | AO37: 8 | AP37: 9 | AQ37: 48 | AR37: 1 | AS37: 3 | AT37: 4 | AU37: 2 | AV37: 12 | AW37: 3 | AX37: 1 | AY37: 0 | AZ37: 0 | BA37: 6 | BB37: 4 | BC37: 7 | BD37: 43 | BE37: 3 | BF37: 16 | BG37: 5 | BH37: 0 | BI37: 4 | BJ37: 5 | BK37: 23 | BL37: 3 | BM37: 5 | BN37: 0 | BO37: 1 | BP37: 1 | BQ37: 0 | BR37: 0 | BS37: 0 | BT37: 0 | BU37: 1 | BV37: 0 | BW37: 0 | BX37: 0 | BY37: 0 | BZ37: 0 | CA37: 0 | CB37: 0 | CC37: 0 | CD37: 0 | CE37: 10 | CF37: 0 | CG37: 0 | CH37: 0 | CI37: 0 | CJ37: 0 | CK37: 0 | CL37: 0 | CM37: 0 | CN37: 0 | CO37: 0 | CP37: 0 | CQ37: 0 | CR37: 0 | CS37: 0 | CT37: 0 | CU37: 0 | CV37: 0 | CX37: 10152.0059 | CY37: 14138.46276 | CZ37: 10965.96092 | DA37: 5031.139286 | DB37: 7267.913313 | DC37: 4967.04834 | DD37: 2877.68349 | DE37: 1410.000819 | DF37: 32.04547316 | DG37: 6.409094632 | DH37: 12.81818926 | DI37: 19.2272839 | DJ37: 19.2272839 | DK37: 153.8182712 | DL37: 0 | DM37: 6.409094632 | DN37: 0 | DO37: 6.409094632 | DP37: 19.2272839 | DQ37: 19.2272839 | DR37: 19.2272839 | DS37: 6.409094632 | DT37: 6.409094632 | DU37: 64.09094632 | DV37: 0 | DW37: 19.2272839 | DX37: 51.27275706 | DY37: 12.81818926 | DZ37: 12.81818926 | EA37: 12.81818926 | EB37: 6.409094632 | EC37: 51.27275706 | ED37: 57.68185169 | EE37: 307.6365423 | EF37: 6.409094632 | EG37: 19.2272839 | EH37: 25.63637853 | EI37: 12.81818926 | EJ37: 76.90913559 | EK37: 19.2272839 | EL37: 6.409094632 | EM37: 0 | EN37: 0 | EO37: 38.45456779 | EP37: 25.63637853 | EQ37: 44.86366243 | ER37: 275.5910692 | ES37: 19.2272839 | ET37: 102.5455141 | EU37: 32.04547316 | EV37: 0 | EW37: 25.63637853 | EX37: 32.04547316 | EY37: 147.4091765 | EZ37: 19.2272839 | FA37: 32.04547316 | FB37: 0 | FC37: 6.409094632 | FD37: 6.409094632 | FE37: 0 | FF37: 0 | FG37: 0 | FH37: 0 | FI37: 6.409094632 | FJ37: 0 | FK37: 0 | FL37: 0 | FM37: 0 | FN37: 0 | FO37: 0 | FP37: 0 | FQ37: 0 | FR37: 0 | FS37: 64.09094632 | FT37: 0 | FU37: 0 | FV37: 0 | FW37: 0 | FX37: 0 | FY37: 0 | FZ37: 0 | GA37: 0 | GB37: 0 | GC37: 0 | GD37: 0 | GE37: 0 | GF37: 0 | GG37: 0 | GH37: 0 | GI37: 0 | GJ37: 0
A38: 1 | D38: POLES | E38: > 22 KV & < = 66 KV; STEEL | F38: 11.75000683 | G38: 54.9 | H38: 7.409453421 | I38: 2 | J38: 106 | K38: 84 | L38: 266 | M38: 64 | N38: 30 | O38: 34 | P38: 272 | Q38: 86 | R38: 9 | S38: 1 | T38: 1 | U38: 0 | V38: 0 | W38: 23 | X38: 2 | Y38: 1 | Z38: 1 | AA38: 0 | AB38: 7 | AC38: 1 | AD38: 10 | AE38: 0 | AF38: 0 | AG38: 1 | AH38: 0 | AI38: 0 | AJ38: 0 | AK38: 0 | AL38: 0 | AM38: 0 | AN38: 0 | AO38: 0 | AP38: 0 | AQ38: 0 | AR38: 0 | AS38: 0 | AT38: 0 | AU38: 0 | AV38: 0 | AW38: 1 | AX38: 0 | AY38: 0 | AZ38: 0 | BA38: 2 | BB38: 0 | BC38: 2 | BD38: 0 | BE38: 0 | BF38: 0 | BG38: 0 | BH38: 0 | BI38: 0 | BJ38: 0 | BK38: 0 | BL38: 2 | BM38: 0 | BN38: 0 | BO38: 0 | BP38: 1 | BQ38: 0 | BR38: 0 | BS38: 0 | BT38: 0 | BU38: 0 | BV38: 0 | BW38: 0 | BX38: 0 | BY38: 0 | BZ38: 0 | CA38: 0 | CB38: 0 | CC38: 0 | CD38: 0 | CE38: 0 | CF38: 0 | CG38: 0 | CH38: 4 | CI38: 0 | CJ38: 0 | CK38: 0 | CL38: 0 | CM38: 0 | CN38: 0 | CO38: 0 | CP38: 0 | CQ38: 0 | CR38: 0 | CS38: 0 | CT38: 0 | CU38: 0 | CV38: 0 | CX38: 1245.500724 | CY38: 987.0005734 | CZ38: 3125.501816 | DA38: 752.0004368 | DB38: 352.5002048 | DC38: 399.5002321 | DD38: 3196.001857 | DE38: 1010.500587 | DF38: 105.7500614 | DG38: 11.75000683 | DH38: 11.75000683 | DI38: 0 | DJ38: 0 | DK38: 270.250157 | DL38: 23.50001365 | DM38: 11.75000683 | DN38: 11.75000683 | DO38: 0 | DP38: 82.25004778 | DQ38: 11.75000683 | DR38: 117.5000683 | DS38: 0 | DT38: 0 | DU38: 11.75000683 | DV38: 0 | DW38: 0 | DX38: 0 | DY38: 0 | DZ38: 0 | EA38: 0 | EB38: 0 | EC38: 0 | ED38: 0 | EE38: 0 | EF38: 0 | EG38: 0 | EH38: 0 | EI38: 0 | EJ38: 0 | EK38: 11.75000683 | EL38: 0 | EM38: 0 | EN38: 0 | EO38: 23.50001365 | EP38: 0 | EQ38: 23.50001365 | ER38: 0 | ES38: 0 | ET38: 0 | EU38: 0 | EV38: 0 | EW38: 0 | EX38: 0 | EY38: 0 | EZ38: 23.50001365 | FA38: 0 | FB38: 0 | FC38: 0 | FD38: 11.75000683 | FE38: 0 | FF38: 0 | FG38: 0 | FH38: 0 | FI38: 0 | FJ38: 0 | FK38: 0 | FL38: 0 | FM38: 0 | FN38: 0 | FO38: 0 | FP38: 0 | FQ38: 0 | FR38: 0 | FS38: 0 | FT38: 0 | FU38: 0 | FV38: 47.0000273 | FW38: 0 | FX38: 0 | FY38: 0 | FZ38: 0 | GA38: 0 | GB38: 0 | GC38: 0 | GD38: 0 | GE38: 0 | GF38: 0 | GG38: 0 | GH38: 0 | GI38: 0 | GJ38: 0
A39: 1 | D39: POLES | E39: > 66 KV & < = 132 KV; STEEL | F39: 51.33498863 | G39: 54.9 | H39: 7.409453421 | I39: 2 | J39: 322 | K39: 406 | L39: 545 | M39: 108 | N39: 217 | O39: 210 | P39: 72 | Q39: 15 | R39: 301 | S39: 2 | T39: 0 | U39: 0 | V39: 0 | W39: 4 | X39: 0 | Y39: 2 | Z39: 0 | AA39: 0 | AB39: 0 | AC39: 30 | AD39: 0 | AE39: 2 | AF39: 0 | AG39: 2 | AH39: 0 | AI39: 2 | AJ39: 0 | AK39: 0 | AL39: 2 | AM39: 0 | AN39: 0 | AO39: 0 | AP39: 0 | AQ39: 2 | AR39: 0 | AS39: 3 | AT39: 0 | AU39: 0 | AV39: 2 | AW39: 0 | AX39: 25 | AY39: 0 | AZ39: 1 | BA39: 1 | BB39: 0 | BC39: 1 | BD39: 0 | BE39: 5 | BF39: 0 | BG39: 6 | BH39: 2 | BI39: 0 | BJ39: 1 | BK39: 11 | BL39: 0 | BM39: 0 | BN39: 0 | BO39: 0 | BP39: 2 | BQ39: 0 | BR39: 0 | BS39: 0 | BT39: 0 | BU39: 71 | BV39: 0 | BW39: 0 | BX39: 0 | BY39: 0 | BZ39: 0 | CA39: 0 | CB39: 0 | CC39: 0 | CD39: 0 | CE39: 0 | CF39: 0 | CG39: 0 | CH39: 0 | CI39: 0 | CJ39: 0 | CK39: 0 | CL39: 0 | CM39: 0 | CN39: 0 | CO39: 0 | CP39: 0 | CQ39: 9 | CR39: 0 | CS39: 0 | CT39: 0 | CU39: 0 | CV39: 0 | CX39: 16529.86634 | CY39: 20842.00539 | CZ39: 27977.56881 | DA39: 5544.178772 | DB39: 11139.69253 | DC39: 10780.34761 | DD39: 3696.119182 | DE39: 770.0248295 | DF39: 15451.83158 | DG39: 102.6699773 | DH39: 0 | DI39: 0 | DJ39: 0 | DK39: 205.3399545 | DL39: 0 | DM39: 102.6699773 | DN39: 0 | DO39: 0 | DP39: 0 | DQ39: 1540.049659 | DR39: 0 | DS39: 102.6699773 | DT39: 0 | DU39: 102.6699773 | DV39: 0 | DW39: 102.6699773 | DX39: 0 | DY39: 0 | DZ39: 102.6699773 | EA39: 0 | EB39: 0 | EC39: 0 | ED39: 0 | EE39: 102.6699773 | EF39: 0 | EG39: 154.0049659 | EH39: 0 | EI39: 0 | EJ39: 102.6699773 | EK39: 0 | EL39: 1283.374716 | EM39: 0 | EN39: 51.33498863 | EO39: 51.33498863 | EP39: 0 | EQ39: 51.33498863 | ER39: 0 | ES39: 256.6749432 | ET39: 0 | EU39: 308.0099318 | EV39: 102.6699773 | EW39: 0 | EX39: 51.33498863 | EY39: 564.684875 | EZ39: 0 | FA39: 0 | FB39: 0 | FC39: 0 | FD39: 102.6699773 | FE39: 0 | FF39: 0 | FG39: 0 | FH39: 0 | FI39: 3644.784193 | FJ39: 0 | FK39: 0 | FL39: 0 | FM39: 0 | FN39: 0 | FO39: 0 | FP39: 0 | FQ39: 0 | FR39: 0 | FS39: 0 | FT39: 0 | FU39: 0 | FV39: 0 | FW39: 0 | FX39: 0 | FY39: 0 | FZ39: 0 | GA39: 0 | GB39: 0 | GC39: 0 | GD39: 0 | GE39: 462.0148977 | GF39: 0 | GG39: 0 | GH39: 0 | GI39: 0 | GJ39: 0
A40: 1 | D40: POLES | E40: > 132 KV; STEEL | F40: 51.33498863 | G40: 53.8 | H40: 7.334848328 | I40: 2 | J40: 0 | K40: 0 | L40: 0 | M40: 0 | N40: 0 | O40: 0 | P40: 0 | Q40: 0 | R40: 0 | S40: 0 | T40: 0 | U40: 0 | V40: 0 | W40: 0 | X40: 0 | Y40: 0 | Z40: 0 | AA40: 0 | AB40: 0 | AC40: 0 | AD40: 0 | AE40: 0 | AF40: 0 | AG40: 0 | AH40: 0 | AI40: 0 | AJ40: 0 | AK40: 0 | AL40: 0 | AM40: 0 | AN40: 0 | AO40: 0 | AP40: 0 | AQ40: 0 | AR40: 0 | AS40: 0 | AT40: 0 | AU40: 0 | AV40: 0 | AW40: 0 | AX40: 0 | AY40: 0 | AZ40: 0 | BA40: 0 | BB40: 0 | BC40: 0 | BD40: 0 | BE40: 0 | BF40: 10 | BG40: 0 | BH40: 0 | BI40: 0 | BJ40: 0 | BK40: 0 | BL40: 0 | BM40: 0 | BN40: 0 | BO40: 0 | BP40: 0 | BQ40: 0 | BR40: 0 | BS40: 0 | BT40: 0 | BU40: 0 | BV40: 0 | BW40: 0 | BX40: 0 | BY40: 0 | BZ40: 0 | CA40: 0 | CB40: 0 | CC40: 0 | CD40: 0 | CE40: 0 | CF40: 0 | CG40: 0 | CH40: 0 | CI40: 0 | CJ40: 0 | CK40: 0 | CL40: 0 | CM40: 0 | CN40: 0 | CO40: 0 | CP40: 0 | CQ40: 0 | CR40: 0 | CS40: 0 | CT40: 0 | CU40: 0 | CV40: 0 | CX40: 0 | CY40: 0 | CZ40: 0 | DA40: 0 | DB40: 0 | DC40: 0 | DD40: 0 | DE40: 0 | DF40: 0 | DG40: 0 | DH40: 0 | DI40: 0 | DJ40: 0 | DK40: 0 | DL40: 0 | DM40: 0 | DN40: 0 | DO40: 0 | DP40: 0 | DQ40: 0 | DR40: 0 | DS40: 0 | DT40: 0 | DU40: 0 | DV40: 0 | DW40: 0 | DX40: 0 | DY40: 0 | DZ40: 0 | EA40: 0 | EB40: 0 | EC40: 0 | ED40: 0 | EE40: 0 | EF40: 0 | EG40: 0 | EH40: 0 | EI40: 0 | EJ40: 0 | EK40: 0 | EL40: 0 | EM40: 0 | EN40: 0 | EO40: 0 | EP40: 0 | EQ40: 0 | ER40: 0 | ES40: 0 | ET40: 513.3498863 | EU40: 0 | EV40: 0 | EW40: 0 | EX40: 0 | EY40: 0 | EZ40: 0 | FA40: 0 | FB40: 0 | FC40: 0 | FD40: 0 | FE40: 0 | FF40: 0 | FG40: 0 | FH40: 0 | FI40: 0 | FJ40: 0 | FK40: 0 | FL40: 0 | FM40: 0 | FN40: 0 | FO40: 0 | FP40: 0 | FQ40: 0 | FR40: 0 | FS40: 0 | FT40: 0 | FU40: 0 | FV40: 0 | FW40: 0 | FX40: 0 | FY40: 0 | FZ40: 0 | GA40: 0 | GB40: 0 | GC40: 0 | GD40: 0 | GE40: 0 | GF40: 0 | GG40: 0 | GH40: 0 | GI40: 0 | GJ40: 0
A41: 1 | D41: POLES | E41: OTHER - BOLLARDS | F41: 5.340912193 | G41: 53.8 | H41: 7.334848328 | I41: 2 | J41: 172 | K41: 186 | L41: 123 | M41: 82 | N41: 126 | O41: 118 | P41: 120 | Q41: 101 | R41: 128 | S41: 159 | T41: 116 | U41: 118 | V41: 106 | W41: 154 | X41: 100 | Y41: 114 | Z41: 94 | AA41: 108 | AB41: 176 | AC41: 225 | AD41: 234 | AE41: 252 | AF41: 305 | AG41: 285 | AH41: 295 | AI41: 241 | AJ41: 312 | AK41: 260 | AL41: 216 | AM41: 191 | AN41: 143 | AO41: 262 | AP41: 234 | AQ41: 321 | AR41: 193 | AS41: 173 | AT41: 246 | AU41: 143 | AV41: 246 | AW41: 181 | AX41: 215 | AY41: 183 | AZ41: 311 | BA41: 474 | BB41: 312 | BC41: 235 | BD41: 174 | BE41: 449 | BF41: 290 | BG41: 89 | BH41: 91 | BI41: 60 | BJ41: 148 | BK41: 471 | BL41: 37 | BM41: 50 | BN41: 30 | BO41: 38 | BP41: 206 | BQ41: 38 | BR41: 20 | BS41: 126 | BT41: 8 | BU41: 354 | BV41: 24 | BW41: 5 | BX41: 8 | BY41: 6 | BZ41: 3 | CA41: 2 | CB41: 1 | CC41: 3 | CD41: 0 | CE41: 14 | CF41: 2 | CG41: 2 | CH41: 0 | CI41: 3 | CJ41: 0 | CK41: 0 | CL41: 0 | CM41: 0 | CN41: 0 | CO41: 61 | CP41: 0 | CQ41: 0 | CR41: 0 | CS41: 0 | CT41: 0 | CU41: 0 | CV41: 0 | CX41: 918.6368973 | CY41: 993.409668 | CZ41: 656.9321998 | DA41: 437.9547999 | DB41: 672.9549364 | DC41: 630.2276388 | DD41: 640.9094632 | DE41: 539.4321315 | DF41: 683.6367608 | DG41: 849.2050388 | DH41: 619.5458144 | DI41: 630.2276388 | DJ41: 566.1366925 | DK41: 822.5004778 | DL41: 534.0912193 | DM41: 608.8639901 | DN41: 502.0457462 | DO41: 576.8185169 | DP41: 940.000546 | DQ41: 1201.705244 | DR41: 1249.773453 | DS41: 1345.909873 | DT41: 1628.978219 | DU41: 1522.159975 | DV41: 1575.569097 | DW41: 1287.159839 | DX41: 1666.364604 | DY41: 1388.63717 | DZ41: 1153.637034 | EA41: 1020.114229 | EB41: 763.7504437 | EC41: 1399.318995 | ED41: 1249.773453 | EE41: 1714.432814 | EF41: 1030.796053 | EG41: 923.9778095 | EH41: 1313.8644 | EI41: 763.7504437 | EJ41: 1313.8644 | EK41: 966.705107 | EL41: 1148.296122 | EM41: 977.3869314 | EN41: 1661.023692 | EO41: 2531.59238 | EP41: 1666.364604 | EQ41: 1255.114365 | ER41: 929.3187217 | ES41: 2398.069575 | ET41: 1548.864536 | EU41: 475.3411852 | EV41: 486.0230096 | EW41: 320.4547316 | EX41: 790.4550046 | EY41: 2515.569643 | EZ41: 197.6137512 | FA41: 267.0456097 | FB41: 160.2273658 | FC41: 202.9546634 | FD41: 1100.227912 | FE41: 202.9546634 | FF41: 106.8182439 | FG41: 672.9549364 | FH41: 42.72729755 | FI41: 1890.682916 | FJ41: 128.1818926 | FK41: 26.70456097 | FL41: 42.72729755 | FM41: 32.04547316 | FN41: 16.02273658 | FO41: 10.68182439 | FP41: 5.340912193 | FQ41: 16.02273658 | FR41: 0 | FS41: 74.77277071 | FT41: 10.68182439 | FU41: 10.68182439 | FV41: 0 | FW41: 16.02273658 | FX41: 0 | FY41: 0 | FZ41: 0 | GA41: 0 | GB41: 0 | GC41: 325.7956438 | GD41: 0 | GE41: 0 | GF41: 0 | GG41: 0 | GH41: 0 | GI41: 0 | GJ41: 0
A42: 2 | D42: OVERHEAD CONDUCTORS | E42: ˂ = 1 KV | F42: 47.18692258 | G42: 53.8 | H42: 7.334848328 | I42: 2 | J42: 482.5925354 | K42: 662.0773847 | L42: 648.2216463 | M42: 585.3570897 | N42: 688.725769 | O42: 573.3727946 | P42: 531.388641 | Q42: 613.4264974 | R42: 524.5914401 | S42: 552.4519517 | T42: 534.9689067 | U42: 476.4957797 | V42: 1388.430495 | W42: 249.6827734 | X42: 217.2990322 | Y42: 213.1478234 | Z42: 246.1116217 | AA42: 314.438069 | AB42: 516.2506477 | AC42: 548.5925293 | AD42: 536.4463692 | AE42: 938.0269359 | AF42: 592.3119533 | AG42: 644.3153442 | AH42: 547.8786738 | AI42: 486.3669572 | AJ42: 597.398637 | AK42: 520.1035902 | AL42: 506.9862985 | AM42: 476.203467 | AN42: 342.2952812 | AO42: 523.7408904 | AP42: 603.1078147 | AQ42: 568.7945301 | AR42: 374.8944438 | AS42: 405.4377096 | AT42: 520.3930293 | AU42: 371.232774 | AV42: 397.2190806 | AW42: 395.3542673 | AX42: 304.369631 | AY42: 368.3655312 | AZ42: 593.7105186 | BA42: 603.3440599 | BB42: 482.3699403 | BC42: 410.5600992 | BD42: 326.0649704 | BE42: 559.508131 | BF42: 416.402951 | BG42: 278.2617166 | BH42: 156.914991 | BI42: 209.0420535 | BJ42: 408.5936361 | BK42: 749.0789451 | BL42: 132.3621497 | BM42: 118.0697377 | BN42: 140.9249839 | BO42: 71.81059982 | BP42: 292.6547117 | BQ42: 45.13267012 | BR42: 17.22211584 | BS42: 19.41803762 | BT42: 8.555930087 | BU42: 481.9542569 | BV42: 23.29765017 | BW42: 2.92303177 | BX42: 6.218953658 | BY42: 8.590366456 | BZ42: 10.80252738 | CA42: 0 | CB42: 1.760912822 | CC42: 1.853272689 | CD42: 10.69337567 | CE42: 5.018407349 | CF42: 2.010742043 | CG42: 0.9552785461 | CH42: 0 | CI42: 3.494838222 | CJ42: 0 | CK42: 0 | CL42: 0 | CM42: 0.1431790746 | CN42: 0 | CO42: 57.71324463 | CP42: 0 | CQ42: 0 | CR42: 0 | CS42: 0 | CT42: 0 | CU42: 0 | CV42: 1.424376156 | CX42: 22772.0566 | CY42: 31241.3943 | CZ42: 30587.58464 | DA42: 27621.19967 | DB42: 32498.84954 | DC42: 27055.69767 | DD42: 25074.59466 | DE42: 28945.70864 | DF42: 24753.85567 | DG42: 26068.50747 | DH42: 25243.53639 | DI42: 22484.36947 | DJ42: 65515.76226 | DK42: 11781.7617 | DL42: 10253.67261 | DM42: 10057.78984 | DN42: 11613.25004 | DO42: 14837.36482 | DP42: 24360.27934 | DQ42: 25886.39321 | DR42: 25313.25329 | DS42: 44262.6044 | DT42: 27949.37828 | DU42: 30403.25826 | DV42: 25852.70856 | DW42: 22950.15996 | DX42: 28189.40323 | DY42: 24542.08785 | DZ42: 23923.12322 | EA42: 22470.57613 | EB42: 16151.86093 | EC42: 24713.72085 | ED42: 28458.80176 | EE42: 26839.66346 | EF42: 17690.1151 | EG42: 19131.35782 | EH42: 24555.74559 | EI42: 17517.33216 | EJ42: 18743.546 | EK42: 18655.5512 | EL42: 14362.26621 | EM42: 17382.0358 | EN42: 28015.37228 | EO42: 28469.94944 | EP42: 22761.55303 | EQ42: 19373.06762 | ER42: 15386.00252 | ES42: 26401.46686 | ET42: 19648.77381 | EU42: 13130.31408 | EV42: 7404.335531 | EW42: 9864.051193 | EX42: 19280.27627 | EY42: 35346.73019 | EZ42: 6245.762511 | FA42: 5571.347573 | FB42: 6649.816307 | FC42: 3388.521214 | FD42: 13809.47522 | FE42: 2129.671811 | FF42: 812.6586469 | FG42: 916.2774381 | FH42: 403.7280106 | FI42: 22741.93821 | FJ42: 1099.344415 | FK42: 137.9288738 | FL42: 293.4532848 | FM42: 405.3529569 | FN42: 509.7380234 | FO42: 0 | FP42: 83.09205701 | FQ42: 87.45023488 | FR42: 504.5874898 | FS42: 236.8031991 | FT42: 94.88072912 | FU42: 45.0766548 | FV42: 0 | FW42: 164.9106606 | FX42: 0 | FY42: 0 | FZ42: 0 | GA42: 6.75617991 | GB42: 0 | GC42: 2723.310406 | GD42: 0 | GE42: 0 | GF42: 0 | GG42: 0 | GH42: 0 | GI42: 0 | GJ42: 67.21192739
A43: 2 | D43: OVERHEAD CONDUCTORS | E43: > 1 KV & < = 11 KV | F43: 47.18692258 | G43: 53.8 | H43: 7.334848328 | I43: 2 | J43: 967.3111317 | K43: 929.8939417 | L43: 765.1937467 | M43: 740.3647748 | N43: 693.2692876 | O43: 512.4615747 | P43: 467.2095648 | Q43: 617.1184957 | R43: 695.5995335 | S43: 614.1548219 | T43: 616.4457312 | U43: 1043.695169 | V43: 670.3968785 | W43: 146.1920011 | X43: 55.54778012 | Y43: 57.25505179 | Z43: 75.60457312 | AA43: 93.09167006 | AB43: 146.4671794 | AC43: 174.3047776 | AD43: 149.2584294 | AE43: 191.0516466 | AF43: 234.1804334 | AG43: 287.0897305 | AH43: 249.2430122 | AI43: 310.2726591 | AJ43: 319.8553122 | AK43: 275.7195959 | AL43: 217.9350241 | AM43: 164.7612881 | AN43: 228.8560189 | AO43: 246.3627721 | AP43: 266.1002165 | AQ43: 332.740076 | AR43: 222.9261558 | AS43: 279.4047636 | AT43: 629.3797669 | AU43: 334.9563441 | AV43: 428.7805068 | AW43: 469.5322485 | AX43: 463.7578512 | AY43: 694.5152075 | AZ43: 1076.798604 | BA43: 2174.449525 | BB43: 1664.677931 | BC43: 804.4521369 | BD43: 3064.413904 | BE43: 1287.628562 | BF43: 2150.834773 | BG43: 1567.450105 | BH43: 791.318992 | BI43: 1185.905686 | BJ43: 4535.317579 | BK43: 8674.245347 | BL43: 817.9882899 | BM43: 1245.736608 | BN43: 921.3349765 | BO43: 996.0490681 | BP43: 3773.546512 | BQ43: 429.6598743 | BR43: 1374.827119 | BS43: 1835.486566 | BT43: 1167.093325 | BU43: 9671.893722 | BV43: 143.2061243 | BW43: 180.7441607 | BX43: 204.8124219 | BY43: 173.6922741 | BZ43: 90.06348753 | CA43: 32.0838732 | CB43: 0 | CC43: 0 | CD43: 31.59648143 | CE43: 513.7548577 | CF43: 132.4462686 | CG43: 124.4156355 | CH43: 46.3938957 | CI43: 140.9761741 | CJ43: 18.0347236 | CK43: 3.962177666 | CL43: 63.3384345 | CM43: 0.9683802734 | CN43: 37.90591709 | CO43: 81.09327256 | CP43: 0 | CQ43: 0 | CR43: 0 | CS43: 0 | CT43: 0 | CU43: 0 | CV43: 0 | CX43: 45644.43548 | CY43: 43878.83344 | CZ43: 36107.13809 | DA43: 34935.53531 | DB43: 32713.2442 | DC43: 24181.48465 | DD43: 22046.18156 | DE43: 29119.92268 | DF43: 32823.20133 | DG43: 28980.07603 | DH43: 29088.17699 | DI43: 49248.76312 | DJ43: 31633.9656 | DK43: 6898.350639 | DL43: 2621.1288 | DM43: 2701.689696 | DN43: 3567.547139 | DO43: 4392.709428 | DP43: 6911.335457 | DQ43: 8224.906048 | DR43: 7043.045953 | DS43: 9015.139256 | DT43: 11050.25398 | DU43: 13546.88089 | DV43: 11761.01072 | DW43: 14640.81194 | DX43: 15092.98785 | DY43: 13010.35923 | DZ43: 10283.68311 | EA43: 7774.578147 | EB43: 10799.01125 | EC43: 11625.10105 | ED43: 12556.45032 | EE43: 15700.98021 | EF43: 10519.19925 | EG43: 13184.25095 | EH43: 29698.49434 | EI43: 15805.55908 | EJ43: 20232.83258 | EK43: 22155.78186 | EL43: 21883.30582 | EM43: 32772.03533 | EN43: 50810.81237 | EO43: 102605.5814 | EP43: 78551.02867 | EQ43: 37959.6207 | ER43: 144600.2617 | ES43: 60759.22927 | ET43: 101491.2739 | EU43: 73963.14674 | EV43: 37339.90801 | EW43: 55959.23978 | EX43: 214007.6795 | EY43: 409310.9436 | EZ43: 38598.35011 | FA43: 58782.47689 | FB43: 43474.96221 | FC43: 47000.49026 | FD43: 178062.0471 | FE43: 20274.32722 | FF43: 64873.86083 | FG43: 86610.96247 | FH43: 55071.54235 | FI43: 456386.9003 | FJ43: 6757.456299 | FK43: 8528.760716 | FL43: 9664.467894 | FM43: 8196.003889 | FN43: 4249.818814 | FO43: 1513.939241 | FP43: 0 | FQ43: 0 | FR43: 1490.940723 | FS43: 24242.5107 | FT43: 6249.73182 | FU43: 5870.79096 | FV43: 2189.185165 | FW43: 6652.231813 | FX43: 851.0031062 | FY43: 186.9629708 | FZ43: 2988.745805 | GA43: 45.69488499 | GB43: 1788.663575 | GC43: 3826.541974 | GD43: 0 | GE43: 0 | GF43: 0 | GG43: 0 | GH43: 0 | GI43: 0 | GJ43: 0
A44: 2 | D44: OVERHEAD CONDUCTORS | E44: ˃ 11 KV & < = 22 KV ; SWER | F44: 47.18692258 | G44: 53.8 | H44: 7.334848328 | I44: 2 | J44: 36.35170279 | K44: 25.38029935 | L44: 11.15692109 | M44: 28.19981521 | N44: 18.53196012 | O44: 132.5457929 | P44: 215.2620673 | Q44: 115.6353565 | R44: 33.35814217 | S44: 27.23663906 | T44: 193.101998 | U44: 211.8209965 | V44: 106.1668987 | W44: 27.26349433 | X44: 5.955550887 | Y44: 14.59776911 | Z44: 9.566433662 | AA44: 60.64896222 | AB44: 1609.752102 | AC44: 966.3561404 | AD44: 940.6005079 | AE44: 129.4500844 | AF44: 34.51654703 | AG44: 128.7962073 | AH44: 328.3207018 | AI44: 691.8524079 | AJ44: 92.61847926 | AK44: 132.7097757 | AL44: 223.9234712 | AM44: 352.9651008 | AN44: 444.2901898 | AO44: 602.7260505 | AP44: 952.5625828 | AQ44: 920.8569834 | AR44: 33.41301369 | AS44: 500.8071842 | AT44: 119.8892437 | AU44: 195.0180557 | AV44: 214.115085 | AW44: 398.2514211 | AX44: 85.75996579 | AY44: 129.049379 | AZ44: 471.3411993 | BA44: 445.1100017 | BB44: 173.0443089 | BC44: 137.0795454 | BD44: 1294.101533 | BE44: 1372.435429 | BF44: 2493.105122 | BG44: 2496.60268 | BH44: 811.6393949 | BI44: 459.2680782 | BJ44: 1798.2804 | BK44: 2026.177512 | BL44: 59.79278082 | BM44: 294.2498366 | BN44: 6.104892204 | BO44: 266.3722263 | BP44: 389.3597444 | BQ44: 36.97053353 | BR44: 646.1416412 | BS44: 303.3889046 | BT44: 182.6049433 | BU44: 452.4386781 | BV44: 0 | BW44: 54.42237329 | BX44: 0 | BY44: 0 | BZ44: 34.07984549 | CA44: 0 | CB44: 0 | CC44: 0 | CD44: 0 | CE44: 1287.020755 | CF44: 0 | CG44: 0 | CH44: 0 | CI44: 0 | CJ44: 0 | CK44: 0 | CL44: 0 | CM44: 0 | CN44: 206.1157718 | CO44: 0 | CP44: 0 | CQ44: 0 | CR44: 0 | CS44: 0 | CT44: 0 | CU44: 0 | CV44: 0 | CX44: 1715.324985 | CY44: 1197.61822 | CZ44: 526.4607716 | DA44: 1330.662497 | DB44: 874.4661676 | DC44: 6254.42807 | DD44: 10157.5545 | DE44: 5456.476616 | DF44: 1574.068072 | DG44: 1285.213179 | DH44: 9111.889029 | DI44: 9995.180965 | DJ44: 5009.689229 | DK44: 1286.480396 | DL44: 281.0241186 | DM44: 688.8238006 | DN44: 451.4105646 | DO44: 2861.837885 | DP44: 75959.24781 | DQ44: 45599.37238 | DR44: 44384.04335 | DS44: 6108.35111 | DT44: 1628.729632 | DU44: 6077.496661 | DV44: 15492.44354 | DW44: 32646.38601 | DX44: 4370.381011 | DY44: 6262.16591 | DZ44: 10566.2595 | EA44: 16655.33689 | EB44: 20964.68679 | EC44: 28440.78748 | ED44: 44948.49685 | EE44: 43452.40718 | EF44: 1576.65729 | EG44: 23631.54983 | EH44: 5657.20446 | EI44: 9202.301895 | EJ44: 10103.43194 | EK44: 18792.25897 | EL44: 4046.748866 | EM44: 6089.443057 | EN44: 22241.14068 | EO44: 21003.37119 | EP44: 8165.428409 | EQ44: 6468.361897 | ER44: 61064.66884 | ES44: 64761.00434 | ET44: 117641.9584 | EU44: 117806.9974 | EV44: 38298.76529 | EW44: 21671.44725 | EX44: 84855.31801 | EY44: 95609.0814 | EZ44: 2821.437319 | FA44: 13884.74426 | FB44: 288.0710758 | FC44: 12569.28562 | FD44: 18372.68811 | FE44: 1744.525703 | FF44: 30489.4356 | FG44: 14315.98875 | FH44: 8616.565322 | FI44: 21349.18887 | FJ44: 0 | FK44: 2568.024315 | FL44: 0 | FM44: 0 | FN44: 1608.123031 | FO44: 0 | FP44: 0 | FQ44: 0 | FR44: 0 | FS44: 60730.54872 | FT44: 0 | FU44: 0 | FV44: 0 | FW44: 0 | FX44: 0 | FY44: 0 | FZ44: 0 | GA44: 0 | GB44: 9725.968968 | GC44: 0 | GD44: 0 | GE44: 0 | GF44: 0 | GG44: 0 | GH44: 0 | GI44: 0 | GJ44: 0
A45: 2 | D45: OVERHEAD CONDUCTORS | E45: ˃ 11 KV & < = 22 KV ; SINGLE-PHASE | F45: 73.23463169 | G45: 53.8 | H45: 7.334848328 | I45: 2 | J45: 73.77298859 | K45: 76.96244766 | L45: 30.73732694 | M45: 62.88639647 | N45: 63.34098677 | O45: 145.2493723 | P45: 187.5152556 | Q45: 124.592375 | R45: 132.2856463 | S45: 108.7973907 | T45: 88.89107373 | U45: 194.5817122 | V45: 138.3264631 | W45: 29.47419729 | X45: 16.69981465 | Y45: 9.568003003 | Z45: 20.93233853 | AA45: 36.31362782 | AB45: 42.60285725 | AC45: 33.7290127 | AD45: 28.40528667 | AE45: 42.34954234 | AF45: 46.08251281 | AG45: 47.00817213 | AH45: 77.91171648 | AI45: 67.36646312 | AJ45: 103.8117061 | AK45: 61.63880542 | AL45: 45.80689314 | AM45: 61.73168912 | AN45: 67.28595642 | AO45: 85.77091025 | AP45: 77.93231965 | AQ45: 432.5869403 | AR45: 61.83685366 | AS45: 119.0363931 | AT45: 89.26229299 | AU45: 99.26842012 | AV45: 108.5874196 | AW45: 86.08573534 | AX45: 93.12350181 | AY45: 100.3569373 | AZ45: 152.2339737 | BA45: 336.1960652 | BB45: 251.1078198 | BC45: 338.0979281 | BD45: 1149.234497 | BE45: 1161.049917 | BF45: 951.5367744 | BG45: 508.6318937 | BH45: 303.5734868 | BI45: 446.0561366 | BJ45: 1810.247061 | BK45: 1977.235435 | BL45: 1026.992399 | BM45: 555.1553261 | BN45: 260.981414 | BO45: 879.2102118 | BP45: 1853.114653 | BQ45: 693.3967417 | BR45: 155.9282713 | BS45: 121.7454291 | BT45: 31.24259294 | BU45: 1506.895906 | BV45: 60.39891501 | BW45: 10.2558629 | BX45: 3.709130477 | BY45: 6.951183488 | BZ45: 12.28907399 | CA45: 34.85964543 | CB45: 0 | CC45: 0 | CD45: 1.377612036 | CE45: 238.380261 | CF45: 15.38441564 | CG45: 0 | CH45: 9.725677552 | CI45: 0 | CJ45: 0 | CK45: 0 | CL45: 0 | CM45: 0 | CN45: 505.8407827 | CO45: 131.7694059 | CP45: 0 | CQ45: 0 | CR45: 0 | CS45: 0 | CT45: 0 | CU45: 0 | CV45: 0 | CX45: 5402.737648 | CY45: 5636.316509 | CZ45: 2251.036818 | DA45: 4605.462084 | DB45: 4638.753837 | DC45: 10637.28428 | DD45: 13732.61068 | DE45: 9124.476695 | DF45: 9687.890588 | DG45: 7967.736834 | DH45: 6509.905046 | DI45: 14250.12003 | DJ45: 10130.28758 | DK45: 2158.531983 | DL45: 1223.004776 | DM45: 700.7091759 | DN45: 1532.972103 | DO45: 2659.415159 | DP45: 3120.00456 | DQ45: 2470.131823 | DR45: 2080.250707 | DS45: 3101.453135 | DT45: 3374.835853 | DU45: 3442.626172 | DV45: 5705.835861 | DW45: 4933.558115 | DX45: 7602.612065 | DY45: 4514.095213 | DZ45: 3354.650948 | EA45: 4520.897517 | EB45: 4927.662237 | EC45: 6281.401022 | ED45: 5707.344726 | EE45: 31680.34525 | EF45: 4528.599203 | EG45: 8717.58641 | EH45: 6537.091151 | EI45: 7269.886186 | EJ45: 7952.359683 | EK45: 6304.457122 | EL45: 6819.865357 | EM45: 7349.603342 | EN45: 11148.79899 | EO45: 24621.19501 | EP45: 18389.7887 | EQ45: 24760.47724 | ER45: 84163.76511 | ES45: 85029.06306 | ET45: 69685.44522 | EU45: 37249.4694 | EV45: 22232.0925 | EW45: 32666.75688 | EX45: 132572.7768 | EY45: 144802.1089 | EZ45: 75211.41009 | FA45: 40656.59584 | FB45: 19112.87773 | FC45: 64388.63604 | FD45: 135712.1691 | FE45: 50780.655 | FF45: 11419.34952 | FG45: 8915.981661 | FH45: 2288.039787 | FI45: 110356.9667 | FJ45: 4423.292295 | FK45: 751.0843424 | FL45: 271.6368044 | FM45: 509.0673626 | FN45: 899.9858077 | FO45: 2552.933294 | FP45: 0 | FQ45: 0 | FR45: 100.8889101 | FS45: 17457.69062 | FT45: 1126.672013 | FU45: 0 | FV45: 712.2564134 | FW45: 0 | FX45: 0 | FY45: 0 | FZ45: 0 | GA45: 0 | GB45: 37045.06342 | GC45: 9650.083907 | GD45: 0 | GE45: 0 | GF45: 0 | GG45: 0 | GH45: 0 | GI45: 0 | GJ45: 0
A46: 2 | D46: OVERHEAD CONDUCTORS | E46: ˃ 11 KV & < = 22 KV ; MULTIPLE-PHASE | F46: 47.18692258 | G46: 53.8 | H46: 7.334848328 | I46: 2 | J46: 283.8859771 | K46: 225.4022383 | L46: 253.5003818 | M46: 193.7322259 | N46: 146.8310799 | O46: 274.2410538 | P46: 240.946435 | Q46: 192.0086124 | R46: 95.30368307 | S46: 79.00834633 | T46: 186.0441373 | U46: 239.5831993 | V46: 214.896432 | W46: 57.23971262 | X46: 13.5738896 | Y46: 14.74563883 | Z46: 24.65913353 | AA46: 35.64805258 | AB46: 21.58204357 | AC46: 24.27955771 | AD46: 27.29136126 | AE46: 30.66057682 | AF46: 53.33143998 | AG46: 54.26762299 | AH46: 61.65334399 | AI46: 71.58016981 | AJ46: 61.6498023 | AK46: 67.78792674 | AL46: 133.6753634 | AM46: 38.98875241 | AN46: 76.31565373 | AO46: 171.2301984 | AP46: 137.2059745 | AQ46: 243.588228 | AR46: 103.1030813 | AS46: 120.3805804 | AT46: 177.848687 | AU46: 107.9612887 | AV46: 160.312092 | AW46: 111.9635307 | AX46: 127.025749 | AY46: 79.28132636 | AZ46: 107.2165556 | BA46: 343.7591994 | BB46: 178.3164195 | BC46: 300.9543527 | BD46: 1253.220993 | BE46: 948.2436074 | BF46: 1464.904555 | BG46: 624.87469 | BH46: 344.9480553 | BI46: 129.9886509 | BJ46: 1589.954272 | BK46: 2248.645529 | BL46: 557.8064241 | BM46: 718.8283898 | BN46: 135.0300241 | BO46: 701.0725753 | BP46: 1046.742754 | BQ46: 419.2679706 | BR46: 215.9762241 | BS46: 81.69668244 | BT46: 34.12569268 | BU46: 731.5080999 | BV46: 61.73269309 | BW46: 24.59062082 | BX46: 7.633702695 | BY46: 11.66548833 | BZ46: 28.3923846 | CA46: 158.5498697 | CB46: 0.5748554981 | CC46: 0.8007177735 | CD46: 0 | CE46: 902.212065 | CF46: 6.555781958 | CG46: 0 | CH46: 15.70548007 | CI46: 0 | CJ46: 0 | CK46: 0 | CL46: 0 | CM46: 0 | CN46: 417.24428 | CO46: 192.0920698 | CP46: 0 | CQ46: 0 | CR46: 0 | CS46: 0 | CT46: 0 | CU46: 0 | CV46: 0 | CX46: 13395.70562 | CY46: 10636.03797 | CZ46: 11961.90289 | DA46: 9141.627545 | DB46: 6928.506802 | DC46: 12940.59137 | DD46: 11369.52078 | DE46: 9060.295528 | DF46: 4497.087515 | DG46: 3728.160722 | DH46: 8778.850304 | DI46: 11305.19388 | DJ46: 10140.3013 | DK46: 2700.965888 | DL46: 640.5100776 | DM46: 695.8013177 | DN46: 1163.588625 | DO46: 1682.121897 | DP46: 1018.390219 | DQ46: 1145.67761 | DR46: 1287.795351 | DS46: 1446.778265 | DT46: 2516.54653 | DU46: 2560.722125 | DV46: 2909.23157 | DW46: 3377.647931 | DX46: 2909.064448 | DY46: 3198.703651 | DZ46: 6307.729024 | EA46: 1839.759241 | EB46: 3601.100844 | EC46: 8079.826117 | ED46: 6474.327695 | EE46: 11494.17886 | EF46: 4865.117113 | EG46: 5680.389126 | EH46: 8392.132223 | EI46: 5094.360972 | EJ46: 7564.634272 | EK46: 5283.214453 | EL46: 5993.954183 | EM46: 3741.041809 | EN46: 5059.219308 | EO46: 16220.93873 | EP46: 8414.20308 | EQ46: 14201.10974 | ER46: 59135.64195 | ES46: 44744.69769 | ET46: 69124.33785 | EU46: 29485.91362 | EV46: 16277.03718 | EW46: 6133.764405 | EX46: 75025.04916 | EY46: 106106.6625 | EZ46: 26321.16855 | FA46: 33919.29958 | FB46: 6371.651293 | FC46: 33081.45734 | FD46: 49392.56931 | FE46: 19783.96527 | FF46: 10191.25337 | FG46: 3855.01503 | FH46: 1610.286419 | FI46: 34517.61608 | FJ46: 2912.97581 | FK46: 1160.355721 | FL46: 360.2109381 | FM46: 550.4584946 | FN46: 1339.749254 | FO46: 7481.480429 | FP46: 27.12566188 | FQ46: 37.78340759 | FR46: 0 | FS46: 42572.61086 | FT46: 309.3471757 | FU46: 0 | FV46: 741.0932723 | FW46: 0 | FX46: 0 | FY46: 0 | FZ46: 0 | GA46: 0 | GB46: 19688.47354 | GC46: 9064.233627 | GD46: 0 | GE46: 0 | GF46: 0 | GG46: 0 | GH46: 0 | GI46: 0 | GJ46: 0
A47: 2 | D47: OVERHEAD CONDUCTORS | E47: > 22 KV & < = 66 KV | F47: 61.10343395 | G47: 54.9 | H47: 7.409453421 | I47: 2 | J47: 175.5381052 | K47: 72.64827379 | L47: 136.9237732 | M47: 101.2279899 | N47: 82.19651759 | O47: 76.26125432 | P47: 60.59702114 | Q47: 183.2532869 | R47: 212.0044011 | S47: 62.97697637 | T47: 79.7556631 | U47: 88.99019752 | V47: 420.4148425 | W47: 20.86307378 | X47: 1.019073897 | Y47: 246.601883 | Z47: 14.41577215 | AA47: 0.8209559998 | AB47: 79.74776461 | AC47: 118.676918 | AD47: 98.07994548 | AE47: 157.3971828 | AF47: 53.4804114 | AG47: 73.11313234 | AH47: 48.31332814 | AI47: 67.43422099 | AJ47: 182.632451 | AK47: 301.8287514 | AL47: 289.0424058 | AM47: 162.1770707 | AN47: 66.1867314 | AO47: 215.8288974 | AP47: 132.0706802 | AQ47: 98.17703765 | AR47: 119.7551378 | AS47: 113.2182069 | AT47: 208.3812753 | AU47: 74.56882206 | AV47: 85.85270392 | AW47: 149.0688624 | AX47: 73.05045101 | AY47: 127.4331433 | AZ47: 326.4182795 | BA47: 280.5409626 | BB47: 364.8639359 | BC47: 262.094649 | BD47: 808.4707558 | BE47: 930.5772923 | BF47: 625.6011299 | BG47: 236.1537018 | BH47: 284.9715105 | BI47: 263.9454723 | BJ47: 445.8204495 | BK47: 974.6241479 | BL47: 143.7265756 | BM47: 74.64932697 | BN47: 27.35108539 | BO47: 71.26549897 | BP47: 370.0421718 | BQ47: 32.99907424 | BR47: 0 | BS47: 219.5995453 | BT47: 8.462317186 | BU47: 517.8256984 | BV47: 0 | BW47: 24.01383268 | BX47: 85.27740495 | BY47: 4.076795215 | BZ47: 77.82822333 | CA47: 0 | CB47: 3.59814477 | CC47: 0 | CD47: 0 | CE47: 0 | CF47: 0 | CG47: 0 | CH47: 21.01574752 | CI47: 3.912251391 | CJ47: 47.84094012 | CK47: 0 | CL47: 0 | CM47: 0 | CN47: 20.084458 | CO47: 160.2090011 | CP47: 0 | CQ47: 83.1746717 | CR47: 0 | CS47: 0 | CT47: 0 | CU47: 0 | CV47: 0 | CX47: 10725.98101 | CY47: 4439.058999 | CZ47: 8366.512733 | DA47: 6185.377794 | DB47: 5022.489483 | DC47: 4659.824517 | DD47: 3702.686079 | DE47: 11197.40511 | DF47: 12954.19692 | DG47: 3848.109516 | DH47: 4873.344892 | DI47: 5437.606657 | DJ47: 25688.79056 | DK47: 1274.805451 | DL47: 62.26891453 | DM47: 15068.22187 | DN47: 880.8531812 | DO47: 50.16323071 | DP47: 4872.862267 | DQ47: 7251.567218 | DR47: 5993.021471 | DS47: 9617.508362 | DT47: 3267.836786 | DU47: 4467.463453 | DV47: 2952.110255 | DW47: 4120.462468 | DX47: 11159.46991 | DY47: 18442.77318 | DZ47: 17661.48355 | EA47: 9909.575927 | EB47: 4044.236571 | EC47: 13187.88678 | ED47: 8069.972085 | EE47: 5998.954136 | EF47: 7317.450153 | EG47: 6918.021225 | EH47: 12732.81149 | EI47: 4556.411093 | EJ47: 5245.895024 | EK47: 9108.619387 | EL47: 4463.633408 | EM47: 7786.602656 | EN47: 19945.27778 | EO47: 17142.01618 | EP47: 22294.43941 | EQ47: 16014.88308 | ER47: 49400.33943 | ES47: 56861.46812 | ET47: 38226.37732 | EU47: 14429.80212 | EV47: 17412.73787 | EW47: 16127.97474 | EX47: 27241.16039 | EY47: 59552.88225 | EZ47: 8782.187321 | FA47: 4561.33022 | FB47: 1671.245239 | FC47: 4354.56671 | FD47: 22610.8474 | FE47: 2016.356753 | FF47: 0 | FG47: 13418.28631 | FH47: 517.0766392 | FI47: 31640.92836 | FJ47: 0 | FK47: 1467.327639 | FL47: 5210.742281 | FM47: 249.1061872 | FN47: 4755.571704 | FO47: 0 | FP47: 219.8590013 | FQ47: 0 | FR47: 0 | FS47: 0 | FT47: 0 | FU47: 0 | FV47: 1284.134341 | FW47: 239.0519945 | FX47: 2923.245725 | FY47: 0 | FZ47: 0 | GA47: 0 | GB47: 1227.229353 | GC47: 9789.320116 | GD47: 0 | GE47: 5082.258059 | GF47: 0 | GG47: 0 | GH47: 0 | GI47: 0 | GJ47: 0
A48: 2 | D48: OVERHEAD CONDUCTORS | E48: > 66 KV & < = 132 KV | F48: 72.34043375 | G48: 54.9 | H48: 7.409453421 | I48: 2 | J48: 36.58895286 | K48: 65.86674071 | L48: 15.47769824 | M48: 2.951507425 | N48: 4.404724275 | O48: 1.179610894 | P48: 0.2492660855 | Q48: 122.0087476 | R48: 0 | S48: 0 | T48: 0 | U48: 0 | V48: 11.86070665 | W48: 0 | X48: 0 | Y48: 29.10522199 | Z48: 75.45543525 | AA48: 2.197133111 | AB48: 8.960765473 | AC48: 22.08439762 | AD48: 41.19329117 | AE48: 220.0842444 | AF48: 9.479207495 | AG48: 5.709994122 | AH48: 46.47232571 | AI48: 48.08146992 | AJ48: 80.69697045 | AK48: 48.69714899 | AL48: 0 | AM48: 119.3022533 | AN48: 220.2265546 | AO48: 0 | AP48: 0 | AQ48: 0 | AR48: 0.1106770048 | AS48: 94.70066312 | AT48: 0 | AU48: 0 | AV48: 0 | AW48: 0 | AX48: 21.49549704 | AY48: 9.979806458 | AZ48: 0.1566513272 | BA48: 0 | BB48: 10.47723602 | BC48: 76.8153458 | BD48: 28.31693171 | BE48: 311.1078177 | BF48: 44.91989438 | BG48: 0 | BH48: 0 | BI48: 0 | BJ48: 0 | BK48: 0 | BL48: 0 | BM48: 95.13313956 | BN48: 0 | BO48: 0 | BP48: 0 | BQ48: 0 | BR48: 0 | BS48: 0 | BT48: 0 | BU48: 2.174244441 | BV48: 0 | BW48: 0 | BX48: 0 | BY48: 0 | BZ48: 0 | CA48: 0 | CB48: 0 | CC48: 0 | CD48: 0 | CE48: 0 | CF48: 0 | CG48: 0 | CH48: 0 | CI48: 0 | CJ48: 0 | CK48: 0 | CL48: 0 | CM48: 0 | CN48: 0 | CO48: 0 | CP48: 0 | CQ48: 0 | CR48: 0 | CS48: 0 | CT48: 0 | CU48: 0 | CV48: 0 | CX48: 2646.86072 | CY48: 4764.828592 | CZ48: 1119.663404 | DA48: 213.5133273 | DB48: 318.6396646 | DC48: 85.33356372 | DD48: 18.03201674 | DE48: 8826.165721 | DF48: 0 | DG48: 0 | DH48: 0 | DI48: 0 | DJ48: 858.0086634 | DK48: 0 | DL48: 0 | DM48: 2105.484383 | DN48: 5458.478915 | DO48: 158.9415622 | DP48: 648.2256611 | DQ48: 1597.594903 | DR48: 2979.940551 | DS48: 15920.9897 | DT48: 685.7299818 | DU48: 413.0634515 | DV48: 3361.828199 | DW48: 3478.234389 | DX48: 5837.653844 | DY48: 3522.77288 | DZ48: 0 | EA48: 8630.376749 | EB48: 15931.28449 | EC48: 0 | ED48: 0 | EE48: 0 | EF48: 8.006422534 | EG48: 6850.687047 | EH48: 0 | EI48: 0 | EJ48: 0 | EK48: 0 | EL48: 1554.99358 | EM48: 721.9435279 | EN48: 11.33222495 | EO48: 0 | EP48: 757.9277985 | EQ48: 5556.855434 | ER48: 2048.459122 | ES48: 22505.67448 | ET48: 3249.524643 | EU48: 0 | EV48: 0 | EW48: 0 | EX48: 0 | EY48: 0 | EZ48: 0 | FA48: 6881.972579 | FB48: 0 | FC48: 0 | FD48: 0 | FE48: 0 | FF48: 0 | FG48: 0 | FH48: 0 | FI48: 157.2857859 | FJ48: 0 | FK48: 0 | FL48: 0 | FM48: 0 | FN48: 0 | FO48: 0 | FP48: 0 | FQ48: 0 | FR48: 0 | FS48: 0 | FT48: 0 | FU48: 0 | FV48: 0 | FW48: 0 | FX48: 0 | FY48: 0 | FZ48: 0 | GA48: 0 | GB48: 0 | GC48: 0 | GD48: 0 | GE48: 0 | GF48: 0 | GG48: 0 | GH48: 0 | GI48: 0 | GJ48: 0
A49: 2 | D49: OVERHEAD CONDUCTORS | E49: > 132 KV | F49: 72.34043375 | G49: 54.9 | H49: 7.409453421 | I49: 2 | J49: 0 | K49: 0 | L49: 0 | M49: 0 | N49: 0 | O49: 0 | P49: 0 | Q49: 0 | R49: 0 | S49: 0 | T49: 0 | U49: 0 | V49: 0 | W49: 0 | X49: 0 | Y49: 0 | Z49: 0 | AA49: 0 | AB49: 0 | AC49: 0 | AD49: 0 | AE49: 0 | AF49: 0 | AG49: 0 | AH49: 0 | AI49: 0 | AJ49: 0 | AK49: 2.972 | AL49: 0 | AM49: 0 | AN49: 0 | AO49: 0 | AP49: 0 | AQ49: 0 | AR49: 0 | AS49: 0 | AT49: 0 | AU49: 0 | AV49: 0 | AW49: 0 | AX49: 0 | AY49: 0 | AZ49: 0 | BA49: 0 | BB49: 0 | BC49: 0 | BD49: 0 | BE49: 0 | BF49: 0 | BG49: 0 | BH49: 0 | BI49: 0 | BJ49: 0 | BK49: 0 | BL49: 0 | BM49: 0 | BN49: 0 | BO49: 0 | BP49: 0 | BQ49: 0 | BR49: 0 | BS49: 0 | BT49: 0 | BU49: 0 | BV49: 0 | BW49: 0 | BX49: 0 | BY49: 0 | BZ49: 0 | CA49: 0 | CB49: 0 | CC49: 0 | CD49: 0 | CE49: 0 | CF49: 0 | CG49: 0 | CH49: 0 | CI49: 0 | CJ49: 0 | CK49: 0 | CL49: 0 | CM49: 0 | CN49: 0 | CO49: 0 | CP49: 0 | CQ49: 0 | CR49: 0 | CS49: 0 | CT49: 0 | CU49: 0 | CV49: 0 | CX49: 0 | CY49: 0 | CZ49: 0 | DA49: 0 | DB49: 0 | DC49: 0 | DD49: 0 | DE49: 0 | DF49: 0 | DG49: 0 | DH49: 0 | DI49: 0 | DJ49: 0 | DK49: 0 | DL49: 0 | DM49: 0 | DN49: 0 | DO49: 0 | DP49: 0 | DQ49: 0 | DR49: 0 | DS49: 0 | DT49: 0 | DU49: 0 | DV49: 0 | DW49: 0 | DX49: 0 | DY49: 214.9957691 | DZ49: 0 | EA49: 0 | EB49: 0 | EC49: 0 | ED49: 0 | EE49: 0 | EF49: 0 | EG49: 0 | EH49: 0 | EI49: 0 | EJ49: 0 | EK49: 0 | EL49: 0 | EM49: 0 | EN49: 0 | EO49: 0 | EP49: 0 | EQ49: 0 | ER49: 0 | ES49: 0 | ET49: 0 | EU49: 0 | EV49: 0 | EW49: 0 | EX49: 0 | EY49: 0 | EZ49: 0 | FA49: 0 | FB49: 0 | FC49: 0 | FD49: 0 | FE49: 0 | FF49: 0 | FG49: 0 | FH49: 0 | FI49: 0 | FJ49: 0 | FK49: 0 | FL49: 0 | FM49: 0 | FN49: 0 | FO49: 0 | FP49: 0 | FQ49: 0 | FR49: 0 | FS49: 0 | FT49: 0 | FU49: 0 | FV49: 0 | FW49: 0 | FX49: 0 | FY49: 0 | FZ49: 0 | GA49: 0 | GB49: 0 | GC49: 0 | GD49: 0 | GE49: 0 | GF49: 0 | GG49: 0 | GH49: 0 | GI49: 0 | GJ49: 0
E50: OTHER - PLEASE ADD A ROW IF NECESSARY AND NOMINATE THE CATEGORY | F50: 0 | G50: 0 | H50: 0 | I50: 2 | J50: 0 | K50: 0 | L50: 0 | M50: 0 | N50: 0 | O50: 0 | P50: 0 | Q50: 0 | R50: 0 | S50: 0 | T50: 0 | U50: 0 | V50: 0 | W50: 0 | X50: 0 | Y50: 0 | Z50: 0 | AA50: 0 | AB50: 0 | AC50: 0 | AD50: 0 | AE50: 0 | AF50: 0 | AG50: 0 | AH50: 0 | AI50: 0 | AJ50: 0 | AK50: 0 | AL50: 0 | AM50: 0 | AN50: 0 | AO50: 0 | AP50: 0 | AQ50: 0 | AR50: 0 | AS50: 0 | AT50: 0 | AU50: 0 | AV50: 0 | AW50: 0 | AX50: 0 | AY50: 0 | AZ50: 0 | BA50: 0 | BB50: 0 | BC50: 0 | BD50: 0 | BE50: 0 | BF50: 0 | BG50: 0 | BH50: 0 | BI50: 0 | BJ50: 0 | BK50: 0 | BL50: 0 | BM50: 0 | BN50: 0 | BO50: 0 | BP50: 0 | BQ50: 0 | BR50: 0 | BS50: 0 | BT50: 0 | BU50: 0 | BV50: 0 | BW50: 0 | BX50: 0 | BY50: 0 | BZ50: 0 | CA50: 0 | CB50: 0 | CC50: 0 | CD50: 0 | CE50: 0 | CF50: 0 | CG50: 0 | CH50: 0 | CI50: 0 | CJ50: 0 | CK50: 0 | CL50: 0 | CM50: 0 | CN50: 0 | CO50: 0 | CP50: 0 | CQ50: 0 | CR50: 0 | CS50: 0 | CT50: 0 | CU50: 0 | CV50: 0 | CX50: 0 | CY50: 0 | CZ50: 0 | DA50: 0 | DB50: 0 | DC50: 0 | DD50: 0 | DE50: 0 | DF50: 0 | DG50: 0 | DH50: 0 | DI50: 0 | DJ50: 0 | DK50: 0 | DL50: 0 | DM50: 0 | DN50: 0 | DO50: 0 | DP50: 0 | DQ50: 0 | DR50: 0 | DS50: 0 | DT50: 0 | DU50: 0 | DV50: 0 | DW50: 0 | DX50: 0 | DY50: 0 | DZ50: 0 | EA50: 0 | EB50: 0 | EC50: 0 | ED50: 0 | EE50: 0 | EF50: 0 | EG50: 0 | EH50: 0 | EI50: 0 | EJ50: 0 | EK50: 0 | EL50: 0 | EM50: 0 | EN50: 0 | EO50: 0 | EP50: 0 | EQ50: 0 | ER50: 0 | ES50: 0 | ET50: 0 | EU50: 0 | EV50: 0 | EW50: 0 | EX50: 0 | EY50: 0 | EZ50: 0 | FA50: 0 | FB50: 0 | FC50: 0 | FD50: 0 | FE50: 0 | FF50: 0 | FG50: 0 | FH50: 0 | FI50: 0 | FJ50: 0 | FK50: 0 | FL50: 0 | FM50: 0 | FN50: 0 | FO50: 0 | FP50: 0 | FQ50: 0 | FR50: 0 | FS50: 0 | FT50: 0 | FU50: 0 | FV50: 0 | FW50: 0 | FX50: 0 | FY50: 0 | FZ50: 0 | GA50: 0 | GB50: 0 | GC50: 0 | GD50: 0 | GE50: 0 | GF50: 0 | GG50: 0 | GH50: 0 | GI50: 0 | GJ50: 0
A51: 3 | D51: UNDERGROUND CABLES | E51: ˂ = 1 KV | F51: 273.7967355 | G51: 53.8 | H51: 7.334848328 | I51: 2 | J51: 196.8283853 | K51: 251.4777371 | L51: 242.50779 | M51: 241.9245807 | N51: 327.5279071 | O51: 354.7612728 | P51: 303.815954 | Q51: 411.8947178 | R51: 358.6012274 | S51: 374.6829869 | T51: 232.7558078 | U51: 267.4745516 | V51: 137.2794016 | W51: 78.03485812 | X51: 62.65742739 | Y51: 56.77731798 | Z51: 46.67367125 | AA51: 58.40527456 | AB51: 62.24305216 | AC51: 69.0814935 | AD51: 80.57242296 | AE51: 88.82355 | AF51: 99.54637788 | AG51: 82.05708877 | AH51: 74.25005189 | AI51: 36.88743104 | AJ51: 46.84591572 | AK51: 65.50057008 | AL51: 41.95468176 | AM51: 36.08067323 | AN51: 50.22345871 | AO51: 90.01827467 | AP51: 90.94510597 | AQ51: 92.11130498 | AR51: 51.08631295 | AS51: 55.48549058 | AT51: 58.78953074 | AU51: 54.50910924 | AV51: 63.15819299 | AW51: 49.14163211 | AX51: 31.17120503 | AY51: 26.39389256 | AZ51: 33.09276989 | BA51: 50.1945197 | BB51: 31.38662609 | BC51: 25.22574354 | BD51: 15.80825605 | BE51: 44.75669287 | BF51: 6.373471027 | BG51: 4.346869556 | BH51: 4.681564646 | BI51: 3.212257372 | BJ51: 5.080967589 | BK51: 16.19242692 | BL51: 1.406782529 | BM51: 0.6497613547 | BN51: 5.290257018 | BO51: 1.171947349 | BP51: 18.4405985 | BQ51: 3.710854721 | BR51: 0.5604028727 | BS51: 2.179326693 | BT51: 1.645709956 | BU51: 14.94774888 | BV51: 3.915017286 | BW51: 1.08276204 | BX51: 0.05402907733 | BY51: 0 | BZ51: 0 | CA51: 0 | CB51: 0 | CC51: 0 | CD51: 0.83046779 | CE51: 0 | CF51: 1.130489406 | CG51: 0 | CH51: 0 | CI51: 0 | CJ51: 0 | CK51: 0 | CL51: 0 | CM51: 0 | CN51: 0 | CO51: 0.0679906255 | CP51: 0 | CQ51: 0 | CR51: 0 | CS51: 0 | CT51: 0 | CU51: 0 | CV51: 0 | CX51: 53890.96934 | CY51: 68853.78347 | CZ51: 66397.84125 | DA51: 66238.16044 | DB51: 89676.07175 | DC51: 97132.4784 | DD51: 83183.81641 | DE51: 112775.4291 | DF51: 98183.84541 | DG51: 102586.9787 | DH51: 63727.78034 | DI51: 73233.65906 | DJ51: 37586.65201 | DK51: 21365.68941 | DL51: 17155.39908 | DM51: 15545.44431 | DN51: 12779.09882 | DO51: 15991.17351 | DP51: 17041.94449 | DQ51: 18914.28741 | DR51: 22060.46638 | DS51: 24319.59803 | DT51: 27255.4733 | DU51: 22466.96303 | DV51: 20329.42182 | DW51: 10099.6582 | DX51: 12826.2588 | DY51: 17933.84227 | DZ51: 11487.05491 | EA51: 9878.770546 | EB51: 13751.01904 | EC51: 24646.70974 | ED51: 24900.47313 | EE51: 25219.77461 | EF51: 13987.26572 | EG51: 15191.74619 | EH51: 16096.3816 | EI51: 14924.41617 | EJ51: 17292.50706 | EK51: 13454.81845 | EL51: 8534.574179 | EM51: 7226.56162 | EN51: 9060.692365 | EO51: 13743.09564 | EP51: 8593.555763 | EQ51: 6906.726231 | ER51: 4328.248902 | ES51: 12254.2364 | ET51: 1745.035561 | EU51: 1190.158694 | EV51: 1281.797117 | EW51: 879.5055821 | EX51: 1391.152339 | EY51: 4433.43363 | EZ51: 385.172464 | FA51: 177.9025378 | FB51: 1448.455102 | FC51: 320.8753584 | FD51: 5048.975671 | FE51: 1016.019909 | FF51: 153.4364771 | FG51: 596.6925343 | FH51: 450.5900137 | FI51: 4092.644847 | FJ51: 1071.918952 | FK51: 296.456712 | FL51: 14.792985 | FM51: 0 | FN51: 0 | FO51: 0 | FP51: 0 | FQ51: 0 | FR51: 227.3793699 | FS51: 0 | FT51: 309.524309 | FU51: 0 | FV51: 0 | FW51: 0 | FX51: 0 | FY51: 0 | FZ51: 0 | GA51: 0 | GB51: 0 | GC51: 18.61561131 | GD51: 0 | GE51: 0 | GF51: 0 | GG51: 0 | GH51: 0 | GI51: 0 | GJ51: 0
A52: 3 | D52: UNDERGROUND CABLES | E52: > 1 KV & < = 11 KV | F52: 412.779065 | G52: 53.8 | H52: 7.334848328 | I52: 2 | J52: 153.41805 | K52: 127.1689836 | L52: 115.0431923 | M52: 143.5780949 | N52: 180.7737816 | O52: 196.2940432 | P52: 151.93925 | Q52: 151.0515725 | R52: 135.766534 | S52: 113.9474287 | T52: 64.05383099 | U52: 83.49655128 | V52: 41.76356312 | W52: 34.52008658 | X52: 13.85942346 | Y52: 5.405999968 | Z52: 8.396839353 | AA52: 33.75615812 | AB52: 13.36320224 | AC52: 7.705664452 | AD52: 10.65651425 | AE52: 9.090889891 | AF52: 20.99116387 | AG52: 11.30144243 | AH52: 7.505773239 | AI52: 5.79671224 | AJ52: 3.979049699 | AK52: 9.051239152 | AL52: 3.455870776 | AM52: 9.711531878 | AN52: 6.827259721 | AO52: 8.012842412 | AP52: 12.28682552 | AQ52: 3.318200722 | AR52: 2.606526317 | AS52: 4.073884255 | AT52: 4.677002679 | AU52: 5.199424576 | AV52: 5.922856509 | AW52: 2.750365224 | AX52: 4.48666828 | AY52: 0.4949143036 | AZ52: 1.200928858 | BA52: 2.336461985 | BB52: 9.773630321 | BC52: 6.072844118 | BD52: 0.3481732165 | BE52: 0.0711837058 | BF52: 0 | BG52: 0 | BH52: 0.004880141321 | BI52: 0 | BJ52: 0 | BK52: 0.08926317976 | BL52: 0 | BM52: 0 | BN52: 0 | BO52: 0 | BP52: 1.192800132 | BQ52: 0 | BR52: 0 | BS52: 0 | BT52: 2.096255831 | BU52: 0.7876851408 | BV52: 0 | BW52: 0 | BX52: 0 | BY52: 0 | BZ52: 0 | CA52: 0 | CB52: 0 | CC52: 0 | CD52: 0.06838599286 | CE52: 0 | CF52: 0 | CG52: 0 | CH52: 0.2283485945 | CI52: 0 | CJ52: 0 | CK52: 0 | CL52: 0 | CM52: 0 | CN52: 0 | CO52: 0 | CP52: 0 | CQ52: 0 | CR52: 0 | CS52: 0 | CT52: 0 | CU52: 0 | CV52: 0 | CX52: 63327.75924 | CY52: 52492.69416 | CZ52: 47487.42134 | DA52: 59266.03176 | DB52: 74619.63257 | DC52: 81026.07164 | DD52: 62717.34157 | DE52: 62350.92686 | DF52: 56041.58298 | DG52: 47035.11308 | DH52: 26440.08047 | DI52: 34465.62837 | DJ52: 17239.12454 | DK52: 14249.16906 | DL52: 5720.879859 | DM52: 2231.483612 | DN52: 3466.039497 | DO52: 13933.83539 | DP52: 5516.050128 | DQ52: 3180.736968 | DR52: 4398.785987 | DS52: 3752.52903 | DT52: 8664.712997 | DU52: 4664.998841 | DV52: 3098.22606 | DW52: 2392.761459 | DX52: 1642.468414 | DY52: 3736.162034 | DZ52: 1426.511108 | EA52: 4008.717048 | EB52: 2818.149884 | EC52: 3307.533599 | ED52: 5071.744352 | EE52: 1369.683791 | EF52: 1075.919496 | EG52: 1681.614134 | EH52: 1930.568793 | EI52: 2146.213615 | EJ52: 2444.831172 | EK52: 1135.293186 | EL52: 1852.002738 | EM52: 204.2902635 | EN52: 495.7182912 | EO52: 964.4425938 | EP52: 4034.349986 | EQ52: 2506.742917 | ER52: 143.7186148 | ES52: 29.38314352 | ET52: 0 | EU52: 0 | EV52: 2.014420172 | EW52: 0 | EX52: 0 | EY52: 36.84597188 | EZ52: 0 | FA52: 0 | FB52: 0 | FC52: 0 | FD52: 492.3629234 | FE52: 0 | FF52: 0 | FG52: 0 | FH52: 865.2905218 | FI52: 325.1399359 | FJ52: 0 | FK52: 0 | FL52: 0 | FM52: 0 | FN52: 0 | FO52: 0 | FP52: 0 | FQ52: 0 | FR52: 28.22830619 | FS52: 0 | FT52: 0 | FU52: 0 | FV52: 94.25751934 | FW52: 0 | FX52: 0 | FY52: 0 | FZ52: 0 | GA52: 0 | GB52: 0 | GC52: 0 | GD52: 0 | GE52: 0 | GF52: 0 | GG52: 0 | GH52: 0 | GI52: 0 | GJ52: 0
A53: 3 | D53: =IF(A53>0,VLOOKUP(A53,IDtable,2),"") -> UNDERGROUND CABLES | E53: > 11 KV & < = 22 KV | F53: 2985.848776 | G53: 53.8 | H53: 7.334848328 | I53: 2 | J53: 19.87171293 | K53: 21.41384287 | L53: 9.843585733 | M53: 15.32313551 | N53: 29.37228139 | O53: 24.97722534 | P53: 28.42712739 | Q53: 38.32763333 | R53: 40.68822843 | S53: 7.893340495 | T53: 4.229018362 | U53: 3.152329851 | V53: 1.890998499 | W53: 5.791982466 | X53: 2.247687718 | Y53: 0.4952203003 | Z53: 1.609975564 | AA53: 0.4627183254 | AB53: 19.24660726 | AC53: 1.839670314 | AD53: 0.596381381 | AE53: 2.058630846 | AF53: 4.41886256 | AG53: 8.928928788 | AH53: 1.087164763 | AI53: 0.7864249568 | AJ53: 1.283714042 | AK53: 0.3679832932 | AL53: 0.1902768659 | AM53: 0.7732349714 | AN53: 0.08692889506 | AO53: 0.7882664651 | AP53: 1.008560313 | AQ53: 1.082109023 | AR53: 0.3165314781 | AS53: 1.041307883 | AT53: 1.22318192 | AU53: 0.6396002528 | AV53: 0.1184389857 | AW53: 2.478024784 | AX53: 0.1333680242 | AY53: 0 | AZ53: 0.03019825631 | BA53: 0.0428542768 | BB53: 0 | BC53: 0.07799131947 | BD53: 0 | BE53: 0.003245937689 | BF53: 0.02829297309 | BG53: 0 | BH53: 0 | BI53: 0 | BJ53: 0 | BK53: 0.006068316336 | BL53: 0 | BM53: 0 | BN53: 0 | BO53: 0 | BP53: 0 | BQ53: 0 | BR53: 0 | BS53: 0 | BT53: 0 | BU53: 0 | BV53: 0 | BW53: 0 | BX53: 0 | BY53: 0 | BZ53: 0 | CA53: 0 | CB53: 0 | CC53: 0 | CD53: 0 | CE53: 0 | CF53: 0 | CG53: 0 | CH53: 0 | CI53: 0 | CJ53: 0 | CK53: 0 | CL53: 0 | CM53: 0 | CN53: 0 | CO53: 0 | CP53: 0 | CQ53: 0 | CR53: 0 | CS53: 0 | CT53: 0 | CU53: 0 | CV53: 0 | CX53: 59333.92971 | CY53: 63938.49653 | CZ53: 29391.45841 | DA53: 45752.5654 | DB53: 87701.19042 | DC53: 74578.21769 | DD53: 84879.10353 | DE53: 114440.5171 | DF53: 121488.897 | DG53: 23568.32106 | DH53: 12627.2093 | DI53: 9412.380227 | DJ53: 5646.235554 | DK53: 17293.98376 | DL53: 6711.255621 | DM53: 1478.652928 | DN53: 4807.143566 | DO53: 1381.606945 | DP53: 57467.45872 | DQ53: 5492.977355 | DR53: 1780.704617 | DS53: 6146.760393 | DT53: 13194.05537 | DU53: 26660.43109 | DV53: 3246.109575 | DW53: 2348.145995 | DX53: 3832.976001 | DY53: 1098.742466 | DZ53: 568.137947 | EA53: 2308.762693 | EB53: 259.5565349 | EC53: 2353.64446 | ED53: 3011.408575 | EE53: 3231.013902 | EF53: 945.1151265 | EG53: 3109.187866 | EH53: 3652.236239 | EI53: 1909.749632 | EJ53: 353.6409006 | EK53: 7399.007267 | EL53: 398.2167517 | EM53: 0 | EN53: 90.16742663 | EO53: 127.9563899 | EP53: 0 | EQ53: 232.8702858 | ER53: 0 | ES53: 9.691879076 | ET53: 84.47853906 | EU53: 0 | EV53: 0 | EW53: 0 | EX53: 0 | EY53: 18.1190749 | EZ53: 0 | FA53: 0 | FB53: 0 | FC53: 0 | FD53: 0 | FE53: 0 | FF53: 0 | FG53: 0 | FH53: 0 | FI53: 0 | FJ53: 0 | FK53: 0 | FL53: 0 | FM53: 0 | FN53: 0 | FO53: 0 | FP53: 0 | FQ53: 0 | FR53: 0 | FS53: 0 | FT53: 0 | FU53: 0 | FV53: 0 | FW53: 0 | FX53: 0 | FY53: 0 | FZ53: 0 | GA53: 0 | GB53: 0 | GC53: 0 | GD53: 0 | GE53: 0 | GF53: 0 | GG53: 0 | GH53: 0 | GI53: 0 | GJ53: 0
A54: 3 | D54: UNDERGROUND CABLES | E54: > 22 KV & < = 33 KV | F54: 526.9815955 | G54: 54.9 | H54: 7.409453421 | I54: 2 | J54: 0.7044751621 | K54: 0.9729054562 | L54: 0.4737500768 | M54: 3.015950443 | N54: 1.309036147 | O54: 1.506624163 | P54: 0.6444394259 | Q54: 6.083098626 | R54: 0.8680563392 | S54: 0 | T54: 1.198483825 | U54: 14.94637607 | V54: 0 | W54: 0.1088673751 | X54: 0 | Y54: 0 | Z54: 0 | AA54: 3.769923198 | AB54: 0.04048481755 | AC54: 0.06527573436 | AD54: 0 | AE54: 0 | AF54: 0 | AG54: 0 | AH54: 0 | AI54: 0 | AJ54: 0 | AK54: 7.299785976 | AL54: 3.110020457 | AM54: 0 | AN54: 0 | AO54: 0.04366271016 | AP54: 0 | AQ54: 0.2738972405 | AR54: 0 | AS54: 0 | AT54: 0 | AU54: 0 | AV54: 0 | AW54: 0 | AX54: 0 | AY54: 0 | AZ54: 0 | BA54: 0.07669027465 | BB54: 0 | BC54: 0 | BD54: 0 | BE54: 0 | BF54: 0 | BG54: 1.241907328 | BH54: 0 | BI54: 0.1120212242 | BJ54: 0 | BK54: 0 | BL54: 0 | BM54: 0 | BN54: 0 | BO54: 0 | BP54: 0 | BQ54: 0 | BR54: 0 | BS54: 0 | BT54: 0 | BU54: 0 | BV54: 0 | BW54: 0 | BX54: 0 | BY54: 0 | BZ54: 0 | CA54: 0 | CB54: 0 | CC54: 0 | CD54: 0 | CE54: 0 | CF54: 0 | CG54: 0 | CH54: 0 | CI54: 0 | CJ54: 0 | CK54: 0 | CL54: 0 | CM54: 0 | CN54: 0 | CO54: 0 | CP54: 0 | CQ54: 0 | CR54: 0 | CS54: 0 | CT54: 0 | CU54: 0 | CV54: 0 | CX54: 371.2454449 | CY54: 512.7032696 | CZ54: 249.6575713 | DA54: 1589.350376 | DB54: 689.8379576 | DC54: 793.9632055 | DD54: 339.6077169 | DE54: 3205.68102 | DF54: 457.4497146 | DG54: 0 | DH54: 631.578918 | DI54: 7876.465106 | DJ54: 0 | DK54: 57.37110301 | DL54: 0 | DM54: 0 | DN54: 0 | DO54: 1986.680142 | DP54: 21.33475375 | DQ54: 34.39911064 | DR54: 0 | DS54: 0 | DT54: 0 | DU54: 0 | DV54: 0 | DW54: 0 | DX54: 0 | DY54: 3846.85286 | DZ54: 1638.923543 | EA54: 0 | EB54: 0 | EC54: 23.00944466 | ED54: 0 | EE54: 144.3388048 | EF54: 0 | EG54: 0 | EH54: 0 | EI54: 0 | EJ54: 0 | EK54: 0 | EL54: 0 | EM54: 0 | EN54: 0 | EO54: 40.41436329 | EP54: 0 | EQ54: 0 | ER54: 0 | ES54: 0 | ET54: 0 | EU54: 654.462305 | EV54: 0 | EW54: 59.03312345 | EX54: 0 | EY54: 0 | EZ54: 0 | FA54: 0 | FB54: 0 | FC54: 0 | FD54: 0 | FE54: 0 | FF54: 0 | FG54: 0 | FH54: 0 | FI54: 0 | FJ54: 0 | FK54: 0 | FL54: 0 | FM54: 0 | FN54: 0 | FO54: 0 | FP54: 0 | FQ54: 0 | FR54: 0 | FS54: 0 | FT54: 0 | FU54: 0 | FV54: 0 | FW54: 0 | FX54: 0 | FY54: 0 | FZ54: 0 | GA54: 0 | GB54: 0 | GC54: 0 | GD54: 0 | GE54: 0 | GF54: 0 | GG54: 0 | GH54: 0 | GI54: 0 | GJ54: 0
A55: 3 | D55: UNDERGROUND CABLES | E55: > 33 KV & < = 66 KV | F55: 890.0393333 | G55: 54.9 | H55: 7.409453421 | I55: 2 | J55: 0.8722220288 | K55: 0.3224884827 | L55: 2.919815712 | M55: 4.567565959 | N55: 2.645858633 | O55: 1.811203154 | P55: 2.726263194 | Q55: 1.567161178 | R55: 0.2212905176 | S55: 2.645110732 | T55: 0.2624063445 | U55: 0.9584883416 | V55: 0 | W55: 0 | X55: 0 | Y55: 0 | Z55: 0 | AA55: 0 | AB55: 0 | AC55: 0 | AD55: 0 | AE55: 0 | AF55: 0 | AG55: 0 | AH55: 0 | AI55: 0 | AJ55: 0 | AK55: 0 | AL55: 0 | AM55: 0 | AN55: 0 | AO55: 0 | AP55: 0 | AQ55: 0 | AR55: 0.1379549632 | AS55: 0 | AT55: 0 | AU55: 0 | AV55: 0.5737899905 | AW55: 0 | AX55: 0 | AY55: 0 | AZ55: 0 | BA55: 0 | BB55: 0 | BC55: 0 | BD55: 0 | BE55: 0 | BF55: 0.5187358124 | BG55: 0 | BH55: 0 | BI55: 0 | BJ55: 0 | BK55: 0 | BL55: 0 | BM55: 0 | BN55: 0 | BO55: 0 | BP55: 0 | BQ55: 0 | BR55: 0 | BS55: 0 | BT55: 0 | BU55: 0.2969771647 | BV55: 0 | BW55: 0 | BX55: 0 | BY55: 0 | BZ55: 0 | CA55: 0 | CB55: 0 | CC55: 0 | CD55: 0 | CE55: 0 | CF55: 0 | CG55: 0 | CH55: 0 | CI55: 0 | CJ55: 0 | CK55: 0 | CL55: 0 | CM55: 0 | CN55: 0 | CO55: 0 | CP55: 0 | CQ55: 0 | CR55: 0 | CS55: 0 | CT55: 0 | CU55: 0 | CV55: 0 | CX55: 776.311913 | CY55: 287.0274341 | CZ55: 2598.75083 | DA55: 4065.313361 | DB55: 2354.918254 | DC55: 1612.042048 | DD55: 2426.481476 | DE55: 1394.83509 | DF55: 196.9572648 | DG55: 2354.252593 | DH55: 233.5519679 | DI55: 853.0923246 | DJ55: 0 | DK55: 0 | DL55: 0 | DM55: 0 | DN55: 0 | DO55: 0 | DP55: 0 | DQ55: 0 | DR55: 0 | DS55: 0 | DT55: 0 | DU55: 0 | DV55: 0 | DW55: 0 | DX55: 0 | DY55: 0 | DZ55: 0 | EA55: 0 | EB55: 0 | EC55: 0 | ED55: 0 | EE55: 0 | EF55: 122.7853435 | EG55: 0 | EH55: 0 | EI55: 0 | EJ55: 510.6956606 | EK55: 0 | EL55: 0 | EM55: 0 | EN55: 0 | EO55: 0 | EP55: 0 | EQ55: 0 | ER55: 0 | ES55: 0 | ET55: 461.6952767 | EU55: 0 | EV55: 0 | EW55: 0 | EX55: 0 | EY55: 0 | EZ55: 0 | FA55: 0 | FB55: 0 | FC55: 0 | FD55: 0 | FE55: 0 | FF55: 0 | FG55: 0 | FH55: 0 | FI55: 264.3213577 | FJ55: 0 | FK55: 0 | FL55: 0 | FM55: 0 | FN55: 0 | FO55: 0 | FP55: 0 | FQ55: 0 | FR55: 0 | FS55: 0 | FT55: 0 | FU55: 0 | FV55: 0 | FW55: 0 | FX55: 0 | FY55: 0 | FZ55: 0 | GA55: 0 | GB55: 0 | GC55: 0 | GD55: 0 | GE55: 0 | GF55: 0 | GG55: 0 | GH55: 0 | GI55: 0 | GJ55: 0
A56: 3 | D56: UNDERGROUND CABLES | E56: > 66 KV & < = 132 KV | F56: 1101.501908 | G56: 54.9 | H56: 7.409453421 | I56: 2 | J56: 5.484241987 | K56: 0 | L56: 0 | M56: 0 | N56: 0 | O56: 0 | P56: 0 | Q56: 0 | R56: 0 | S56: 0 | T56: 0 | U56: 0 | V56: 0 | W56: 0 | X56: 0 | Y56: 0 | Z56: 4.247750449 | AA56: 0 | AB56: 0 | AC56: 0 | AD56: 0 | AE56: 0 | AF56: 0 | AG56: 0 | AH56: 0 | AI56: 0 | AJ56: 0 | AK56: 0 | AL56: 0 | AM56: 0 | AN56: 0 | AO56: 0 | AP56: 0 | AQ56: 0 | AR56: 0 | AS56: 0 | AT56: 0 | AU56: 0 | AV56: 0 | AW56: 0 | AX56: 0 | AY56: 0 | AZ56: 0 | BA56: 0 | BB56: 0 | BC56: 0 | BD56: 0 | BE56: 0 | BF56: 0 | BG56: 0 | BH56: 0 | BI56: 0 | BJ56: 0 | BK56: 0 | BL56: 0 | BM56: 0 | BN56: 0 | BO56: 0 | BP56: 0 | BQ56: 0 | BR56: 0 | BS56: 0 | BT56: 0 | BU56: 0 | BV56: 0 | BW56: 0 | BX56: 0 | BY56: 0 | BZ56: 0 | CA56: 0 | CB56: 0 | CC56: 0 | CD56: 0 | CE56: 0 | CF56: 0 | CG56: 0 | CH56: 0 | CI56: 0 | CJ56: 0 | CK56: 0 | CL56: 0 | CM56: 0 | CN56: 0 | CO56: 0 | CP56: 0 | CQ56: 0 | CR56: 0 | CS56: 0 | CT56: 0 | CU56: 0 | CV56: 0 | CX56: 6040.903015 | CY56: 0 | CZ56: 0 | DA56: 0 | DB56: 0 | DC56: 0 | DD56: 0 | DE56: 0 | DF56: 0 | DG56: 0 | DH56: 0 | DI56: 0 | DJ56: 0 | DK56: 0 | DL56: 0 | DM56: 0 | DN56: 4678.905226 | DO56: 0 | DP56: 0 | DQ56: 0 | DR56: 0 | DS56: 0 | DT56: 0 | DU56: 0 | DV56: 0 | DW56: 0 | DX56: 0 | DY56: 0 | DZ56: 0 | EA56: 0 | EB56: 0 | EC56: 0 | ED56: 0 | EE56: 0 | EF56: 0 | EG56: 0 | EH56: 0 | EI56: 0 | EJ56: 0 | EK56: 0 | EL56: 0 | EM56: 0 | EN56: 0 | EO56: 0 | EP56: 0 | EQ56: 0 | ER56: 0 | ES56: 0 | ET56: 0 | EU56: 0 | EV56: 0 | EW56: 0 | EX56: 0 | EY56: 0 | EZ56: 0 | FA56: 0 | FB56: 0 | FC56: 0 | FD56: 0 | FE56: 0 | FF56: 0 | FG56: 0 | FH56: 0 | FI56: 0 | FJ56: 0 | FK56: 0 | FL56: 0 | FM56: 0 | FN56: 0 | FO56: 0 | FP56: 0 | FQ56: 0 | FR56: 0 | FS56: 0 | FT56: 0 | FU56: 0 | FV56: 0 | FW56: 0 | FX56: 0 | FY56: 0 | FZ56: 0 | GA56: 0 | GB56: 0 | GC56: 0 | GD56: 0 | GE56: 0 | GF56: 0 | GG56: 0 | GH56: 0 | GI56: 0 | GJ56: 0
E57: > 132 KV | F57: 0 | G57: 54.9 | H57: 7.409453421 | I57: 2 | J57: 0 | K57: 0 | L57: 0 | M57: 0 | N57: 0 | O57: 0 | P57: 0 | Q57: 0 | R57: 0 | S57: 0 | T57: 0 | U57: 0 | V57: 0 | W57: 0 | X57: 0 | Y57: 0 | Z57: 0 | AA57: 0 | AB57: 0 | AC57: 0 | AD57: 0 | AE57: 0 | AF57: 0 | AG57: 0 | AH57: 0 | AI57: 0 | AJ57: 0 | AK57: 0 | AL57: 0 | AM57: 0 | AN57: 0 | AO57: 0 | AP57: 0 | AQ57: 0 | AR57: 0 | AS57: 0 | AT57: 0 | AU57: 0 | AV57: 0 | AW57: 0 | AX57: 0 | AY57: 0 | AZ57: 0 | BA57: 0 | BB57: 0 | BC57: 0 | BD57: 0 | BE57: 0 | BF57: 0 | BG57: 0 | BH57: 0 | BI57: 0 | BJ57: 0 | BK57: 0 | BL57: 0 | BM57: 0 | BN57: 0 | BO57: 0 | BP57: 0 | BQ57: 0 | BR57: 0 | BS57: 0 | BT57: 0 | BU57: 0 | BV57: 0 | BW57: 0 | BX57: 0 | BY57: 0 | BZ57: 0 | CA57: 0 | CB57: 0 | CC57: 0 | CD57: 0 | CE57: 0 | CF57: 0 | CG57: 0 | CH57: 0 | CI57: 0 | CJ57: 0 | CK57: 0 | CL57: 0 | CM57: 0 | CN57: 0 | CO57: 0 | CP57: 0 | CQ57: 0 | CR57: 0 | CS57: 0 | CT57: 0 | CU57: 0 | CV57: 0 | CX57: 0 | CY57: 0 | CZ57: 0 | DA57: 0 | DB57: 0 | DC57: 0 | DD57: 0 | DE57: 0 | DF57: 0 | DG57: 0 | DH57: 0 | DI57: 0 | DJ57: 0 | DK57: 0 | DL57: 0 | DM57: 0 | DN57: 0 | DO57: 0 | DP57: 0 | DQ57: 0 | DR57: 0 | DS57: 0 | DT57: 0 | DU57: 0 | DV57: 0 | DW57: 0 | DX57: 0 | DY57: 0 | DZ57: 0 | EA57: 0 | EB57: 0 | EC57: 0 | ED57: 0 | EE57: 0 | EF57: 0 | EG57: 0 | EH57: 0 | EI57: 0 | EJ57: 0 | EK57: 0 | EL57: 0 | EM57: 0 | EN57: 0 | EO57: 0 | EP57: 0 | EQ57: 0 | ER57: 0 | ES57: 0 | ET57: 0 | EU57: 0 | EV57: 0 | EW57: 0 | EX57: 0 | EY57: 0 | EZ57: 0 | FA57: 0 | FB57: 0 | FC57: 0 | FD57: 0 | FE57: 0 | FF57: 0 | FG57: 0 | FH57: 0 | FI57: 0 | FJ57: 0 | FK57: 0 | FL57: 0 | FM57: 0 | FN57: 0 | FO57: 0 | FP57: 0 | FQ57: 0 | FR57: 0 | FS57: 0 | FT57: 0 | FU57: 0 | FV57: 0 | FW57: 0 | FX57: 0 | FY57: 0 | FZ57: 0 | GA57: 0 | GB57: 0 | GC57: 0 | GD57: 0 | GE57: 0 | GF57: 0 | GG57: 0 | GH57: 0 | GI57: 0 | GJ57: 0
E58: OTHER - PLEASE ADD A ROW IF NECESSARY AND NOMINATE THE CATEGORY | F58: 0 | G58: 0 | H58: 0 | I58: 2 | J58: 0 | K58: 0 | L58: 0 | M58: 0 | N58: 0 | O58: 0 | P58: 0 | Q58: 0 | R58: 0 | S58: 0 | T58: 0 | U58: 0 | V58: 0 | W58: 0 | X58: 0 | Y58: 0 | Z58: 0 | AA58: 0 | AB58: 0 | AC58: 0 | AD58: 0 | AE58: 0 | AF58: 0 | AG58: 0 | AH58: 0 | AI58: 0 | AJ58: 0 | AK58: 0 | AL58: 0 | AM58: 0 | AN58: 0 | AO58: 0 | AP58: 0 | AQ58: 0 | AR58: 0 | AS58: 0 | AT58: 0 | AU58: 0 | AV58: 0 | AW58: 0 | AX58: 0 | AY58: 0 | AZ58: 0 | BA58: 0 | BB58: 0 | BC58: 0 | BD58: 0 | BE58: 0 | BF58: 0 | BG58: 0 | BH58: 0 | BI58: 0 | BJ58: 0 | BK58: 0 | BL58: 0 | BM58: 0 | BN58: 0 | BO58: 0 | BP58: 0 | BQ58: 0 | BR58: 0 | BS58: 0 | BT58: 0 | BU58: 0 | BV58: 0 | BW58: 0 | BX58: 0 | BY58: 0 | BZ58: 0 | CA58: 0 | CB58: 0 | CC58: 0 | CD58: 0 | CE58: 0 | CF58: 0 | CG58: 0 | CH58: 0 | CI58: 0 | CJ58: 0 | CK58: 0 | CL58: 0 | CM58: 0 | CN58: 0 | CO58: 0 | CP58: 0 | CQ58: 0 | CR58: 0 | CS58: 0 | CT58: 0 | CU58: 0 | CV58: 0 | CX58: 0 | CY58: 0 | CZ58: 0 | DA58: 0 | DB58: 0 | DC58: 0 | DD58: 0 | DE58: 0 | DF58: 0 | DG58: 0 | DH58: 0 | DI58: 0 | DJ58: 0 | DK58: 0 | DL58: 0 | DM58: 0 | DN58: 0 | DO58: 0 | DP58: 0 | DQ58: 0 | DR58: 0 | DS58: 0 | DT58: 0 | DU58: 0 | DV58: 0 | DW58: 0 | DX58: 0 | DY58: 0 | DZ58: 0 | EA58: 0 | EB58: 0 | EC58: 0 | ED58: 0 | EE58: 0 | EF58: 0 | EG58: 0 | EH58: 0 | EI58: 0 | EJ58: 0 | EK58: 0 | EL58: 0 | EM58: 0 | EN58: 0 | EO58: 0 | EP58: 0 | EQ58: 0 | ER58: 0 | ES58: 0 | ET58: 0 | EU58: 0 | EV58: 0 | EW58: 0 | EX58: 0 | EY58: 0 | EZ58: 0 | FA58: 0 | FB58: 0 | FC58: 0 | FD58: 0 | FE58: 0 | FF58: 0 | FG58: 0 | FH58: 0 | FI58: 0 | FJ58: 0 | FK58: 0 | FL58: 0 | FM58: 0 | FN58: 0 | FO58: 0 | FP58: 0 | FQ58: 0 | FR58: 0 | FS58: 0 | FT58: 0 | FU58: 0 | FV58: 0 | FW58: 0 | FX58: 0 | FY58: 0 | FZ58: 0 | GA58: 0 | GB58: 0 | GC58: 0 | GD58: 0 | GE58: 0 | GF58: 0 | GG58: 0 | GH58: 0 | GI58: 0 | GJ58: 0
A59: 4 | D59: SERVICE LINES | E59: ˂ = 11 KV ; RESIDENTIAL ; SIMPLE TYPE | F59: 0.7721659798 | G59: 53.8 | H59: 7.334848328 | I59: 2 | J59: 380.0167162 | K59: 537.7122602 | L59: 661.9798105 | M59: 278.4592701 | N59: 414.7314162 | O59: 649.6653819 | P59: 238.0595226 | Q59: 194.1957574 | R59: 136.2358796 | S59: 160.2863841 | T59: 1022.397336 | U59: 332.3707762 | V59: 116.2040826 | W59: 86.15945918 | X59: 56.06094909 | Y59: 60.03246652 | Z59: 94.55590357 | AA59: 107.4593237 | AB59: 156.2431687 | AC59: 149.0448204 | AD59: 161.5421794 | AE59: 202.3753685 | AF59: 199.1182505 | AG59: 241.9607429 | AH59: 170.0054346 | AI59: 177.2488658 | AJ59: 186.2185166 | AK59: 168.69593 | AL59: 178.6566111 | AM59: 130.9991674 | AN59: 155.9739684 | AO59: 201.2259337 | AP59: 201.3041264 | AQ59: 222.9534604 | AR59: 132.4993279 | AS59: 164.4588183 | AT59: 183.2995215 | AU59: 192.4308402 | AV59: 254.4145025 | AW59: 249.3936627 | AX59: 216.2337659 | AY59: 234.4704629 | AZ59: 326.3066012 | BA59: 470.893494 | BB59: 223.3138631 | BC59: 193.9998249 | BD59: 401.3268849 | BE59: 162.3828925 | BF59: 363.952383 | BG59: 109.8390059 | BH59: 30.40462676 | BI59: 59.2397545 | BJ59: 230.2714858 | BK59: 338.3464941 | BL59: 11.69136713 | BM59: 80.53518622 | BN59: 28.48629291 | BO59: 62.65001367 | BP59: 115.8964028 | BQ59: 9.105003818 | BR59: 30.93385142 | BS59: 78.97354765 | BT59: 37.43265906 | BU59: 251.7059455 | BV59: 30.28106144 | BW59: 9.311075331 | BX59: 4.51244756 | BY59: 12.38541033 | BZ59: 1.59101521 | CA59: 0.436785035 | CB59: 2.341445649 | CC59: 0 | CD59: 0.8027798815 | CE59: 4.886759528 | CF59: 1.030360798 | CG59: 0.09149652127 | CH59: 1.130187483 | CI59: 1.672787841 | CJ59: 0.1427034519 | CK59: 0.2932689756 | CL59: 0 | CM59: 0.02760829339 | CN59: 29.65724229 | CO59: 10.6187402 | CP59: 0 | CQ59: 0 | CR59: 0.0681735081 | CS59: 0.4910631299 | CT59: 0.1149168635 | CU59: 0 | CV59: 0.2000392309 | CX59: 293.43598 | CY59: 415.2031142 | CZ59: 511.158289 | DA59: 215.0167751 | DB59: 320.2414903 | DC59: 501.6495062 | DD59: 183.8214645 | DE59: 149.9513573 | DF59: 105.1967115 | DG59: 123.7676929 | DH59: 789.4604404 | DI59: 256.6454061 | DJ59: 89.72883928 | DK59: 66.52940322 | DL59: 43.28835768 | DM59: 46.35502833 | DN59: 73.01285193 | DO59: 82.97643396 | DP59: 120.6456594 | DQ59: 115.0873397 | DR59: 124.7373752 | DS59: 156.2673747 | DT59: 153.752339 | DU59: 186.8338541 | DV59: 131.272413 | DW59: 136.8655441 | DX59: 143.7916033 | DY59: 130.2612581 | DZ59: 137.9525571 | EA59: 101.1531005 | EB59: 120.4377921 | EC59: 155.3798202 | ED59: 155.440198 | EE59: 172.1570772 | EF59: 102.3114734 | EG59: 126.9895045 | EH59: 141.5376546 | EI59: 148.5885483 | EJ59: 196.4502236 | EK59: 192.5733019 | EL59: 166.9683577 | EM59: 181.0501147 | EN59: 251.9628564 | EO59: 363.6079362 | EP59: 172.4353679 | EQ59: 149.8000649 | ER59: 309.8909673 | ES59: 125.3865453 | ET59: 281.0316484 | EU59: 84.81394361 | EV59: 23.47741842 | EW59: 45.74292308 | EX59: 177.8078074 | EY59: 261.2596521 | EZ59: 9.027675956 | FA59: 62.18653097 | FB59: 21.99614627 | FC59: 48.37620919 | FD59: 89.49125944 | FE59: 7.030574194 | FF59: 23.88606769 | FG59: 60.9806868 | FH59: 28.90422586 | FI59: 194.358768 | FJ59: 23.38200548 | FK59: 7.189695606 | FL59: 3.484358491 | FM59: 9.563592503 | FN59: 1.228527819 | FO59: 0.3372705445 | FP59: 1.807984674 | FQ59: 0 | FR59: 0.6198793137 | FS59: 3.773389459 | FT59: 0.7956095553 | FU59: 0.070650501 | FV59: 0.8726923249 | FW59: 1.291669862 | FX59: 0.1101907507 | FY59: 0.2264523259 | FZ59: 0 | GA59: 0.02131818492 | GB59: 22.90031355 | GC59: 8.199429927 | GD59: 0 | GE59: 0 | GF59: 0.05264126368 | GG59: 0.3791822428 | GH59: 0.08873489253 | GI59: 0 | GJ59: 0.1544634887
A60: 4 | D60: SERVICE LINES | E60: ˂ = 11 KV ; COMMERCIAL & INDUSTRIAL ; SIMPLE TYPE | F60: 0.9265991758 | G60: 53.8 | H60: 7.334848328 | I60: 2 | J60: 40.23899823 | K60: 56.53093927 | L60: 54.55479532 | M60: 27.68212068 | N60: 61.76799983 | O60: 60.17925633 | P60: 29.79049407 | Q60: 28.74122577 | R60: 20.94685379 | S60: 25.22986697 | T60: 104.7756663 | U60: 32.48796205 | V60: 33.15138125 | W60: 16.20967593 | X60: 9.07169058 | Y60: 10.57621498 | Z60: 15.47068112 | AA60: 19.81680171 | AB60: 22.15958474 | AC60: 21.58815844 | AD60: 22.65701152 | AE60: 25.38205253 | AF60: 29.31078606 | AG60: 24.10499415 | AH60: 19.4760713 | AI60: 24.52599784 | AJ60: 26.45313658 | AK60: 25.3311085 | AL60: 24.17627411 | AM60: 17.28503159 | AN60: 17.68597328 | AO60: 28.35421345 | AP60: 25.48847591 | AQ60: 35.16353554 | AR60: 18.33966756 | AS60: 22.23166283 | AT60: 24.69926963 | AU60: 20.08124499 | AV60: 25.74902811 | AW60: 21.49778053 | AX60: 17.50595278 | AY60: 25.18797161 | AZ60: 34.72902842 | BA60: 57.97802218 | BB60: 21.61079972 | BC60: 19.89291531 | BD60: 44.36280789 | BE60: 21.88163468 | BF60: 42.86732197 | BG60: 11.3468109 | BH60: 2.407377816 | BI60: 6.271621438 | BJ60: 29.21553316 | BK60: 50.65371921 | BL60: 1.784604401 | BM60: 10.49483969 | BN60: 3.793425457 | BO60: 5.012104508 | BP60: 19.48300158 | BQ60: 1.398253805 | BR60: 3.509185011 | BS60: 7.517255323 | BT60: 4.417284216 | BU60: 29.48747653 | BV60: 6.464517098 | BW60: 1.867791852 | BX60: 1.016365319 | BY60: 1.387650465 | BZ60: 0.2792034894 | CA60: 0.021849156 | CB60: 0.04526606587 | CC60: 0.06383606933 | CD60: 0.7813796586 | CE60: 3.263355396 | CF60: 0.07637534483 | CG60: 0.07193527131 | CH60: 0.09154930208 | CI60: 0 | CJ60: 0 | CK60: 0.1401246754 | CL60: 0 | CM60: 0 | CN60: 1.299645358 | CO60: 1.354653012 | CP60: 0 | CQ60: 0 | CR60: 0 | CS60: 0.02373147263 | CT60: 0.03160814872 | CU60: 0 | CV60: 0 | CX60: 37.28542259 | CY60: 52.38152173 | CZ60: 50.55042837 | DA60: 25.6502302 | DB60: 57.23417773 | DC60: 55.76204931 | DD60: 27.60384725 | DE60: 26.63159611 | DF60: 19.40933746 | DG60: 23.37797394 | DH60: 97.08504602 | DI60: 30.10331886 | DJ60: 30.71804255 | DK60: 15.01987235 | DL60: 8.405821014 | DM60: 9.799912086 | DN60: 14.33512037 | DO60: 18.36223213 | DP60: 20.53305296 | DQ60: 20.00356982 | DR60: 20.9939682 | DS60: 23.51898895 | DT60: 27.1593502 | DU60: 22.33566771 | DV60: 18.04651161 | DW60: 22.72576938 | DX60: 24.51145456 | DY60: 23.47178426 | DZ60: 22.40171566 | EA60: 16.01629602 | EB60: 16.38780827 | EC60: 26.27299081 | ED60: 23.61760077 | EE60: 32.58250305 | EF60: 16.99352085 | EG60: 20.59984045 | EH60: 22.88632288 | EI60: 18.60726506 | EJ60: 23.85902822 | EK60: 19.91982572 | EL60: 16.22100142 | EM60: 23.33915374 | EN60: 32.17988911 | EO60: 53.72238757 | EP60: 20.02454921 | EQ60: 18.43275893 | ER60: 41.10654122 | ES60: 20.27550466 | ET60: 39.7208252 | EU60: 10.51394563 | EV60: 2.2306743 | EW60: 5.811279255 | EX60: 27.07108895 | EY60: 46.93569447 | EZ60: 1.653612967 | FA60: 9.724509807 | FB60: 3.514984902 | FC60: 4.644211906 | FD60: 18.0529332 | FE60: 1.295620823 | FF60: 3.251607939 | FG60: 6.965482586 | FH60: 4.093051914 | FI60: 27.32307145 | FJ60: 5.990016215 | FK60: 1.73069439 | FL60: 0.9417632672 | FM60: 1.285795777 | FN60: 0.2587097232 | FO60: 0.02024540994 | FP60: 0.04194349932 | FQ60: 0.05915044923 | FR60: 0.7240257476 | FS60: 3.023822421 | FT60: 0.07076933157 | FU60: 0.06665516311 | FV60: 0.08482950785 | FW60: 0 | FX60: 0 | FY60: 0.1298394087 | FZ60: 0 | GA60: 0 | GB60: 1.204250317 | GC60: 1.255220364 | GD60: 0 | GE60: 0 | GF60: 0 | GG60: 0.02198956298 | GH60: 0.02928808455 | GI60: 0 | GJ60: 0
A61: 4 | D61: SERVICE LINES | E61: ˂ = 11 KV ; RESIDENTIAL ; COMPLEX TYPE | F61: 0.7721659798 | G61: 53.8 | H61: 7.334848328 | I61: 2 | J61: 15.11206538 | K61: 26.95307373 | L61: 26.32749988 | M61: 9.667739612 | N61: 16.13409328 | O61: 19.38814972 | P61: 9.597327278 | Q61: 11.21262612 | R61: 6.544818871 | S61: 11.30909609 | T61: 27.11481761 | U61: 12.28784321 | V61: 9.127768008 | W61: 6.066275028 | X61: 3.901353671 | Y61: 3.02266395 | Z61: 5.057274384 | AA61: 7.117546501 | AB61: 9.607401902 | AC61: 10.17200793 | AD61: 11.92568249 | AE61: 11.12522239 | AF61: 14.78555276 | AG61: 17.28601617 | AH61: 15.31698487 | AI61: 16.63970377 | AJ61: 17.7323081 | AK61: 16.56006311 | AL61: 14.18121003 | AM61: 10.38807612 | AN61: 10.15821556 | AO61: 13.36391863 | AP61: 15.87891086 | AQ61: 18.11954853 | AR61: 11.63748 | AS61: 15.00767507 | AT61: 18.05031312 | AU61: 10.49158815 | AV61: 16.08540755 | AW61: 14.73699028 | AX61: 12.95810938 | AY61: 13.75682119 | AZ61: 25.47645332 | BA61: 43.9525346 | BB61: 16.21716593 | BC61: 14.73429061 | BD61: 42.01891296 | BE61: 16.63157062 | BF61: 28.61002734 | BG61: 12.35050648 | BH61: 4.477610044 | BI61: 5.110554684 | BJ61: 29.97717551 | BK61: 57.53314581 | BL61: 2.976558927 | BM61: 10.39895769 | BN61: 3.606044342 | BO61: 6.626683591 | BP61: 17.52633547 | BQ61: 2.746326968 | BR61: 5.276664559 | BS61: 10.22142915 | BT61: 6.52671284 | BU61: 28.70777603 | BV61: 3.466060386 | BW61: 1.06298765 | BX61: 0.8703346412 | BY61: 2.474045164 | BZ61: 0.3193634003 | CA61: 0.1130607825 | CB61: 0.3446921236 | CC61: 0 | CD61: 0.09063543616 | CE61: 1.73173947 | CF61: 0.2765423979 | CG61: 0.5328901885 | CH61: 0.0413946792 | CI61: 0.4792463476 | CJ61: 0 | CK61: 0.04079288303 | CL61: 0 | CM61: 0 | CN61: 3.328354896 | CO61: 2.714989905 | CP61: 0 | CQ61: 0 | CR61: 0 | CS61: 0.0474232726 | CT61: 0.04737353746 | CU61: 0 | CV61: 0 | CX61: 11.66902277 | CY61: 20.81224659 | CZ61: 20.32919974 | DA61: 7.46509963 | DB61: 12.45819795 | DC61: 14.97086962 | DD61: 7.410729621 | DE61: 8.658008433 | DF61: 5.053686476 | DG61: 8.73249926 | DH61: 20.93713971 | DI61: 9.48825449 | DJ61: 7.048151927 | DK61: 4.684171201 | DL61: 3.01249258 | DM61: 2.333998271 | DN61: 3.90505523 | DO61: 5.495927267 | DP61: 7.418508903 | DQ61: 7.854478473 | DR61: 9.208606305 | DS61: 8.590518248 | DT61: 11.41690084 | DU61: 13.34767361 | DV61: 11.82725463 | DW61: 12.84861317 | DX61: 13.69228506 | DY61: 12.78711735 | DZ61: 10.95024794 | EA61: 8.021318977 | EB61: 7.843828469 | EC61: 10.31916332 | ED61: 12.26115476 | EE61: 13.99129894 | EF61: 8.986066146 | EG61: 11.58841612 | EH61: 13.93783772 | EI61: 8.101247443 | EJ61: 12.42060449 | EK61: 11.37940254 | EL61: 10.00581123 | EM61: 10.62254931 | EN61: 19.67205054 | EO61: 33.93865194 | EP61: 12.52234382 | EQ61: 11.37731794 | ER61: 32.4455751 | ES61: 12.84233303 | ET61: 22.09168979 | EU61: 9.53664094 | EV61: 3.457458147 | EW61: 3.946196465 | EX61: 23.1473551 | EY61: 44.42513791 | EZ61: 2.29839754 | FA61: 8.029721356 | FB61: 2.784464762 | FC61: 5.116899628 | FD61: 13.53324 | FE61: 2.120620254 | FF61: 4.074460859 | FG61: 7.892639854 | FH61: 5.039705615 | FI61: 22.16716801 | FJ61: 2.676373914 | FK61: 0.8208029004 | FL61: 0.672042801 | FM61: 1.910373508 | FN61: 0.2466015529 | FO61: 0.08730168989 | FP61: 0.2661595314 | FQ61: 0 | FR61: 0.06998560037 | FS61: 1.337190304 | FT61: 0.2135366316 | FU61: 0.4114796745 | FV61: 0.03196356302 | FW61: 0.3700577255 | FX61: 0 | FY61: 0.03149887649 | FZ61: 0 | GA61: 0 | GB61: 2.570042419 | GC61: 2.09642284 | GD61: 0 | GE61: 0 | GF61: 0 | GG61: 0.03661863775 | GH61: 0.03658023397 | GI61: 0 | GJ61: 0
E62: ˂ = 11 KV ; COMMERCIAL & INDUSTRIAL ; COMPLEX TYPE | F62: 0 | G62: 53.8 | H62: 7.334848328 | I62: 2 | J62: 0 | K62: 0 | L62: 0 | M62: 0 | N62: 0 | O62: 0 | P62: 0 | Q62: 0 | R62: 0 | S62: 0 | T62: 0 | U62: 0 | V62: 0 | W62: 0 | X62: 0 | Y62: 0 | Z62: 0 | AA62: 0 | AB62: 0 | AC62: 0 | AD62: 0 | AE62: 0 | AF62: 0 | AG62: 0 | AH62: 0 | AI62: 0 | AJ62: 0 | AK62: 0 | AL62: 0 | AM62: 0 | AN62: 0 | AO62: 0 | AP62: 0 | AQ62: 0 | AR62: 0 | AS62: 0 | AT62: 0 | AU62: 0 | AV62: 0 | AW62: 0 | AX62: 0 | AY62: 0 | AZ62: 0 | BA62: 0 | BB62: 0 | BC62: 0 | BD62: 0 | BE62: 0 | BF62: 0 | BG62: 0 | BH62: 0 | BI62: 0 | BJ62: 0 | BK62: 0 | BL62: 0 | BM62: 0 | BN62: 0 | BO62: 0 | BP62: 0 | BQ62: 0 | BR62: 0 | BS62: 0 | BT62: 0 | BU62: 0 | BV62: 0 | BW62: 0 | BX62: 0 | BY62: 0 | BZ62: 0 | CA62: 0 | CB62: 0 | CC62: 0 | CD62: 0 | CE62: 0 | CF62: 0 | CG62: 0 | CH62: 0 | CI62: 0 | CJ62: 0 | CK62: 0 | CL62: 0 | CM62: 0 | CN62: 0 | CO62: 0 | CP62: 0 | CQ62: 0 | CR62: 0 | CS62: 0 | CT62: 0 | CU62: 0 | CV62: 0 | CX62: 0 | CY62: 0 | CZ62: 0 | DA62: 0 | DB62: 0 | DC62: 0 | DD62: 0 | DE62: 0 | DF62: 0 | DG62: 0 | DH62: 0 | DI62: 0 | DJ62: 0 | DK62: 0 | DL62: 0 | DM62: 0 | DN62: 0 | DO62: 0 | DP62: 0 | DQ62: 0 | DR62: 0 | DS62: 0 | DT62: 0 | DU62: 0 | DV62: 0 | DW62: 0 | DX62: 0 | DY62: 0 | DZ62: 0 | EA62: 0 | EB62: 0 | EC62: 0 | ED62: 0 | EE62: 0 | EF62: 0 | EG62: 0 | EH62: 0 | EI62: 0 | EJ62: 0 | EK62: 0 | EL62: 0 | EM62: 0 | EN62: 0 | EO62: 0 | EP62: 0 | EQ62: 0 | ER62: 0 | ES62: 0 | ET62: 0 | EU62: 0 | EV62: 0 | EW62: 0 | EX62: 0 | EY62: 0 | EZ62: 0 | FA62: 0 | FB62: 0 | FC62: 0 | FD62: 0 | FE62: 0 | FF62: 0 | FG62: 0 | FH62: 0 | FI62: 0 | FJ62: 0 | FK62: 0 | FL62: 0 | FM62: 0 | FN62: 0 | FO62: 0 | FP62: 0 | FQ62: 0 | FR62: 0 | FS62: 0 | FT62: 0 | FU62: 0 | FV62: 0 | FW62: 0 | FX62: 0 | FY62: 0 | FZ62: 0 | GA62: 0 | GB62: 0 | GC62: 0 | GD62: 0 | GE62: 0 | GF62: 0 | GG62: 0 | GH62: 0 | GI62: 0 | GJ62: 0
E63: ˂ = 11 KV ; SUBDIVISION ; COMPLEX TYPE | F63: 0 | G63: 53.8 | H63: 7.334848328 | I63: 2 | J63: 0 | K63: 0 | L63: 0 | M63: 0 | N63: 0 | O63: 0 | P63: 0 | Q63: 0 | R63: 0 | S63: 0 | T63: 0 | U63: 0 | V63: 0 | W63: 0 | X63: 0 | Y63: 0 | Z63: 0 | AA63: 0 | AB63: 0 | AC63: 0 | AD63: 0 | AE63: 0 | AF63: 0 | AG63: 0 | AH63: 0 | AI63: 0 | AJ63: 0 | AK63: 0 | AL63: 0 | AM63: 0 | AN63: 0 | AO63: 0 | AP63: 0 | AQ63: 0 | AR63: 0 | AS63: 0 | AT63: 0 | AU63: 0 | AV63: 0 | AW63: 0 | AX63: 0 | AY63: 0 | AZ63: 0 | BA63: 0 | BB63: 0 | BC63: 0 | BD63: 0 | BE63: 0 | BF63: 0 | BG63: 0 | BH63: 0 | BI63: 0 | BJ63: 0 | BK63: 0 | BL63: 0 | BM63: 0 | BN63: 0 | BO63: 0 | BP63: 0 | BQ63: 0 | BR63: 0 | BS63: 0 | BT63: 0 | BU63: 0 | BV63: 0 | BW63: 0 | BX63: 0 | BY63: 0 | BZ63: 0 | CA63: 0 | CB63: 0 | CC63: 0 | CD63: 0 | CE63: 0 | CF63: 0 | CG63: 0 | CH63: 0 | CI63: 0 | CJ63: 0 | CK63: 0 | CL63: 0 | CM63: 0 | CN63: 0 | CO63: 0 | CP63: 0 | CQ63: 0 | CR63: 0 | CS63: 0 | CT63: 0 | CU63: 0 | CV63: 0 | CX63: 0 | CY63: 0 | CZ63: 0 | DA63: 0 | DB63: 0 | DC63: 0 | DD63: 0 | DE63: 0 | DF63: 0 | DG63: 0 | DH63: 0 | DI63: 0 | DJ63: 0 | DK63: 0 | DL63: 0 | DM63: 0 | DN63: 0 | DO63: 0 | DP63: 0 | DQ63: 0 | DR63: 0 | DS63: 0 | DT63: 0 | DU63: 0 | DV63: 0 | DW63: 0 | DX63: 0 | DY63: 0 | DZ63: 0 | EA63: 0 | EB63: 0 | EC63: 0 | ED63: 0 | EE63: 0 | EF63: 0 | EG63: 0 | EH63: 0 | EI63: 0 | EJ63: 0 | EK63: 0 | EL63: 0 | EM63: 0 | EN63: 0 | EO63: 0 | EP63: 0 | EQ63: 0 | ER63: 0 | ES63: 0 | ET63: 0 | EU63: 0 | EV63: 0 | EW63: 0 | EX63: 0 | EY63: 0 | EZ63: 0 | FA63: 0 | FB63: 0 | FC63: 0 | FD63: 0 | FE63: 0 | FF63: 0 | FG63: 0 | FH63: 0 | FI63: 0 | FJ63: 0 | FK63: 0 | FL63: 0 | FM63: 0 | FN63: 0 | FO63: 0 | FP63: 0 | FQ63: 0 | FR63: 0 | FS63: 0 | FT63: 0 | FU63: 0 | FV63: 0 | FW63: 0 | FX63: 0 | FY63: 0 | FZ63: 0 | GA63: 0 | GB63: 0 | GC63: 0 | GD63: 0 | GE63: 0 | GF63: 0 | GG63: 0 | GH63: 0 | GI63: 0 | GJ63: 0
E64: > 11 KV & < = 22 KV ; COMMERCIAL & INDUSTRIAL | F64: 0 | G64: 53.8 | H64: 7.334848328 | I64: 2 | J64: 0 | K64: 0 | L64: 0 | M64: 0 | N64: 0 | O64: 0 | P64: 0 | Q64: 0 | R64: 0 | S64: 0 | T64: 0 | U64: 0 | V64: 0 | W64: 0 | X64: 0 | Y64: 0 | Z64: 0 | AA64: 0 | AB64: 0 | AC64: 0 | AD64: 0 | AE64: 0 | AF64: 0 | AG64: 0 | AH64: 0 | AI64: 0 | AJ64: 0 | AK64: 0 | AL64: 0 | AM64: 0 | AN64: 0 | AO64: 0 | AP64: 0 | AQ64: 0 | AR64: 0 | AS64: 0 | AT64: 0 | AU64: 0 | AV64: 0 | AW64: 0 | AX64: 0 | AY64: 0 | AZ64: 0 | BA64: 0 | BB64: 0 | BC64: 0 | BD64: 0 | BE64: 0 | BF64: 0 | BG64: 0 | BH64: 0 | BI64: 0 | BJ64: 0 | BK64: 0 | BL64: 0 | BM64: 0 | BN64: 0 | BO64: 0 | BP64: 0 | BQ64: 0 | BR64: 0 | BS64: 0 | BT64: 0 | BU64: 0 | BV64: 0 | BW64: 0 | BX64: 0 | BY64: 0 | BZ64: 0 | CA64: 0 | CB64: 0 | CC64: 0 | CD64: 0 | CE64: 0 | CF64: 0 | CG64: 0 | CH64: 0 | CI64: 0 | CJ64: 0 | CK64: 0 | CL64: 0 | CM64: 0 | CN64: 0 | CO64: 0 | CP64: 0 | CQ64: 0 | CR64: 0 | CS64: 0 | CT64: 0 | CU64: 0 | CV64: 0 | CX64: 0 | CY64: 0 | CZ64: 0 | DA64: 0 | DB64: 0 | DC64: 0 | DD64: 0 | DE64: 0 | DF64: 0 | DG64: 0 | DH64: 0 | DI64: 0 | DJ64: 0 | DK64: 0 | DL64: 0 | DM64: 0 | DN64: 0 | DO64: 0 | DP64: 0 | DQ64: 0 | DR64: 0 | DS64: 0 | DT64: 0 | DU64: 0 | DV64: 0 | DW64: 0 | DX64: 0 | DY64: 0 | DZ64: 0 | EA64: 0 | EB64: 0 | EC64: 0 | ED64: 0 | EE64: 0 | EF64: 0 | EG64: 0 | EH64: 0 | EI64: 0 | EJ64: 0 | EK64: 0 | EL64: 0 | EM64: 0 | EN64: 0 | EO64: 0 | EP64: 0 | EQ64: 0 | ER64: 0 | ES64: 0 | ET64: 0 | EU64: 0 | EV64: 0 | EW64: 0 | EX64: 0 | EY64: 0 | EZ64: 0 | FA64: 0 | FB64: 0 | FC64: 0 | FD64: 0 | FE64: 0 | FF64: 0 | FG64: 0 | FH64: 0 | FI64: 0 | FJ64: 0 | FK64: 0 | FL64: 0 | FM64: 0 | FN64: 0 | FO64: 0 | FP64: 0 | FQ64: 0 | FR64: 0 | FS64: 0 | FT64: 0 | FU64: 0 | FV64: 0 | FW64: 0 | FX64: 0 | FY64: 0 | FZ64: 0 | GA64: 0 | GB64: 0 | GC64: 0 | GD64: 0 | GE64: 0 | GF64: 0 | GG64: 0 | GH64: 0 | GI64: 0 | GJ64: 0
E65: > 11 KV & < = 22 KV ; SUBDIVISION | F65: 0 | G65: 53.8 | H65: 7.334848328 | I65: 2 | J65: 0 | K65: 0 | L65: 0 | M65: 0 | N65: 0 | O65: 0 | P65: 0 | Q65: 0 | R65: 0 | S65: 0 | T65: 0 | U65: 0 | V65: 0 | W65: 0 | X65: 0 | Y65: 0 | Z65: 0 | AA65: 0 | AB65: 0 | AC65: 0 | AD65: 0 | AE65: 0 | AF65: 0 | AG65: 0 | AH65: 0 | AI65: 0 | AJ65: 0 | AK65: 0 | AL65: 0 | AM65: 0 | AN65: 0 | AO65: 0 | AP65: 0 | AQ65: 0 | AR65: 0 | AS65: 0 | AT65: 0 | AU65: 0 | AV65: 0 | AW65: 0 | AX65: 0 | AY65: 0 | AZ65: 0 | BA65: 0 | BB65: 0 | BC65: 0 | BD65: 0 | BE65: 0 | BF65: 0 | BG65: 0 | BH65: 0 | BI65: 0 | BJ65: 0 | BK65: 0 | BL65: 0 | BM65: 0 | BN65: 0 | BO65: 0 | BP65: 0 | BQ65: 0 | BR65: 0 | BS65: 0 | BT65: 0 | BU65: 0 | BV65: 0 | BW65: 0 | BX65: 0 | BY65: 0 | BZ65: 0 | CA65: 0 | CB65: 0 | CC65: 0 | CD65: 0 | CE65: 0 | CF65: 0 | CG65: 0 | CH65: 0 | CI65: 0 | CJ65: 0 | CK65: 0 | CL65: 0 | CM65: 0 | CN65: 0 | CO65: 0 | CP65: 0 | CQ65: 0 | CR65: 0 | CS65: 0 | CT65: 0 | CU65: 0 | CV65: 0 | CX65: 0 | CY65: 0 | CZ65: 0 | DA65: 0 | DB65: 0 | DC65: 0 | DD65: 0 | DE65: 0 | DF65: 0 | DG65: 0 | DH65: 0 | DI65: 0 | DJ65: 0 | DK65: 0 | DL65: 0 | DM65: 0 | DN65: 0 | DO65: 0 | DP65: 0 | DQ65: 0 | DR65: 0 | DS65: 0 | DT65: 0 | DU65: 0 | DV65: 0 | DW65: 0 | DX65: 0 | DY65: 0 | DZ65: 0 | EA65: 0 | EB65: 0 | EC65: 0 | ED65: 0 | EE65: 0 | EF65: 0 | EG65: 0 | EH65: 0 | EI65: 0 | EJ65: 0 | EK65: 0 | EL65: 0 | EM65: 0 | EN65: 0 | EO65: 0 | EP65: 0 | EQ65: 0 | ER65: 0 | ES65: 0 | ET65: 0 | EU65: 0 | EV65: 0 | EW65: 0 | EX65: 0 | EY65: 0 | EZ65: 0 | FA65: 0 | FB65: 0 | FC65: 0 | FD65: 0 | FE65: 0 | FF65: 0 | FG65: 0 | FH65: 0 | FI65: 0 | FJ65: 0 | FK65: 0 | FL65: 0 | FM65: 0 | FN65: 0 | FO65: 0 | FP65: 0 | FQ65: 0 | FR65: 0 | FS65: 0 | FT65: 0 | FU65: 0 | FV65: 0 | FW65: 0 | FX65: 0 | FY65: 0 | FZ65: 0 | GA65: 0 | GB65: 0 | GC65: 0 | GD65: 0 | GE65: 0 | GF65: 0 | GG65: 0 | GH65: 0 | GI65: 0 | GJ65: 0
E66: > 22 KV & < = 33 KV ; COMMERCIAL & INDUSTRIAL | F66: 0 | G66: 54.9 | H66: 7.409453421 | I66: 2 | J66: 0 | K66: 0 | L66: 0 | M66: 0 | N66: 0 | O66: 0 | P66: 0 | Q66: 0 | R66: 0 | S66: 0 | T66: 0 | U66: 0 | V66: 0 | W66: 0 | X66: 0 | Y66: 0 | Z66: 0 | AA66: 0 | AB66: 0 | AC66: 0 | AD66: 0 | AE66: 0 | AF66: 0 | AG66: 0 | AH66: 0 | AI66: 0 | AJ66: 0 | AK66: 0 | AL66: 0 | AM66: 0 | AN66: 0 | AO66: 0 | AP66: 0 | AQ66: 0 | AR66: 0 | AS66: 0 | AT66: 0 | AU66: 0 | AV66: 0 | AW66: 0 | AX66: 0 | AY66: 0 | AZ66: 0 | BA66: 0 | BB66: 0 | BC66: 0 | BD66: 0 | BE66: 0 | BF66: 0 | BG66: 0 | BH66: 0 | BI66: 0 | BJ66: 0 | BK66: 0 | BL66: 0 | BM66: 0 | BN66: 0 | BO66: 0 | BP66: 0 | BQ66: 0 | BR66: 0 | BS66: 0 | BT66: 0 | BU66: 0 | BV66: 0 | BW66: 0 | BX66: 0 | BY66: 0 | BZ66: 0 | CA66: 0 | CB66: 0 | CC66: 0 | CD66: 0 | CE66: 0 | CF66: 0 | CG66: 0 | CH66: 0 | CI66: 0 | CJ66: 0 | CK66: 0 | CL66: 0 | CM66: 0 | CN66: 0 | CO66: 0 | CP66: 0 | CQ66: 0 | CR66: 0 | CS66: 0 | CT66: 0 | CU66: 0 | CV66: 0 | CX66: 0 | CY66: 0 | CZ66: 0 | DA66: 0 | DB66: 0 | DC66: 0 | DD66: 0 | DE66: 0 | DF66: 0 | DG66: 0 | DH66: 0 | DI66: 0 | DJ66: 0 | DK66: 0 | DL66: 0 | DM66: 0 | DN66: 0 | DO66: 0 | DP66: 0 | DQ66: 0 | DR66: 0 | DS66: 0 | DT66: 0 | DU66: 0 | DV66: 0 | DW66: 0 | DX66: 0 | DY66: 0 | DZ66: 0 | EA66: 0 | EB66: 0 | EC66: 0 | ED66: 0 | EE66: 0 | EF66: 0 | EG66: 0 | EH66: 0 | EI66: 0 | EJ66: 0 | EK66: 0 | EL66: 0 | EM66: 0 | EN66: 0 | EO66: 0 | EP66: 0 | EQ66: 0 | ER66: 0 | ES66: 0 | ET66: 0 | EU66: 0 | EV66: 0 | EW66: 0 | EX66: 0 | EY66: 0 | EZ66: 0 | FA66: 0 | FB66: 0 | FC66: 0 | FD66: 0 | FE66: 0 | FF66: 0 | FG66: 0 | FH66: 0 | FI66: 0 | FJ66: 0 | FK66: 0 | FL66: 0 | FM66: 0 | FN66: 0 | FO66: 0 | FP66: 0 | FQ66: 0 | FR66: 0 | FS66: 0 | FT66: 0 | FU66: 0 | FV66: 0 | FW66: 0 | FX66: 0 | FY66: 0 | FZ66: 0 | GA66: 0 | GB66: 0 | GC66: 0 | GD66: 0 | GE66: 0 | GF66: 0 | GG66: 0 | GH66: 0 | GI66: 0 | GJ66: 0
